Workbook

Sheet Abertura
D3: UNIVERSIDADE FEDERAL DO PARANÁ / SETOR DE CIÊNCIAS AGRÁRIAS
D4: DEPARTAMENTO DE SOLOS E ENGENHARIA AGRÍCOLA
D6: LAMOSA - LABORATÓRIO DE MODELAGEM DE SISTEMAS AMBIENTAIS
C8: PLATAFORMA MORETTI: MÓDULO - VALOR PROVÁVEL DECENDIAL DAS COMPONENTES HÍDRICAS DA SOJA PARA O ESTADO DO PIAUÍ.
C13: Autores:
C14: Orientador: Jorge Luiz Moretti de Souza (LAMOSA / DSEA / SCA / UFPR)
C15: Pós-Graduando: Juliana Vogado Coelho (Pós-Graduação em Ciência do Solo / DSEA / SCA / UFPR)
C16: Co-Orientador: Alexandre Cândido Xavier (DER / UFES)
B18: Endereço:
B19: Rua dos Funcionários, 1540 - Curitiba, PR
B20: CEP: 80035-050
B21: Telefone: (041) 3350-5689 Celular: (041) 99938-0155
B22: e-mail: jmoretti@ufpr.br | H22: Versão: 2024/1.0
B23: Site: http://www.moretti.agrarias.ufpr.br/

Sheet ValorProvável
S1: =AC2 -> -41.625 | T1: =AD2 -> -4.125 | W1: Cultura (23) | X1: Componente hídrica (24) | Y1: Local (25) | Z1: fdp (26) | AA1: Probabilidade (27) | AB1: 28 | AC1: Longitude (29) | AD1: Latitude (30) | AE1: 31 | AF1: 32 | AG1: 33
C2: VALOR PROVÁVEL DECENDIAL DAS COMPONENTES HÍDRICAS (SOJA E MILHO), TEMPERATURAS DO AR E RADIAÇÃO SOLAR INCIDENTE, PARA O ESTADO DO PARANÁ | W2: 1 | X2: 5 | Y2: 19 | Z2: 1 | AA2: 25 | AC2: -41.625 | AD2: -4.125
W3: Soja | X3: Precipitação (P ; mm / decêndio) | Y3: P.001: -3,125 S; -41,375 W | Z3: fdp planilha | AA3: Prob. 1% | AC3: -41.375 | AD3: -3.125
C4: Figura 1 – Principais cidades no Estado do Piauí, e suas macrorregiões. | I4: Figura 2 – Mapa espacializado e de solos do Estado do Piauí, contendo os pontos interpolados. | O4: Figura 3 – Valores prováveis obtidos para a componente hídrica, conforme fdp e nível de probabilidade escolhido. | W4: Milho | X4: Evapotranspiração de referência (ETo ; mm / decêndio) | Y4: P.002: -3,125 S; -41,625 W | Z4: Exponencial | AA4: Prob. 2% | AC4: -41.625 | AD4: -3.125
C5: Decêndio | D5: Parâmetros das fdp's | K5: Dmax Tabela-do 5% | L5: Dmax | M5: Melhor fdp (1) | N5: P(X = 0) | O5: Valor x | P5: P(X ³ x) | Q5: Número de | R5: Amostra | S5: Amostra | T5: P(X = 0) | W5: Melhor | X5: Armazenamento de água no solo (S ; mm / decêndio) | Y5: P.003: -3,375 S; -41,375 W | Z5: Gama | AA5: Prob. 3% | AC5: -41.375 | AD5: -3.375
D6: Menor valor | E6: Maior valor | F6: Média | G6: Des. Pad. | H6: Moda | I6: Alfa | J6: Beta | L6: calculado (ad.) | N6: ( % ) | O6: =IF(X2<=7,"(mm / decêndio)",IF(X2<=10,"(graus celsius)","(MJ / m^2 decêndio)")) -> (mm / decêndio) | P6: (%) | Q6: decêndios (unidade) | R6: dados (unidade) | S6: zeros (unidade) | T6: (%) | W6: fdp (1) | X6: Evapotranspiração de real (ETr ; mm / decêndio) | Y6: P.004: -3,375 S; -41,875 W | Z6: Normal | AA6: Prob. 4% | AC6: -41.875 | AD6: -3.375
C7: 1 | D7: 0.1000000015 | E7: 57.5 | F7: 19.73611069 | G7: 16.13151572 | H7: 4.883333206 | I7: 1.144892454 | J7: 17.2383976 | K7: 0.2283333391 | L7: 0.06810677052 | M7: E | N7: 0 | O7: 27.36008295 | P7: =(1-((N7/100)+(1-(N7/100))* (1-(1/(EXP(O7/F7))))))*100 -> 24.9999696 | Q7: 36 | R7: 36 | S7: 0 | T7: 0 | W7: E | X7: Deficiência hídrica (Def ; mm / decêndio) | Y7: P.005: -3,375 S; -42,125 W | Z7: Triangular | AA7: Prob. 5% | AC7: -42.125 | AD7: -3.375
C8: 2 | D8: 0.3000000119 | E8: 62 | F8: 15.95000076 | G8: 16.84041957 | H8: 5.44166708 | I8: 0.8161927462 | J8: 19.54195404 | K8: 0.2283333391 | L8: 0.02824312449 | M8: G | N8: 0 | O8: 22.06253714 | P8: =(1-((N8/100)+(1-(N8/100))*GAMMADIST(O8,I8,J8,TRUE)))*100 -> 24.99964961 | Q8: 36 | R8: 36 | S8: 0 | T8: 0 | W8: G | Y8: P.006: -3,625 S; -41,375 W | Z8: Uniforme | AA8: Prob. 6% | AC8: -41.375 | AD8: -3.625
C9: 3 | D9: 0.3000000119 | E9: 52 | F9: 17.51176453 | G9: 14.81982344 | H9: 4.608333588 | I9: 1.054261327 | J9: 16.61045837 | K9: 0.2349530607 | L9: 0.09974908829 | M9: G | N9: 5.405405405 | O9: 23.3176587 | P9: =(1-((N9/100)+(1-(N9/100))*GAMMADIST(O9,I9,J9,TRUE)))*100 -> 24.99999768 | Q9: 36 | R9: 36 | S9: 2 | T9: 5.405405405 | W9: G | X9: Excedente hídrico (Exc ; mm / decêndio) | Y9: P.007: -3,625 S; -41,625 W | AA9: Prob. 7% | AC9: -41.625 | AD9: -3.625
C10: 4 | D10: 0.6000000238 | E10: 44 | F10: 12.52647114 | G10: 11.27212485 | H10: 4.216666698 | I10: 1.249048948 | J10: 10.02880764 | K10: 0.2349530607 | L10: 0.0297139287 | M10: E | N10: 5.405405405 | O10: 16.66929324 | P10: =(1-((N10/100)+(1-(N10/100))* (1-(1/(EXP(O10/F10))))))*100 -> 24.9999779 | Q10: 36 | R10: 36 | S10: 2 | T10: 5.405405405 | W10: E | X10: Temperatura mínima do ar (Tmin ; graus celsius) | Y10: P.008: -3,625 S; -41,875 W | AA10: Prob. 8% | AC10: -41.875 | AD10: -3.625
C11: 5 | D11: 0.200000003 | E11: 29.79999924 | F11: 7.293548107 | G11: 8.912872315 | H11: 3.160000086 | I11: 0.7890498638 | J11: 9.243456841 | K11: 0.2460592687 | L11: 0.06321275234 | M11: G | N11: 13.51351351 | O11: 8.887169296 | P11: =(1-((N11/100)+(1-(N11/100))*GAMMADIST(O11,I11,J11,TRUE)))*100 -> 25.00002016 | Q11: 36 | R11: 36 | S11: 5 | T11: 13.51351351 | W11: G | X11: Temperatura máxima do ar (Tmax ; graus celsius) | Y11: P.009: -3,625 S; -42,125 W | Z11: fdp planilha | AA11: Prob. 9% | AC11: -42.125 | AD11: -3.625
C12: 6 | D12: 0.1000000015 | E12: 53.29999924 | F12: 11.28620625 | G12: 15.21781502 | H12: 5.419999599 | I12: 0.5220460296 | J12: 21.61917877 | K12: 0.2544026077 | L12: 0.03042817116 | M12: G | N12: 16.21621622 | O12: 12.35213378 | P12: 24.99986991 | Q12: 36 | R12: 36 | S12: 6 | T12: 16.21621622 | W12: G | X12: Temperatura média do ar (Tmed ; graus celsius) | Y12: P.010: -3,625 S; -42,375 W | AA12: Prob. 10% | AC12: -42.375 | AD12: -3.625
C13: 7 | D13: 0.1000000015 | E13: 36.09999847 | F13: 8.132257462 | G13: 10.73155404 | H13: 3.699999809 | I13: 0.5871580243 | J13: 13.85020256 | K13: 0.2460592687 | L13: 0.06866490841 | M13: G | N13: 13.51351351 | O13: 9.484228312 | P13: 24.99999607 | Q13: 36 | R13: 36 | S13: 5 | T13: 13.51351351 | W13: G | X13: Radiação solar incidente (Rs ; MJ / m^2 decêndio) | Y13: P.011: -3,875 S; -41,375 W | AA13: Prob. 11% | AC13: -41.375 | AD13: -3.875
C14: 8 | D14: 0.1000000015 | E14: 21.60000038 | F14: 3.415999651 | G14: 5.954947445 | H14: 2.25 | I14: 0.5142780542 | J14: 6.642320633 | K14: 0.273999989 | L14: 0.05649513006 | M14: G | N14: 29.72972973 | O14: 2.948710151 | P14: 25.00008546 | Q14: 36 | R14: 36 | S14: 11 | T14: 29.72972973 | W14: G | X14: Evapotranspiração da cultura (ETc ; mm / decêndio) | Y14: P.012: -3,875 S; -41,625 W | AA14: Prob. 12% | AC14: -41.625 | AD14: -3.875
C15: 9 | D15: 0.1000000015 | E15: 16.29999924 | F15: 2.046666622 | G15: 4.279330081 | H15: 1.719999909 | I15: 0.5295493007 | J15: 3.864921808 | K15: 0.3243176043 | L15: 0.06862646341 | M15: G | N15: 56.75675676 | O15: 0.6762048357 | P15: 24.99968866 | Q15: 36 | R15: 36 | S15: 21 | T15: 56.75675676 | W15: G | Y15: P.013: -3,875 S; -41,875 W | AA15: Prob. 13% | AC15: -41.875 | AD15: -3.875
C16: 10 | D16: 0.1000000015 | E16: 12 | F16: 1.965217113 | G16: 3.109897435 | H16: 1.290000081 | I16: 0.5458627939 | J16: 3.600203514 | K16: 0.2856647372 | L16: 0.03570717573 | M16: G | N16: 35.13513514 | O16: 1.546171488 | P16: 25.00002624 | Q16: 36 | R16: 36 | S16: 13 | T16: 35.13513514 | W16: G | Y16: P.014: -3,875 S; -42,125 W | AA16: Prob. 14% | AC16: -42.125 | AD16: -3.875
C17: 11 | D17: 0.1000000015 | E17: 12.19999981 | F17: 3.013333082 | G17: 3.762192931 | H17: 1.310000062 | I17: 0.6797652245 | J17: 4.432902813 | K17: 0.3243176043 | L17: 0.0754597187 | M17: G | N17: 56.75675676 | O17: 1.268066252 | P17: 24.99962534 | Q17: 36 | R17: 36 | S17: 21 | T17: 56.75675676 | W17: G | Y17: P.015: -3,875 S; -42,375 W | AA17: Prob. 15% | AC17: -42.375 | AD17: -3.875
C18: 12 | D18: 0.1000000015 | E18: 22.5 | F18: 6.623076439 | G18: 8.649870467 | H18: 2.339999914 | I18: 0.4378063381 | J18: 15.1278677 | K18: 0.3584900796 | L18: 0.1534425616 | M18: G | N18: 62.16216216 | O18: 1.017198479 | P18: 25.00011355 | Q18: 36 | R18: 36 | S18: 23 | T18: 62.16216216 | W18: G | Y18: P.016: -3,875 S; -42,625 W | AA18: Prob. 16% | AC18: -42.625 | AD18: -3.875
C19: 13 | D19: 0.1000000015 | E19: 19.10000038 | F19: 4.4909091 | G19: 5.992925288 | H19: 2 | I19: 0.5159606934 | J19: 8.703975677 | K19: 0.2920849919 | L19: 0.1187623739 | M19: G | N19: 37.83783784 | O19: 3.20785472 | P19: 25.00001922 | Q19: 36 | R19: 36 | S19: 14 | T19: 37.83783784 | W19: G | Y19: P.017: -4,125 S; -41,125 W | AA19: Prob. 17% | AC19: -41.125 | AD19: -4.125
C20: 14 | D20: 0.200000003 | E20: 38.59999847 | F20: 8.937499046 | G20: 12.4202436 | H20: 4.039999962 | I20: 0.5608464479 | J20: 15.93573284 | K20: 0.2796500921 | L20: 0.06757318974 | M20: G | N20: 32.43243243 | O20: 7.55886228 | P20: 25.00000302 | Q20: 36 | R20: 36 | S20: 12 | T20: 32.43243243 | W20: G | Y20: P.018: -4,125 S; -41,375 W | AA20: Prob. 18% | AC20: -41.375 | AD20: -4.125
C21: 15 | D21: 0.1000000015 | E21: 40.29999924 | F21: 10.51666737 | G21: 13.2538366 | H21: 4.119999886 | I21: 0.4960268736 | J21: 21.20180893 | K21: 0.2501266301 | L21: 0.0531463027 | M21: G | N21: 16.21621622 | O21: 11.34634947 | P21: 24.9999395 | Q21: 36 | R21: 36 | S21: 6 | T21: 16.21621622 | W21: G | Y21: P.019: -4,125 S; -41,625 W | AA21: Prob. 19% | AC21: -41.625 | AD21: -4.125
C22: 16 | D22: 0.1000000015 | E22: 45.20000076 | F22: 14.92500114 | G22: 14.18925136 | H22: 3.858333349 | I22: 0.7229922414 | J22: 20.6433773 | K22: 0.2421840727 | L22: 0.08345109224 | M22: E | N22: 10.81081081 | O22: 18.98297259 | P22: =(1-((N22/100)+(1-(N22/100))* (1-(1/(EXP(O22/F22))))))*100 -> 24.99982867 | Q22: 36 | R22: 36 | S22: 4 | T22: 10.81081081 | W22: E | Y22: P.020: -4,125 S; -41,875 W | AA22: Prob. 20% | AC22: -41.875 | AD22: -4.125
C23: 17 | D23: 0.200000003 | E23: 44.20000076 | F23: 21.60000229 | G23: 14.42038522 | H23: 25.86666679 | I23: 1.029157162 | J23: 20.98805046 | K23: 0.2384863943 | L23: 0.07575756311 | M23: U | N23: 8.108108108 | O23: 32.22941232 | P23: =(1-((N23/100)+(1-(N23/100))*((O23-D23)/(E23-D23))))*100 -> 25 | Q23: 36 | R23: 36 | S23: 3 | T23: 8.108108108 | W23: U | Y23: P.021: -4,125 S; -42,125 W | AA23: Prob. 21% | AC23: -42.125 | AD23: -4.125
C24: 18 | D24: 0.6000000238 | E24: 45.90000153 | F24: 27.06000137 | G24: 11.13175708 | H24: 34.57500076 | I24: 3.16946888 | J24: 8.537708282 | K24: 0.2315722704 | L24: 0.0666666925 | M24: T | N24: 2.702702703 | O24: 34.41714619 | P24: =(1-((N24/100)+(1-(N24/100))*IF(O24<=H24,(O24-D24)^2/((E24-D24)*(H24-D24)),((H24-D24)/(E24-D24))-((E24-O24)^2/((E24-D24)*(E24-H24)))+((E24-H24)/(E24-D24)))))*100 -> 25.0008436 | Q24: 36 | R24: 36 | S24: 1 | T24: 2.702702703 | W24: T | Y24: P.022: -4,125 S; -42,375 W | AA24: Prob. 22% | AC24: -42.375 | AD24: -4.125
C25: 19 | D25: 1.100000024 | E25: 47.59999847 | F25: 31.6400013 | G25: 11.76045833 | H25: 35.97499847 | I25: 2.916963339 | J25: 10.84689713 | K25: 0.2315722704 | L25: 0.1038961709 | M25: N | N25: 2.702702703 | O25: 39.31709868 | P25: =(1-((N25/100)+(1-(N25/100))*NORMDIST(O25,F25,G25,TRUE)))*100 -> 25.00016792 | Q25: 36 | R25: 36 | S25: 1 | T25: 2.702702703 | W25: N | Y25: P.023: -4,125 S; -42,625 W | AA25: Prob. 23% | AC25: -42.625 | AD25: -4.125
C26: 20 | D26: 7.099999905 | E26: 45.79999924 | F26: 34.375 | G26: 8.85642243 | H26: 36.125 | I26: 9.124539375 | J26: 3.76731348 | K26: 0.2283333391 | L26: 0.1266207993 | M26: N | N26: 0 | O26: 40.34856925 | P26: =(1-((N26/100)+(1-(N26/100))*NORMDIST(O26,F26,G26,TRUE)))*100 -> 24.99998889 | Q26: 36 | R26: 36 | S26: 0 | T26: 0 | W26: N | Y26: P.024: -4,375 S; -41,125 W | AA26: Prob. 24% | AC26: -41.125 | AD26: -4.375
C27: 21 | D27: 18.5 | E27: 45.59999847 | F27: 36.21667099 | G27: 6.61001389 | H27: 43.34166718 | I27: 26.60085869 | J27: 1.361485004 | K27: 0.2283333391 | L27: 0.06313127279 | M27: T | N27: 0 | O27: 40.97013073 | P27: =(1-((N27/100)+(1-(N27/100))*IF(O27<=H27,(O27-D27)^2/((E27-D27)*(H27-D27)),((H27-D27)/(E27-D27))-((E27-O27)^2/((E27-D27)*(E27-H27)))+((E27-H27)/(E27-D27)))))*100 -> 25.00001219 | Q27: 36 | R27: 36 | S27: 0 | T27: 0 | W27: T | Y27: P.025: -4,375 S; -41,375 W | AA27: Prob. 25% | AC27: -41.375 | AD27: -4.375
C28: 22 | D28: 18.60000038 | E28: 47.29999924 | F28: 35.51944351 | G28: 6.028305995 | H28: 35.34166718 | I28: 32.57279205 | J28: 1.090463638 | K28: 0.2283333391 | L28: 0.04074595496 | M28: N | N28: 0 | O28: 39.58545041 | P28: =(1-((N28/100)+(1-(N28/100))*NORMDIST(O28,F28,G28,TRUE)))*100 -> 25.00012498 | Q28: 36 | R28: 36 | S28: 0 | T28: 0 | W28: N | Y28: P.026: -4,375 S; -41,625 W | AA28: Prob. 26% | AC28: -41.625 | AD28: -4.375
C29: 23 | D29: 15.30000019 | E29: 49.79999924 | F29: 32.92777252 | G29: 7.491886073 | H29: 29.67499924 | I29: 18.51465607 | J29: 1.778470635 | K29: 0.2283333391 | L29: 0.0620059967 | M29: N | N29: 0 | O29: 37.98097328 | P29: 24.99999834 | Q29: 36 | R29: 36 | S29: 0 | T29: 0 | W29: N | Y29: P.027: -4,375 S; -41,875 W | AA29: Prob. 27% | AC29: -41.875 | AD29: -4.375
C30: 24 | D30: 18.29999924 | E30: 49.40000153 | F30: 32.29721832 | G30: 6.515760827 | H30: 31.25833321 | I30: 25.01934242 | J30: 1.290889978 | K30: 0.2283333391 | L30: 0.02658390999 | M30: N | N30: 0 | O30: 36.69187896 | P30: 25.00074744 | Q30: 36 | R30: 36 | S30: 0 | T30: 0 | W30: N | Y30: P.028: -4,375 S; -42,125 W | AA30: Prob. 28% | AC30: -42.125 | AD30: -4.375
C31: 25 | D31: 19.5 | E31: 45 | F31: 32.81945038 | G31: 4.81300708 | H31: 34.375 | I31: 45.16213608 | J31: 0.7267028093 | K31: 0.2283333391 | L31: 0.05787223577 | M31: N | N31: 0 | O31: 36.06575765 | P31: 25.00011006 | Q31: 36 | R31: 36 | S31: 0 | T31: 0 | W31: N | Y31: P.029: -4,375 S; -42,375 W | AA31: Prob. 29% | AC31: -42.375 | AD31: -4.375
C32: 26 | D32: 22.10000038 | E32: 46.79999924 | F32: 32.91666794 | G32: 5.379829544 | H32: 32.39166641 | I32: 39.47244263 | J32: 0.833915174 | K32: 0.2283333391 | L32: 0.07977133989 | M32: N | N32: 0 | O32: 36.54530347 | P32: 25.0000257 | Q32: 36 | R32: 36 | S32: 0 | T32: 0 | W32: N | Y32: P.030: -4,375 S; -42,625 W | AA32: Prob. 30% | AC32: -42.625 | AD32: -4.375
C33: 27 | D33: 13.10000038 | E33: 47.40000153 | F33: 32.55555344 | G33: 6.84478724 | H33: 33.10833359 | I33: 19.94486046 | J33: 1.632277846 | K33: 0.2283333391 | L33: 0.0734937191 | M33: N | N33: 0 | O33: 37.17228327 | P33: 25.00004179 | Q33: 36 | R33: 36 | S33: 0 | T33: 0 | W33: N | Y33: P.031: -4,375 S; -42,875 W | AA33: Prob. 31% | AC33: -42.875 | AD33: -4.375
C34: 28 | D34: 14.89999962 | E34: 48.29999924 | F34: 33.50555038 | G34: 6.479680506 | H34: 34.3833313 | I34: 24.09421539 | J34: 1.390605569 | K34: 0.2283333391 | L34: 0.06336385012 | M34: N | N34: 0 | O34: 37.87602881 | P34: 24.99999835 | Q34: 36 | R34: 36 | S34: 0 | T34: 0 | W34: N | Y34: P.032: -4,625 S; -41,125 W | AA34: Prob. 32% | AC34: -41.125 | AD34: -4.625
C35: 29 | D35: 6.699999809 | E35: 51.90000153 | F35: 31.58333015 | G35: 9.286441674 | H35: 33.06666946 | I35: 8.144145012 | J35: 3.878041267 | K35: 0.2283333391 | L35: 0.1009082198 | M35: N | N35: 0 | O35: 37.84699078 | P35: 24.99982583 | Q35: 36 | R35: 36 | S35: 0 | T35: 0 | W35: N | Y35: P.033: -4,625 S; -41,375 W | AA35: Prob. 33% | AC35: -41.375 | AD35: -4.625
C36: 30 | D36: 9.699999809 | E36: 47.40000153 | F36: 29.9944458 | G36: 8.585201714 | H36: 31.69166756 | I36: 9.952187538 | J36: 3.013854504 | K36: 0.2283333391 | L36: 0.03882232308 | M36: N | N36: 0 | O36: 35.78507856 | P36: 24.99999185 | Q36: 36 | R36: 36 | S36: 0 | T36: 0 | W36: N | Y36: P.034: -4,625 S; -41,625 W | AA36: Prob. 34% | AC36: -41.625 | AD36: -4.625
C37: 31 | D37: 11.10000038 | E37: 45 | F37: 30.32500267 | G37: 7.388769969 | H37: 36.52500153 | I37: 13.64686012 | J37: 2.222123146 | K37: 0.2283333391 | L37: 0.05555555224 | M37: T | N37: 0 | O37: 36.52500123 | P37: =(1-((N37/100)+(1-(N37/100))*IF(O37<=H37,(O37-D37)^2/((E37-D37)*(H37-D37)),((H37-D37)/(E37-D37))-((E37-O37)^2/((E37-D37)*(E37-H37)))+((E37-H37)/(E37-D37)))))*100 -> 24.99999753 | Q37: 36 | R37: 36 | S37: 0 | T37: 0 | W37: T | Y37: P.035: -4,625 S; -41,875 W | AA37: Prob. 35% | AC37: -41.875 | AD37: -4.625
C38: 32 | D38: 6.300000191 | E38: 48.40000153 | F38: 28.76388931 | G38: 9.045509143 | H38: 30.85833359 | I38: 7.642625332 | J38: 3.763613701 | K38: 0.2283333391 | L38: 0.03968253732 | M38: T | N38: 0 | O38: 34.81229037 | P38: =(1-((N38/100)+(1-(N38/100))*IF(O38<=H38,(O38-D38)^2/((E38-D38)*(H38-D38)),((H38-D38)/(E38-D38))-((E38-O38)^2/((E38-D38)*(E38-H38)))+((E38-H38)/(E38-D38)))))*100 -> 24.99997745 | Q38: 36 | R38: 36 | S38: 0 | T38: 0 | W38: T | Y38: P.036: -4,625 S; -42,125 W | AA38: Prob. 36% | AC38: -42.125 | AD38: -4.625
C39: 33 | D39: 7.400000095 | E39: 46.5 | F39: 27.44166946 | G39: 8.675890733 | H39: 30.20833206 | I39: 8.46275425 | J39: 3.242640495 | K39: 0.2283333391 | L39: 0.01658970118 | M39: N | N39: 0 | O39: 33.29351745 | P39: =(1-((N39/100)+(1-(N39/100))*NORMDIST(O39,F39,G39,TRUE)))*100 -> 24.99982194 | Q39: 36 | R39: 36 | S39: 0 | T39: 0 | W39: N | Y39: P.037: -4,625 S; -42,375 W | AA39: Prob. 37% | AC39: -42.375 | AD39: -4.625
C40: 34 | D40: 7 | E40: 45.20000076 | F40: 26.44166565 | G40: 9.111950047 | H40: 22.91666794 | I40: 6.793013096 | J40: 3.892479658 | K40: 0.2283333391 | L40: 0.03132949769 | M40: N | N40: 0 | O40: 32.58758385 | P40: =(1-((N40/100)+(1-(N40/100))*NORMDIST(O40,F40,G40,TRUE)))*100 -> 24.99999551 | Q40: 36 | R40: 36 | S40: 0 | T40: 0 | W40: N | Y40: P.038: -4,625 S; -42,625 W | AA40: Prob. 38% | AC40: -42.625 | AD40: -4.625
C41: 35 | D41: 0.5 | E41: 46.40000153 | F41: 24.36571312 | G41: 10.62112105 | H41: 27.27499962 | I41: 2.364221573 | J41: 10.30601883 | K41: 0.2315722704 | L41: 0.04761904478 | M41: T | N41: 2.702702703 | O41: 31.3814914 | P41: =(1-((N41/100)+(1-(N41/100))*IF(O41<=H41,(O41-D41)^2/((E41-D41)*(H41-D41)),((H41-D41)/(E41-D41))-((E41-O41)^2/((E41-D41)*(E41-H41)))+((E41-H41)/(E41-D41)))))*100 -> 25.00001637 | Q41: 36 | R41: 36 | S41: 1 | T41: 2.702702703 | W41: T | Y41: P.039: -4,625 S; -42,875 W | AA41: Prob. 39% | AC41: -42.875 | AD41: -4.625
C42: 36 | D42: 0.1000000015 | E42: 36.79999924 | F42: 18.2885704 | G42: 10.21140597 | H42: 27.62499809 | I42: 1.373396754 | J42: 13.31630516 | K42: 0.2315722704 | L42: 0.106366694 | M42: N | N42: 2.702702703 | O42: 24.95422484 | P42: =(1-((N42/100)+(1-(N42/100))*NORMDIST(O42,F42,G42,TRUE)))*100 -> 25.00090106 | Q42: 36 | R42: 36 | S42: 1 | T42: 2.702702703 | W42: N | Y42: P.040: -4,875 S; -41,125 W | AA42: Prob. 40% | AC42: -41.125 | AD42: -4.875
B43: * | C43: 37 | D43: 0.5 | E43: 31.89999962 | F43: 8.720588684 | G43: 6.582999917 | H43: 8.349999428 | I43: 1.74881506 | J43: 4.986569881 | K43: 0.2349530607 | L43: 0.05140817165 | M43: G | N43: 2.702702703 | O43: 11.66474867 | P43: =(1-((N43/100)+(1-(N43/100))*GAMMADIST(O43,I43,J43,TRUE)))*100 -> 24.99985838 | Q43: 36 | R43: 36 | S43: 1 | T43: 2.702702703 | W43: G | Y43: P.041: -4,875 S; -41,375 W | AA43: Prob. 41% | AC43: -41.375 | AD43: -4.875
C44: ( 1 ) E - exponencial; G - gama; N - normal; T - triangular; U - uniforme | L44: * Valor provável da variável X, correspondente aos 5 ou 6 (ano bissexto) últimos dias de cada ano. | Y44: P.042: -4,875 S; -41,625 W | AA44: Prob. 42% | AC44: -41.625 | AD44: -4.875
Y45: P.043: -4,875 S; -41,875 W | AA45: Prob. 43% | AC45: -41.875 | AD45: -4.875
Y46: P.044: -4,875 S; -42,125 W | AA46: Prob. 44% | AC46: -42.125 | AD46: -4.875
Y47: P.045: -4,875 S; -42,375 W | AA47: Prob. 45% | AC47: -42.375 | AD47: -4.875
Y48: P.046: -4,875 S; -42,625 W | AA48: Prob. 46% | AC48: -42.625 | AD48: -4.875
Y49: P.047: -4,875 S; -42,875 W | AA49: Prob. 47% | AC49: -42.875 | AD49: -4.875
Y50: P.048: -5,125 S; -41,125 W | AA50: Prob. 48% | AC50: -41.125 | AD50: -5.125
Y51: P.049: -5,125 S; -41,375 W | AA51: Prob. 49% | AC51: -41.375 | AD51: -5.125
Y52: P.050: -5,125 S; -41,625 W | AA52: Prob. 50% | AC52: -41.625 | AD52: -5.125
Y53: P.051: -5,125 S; -41,875 W | AA53: Prob. 51% | AC53: -41.875 | AD53: -5.125
Y54: P.052: -5,125 S; -42,125 W | AA54: Prob. 52% | AC54: -42.125 | AD54: -5.125
Y55: P.053: -5,125 S; -42,375 W | AA55: Prob. 53% | AC55: -42.375 | AD55: -5.125
Y56: P.054: -5,125 S; -42,625 W | AA56: Prob. 54% | AC56: -42.625 | AD56: -5.125
Y57: P.055: -5,375 S; -41,125 W | AA57: Prob. 55% | AC57: -41.125 | AD57: -5.375
Y58: P.056: -5,375 S; -41,375 W | AA58: Prob. 56% | AC58: -41.375 | AD58: -5.375
Y59: P.057: -5,375 S; -41,625 W | AA59: Prob. 57% | AC59: -41.625 | AD59: -5.375
Y60: P.058: -5,375 S; -41,875 W | AA60: Prob. 58% | AC60: -41.875 | AD60: -5.375
Y61: P.059: -5,375 S; -42,125 W | AA61: Prob. 59% | AC61: -42.125 | AD61: -5.375
Y62: P.060: -5,375 S; -42,375 W | AA62: Prob. 60% | AC62: -42.375 | AD62: -5.375
Y63: P.061: -5,375 S; -42,625 W | AA63: Prob. 61% | AC63: -42.625 | AD63: -5.375
Y64: P.062: -5,625 S; -40,875 W | AA64: Prob. 62% | AC64: -40.875 | AD64: -5.625
Y65: P.063: -5,625 S; -41,125 W | AA65: Prob. 63% | AC65: -41.125 | AD65: -5.625
Y66: P.064: -5,625 S; -41,375 W | AA66: Prob. 64% | AC66: -41.375 | AD66: -5.625
Y67: P.065: -5,625 S; -41,625 W | AA67: Prob. 65% | AC67: -41.625 | AD67: -5.625
Y68: P.066: -5,625 S; -41,875 W | AA68: Prob. 66% | AC68: -41.875 | AD68: -5.625
Y69: P.067: -5,625 S; -42,125 W | AA69: Prob. 67% | AC69: -42.125 | AD69: -5.625
Y70: P.068: -5,625 S; -42,375 W | AA70: Prob. 68% | AC70: -42.375 | AD70: -5.625
Y71: P.069: -5,625 S; -42,625 W | AA71: Prob. 69% | AC71: -42.625 | AD71: -5.625
Y72: P.070: -5,625 S; -42,875 W | AA72: Prob. 70% | AC72: -42.875 | AD72: -5.625
Y73: P.071: -5,875 S; -40,875 W | AA73: Prob. 71% | AC73: -40.875 | AD73: -5.875
Y74: P.072: -5,875 S; -41,125 W | AA74: Prob. 72% | AC74: -41.125 | AD74: -5.875
Y75: P.073: -5,875 S; -41,375 W | AA75: Prob. 73% | AC75: -41.375 | AD75: -5.875
Y76: P.074: -5,875 S; -41,625 W | AA76: Prob. 74% | AC76: -41.625 | AD76: -5.875
Y77: P.075: -5,875 S; -41,875 W | AA77: Prob. 75% | AC77: -41.875 | AD77: -5.875
Y78: P.076: -5,875 S; -42,125 W | AA78: Prob. 76% | AC78: -42.125 | AD78: -5.875
Y79: P.077: -5,875 S; -42,375 W | AA79: Prob. 77% | AC79: -42.375 | AD79: -5.875
Y80: P.078: -5,875 S; -42,625 W | AA80: Prob. 78% | AC80: -42.625 | AD80: -5.875
Y81: P.079: -5,875 S; -42,875 W | AA81: Prob. 79% | AC81: -42.875 | AD81: -5.875
Y82: P.080: -6,125 S; -40,875 W | AA82: Prob. 80% | AC82: -40.875 | AD82: -6.125
Y83: P.081: -6,125 S; -41,125 W | AA83: Prob. 81% | AC83: -41.125 | AD83: -6.125
Y84: P.082: -6,125 S; -41,375 W | AA84: Prob. 82% | AC84: -41.375 | AD84: -6.125
Y85: P.083: -6,125 S; -41,625 W | AA85: Prob. 83% | AC85: -41.625 | AD85: -6.125
Y86: P.084: -6,125 S; -41,875 W | AA86: Prob. 84% | AC86: -41.875 | AD86: -6.125
Y87: P.085: -6,125 S; -42,125 W | AA87: Prob. 85% | AC87: -42.125 | AD87: -6.125
Y88: P.086: -6,125 S; -42,375 W | AA88: Prob. 86% | AC88: -42.375 | AD88: -6.125
Y89: P.087: -6,125 S; -42,625 W | AA89: Prob. 87% | AC89: -42.625 | AD89: -6.125
Y90: P.088: -6,125 S; -42,875 W | AA90: Prob. 88% | AC90: -42.875 | AD90: -6.125
Y91: P.089: -6,375 S; -40,875 W | AA91: Prob. 89% | AC91: -40.875 | AD91: -6.375
Y92: P.090: -6,375 S; -41,125 W | AA92: Prob. 90% | AC92: -41.125 | AD92: -6.375
Y93: P.091: -6,375 S; -41,375 W | AA93: Prob. 91% | AC93: -41.375 | AD93: -6.375
Y94: P.092: -6,375 S; -41,625 W | AA94: Prob. 92% | AC94: -41.625 | AD94: -6.375
Y95: P.093: -6,375 S; -41,875 W | AA95: Prob. 93% | AC95: -41.875 | AD95: -6.375
Y96: P.094: -6,375 S; -42,125 W | AA96: Prob. 94% | AC96: -42.125 | AD96: -6.375
Y97: P.095: -6,375 S; -42,375 W | AA97: Prob. 95% | AC97: -42.375 | AD97: -6.375
Y98: P.096: -6,375 S; -42,625 W | AA98: Prob. 96% | AC98: -42.625 | AD98: -6.375
Y99: P.097: -6,625 S; -40,875 W | AA99: Prob. 97% | AC99: -40.875 | AD99: -6.625
Y100: P.098: -6,625 S; -41,125 W | AA100: Prob. 98% | AC100: -41.125 | AD100: -6.625
Y101: P.099: -6,625 S; -41,375 W | AA101: Prob. 99% | AC101: -41.375 | AD101: -6.625
Y102: P.100: -6,625 S; -41,625 W | AC102: -41.625 | AD102: -6.625
Y103: P.101: -6,625 S; -41,875 W | AC103: -41.875 | AD103: -6.625
Y104: P.102: -6,625 S; -42,125 W | AC104: -42.125 | AD104: -6.625
Y105: P.103: -6,625 S; -42,375 W | AC105: -42.375 | AD105: -6.625
Y106: P.104: -6,625 S; -42,625 W | AC106: -42.625 | AD106: -6.625
Y107: P.105: -6,875 S; -40,625 W | AC107: -40.625 | AD107: -6.875
Y108: P.106: -6,875 S; -40,875 W | AC108: -40.875 | AD108: -6.875
Y109: P.107: -6,875 S; -41,125 W | AC109: -41.125 | AD109: -6.875
Y110: P.108: -6,875 S; -41,375 W | AC110: -41.375 | AD110: -6.875
Y111: P.109: -6,875 S; -41,625 W | AC111: -41.625 | AD111: -6.875
Y112: P.110: -6,875 S; -41,875 W | AC112: -41.875 | AD112: -6.875
Y113: P.111: -6,875 S; -42,125 W | AC113: -42.125 | AD113: -6.875
Y114: P.112: -6,875 S; -42,375 W | AC114: -42.375 | AD114: -6.875
Y115: P.113: -6,875 S; -42,625 W | AC115: -42.625 | AD115: -6.875
Y116: P.114: -6,875 S; -42,875 W | AC116: -42.875 | AD116: -6.875
Y117: P.115: -6,875 S; -43,125 W | AC117: -43.125 | AD117: -6.875
Y118: P.116: -6,875 S; -43,375 W | AC118: -43.375 | AD118: -6.875
Y119: P.117: -6,875 S; -43,625 W | AC119: -43.625 | AD119: -6.875
Y120: P.118: -6,875 S; -43,875 W | AC120: -43.875 | AD120: -6.875
Y121: P.119: -7,125 S; -40,625 W | AC121: -40.625 | AD121: -7.125
Y122: P.120: -7,125 S; -41,125 W | AC122: -41.125 | AD122: -7.125
Y123: P.121: -7,125 S; -41,375 W | AC123: -41.375 | AD123: -7.125
Y124: P.122: -7,125 S; -41,625 W | AC124: -41.625 | AD124: -7.125
Y125: P.123: -7,125 S; -41,875 W | AC125: -41.875 | AD125: -7.125
Y126: P.124: -7,125 S; -42,125 W | AC126: -42.125 | AD126: -7.125
Y127: P.125: -7,125 S; -42,375 W | AC127: -42.375 | AD127: -7.125
Y128: P.126: -7,125 S; -42,625 W | AC128: -42.625 | AD128: -7.125
Y129: P.127: -7,125 S; -42,875 W | AC129: -42.875 | AD129: -7.125
Y130: P.128: -7,125 S; -43,125 W | AC130: -43.125 | AD130: -7.125
Y131: P.129: -7,125 S; -43,375 W | AC131: -43.375 | AD131: -7.125
Y132: P.130: -7,125 S; -43,625 W | AC132: -43.625 | AD132: -7.125
Y133: P.131: -7,125 S; -43,875 W | AC133: -43.875 | AD133: -7.125
Y134: P.132: -7,125 S; -44,125 W | AC134: -44.125 | AD134: -7.125
Y135: P.133: -7,375 S; -40,625 W | AC135: -40.625 | AD135: -7.375
Y136: P.134: -7,375 S; -40,875 W | AC136: -40.875 | AD136: -7.375
Y137: P.135: -7,375 S; -41,125 W | AC137: -41.125 | AD137: -7.375
Y138: P.136: -7,375 S; -41,375 W | AC138: -41.375 | AD138: -7.375
Y139: P.137: -7,375 S; -41,625 W | AC139: -41.625 | AD139: -7.375
Y140: P.138: -7,375 S; -41,875 W | AC140: -41.875 | AD140: -7.375
Y141: P.139: -7,375 S; -42,125 W | AC141: -42.125 | AD141: -7.375
Y142: P.140: -7,375 S; -42,375 W | AC142: -42.375 | AD142: -7.375
Y143: P.141: -7,375 S; -42,625 W | AC143: -42.625 | AD143: -7.375
Y144: P.142: -7,375 S; -42,875 W | AC144: -42.875 | AD144: -7.375
Y145: P.143: -7,375 S; -43,125 W | AC145: -43.125 | AD145: -7.375
Y146: P.144: -7,375 S; -43,375 W | AC146: -43.375 | AD146: -7.375
Y147: P.145: -7,375 S; -43,625 W | AC147: -43.625 | AD147: -7.375
Y148: P.146: -7,375 S; -43,875 W | AC148: -43.875 | AD148: -7.375
Y149: P.147: -7,375 S; -44,125 W | AC149: -44.125 | AD149: -7.375
Y150: P.148: -7,375 S; -44,375 W | AC150: -44.375 | AD150: -7.375
Y151: P.149: -7,625 S; -40,625 W | AC151: -40.625 | AD151: -7.625
Y152: P.150: -7,625 S; -40,875 W | AC152: -40.875 | AD152: -7.625
Y153: P.151: -7,625 S; -41,125 W | AC153: -41.125 | AD153: -7.625
Y154: P.152: -7,625 S; -41,375 W | AC154: -41.375 | AD154: -7.625
Y155: P.153: -7,625 S; -41,625 W | AC155: -41.625 | AD155: -7.625
Y156: P.154: -7,625 S; -41,875 W | AC156: -41.875 | AD156: -7.625
Y157: P.155: -7,625 S; -42,125 W | AC157: -42.125 | AD157: -7.625
Y158: P.156: -7,625 S; -42,375 W | AC158: -42.375 | AD158: -7.625
Y159: P.157: -7,625 S; -42,625 W | AC159: -42.625 | AD159: -7.625
Y160: P.158: -7,625 S; -42,875 W | AC160: -42.875 | AD160: -7.625
Y161: P.159: -7,625 S; -43,125 W | AC161: -43.125 | AD161: -7.625
Y162: P.160: -7,625 S; -43,375 W | AC162: -43.375 | AD162: -7.625
Y163: P.161: -7,625 S; -43,625 W | AC163: -43.625 | AD163: -7.625
Y164: P.162: -7,625 S; -43,875 W | AC164: -43.875 | AD164: -7.625
Y165: P.163: -7,625 S; -44,125 W | AC165: -44.125 | AD165: -7.625
Y166: P.164: -7,625 S; -44,375 W | AC166: -44.375 | AD166: -7.625
Y167: P.165: -7,625 S; -44,625 W | AC167: -44.625 | AD167: -7.625
Y168: P.166: -7,625 S; -44,875 W | AC168: -44.875 | AD168: -7.625
Y169: P.167: -7,625 S; -45,125 W | AC169: -45.125 | AD169: -7.625
Y170: P.168: -7,875 S; -40,625 W | AC170: -40.625 | AD170: -7.875
Y171: P.169: -7,875 S; -40,875 W | AC171: -40.875 | AD171: -7.875
Y172: P.170: -7,875 S; -41,125 W | AC172: -41.125 | AD172: -7.875
Y173: P.171: -7,875 S; -41,375 W | AC173: -41.375 | AD173: -7.875
Y174: P.172: -7,875 S; -41,625 W | AC174: -41.625 | AD174: -7.875
Y175: P.173: -7,875 S; -41,875 W | AC175: -41.875 | AD175: -7.875
Y176: P.174: -7,875 S; -42,125 W | AC176: -42.125 | AD176: -7.875
Y177: P.175: -7,875 S; -42,375 W | AC177: -42.375 | AD177: -7.875
Y178: P.176: -7,875 S; -42,625 W | AC178: -42.625 | AD178: -7.875
Y179: P.177: -7,875 S; -42,875 W | AC179: -42.875 | AD179: -7.875
Y180: P.178: -7,875 S; -43,125 W | AC180: -43.125 | AD180: -7.875
Y181: P.179: -7,875 S; -43,375 W | AC181: -43.375 | AD181: -7.875
Y182: P.180: -7,875 S; -43,625 W | AC182: -43.625 | AD182: -7.875
Y183: P.181: -7,875 S; -43,875 W | AC183: -43.875 | AD183: -7.875
Y184: P.182: -7,875 S; -44,125 W | AC184: -44.125 | AD184: -7.875
Y185: P.183: -7,875 S; -44,375 W | AC185: -44.375 | AD185: -7.875
Y186: P.184: -7,875 S; -44,625 W | AC186: -44.625 | AD186: -7.875
Y187: P.185: -7,875 S; -44,875 W | AC187: -44.875 | AD187: -7.875
Y188: P.186: -7,875 S; -45,125 W | AC188: -45.125 | AD188: -7.875
Y189: P.187: -7,875 S; -45,375 W | AC189: -45.375 | AD189: -7.875
Y190: P.188: -8,125 S; -40,625 W | AC190: -40.625 | AD190: -8.125
Y191: P.189: -8,125 S; -40,875 W | AC191: -40.875 | AD191: -8.125
Y192: P.190: -8,125 S; -41,125 W | AC192: -41.125 | AD192: -8.125
Y193: P.191: -8,125 S; -41,375 W | AC193: -41.375 | AD193: -8.125
Y194: P.192: -8,125 S; -41,625 W | AC194: -41.625 | AD194: -8.125
Y195: P.193: -8,125 S; -41,875 W | AC195: -41.875 | AD195: -8.125
Y196: P.194: -8,125 S; -42,125 W | AC196: -42.125 | AD196: -8.125
Y197: P.195: -8,125 S; -42,375 W | AC197: -42.375 | AD197: -8.125
Y198: P.196: -8,125 S; -42,625 W | AC198: -42.625 | AD198: -8.125
Y199: P.197: -8,125 S; -42,875 W | AC199: -42.875 | AD199: -8.125
Y200: P.198: -8,125 S; -43,125 W | AC200: -43.125 | AD200: -8.125
... 132 more rows

Sheet fdp_soja (hidden)
A1: 1 | B1: =A1+1 -> 2 | C1: =B1+1 -> 3 | D1: 4 | E1: 5 | F1: 6 | G1: 7 | H1: 8 | I1: 9 | J1: 10 | K1: 11 | L1: 12 | M1: 13 | N1: 14 | O1: 15 | P1: 16 | Q1: 17 | R1: 18 | S1: 19 | T1: 20 | U1: 21 | V1: 22 | W1: 23 | X1: 24 | Y1: 25 | Z1: 26 | AA1: 27 | AB1: 28 | AC1: 29 | AD1: 30 | AE1: 31 | AF1: 32 | AG1: 33 | AH1: 34 | AI1: 35 | AJ1: 36 | AK1: =AJ1+1 -> 37 | AL1: 38 | AM1: 39 | AN1: 40 | AO1: 41 | AP1: 42 | AQ1: 43 | AR1: 44 | AS1: 45 | AT1: 46 | AU1: 47 | AV1: 48 | AW1: =AV1+1 -> 49 | AX1: 50 | AY1: 51 | AZ1: 52 | BA1: 53 | BB1: 54 | BC1: 55 | BD1: 56 | BE1: 57 | BF1: 58 | BG1: 59 | BH1: 60 | BI1: 61 | BJ1: 62 | BK1: 63 | BL1: 64 | BM1: 65 | BN1: 66 | BO1: 67 | BP1: 68 | BQ1: 69 | BR1: 70 | BS1: 71 | BT1: 72 | BU1: 73 | BV1: 74 | BW1: 75 | BX1: 76 | BY1: 77 | BZ1: 78 | CA1: 79 | CB1: 80 | CC1: 81 | CD1: 82 | CE1: 83 | CF1: 84 | CG1: 85 | CH1: 86 | CI1: 87 | CJ1: 88 | CK1: 89 | CL1: 90 | CM1: 91 | CN1: 92 | CO1: 93 | CP1: 94 | CQ1: 95 | CR1: 96 | CS1: 97 | CT1: 98 | CU1: 99 | CV1: 100 | CW1: 101 | CX1: 102 | CY1: 103 | CZ1: 104 | DA1: 105 | DB1: 106 | DC1: 107 | DD1: 108 | DE1: 109 | DF1: 110 | DG1: 111 | DH1: 112 | DI1: =DH1+1 -> 113 | DJ1: 114 | DK1: 115 | DL1: 116 | DM1: 117 | DN1: 118 | DO1: 119 | DP1: 120 | DQ1: 121 | DR1: 122 | DS1: 123 | DT1: 124 | DU1: 125 | DV1: 126 | DW1: 127 | DX1: 128 | DY1: 129 | DZ1: 130 | EA1: 131 | EB1: 132 | EC1: 133 | ED1: 134 | EE1: 135 | EF1: 136 | EG1: 137 | EH1: 138 | EI1: 139 | EJ1: 140 | EK1: 141 | EL1: 142 | EM1: 143 | EN1: 144 | EO1: 145 | EP1: 146 | EQ1: 147 | ER1: 148 | ES1: 149 | ET1: 150 | EU1: 151 | EV1: 152 | EW1: 153 | EX1: 154 | EY1: 155 | EZ1: 156 | FA1: 157 | FB1: 158 | FC1: 159 | FD1: 160 | FE1: 161 | FF1: 162
A2: Decêndio | B2: Menor | C2: Maior | D2: Média | E2: Des. Pad. | F2: Moda | G2: Parâmetros | I2: Dmax | J2: Dmax | K2: Melhor | L2: P(X = 0) | M2: Valor x | N2: P(X ³ x) | O2: Número de | P2: Tamanho | Q2: Amostra | R2: P(X = 0) | S2: Decêndio | T2: Menor | U2: Maior | V2: Média | W2: Des. Pad. | X2: Moda | Y2: Parâmetros | AA2: Dmax | AB2: Dmax | AC2: Melhor | AD2: P(X = 0) | AE2: Valor x | AF2: P(X ³ x) | AG2: Número de | AH2: Tamanho | AI2: Amostra | AJ2: P(X = 0) | AK2: Decêndio | AL2: Menor | AM2: Maior | AN2: Média | AO2: Des. Pad. | AP2: Moda | AQ2: Parâmetros | AS2: Dmax | AT2: Dmax | AU2: Melhor | AV2: P(X = 0) | AW2: Valor x | AX2: P(X ³ x) | AY2: Número de | AZ2: Tamanho | BA2: Amostra | BB2: P(X = 0) | BC2: Decêndio | BD2: Menor | BE2: Maior | BF2: Média | BG2: Des. Pad. | BH2: Moda | BI2: Parâmetros | BK2: Dmax | BL2: Dmax | BM2: Melhor | BN2: P(X = 0) | BO2: Valor x | BP2: P(X ³ x) | BQ2: Número de | BR2: Tamanho | BS2: Amostra | BT2: P(X = 0) | BU2: Decêndio | BV2: Menor | BW2: Maior | BX2: Média | BY2: Des. Pad. | BZ2: Moda | CA2: Parâmetros | CC2: Dmax | CD2: Dmax | CE2: Melhor | CF2: P(X = 0) | CG2: Valor x | CH2: P(X ³ x) | CI2: Número de | CJ2: Tamanho | CK2: Amostra | CL2: P(X = 0) | CM2: Decêndio | CN2: Menor | CO2: Maior | CP2: Média | CQ2: Des. Pad. | CR2: Moda | CS2: Parâmetros | CU2: Dmax | CV2: Dmax | CW2: Melhor | CX2: P(X = 0) | CY2: Valor x | CZ2: P(X ³ x) | DA2: Número de | DB2: Tamanho | DC2: Amostra | DD2: P(X = 0) | DE2: Decêndio | DF2: Menor | DG2: Maior | DH2: Média | DI2: Des. Pad. | DJ2: Moda | DK2: Parâmetros | DM2: Dmax | DN2: Dmax | DO2: Melhor | DP2: P(X = 0) | DQ2: Valor x | DR2: P(X ³ x) | DS2: Número de | DT2: Tamanho | DU2: Amostra | DV2: P(X = 0) | DW2: Decêndio | DX2: Menor | DY2: Maior | DZ2: Média | EA2: Des. Pad. | EB2: Moda | EC2: Parâmetros | EE2: Dmax | EF2: Dmax | EG2: Melhor | EH2: P(X = 0) | EI2: Valor x | EJ2: P(X ³ x) | EK2: Número de | EL2: Tamanho | EM2: Amostra | EN2: P(X = 0) | EO2: Decêndio | EP2: Menor | EQ2: Maior | ER2: Média | ES2: Des. Pad. | ET2: Moda | EU2: Parâmetros | EW2: Dmax | EX2: Dmax | EY2: Melhor | EZ2: P(X = 0) | FA2: Valor x | FB2: P(X ³ x) | FC2: Número de | FD2: Tamanho | FE2: Amostra | FF2: P(X = 0)
B3: valor | C3: valor | G3: Alfa | H3: Beta | I3: Tab. 5% | J3: Calculado | K3: fdp (1) | L3: ( % ) | M3: (unidade) | N3: (%) | O3: Decêndios | P3: Amostra | Q3: Zeros | R3: (%) | T3: valor | U3: valor | Y3: Alfa | Z3: Beta | AA3: Tab. 5% | AB3: Calculado | AC3: fdp (1) | AD3: ( % ) | AE3: (unidade) | AF3: (%) | AG3: Decêndios | AH3: Amostra | AI3: Zeros | AJ3: (%) | AL3: valor | AM3: valor | AQ3: Alfa | AR3: Beta | AS3: Tab. 5% | AT3: Calculado | AU3: fdp (1) | AV3: ( % ) | AW3: (unidade) | AX3: (%) | AY3: Decêndios | AZ3: Amostra | BA3: Zeros | BB3: (%) | BD3: valor | BE3: valor | BI3: Alfa | BJ3: Beta | BK3: Tab. 5% | BL3: Calculado | BM3: fdp (1) | BN3: ( % ) | BO3: (unidade) | BP3: (%) | BQ3: Decêndios | BR3: Amostra | BS3: Zeros | BT3: (%) | BV3: valor | BW3: valor | CA3: Alfa | CB3: Beta | CC3: Tab. 5% | CD3: Calculado | CE3: fdp (1) | CF3: ( % ) | CG3: (unidade) | CH3: (%) | CI3: Decêndios | CJ3: Amostra | CK3: Zeros | CL3: (%) | CN3: valor | CO3: valor | CS3: Alfa | CT3: Beta | CU3: Tab. 5% | CV3: Calculado | CW3: fdp (1) | CX3: ( % ) | CY3: (unidade) | CZ3: (%) | DA3: Decêndios | DB3: Amostra | DC3: Zeros | DD3: (%) | DF3: valor | DG3: valor | DK3: Alfa | DL3: Beta | DM3: Tab. 5% | DN3: Calculado | DO3: fdp (1) | DP3: ( % ) | DQ3: (unidade) | DR3: (%) | DS3: Decêndios | DT3: Amostra | DU3: Zeros | DV3: (%) | DX3: valor | DY3: valor | EC3: Alfa | ED3: Beta | EE3: Tab. 5% | EF3: Calculado | EG3: fdp (1) | EH3: ( % ) | EI3: (unidade) | EJ3: (%) | EK3: Decêndios | EL3: Amostra | EM3: Zeros | EN3: (%) | EP3: valor | EQ3: valor | EU3: Alfa | EV3: Beta | EW3: Tab. 5% | EX3: Calculado | EY3: fdp (1) | EZ3: ( % ) | FA3: (unidade) | FB3: (%) | FC3: Decêndios | FD3: Amostra | FE3: Zeros | FF3: (%)
A4: Ponto: | B4: 1 | C4: Componente hídrica: | G4: Precipitação (P) | L4: Ponto 1 lat-3.125_lon-41.375 | S4: Ponto: | T4: =B4 -> 1 | U4: Componente hídrica: | Y4: Evapotranspiração de referência (ETo) | AD4: =L4 -> Ponto 1 lat-3.125_lon-41.375 | AK4: Ponto: | AL4: =B4 -> 1 | AM4: Componente hídrica: | AQ4: Armazenamento da água no solo (S) | AV4: =L4 -> Ponto 1 lat-3.125_lon-41.375 | BC4: Ponto: | BD4: =B4 -> 1 | BE4: Componente hídrica: | BI4: Evapotranspiração Real (ETr) | BN4: =L4 -> Ponto 1 lat-3.125_lon-41.375 | BU4: Ponto: | BV4: =B4 -> 1 | BW4: Componente hídrica: | CA4: Deficiência hídrica (Def) | CF4: =L4 -> Ponto 1 lat-3.125_lon-41.375 | CM4: Ponto: | CN4: =B4 -> 1 | CO4: Componente hídrica: | CS4: Excedente hídrico (Exc) | CX4: =L4 -> Ponto 1 lat-3.125_lon-41.375 | DE4: Ponto: | DF4: =B4 -> 1 | DG4: Componente hídrica: | DK4: Temperatura mínima (Tmin) | DP4: =L4 -> Ponto 1 lat-3.125_lon-41.375 | DW4: Ponto: | DX4: =B4 -> 1 | DY4: Componente hídrica: | EC4: Temperatura máxima (Tmax) | EH4: =L4 -> Ponto 1 lat-3.125_lon-41.375 | EO4: Ponto: | EP4: =B4 -> 1 | EQ4: Componente hídrica: | EU4: Temperatura média (Tmed) | EZ4: =L4 -> Ponto 1 lat-3.125_lon-41.375
A5: 1 | B5: 0.6800000072 | C5: 109.9499969 | D5: 30.05794525 | E5: 27.75126576 | F5: 9.785833359 | G5: 0.9667083025 | H5: 31.09308624 | I5: 0.2349530607 | J5: 0.03593617678 | K5: E | L5: 5.405405405 | M5: 6.976815569 | N5: 75.00000217 | O5: 36 | P5: 36 | Q5: 2 | R5: 5.405405405 | S5: 1 | T5: 34.24000168 | U5: 66.76999664 | V5: 48.46999741 | W5: 7.833379569 | X5: 42.37250137 | Y5: 40.68301392 | Z5: 1.19140625 | AA5: 0.2252266109 | AB5: 0.05705701932 | AC5: T | AD5: 0 | AE5: 42.37250743 | AF5: 25.00000513 | AG5: 37 | AH5: 37 | AI5: 0 | AJ5: 0 | AK5: 1 | AL5: 32.43000031 | AM5: 90.79000092 | AN5: 64.54890442 | AO5: 14.37557 | AP5: 76.19999695 | AQ5: 19.41231537 | AR5: 3.325152159 | AS5: 0.2283333391 | AT5: 0.08844077587 | AU5: G | AV5: 0 | AW5: 54.15857489 | AX5: 75.00000861 | AY5: 36 | AZ5: 36 | BA5: 0 | BB5: 0 | BC5: 1 | BD5: 11 | BE5: 50.20000076 | BF5: 31.27777481 | BG5: 9.718998063 | BH5: 33.86666489 | BI5: 9.143845558 | BJ5: 3.420636892 | BK5: 0.2283333391 | BL5: 0.02908116579 | BM5: N | BN5: 0 | BO5: 37.83313782 | BP5: 25.00000513 | BQ5: 36 | BR5: 36 | BS5: 0 | BT5: 0 | BU5: 1 | BV5: 1.100000024 | BW5: 54.40000153 | BX5: 20.99142647 | BY5: 15.44710893 | BZ5: 5.541666508 | CA5: 1.405095935 | CB5: 14.93949699 | CC5: 0.2315722704 | CD5: 0.06521129608 | CE5: G | CF5: 0 | CG5: 28.83529635 | CH5: 25.00058276 | CI5: 36 | CJ5: 36 | CK5: 0 | CL5: 0 | CM5: 1 | CN5: exc | DE5: 1 | DW5: 1 | EO5: 1 | EP5: tmed
A6: 2 | B6: 0.09000000358 | C6: 109.3300018 | D6: 35.76610565 | E6: 34.90342599 | F6: 9.193333626 | G6: 0.8630378842 | H6: 41.44210434 | I6: 0.2283333391 | J6: 0.08500176668 | K6: G | L6: 0 | M6: 8.751622652 | N6: 74.99999114 | O6: 36 | P6: 36 | Q6: 0 | R6: 0 | S6: 2 | T6: 34.52000046 | U6: 65.55000305 | V6: 45.47540283 | W6: 7.16485558 | X6: 37.10583496 | Y6: 42.14310074 | Z6: 1.079071164 | AA6: 0.2252266109 | AB6: 0.06174865365 | AC6: G | AD6: 0 | AE6: 40.57526428 | AF6: 25 | AG6: 37 | AH6: 37 | AI6: 0 | AJ6: 0 | AK6: 2 | AL6: 31.78000069 | AM6: 120.6800003 | AN6: 78.02750397 | AO6: 27.07241717 | AP6: 113.2716675 | AQ6: 7.462986946 | AR6: 10.45526505 | AS6: 0.2283333391 | AT6: 0.07433626056 | AU6: N | AV6: 0 | AW6: 59.76742663 | AX6: 75.00001109 | AY6: 36 | AZ6: 36 | BA6: 0 | BB6: 0 | BC6: 2 | BD6: 9.600000381 | BE6: 46.59999847 | BF6: 27.73055267 | BG6: 11.54998663 | BH6: 18.85000038 | BI6: 5.268743038 | BJ6: 5.263219833 | BK6: 0.2283333391 | BL6: 0.05555555224 | BM6: U | BN6: 0 | BO6: 37.34999895 | BP6: 25 | BQ6: 36 | BR6: 36 | BS6: 0 | BT6: 0 | BU6: 2 | BV6: 1.200000048 | BW6: 62.5 | BX6: 22.23143005 | BY6: 18.26835316 | BZ6: 6.308333397 | CA6: 1.085817695 | CB6: 20.47436714 | CC6: 0.2315722704 | CD6: 0.1021504402 | CE6: G | CF6: 0 | CG6: 30.79025374 | CH6: 25.00001003 | CI6: 36 | CJ6: 36 | CK6: 0 | CL6: 0 | CM6: 2 | DE6: 2 | DW6: 2 | EO6: 2
A7: 3 | B7: 0.2199999988 | C7: 356.8500061 | D7: 54.27999878 | E7: 71.69809071 | F7: 29.93916702 | G7: 0.7594543099 | H7: 71.47236633 | I7: 0.2283333391 | J7: 0.04198592901 | K7: G | L7: 0 | M7: 11.29405464 | N7: 75.00000375 | O7: 36 | P7: 36 | Q7: 0 | R7: 0 | S7: 3 | T7: 28.57999992 | U7: 64.41999817 | V7: 45.13323975 | W7: 7.415748139 | X7: 49.48666382 | Y7: 37.16247559 | Z7: 1.214484215 | AA7: 0.2252266109 | AB7: 0.03803044558 | AC7: N | AD7: 0 | AE7: 40.13138402 | AF7: 24.99999734 | AG7: 37 | AH7: 37 | AI7: 0 | AJ7: 0 | AK7: 3 | AL7: 29.78000069 | AM7: 146.5200043 | AN7: 91.38917542 | AO7: 34.62040774 | AP7: 117.3349991 | AQ7: 5.819507122 | AR7: 15.70393753 | AS7: 0.2283333391 | AT7: 0.1111110449 | AU7: U | AV7: 0 | AW7: 58.96500158 | AX7: 75 | AY7: 36 | AZ7: 36 | BA7: 0 | BB7: 0 | BC7: 3 | BD7: 6.900000095 | BE7: 47.90000153 | BF7: 29.76666641 | BG7: 12.10107452 | BH7: 37.65000153 | BI7: 4.485067844 | BJ7: 6.636837482 | BK7: 0.2283333391 | BL7: 0.1018518582 | BM7: T | BN7: 0 | BO7: 37.65000189 | BP7: 24.99999734 | BQ7: 36 | BR7: 36 | BS7: 0 | BT7: 0 | BU7: 3 | BV7: 1.100000024 | BW7: 57.20000076 | BX7: 20.48332977 | BY7: 16.7401741 | BZ7: 5.775000095 | CA7: 1.147689104 | CB7: 17.84745598 | CC7: 0.2283333391 | CD7: 0.08098858595 | CE7: E | CF7: 0 | CG7: 28.39590625 | CH7: 25.00002235 | CI7: 36 | CJ7: 36 | CK7: 0 | CL7: 0 | CM7: 3 | DE7: 3 | DW7: 3 | EO7: 3
A8: 4 | B8: 3 | C8: 168.8099976 | D8: 51.55528259 | E8: 40.38630749 | F8: 16.81750107 | G8: 1.467089295 | H8: 35.14120102 | I8: 0.2283333391 | J8: 0.1097379923 | K8: G | L8: 0 | M8: 20.51978679 | N8: 75.00000143 | O8: 36 | P8: 36 | Q8: 0 | R8: 0 | S8: 4 | T8: 32.25 | U8: 58.56999969 | V8: 45.16865921 | W8: 6.77254254 | X8: 43.21666718 | Y8: 44.95215225 | Z8: 1.004816413 | AA8: 0.2252266109 | AB8: 0.03620174527 | AC8: N | AD8: 0 | AE8: 40.60064821 | AF8: 24.99999492 | AG8: 37 | AH8: 37 | AI8: 0 | AJ8: 0 | AK8: 4 | AL8: 46.06999969 | AM8: 167.4400024 | AN8: 109.0247421 | AO8: 39.52503966 | AP8: 137.0975037 | AQ8: 6.53449297 | AR8: 16.68449974 | AS8: 0.2283333391 | AT8: 0.1388888955 | AU8: U | AV8: 0 | AW8: 76.41250038 | AX8: 75 | AY8: 36 | AZ8: 36 | BA8: 0 | BB8: 0 | BC8: 4 | BD8: 11.30000019 | BE8: 46.29999924 | BF8: 33.54999924 | BG8: 8.733040204 | BH8: 37.54999924 | BI8: 12.65557575 | BJ8: 2.651005268 | BK8: 0.2283333391 | BL8: 0.1309219897 | BM8: N | BN8: 0 | BO8: 39.44034674 | BP8: 24.99999492 | BQ8: 36 | BR8: 36 | BS8: 0 | BT8: 0 | BU8: 4 | BV8: 1.5 | BW8: 36.79999924 | BX8: 14.33888721 | BY8: 10.83700695 | BZ8: 4.441666603 | CA8: 1.569880843 | CB8: 9.133742332 | CC8: 0.2283333391 | CD8: 0.09702563286 | CE8: G | CF8: 0 | CG8: 19.5901794 | CH8: 25.00020072 | CI8: 36 | CJ8: 36 | CK8: 0 | CL8: 0 | CM8: 4 | DE8: 4 | DW8: 4 | EO8: 4
A9: 5 | B9: 18.03000069 | C9: 197.8200073 | D9: 70.14944458 | E9: 41.58183144 | F9: 33.01250076 | G9: 3.084298372 | H9: 22.74405289 | I9: 0.2283333391 | J9: 0.02771830559 | K9: G | L9: 0 | M9: 40.80571127 | N9: 75.00002066 | O9: 36 | P9: 36 | Q9: 0 | R9: 0 | S9: 5 | T9: 32.59000015 | U9: 53.81999969 | V9: 41.35648346 | W9: 5.261687394 | X9: 37.89749908 | Y9: 64.62393188 | Z9: 0.6399561763 | AA9: 0.2252266109 | AB9: 0.05205190182 | AC9: T | AD9: 0 | AE9: 37.89749987 | AF9: 24.99997748 | AG9: 37 | AH9: 37 | AI9: 0 | AJ9: 0 | AK9: 5 | AL9: 50.61999893 | AM9: 185.7299957 | AN9: 132.80336 | AO9: 40.68273392 | AP9: 151.9524994 | AQ9: 8.916696548 | AR9: 14.89378452 | AS9: 0.2283333391 | AT9: 0.1481480896 | AU9: T | AV9: 0 | AW9: 0 | AX9: 81.28421617 | AY9: 36 | AZ9: 36 | BA9: 0 | BB9: 0 | BC9: 5 | BD9: 17.10000038 | BE9: 48.20000076 | BF9: 36.45555878 | BG9: 5.920397733 | BH9: 35.2416687 | BI9: 33.27032852 | BJ9: 1.095737815 | BK9: 0.2283333391 | BL9: 0.0603222698 | BM9: N | BN9: 0 | BO9: 40.44881056 | BP9: 24.99997748 | BQ9: 36 | BR9: 36 | BS9: 0 | BT9: 0 | BU9: 5 | BV9: 2.5 | BW9: 45 | BX9: 9.69444561 | BY9: 9.617126415 | BZ9: 6.041666985 | CA9: 1.683821917 | CB9: 5.757405758 | CC9: 0.2283333391 | CD9: 0.09776461124 | CE9: G | CF9: 0 | CG9: 13.193321 | CH9: 25.00008813 | CI9: 36 | CJ9: 36 | CK9: 0 | CL9: 0 | CM9: 5 | DE9: 5 | DW9: 5 | EO9: 5
A10: 6 | B10: 0.4799999893 | C10: 223.5700073 | D10: 77.86139679 | E10: 55.04062997 | F10: 19.07083321 | G10: 1.262014747 | H10: 61.69610596 | I10: 0.2283333391 | J10: 0.07359731197 | K10: G | L10: 0 | M10: 27.67092862 | N10: 75.0000012 | O10: 36 | P10: 36 | Q10: 0 | R10: 0 | S10: 6 | T10: 31.73999977 | U10: 62.86000061 | V10: 43.43865204 | W10: 8.011776839 | X10: 39.52000046 | Y10: 32.28678894 | Z10: 1.345400214 | AA10: 0.2252266109 | AB10: 0.05980676413 | AC10: G | AD10: 0 | AE10: 38.06759339 | AF10: 24.99999011 | AG10: 37 | AH10: 37 | AI10: 0 | AJ10: 0 | AK10: 6 | AL10: 64.36000061 | AM10: 200.5099945 | AN10: 149.831955 | AO10: 39.98033727 | AP10: 166.4725037 | AQ10: 11.99467278 | AR10: 12.49154186 | AS10: 0.2283333391 | AT10: 0.1524936259 | AU10: N | AV10: 0 | AW10: 122.865656 | AX10: 74.99997718 | AY10: 36 | AZ10: 36 | BA10: 0 | BB10: 0 | BC10: 6 | BD10: 9.199999809 | BE10: 45.59999847 | BF10: 35.12778091 | BG10: 7.621008907 | BH10: 36.5 | BI10: 14.77050495 | BJ10: 2.37823844 | BK10: 0.2283333391 | BL10: 0.1399879456 | BM10: N | BN10: 0 | BO10: 40.26807568 | BP10: 24.99999011 | BQ10: 36 | BR10: 36 | BS10: 0 | BT10: 0 | BU10: 6 | BV10: 2.200000048 | BW10: 54.70000076 | BX10: 12.21944332 | BY10: 12.42826094 | BZ10: 6.574999809 | CA10: 1.763313293 | CB10: 6.929819584 | CC10: 0.2283333391 | CD10: 0.1359813213 | CE10: E | CF10: 0 | CG10: 16.93973445 | CH10: 25.00002234 | CI10: 36 | CJ10: 36 | CK10: 0 | CL10: 0 | CM10: 6 | DE10: 6 | DW10: 6 | EO10: 6
A11: 7 | B11: 2.460000038 | C11: 172.7100067 | D11: 66.7730484 | E11: 41.07515174 | F11: 45.0225029 | G11: 2.165435314 | H11: 30.83585548 | I11: 0.2283333391 | J11: 0.08243601024 | K11: G | L11: 0 | M11: 33.42015013 | N11: 75.00006632 | O11: 36 | P11: 36 | Q11: 0 | R11: 0 | S11: 7 | T11: 31.45999908 | U11: 58.52000046 | V11: 42.99134827 | W11: 6.816318667 | X11: 38.22499847 | Y11: 41.51791 | Z11: 1.035489202 | AA11: 0.2252266109 | AB11: 0.0440440774 | AC11: T | AD11: 0 | AE11: 38.22500244 | AF11: 24.99994585 | AG11: 37 | AH11: 37 | AI11: 0 | AJ11: 0 | AK11: 7 | AL11: 71.41000366 | AM11: 208.7299957 | AN11: 157.4508362 | AO11: 42.69947444 | AP11: 197.2866669 | AQ11: 11.99675369 | AR11: 13.12445354 | AS11: 0.2283333391 | AT11: 0.1575420499 | AU11: N | AV11: 0 | AW11: 128.6504993 | AX11: 74.9999844 | AY11: 36 | AZ11: 36 | BA11: 0 | BB11: 0 | BC11: 7 | BD11: 17.89999962 | BE11: 48 | BF11: 34.61666489 | BG11: 6.95863299 | BH11: 35.45833206 | BI11: 23.62013245 | BJ11: 1.465557575 | BK11: 0.2283333391 | BL11: 0.02744477987 | BM11: N | BN11: 0 | BO11: 39.31020337 | BP11: 24.99994585 | BQ11: 36 | BR11: 36 | BS11: 0 | BT11: 0 | BU11: 7 | BV11: 3.700000048 | BW11: 39.5 | BX11: 12.06666756 | BY11: 9.228309563 | BZ11: 6.683333397 | CA11: 2.60219574 | CB11: 4.637109756 | CC11: 0.2283333391 | CD11: 0.09432816505 | CE11: G | CF11: 0 | CG11: 15.94178297 | CH11: 25.00077639 | CI11: 36 | CJ11: 36 | CK11: 0 | CL11: 0 | CM11: 7 | DE11: 7 | DW11: 7 | EO11: 7
A12: 8 | B12: 3.569999933 | C12: 193.2799988 | D12: 81.18280029 | E12: 48.49558262 | F12: 50.99750137 | G12: 2.437077284 | H12: 33.31154251 | I12: 0.2283333391 | J12: 0.05820423365 | K12: G | L12: 0 | M12: 42.94216521 | N12: 75.00001929 | O12: 36 | P12: 36 | Q12: 0 | R12: 0 | S12: 8 | T12: 32.79999924 | U12: 52.36000061 | V12: 41.16945648 | W12: 5.23912375 | X12: 40.95000076 | Y12: 63.30380249 | Z12: 0.6503472924 | AA12: 0.2252266109 | AB12: 0.07528859377 | AC12: N | AD12: 0 | AE12: 37.63569029 | AF12: 25.00000123 | AG12: 37 | AH12: 37 | AI12: 0 | AJ12: 0 | AK12: 8 | AL12: 84.58999634 | AM12: 210.6199951 | AN12: 161.2100067 | AO12: 40.37629551 | AP12: 200.1174927 | AQ12: 14.35610485 | AR12: 11.22936916 | AS12: 0.2283333391 | AT12: 0.1321447194 | AU12: N | AV12: 0 | AW12: 133.9766046 | AX12: 75.00000362 | AY12: 36 | AZ12: 36 | BA12: 0 | BB12: 0 | BC12: 8 | BD12: 11.69999981 | BE12: 41 | BF12: 30.20833397 | BG12: 6.077988493 | BH12: 28.79166603 | BI12: 21.70133018 | BJ12: 1.392003775 | BK12: 0.2283333391 | BL12: 0.04080019146 | BM12: N | BN12: 0 | BO12: 34.30787467 | BP12: 25.00000123 | BQ12: 36 | BR12: 36 | BS12: 0 | BT12: 0 | BU12: 8 | BV12: 3.700000048 | BW12: 40.5 | BX12: 12.95000076 | BY12: 6.070373142 | BZ12: 12.89999962 | CA12: 5.893017292 | CB12: 2.197516203 | CC12: 0.2283333391 | CD12: 0.08728426695 | CE12: G | CF12: 0 | CG12: 16.0429087 | CH12: 25.00044246 | CI12: 36 | CJ12: 36 | CK12: 0 | CL12: 0 | CM12: 8 | DE12: 8 | DW12: 8 | EO12: 8
A13: 9 | B13: 18.53000069 | C13: 204.4299927 | D13: 100.690834 | E13: 44.40151881 | F13: 95.98832703 | G13: 4.968349934 | H13: 20.26645279 | I13: 0.2283333391 | J13: 0.04871716723 | K13: G | L13: 0 | M13: 67.7298058 | N13: 74.99934906 | O13: 36 | P13: 36 | Q13: 0 | R13: 0 | S13: 9 | T13: 31.07999992 | U13: 45.91999817 | V13: 37.79026794 | W13: 4.020180578 | X13: 37.26333237 | Y13: 91.51114655 | Z13: 0.4129580855 | AA13: 0.2252266109 | AB13: 0.06381928921 | AC13: G | AD13: 0 | AE13: 35.05613097 | AF13: 25.0005848 | AG13: 37 | AH13: 37 | AI13: 0 | AJ13: 0 | AK13: 9 | AL13: 88.94999695 | AM13: 210.7400055 | AN13: 165.2474976 | AO13: 37.99210958 | AP13: 200.5908356 | AQ13: 17.29568863 | AR13: 9.5542593 | AS13: 0.2283333391 | AT13: 0.1206519902 | AU13: N | AV13: 0 | AW13: 139.6222061 | AX13: 75.00000244 | AY13: 36 | AZ13: 36 | BA13: 0 | BB13: 0 | BC13: 9 | BD13: 15.69999981 | BE13: 44.09999847 | BF13: 25.26388931 | BG13: 7.677617365 | BH13: 22.79999924 | BI13: 11.9776268 | BJ13: 2.109256744 | BK13: 0.2283333391 | BL13: 0.07795912027 | BM13: G | BN13: 0 | BO13: 29.73191568 | BP13: 25.0005848 | BQ13: 36 | BR13: 36 | BS13: 0 | BT13: 0 | BU13: 9 | BV13: 5.400000095 | BW13: 30.20000076 | BX13: 17.45999908 | BY13: 6.408807607 | BZ13: 19.86666679 | CA13: 15.00121212 | CB13: 1.163905859 | CC13: 0.2315722704 | CD13: 0.06324971467 | CE13: N | CF13: 0 | CG13: 21.78250968 | CH13: 25.00081538 | CI13: 36 | CJ13: 36 | CK13: 0 | CL13: 0 | CM13: 9 | DE13: 9 | DW13: 9 | EO13: 9
A14: 10 | B14: 19.92000008 | C14: 261.2999878 | D14: 93.08416748 | E14: 54.74050333 | F14: 80.26499939 | G14: 3.462088585 | H14: 26.88670921 | I14: 0.2283333391 | J14: 0.06843441725 | K14: G | L14: 0 | M14: 56.37586158 | N14: 74.99996489 | O14: 36 | P14: 36 | Q14: 0 | R14: 0 | S14: 10 | T14: 31.31999969 | U14: 46.50999832 | V14: 39.32486725 | W14: 3.680611982 | X14: 42.71249771 | Y14: 114.195343 | Z14: 0.3443648815 | AA14: 0.2252266109 | AB14: 0.1171170324 | AC14: U | AD14: 0 | AE14: 35.11749935 | AF14: 24.99998189 | AG14: 37 | AH14: 37 | AI14: 0 | AJ14: 0 | AK14: 10 | AL14: 87.44000244 | AM14: 211.5200043 | AN14: 162.784729 | AO14: 38.02121985 | AP14: 201.1800079 | AQ14: 16.79981232 | AR14: 9.689675331 | AS14: 0.2283333391 | AT14: 0.109852314 | AU14: N | AV14: 0 | AW14: 137.1397704 | AX14: 75.00002968 | AY14: 36 | AZ14: 36 | BA14: 0 | BB14: 0 | BC14: 10 | BD14: 9.300000191 | BE14: 37.79999924 | BF14: 21.22500038 | BG14: 8.73719068 | BH14: 16.42499924 | BI14: 6.181291103 | BJ14: 3.433748722 | BK14: 0.2283333391 | BL14: 0.09126111865 | BM14: G | BN14: 0 | BO14: 26.1975856 | BP14: 24.99998189 | BQ14: 36 | BR14: 36 | BS14: 0 | BT14: 0 | BU14: 10 | BV14: 8.100000381 | BW14: 33.20000076 | BX14: 21.62778091 | BY14: 6.880141399 | BZ14: 26.92500114 | CA14: 8.151842117 | CB14: 2.653115749 | CC14: 0.2283333391 | CD14: 0.09416747093 | CE14: N | CF14: 0 | CG14: 26.26836519 | CH14: 25.00000268 | CI14: 36 | CJ14: 36 | CK14: 0 | CL14: 0 | CM14: 10 | DE14: 10 | DW14: 10 | EO14: 10
A15: 11 | B15: 13.92000008 | C15: 225.9400024 | D15: 82.52359772 | E15: 54.88238712 | F15: 31.58833313 | G15: 2.318787098 | H15: 35.58912277 | I15: 0.2283333391 | J15: 0.06705439091 | K15: E | L15: 0 | M15: 23.74055759 | N15: 75.00000184 | O15: 36 | P15: 36 | Q15: 0 | R15: 0 | S15: 11 | T15: 30.96999931 | U15: 46.49000168 | V15: 38.89486313 | W15: 4.64888801 | X15: 42.61000061 | Y15: 69.90232849 | Z15: 0.5564172864 | AA15: 0.2252266109 | AB15: 0.06756749749 | AC15: U | AD15: 0 | AE15: 34.8499999 | AF15: 24.99999783 | AG15: 37 | AH15: 37 | AI15: 0 | AJ15: 0 | AK15: 11 | AL15: 81.95999908 | AM15: 211.3500061 | AN15: 160.2991638 | AO15: 40.02590256 | AP15: 200.5675049 | AQ15: 14.57559872 | AR15: 10.99777603 | AS15: 0.2283333391 | AT15: 0.1163731813 | AU15: N | AV15: 0 | AW15: 133.3020946 | AX15: 75.00000653 | AY15: 36 | AZ15: 36 | BA15: 0 | BB15: 0 | BC15: 11 | BD15: 7.699999809 | BE15: 45.90000153 | BF15: 17.68888855 | BG15: 10.54773579 | BH15: 10.88333321 | BI15: 3.704217672 | BJ15: 4.775337219 | BK15: 0.2283333391 | BL15: 0.1017839313 | BM15: G | BN15: 0 | BO15: 22.73391029 | BP15: 24.99999783 | BQ15: 36 | BR15: 36 | BS15: 0 | BT15: 0 | BU15: 11 | BV15: 3.799999952 | BW15: 33.70000076 | BX15: 25.01666641 | BY15: 7.676736383 | BZ15: 31.20833397 | CA15: 6.108551025 | CB15: 4.095352173 | CC15: 0.2283333391 | CD15: 0.1610933542 | CE15: N | CF15: 0 | CG15: 30.19454572 | CH15: 25.00000289 | CI15: 36 | CJ15: 36 | CK15: 0 | CL15: 0 | CM15: 11 | DE15: 11 | DW15: 11 | EO15: 11
A16: 12 | B16: 12.22000027 | C16: 221.5099945 | D16: 85.96257019 | E16: 53.10313888 | F16: 64.54249573 | G16: 4.095839024 | H16: 20.98777962 | I16: 0.2315722704 | J16: 0.06716477871 | K16: N | L16: 0 | M16: 50.14503978 | N16: 75.0000045 | O16: 36 | P16: 36 | Q16: 0 | R16: 0 | S16: 12 | T16: 29.62999916 | U16: 50.25999832 | V16: 38.53378677 | W16: 5.419436035 | X16: 38.22583389 | Y16: 53.05240631 | Z16: 0.726334393 | AA16: 0.2252266109 | AB16: 0.08128446341 | AC16: G | AD16: 0 | AE16: 34.84594105 | AF16: 24.99910529 | AG16: 37 | AH16: 37 | AI16: 0 | AJ16: 0 | AK16: 12 | AL16: 88.02999878 | AM16: 209.6300049 | AN16: 160.2216644 | AO16: 40.56647226 | AP16: 199.4966736 | AQ16: 14.17903042 | AR16: 11.29990292 | AS16: 0.2283333391 | AT16: 0.1375428736 | AU16: N | AV16: 0 | AW16: 132.8599681 | AX16: 75.00002081 | AY16: 36 | AZ16: 36 | BA16: 0 | BB16: 0 | BC16: 12 | BD16: 6.099999905 | BE16: 45.20000076 | BF16: 14.92499924 | BG16: 11.54161173 | BH16: 9.358333588 | BI16: 2.49441576 | BJ16: 5.983364582 | BK16: 0.2283333391 | BL16: 0.101036489 | BM16: E | BN16: 0 | BO16: 20.69097644 | BP16: 24.99910529 | BQ16: 36 | BR16: 36 | BS16: 0 | BT16: 0 | BU16: 12 | BV16: 0.200000003 | BW16: 35.59999847 | BX16: 26.65555382 | BY16: 8.617074172 | BZ16: 32.64999771 | CA16: 3.115489721 | CB16: 8.555814743 | CC16: 0.2283333391 | CD16: 0.1613381207 | CE16: N | CF16: 0 | CG16: 32.46768134 | CH16: 25.00000254 | CI16: 36 | CJ16: 36 | CK16: 0 | CL16: 0 | CM16: 12 | DE16: 12 | DW16: 12 | EO16: 12
A17: 13 | B17: 2.339999914 | C17: 225.9100037 | D17: 67.08389282 | E17: 49.98639463 | F17: 20.97083473 | G17: 1.689494014 | H17: 39.70650101 | I17: 0.2283333391 | J17: 0.03014791012 | K17: G | L17: 0 | M17: 29.28986895 | N17: 74.99974915 | O17: 36 | P17: 36 | Q17: 0 | R17: 0 | S17: 13 | T17: 30.93000031 | U17: 48.65000153 | V17: 38.895401 | W17: 3.977252533 | X17: 41.26666641 | Y17: 97.73480988 | Z17: 0.3979687691 | AA17: 0.2252266109 | AB17: 0.06478893757 | AC17: N | AD17: 0 | AE17: 36.21273128 | AF17: 25.00045405 | AG17: 37 | AH17: 37 | AI17: 0 | AJ17: 0 | AK17: 13 | AL17: 83.33999634 | AM17: 211.8200073 | AN17: 155.8305511 | AO17: 40.40727111 | AP17: 201.1133423 | AQ17: 13.55862427 | AR17: 11.49309444 | AS17: 0.2283333391 | AT17: 0.125559032 | AU17: N | AV17: 0 | AW17: 128.5757555 | AX17: 75.00039747 | AY17: 36 | AZ17: 36 | BA17: 0 | BB17: 0 | BC17: 13 | BD17: 5.300000191 | BE17: 42.70000076 | BF17: 14.30833244 | BG17: 10.08632365 | BH17: 8.416666985 | BI17: 2.732773304 | BJ17: 5.2358284 | BK17: 0.2283333391 | BL17: 0.06292790174 | BM17: E | BN17: 0 | BO17: 19.83530071 | BP17: 25.00045405 | BQ17: 36 | BR17: 36 | BS17: 0 | BT17: 0 | BU17: 13 | BV17: 4.5 | BW17: 39 | BX17: 29.52222443 | BY17: 8.190765894 | BZ17: 30.375 | CA17: 6.704497337 | CB17: 4.403346539 | CC17: 0.2283333391 | CD17: 0.1796701998 | CE17: N | CF17: 0 | CG17: 35.04681142 | CH17: 25.00000251 | CI17: 36 | CJ17: 36 | CK17: 0 | CL17: 0 | CM17: 13 | DE17: 13 | DW17: 13 | EO17: 13
A18: 14 | B18: 0.8000000119 | C18: 145.5299988 | D18: 42.84861374 | E18: 39.94732096 | F18: 12.86083317 | G18: 1.018495917 | H18: 42.07048035 | I18: 0.2283333391 | J18: 0.03573930264 | K18: E | L18: 0 | M18: 12.32674942 | N18: 75.00005003 | O18: 36 | P18: 36 | Q18: 0 | R18: 0 | S18: 14 | T18: 32.13000107 | U18: 49.56000137 | V18: 40.16270065 | W18: 4.874942877 | X18: 36.48749924 | Y18: 69.64575958 | Z18: 0.5766711831 | AA18: 0.2252266109 | AB18: 0.0990229249 | AC18: G | AD18: 0 | AE18: 36.82053877 | AF18: 24.99998735 | AG18: 37 | AH18: 37 | AI18: 0 | AJ18: 0 | AK18: 14 | AL18: 77.23000336 | AM18: 210.75 | AN18: 149.3650208 | AO18: 40.52591281 | AP18: 177.3699951 | AQ18: 12.52014351 | AR18: 11.92997646 | AS18: 0.2283333391 | AT18: 0.1262925863 | AU18: N | AV18: 0 | AW18: 122.0306604 | AX18: 75.00003728 | AY18: 36 | AZ18: 36 | BA18: 0 | BB18: 0 | BC18: 14 | BD18: 4.199999809 | BE18: 51.40000153 | BF18: 16.76944351 | BG18: 12.26495072 | BH18: 8.133333206 | BI18: 2.119285822 | BJ18: 7.912780285 | BK18: 0.2283333391 | BL18: 0.04800421 | BM18: E | BN18: 0 | BO18: 23.24739347 | BP18: 24.99998735 | BQ18: 36 | BR18: 36 | BS18: 0 | BT18: 0 | BU18: 14 | BV18: 2.400000095 | BW18: 36.09999847 | BX18: 27.38888931 | BY18: 9.266183254 | BZ18: 33.29166412 | CA18: 4.477715969 | CB18: 6.116709709 | CC18: 0.2283333391 | CD18: 0.1790986657 | CE18: N | CF18: 0 | CG18: 33.63883436 | CH18: 25.00000201 | CI18: 36 | CJ18: 36 | CK18: 0 | CL18: 0 | CM18: 14 | DE18: 14 | DW18: 14 | EO18: 14
A19: 15 | B19: 1.24000001 | C19: 120.6200027 | D19: 28.59082985 | E19: 28.79671922 | F19: 11.18833351 | G19: 1.204444051 | H19: 23.73778152 | I19: 0.2283333391 | J19: 0.06426763535 | K19: E | L19: 0 | M19: 8.225051705 | N19: 75.00004585 | O19: 36 | P19: 36 | Q19: 0 | R19: 0 | S19: 15 | T19: 29.80999947 | U19: 49.22999954 | V19: 40.62405396 | W19: 4.502411938 | X19: 41.13833237 | Y19: 81.19109344 | Z19: 0.500351131 | AA19: 0.2252266109 | AB19: 0.06546288729 | AC19: G | AD19: 0 | AE19: 37.49910238 | AF19: 24.99998604 | AG19: 37 | AH19: 37 | AI19: 0 | AJ19: 0 | AK19: 15 | AL19: 74.70999908 | AM19: 204.0200043 | AN19: 142.6233368 | AO19: 39.36510912 | AP19: 171.6925049 | AQ19: 12.24530697 | AR19: 11.64718342 | AS19: 0.2283333391 | AT19: 0.08333343267 | AU19: U | AV19: 0 | AW19: 107.0375004 | AX19: 75 | AY19: 36 | AZ19: 36 | BA19: 0 | BB19: 0 | BC19: 15 | BD19: 4.800000191 | BE19: 49.79999924 | BF19: 20.46944427 | BG19: 14.94998988 | BH19: 8.550000191 | BI19: 1.898486853 | BJ19: 10.78197861 | BK19: 0.2283333391 | BL19: 0.08949518204 | BM19: E | BN19: 0 | BO19: 28.3766866 | BP19: 24.99998604 | BQ19: 36 | BR19: 36 | BS19: 0 | BT19: 0 | BU19: 15 | BV19: 0.6000000238 | BW19: 38.40000153 | BX19: 24.54000092 | BY19: 12.00108333 | BZ19: 35.25 | CA19: 1.701361418 | CB19: 14.42374325 | CC19: 0.2315722704 | CD19: 0.1705627739 | CE19: T | CF19: 2.702702703 | CG19: 31.79665549 | CH19: 25.00004464 | CI19: 36 | CJ19: 36 | CK19: 1 | CL19: 2.702702703 | CM19: 15 | DE19: 15 | DW19: 15 | EO19: 15
A20: 16 | B20: 0.1000000015 | C20: 61.13000107 | D20: 16.59199715 | E20: 13.13240525 | F20: 5.185833454 | G20: 1.11012578 | H20: 14.9460516 | I20: 0.2315722704 | J20: 0.06601205468 | K20: N | L20: 2.702702703 | M20: 6.852914516 | N20: 75.00037968 | O20: 36 | P20: 36 | Q20: 1 | R20: 2.702702703 | S20: 16 | T20: 34.24000168 | U20: 50.06000137 | V20: 40.4940567 | W20: 4.172872474 | X20: 38.19499969 | Y20: 101.0278854 | Z20: 0.4008205831 | AA20: 0.2252266109 | AB20: 0.07050514221 | AC20: G | AD20: 0 | AE20: 37.70887494 | AF20: 24.99985205 | AG20: 37 | AH20: 37 | AI20: 0 | AJ20: 0 | AK20: 16 | AL20: 67.54000092 | AM20: 185.2599945 | AN20: 135.6494446 | AO20: 36.5076495 | AP20: 155.8300018 | AQ20: 12.47030926 | AR20: 10.87779331 | AS20: 0.2283333391 | AT20: 0.1433086991 | AU20: N | AV20: 0 | AW20: 111.0254031 | AX20: 75.00000533 | AY20: 36 | AZ20: 36 | BA20: 0 | BB20: 0 | BC20: 16 | BD20: 5.400000095 | BE20: 44.29999924 | BF20: 21.72500038 | BG20: 14.01699724 | BH20: 8.641666412 | BI20: 2.389142036 | BJ20: 9.093222618 | BK20: 0.2283333391 | BL20: 0.0972802043 | BM20: G | BN20: 0 | BO20: 28.88533225 | BP20: 24.99985205 | BQ20: 36 | BR20: 36 | BS20: 0 | BT20: 0 | BU20: 16 | BV20: 1.200000048 | BW20: 43.09999847 | BX20: 23.28055382 | BY20: 12.90348494 | BZ20: 32.625 | CA20: 1.606051207 | CB20: 14.49552441 | CC20: 0.2283333391 | CD20: 0.1388888955 | CE20: U | CF20: 0 | CG20: 32.62499887 | CH20: 25 | CI20: 36 | CJ20: 36 | CK20: 0 | CL20: 0 | CM20: 16 | DE20: 16 | DW20: 16 | EO20: 16
A21: 17 | B21: 0.03999999911 | C21: 72.54000092 | D21: 14.67599964 | E21: 14.66214827 | F21: 6.08166647 | G21: 0.9020698667 | H21: 16.26924896 | I21: 0.2315722704 | J21: 0.0426787138 | K21: E | L21: 2.702702703 | M21: 3.819912277 | N21: 75.00001216 | O21: 36 | P21: 36 | Q21: 1 | R21: 2.702702703 | S21: 17 | T21: 34.77000046 | U21: 49.00999832 | V21: 41.05811691 | W21: 3.88488935 | X21: 38.33000183 | Y21: 117.5335922 | Z21: 0.3493309021 | AA21: 0.2252266109 | AB21: 0.08096945286 | AC21: G | AD21: 0 | AE21: 38.44421792 | AF21: 24.99998326 | AG21: 37 | AH21: 37 | AI21: 0 | AJ21: 0 | AK21: 17 | AL21: 62.97000122 | AM21: 183.3300018 | AN21: 130.8674927 | AO21: 35.76179022 | AP21: 153.2400055 | AQ21: 11.93626118 | AR21: 10.96385956 | AS21: 0.2283333391 | AT21: 0.1574074477 | AU21: T | AV21: 0 | AW21: 10.85255476 | AX21: 74.99996518 | AY21: 36 | AZ21: 36 | BA21: 0 | BB21: 0 | BC21: 17 | BD21: 4.099999905 | BE21: 40.29999924 | BF21: 20.94166374 | BG21: 11.27399953 | BH21: 19.18333244 | BI21: 2.973886013 | BJ21: 7.041851521 | BK21: 0.2283333391 | BL21: 0.088989079 | BM21: G | BN21: 0 | BO21: 27.3852382 | BP21: 24.99998326 | BQ21: 36 | BR21: 36 | BS21: 0 | BT21: 0 | BU21: 17 | BV21: 4.099999905 | BW21: 39.5 | BX21: 24.49722099 | BY21: 10.39633082 | BZ21: 30.64999962 | CA21: 4.064966679 | CB21: 6.026425838 | CC21: 0.2283333391 | CD21: 0.1054653525 | CE21: N | CF21: 0 | CG21: 31.50936969 | CH21: 25.00021358 | CI21: 36 | CJ21: 36 | CK21: 0 | CL21: 0 | CM21: 17 | DE21: 17 | DW21: 17 | EO21: 17
A22: 18 | B22: 0.009999999776 | C22: 43.38999939 | D22: 10.47531223 | E22: 10.59865364 | F22: 3.625 | G22: 0.8635026217 | H22: 12.13118744 | I22: 0.2421840727 | J22: 0.02309417725 | K22: G | L22: 10.81081081 | M22: 1.448554491 | N22: 75.00054379 | O22: 36 | P22: 36 | Q22: 4 | R22: 10.81081081 | S22: 18 | T22: 35.22999954 | U22: 54.70999908 | V22: 42.21323776 | W22: 4.091673812 | X22: 40.09999847 | Y22: 113.8179398 | Z22: 0.370883882 | AA22: 0.2252266109 | AB22: 0.07759478688 | AC22: G | AD22: 0 | AE22: 39.48140571 | AF22: 25.00005325 | AG22: 37 | AH22: 37 | AI22: 0 | AJ22: 0 | AK22: 18 | AL22: 57.47999954 | AM22: 178.5 | AN22: 126.1738968 | AO22: 34.19367482 | AP22: 148.2449951 | AQ22: 11.98752785 | AR22: 10.52543068 | AS22: 0.2283333391 | AT22: 0.1296296418 | AU22: T | AV22: 0 | AW22: 5.076802828 | AX22: 74.99999932 | AY22: 36 | AZ22: 36 | BA22: 0 | BB22: 0 | BC22: 18 | BD22: 4.5 | BE22: 46.70000076 | BF22: 20.49444389 | BG22: 13.13235762 | BH22: 8.016666412 | BI22: 2.430406094 | BJ22: 8.432518005 | BK22: 0.2283333391 | BL22: 0.08963322639 | BM22: G | BN22: 0 | BO22: 27.21480401 | BP22: 25.00005325 | BQ22: 36 | BR22: 36 | BS22: 0 | BT22: 0 | BU22: 18 | BV22: 2.700000048 | BW22: 50.29999924 | BX22: 24.93611336 | BY22: 13.8014308 | BZ22: 30.46666718 | CA22: 1.97956419 | CB22: 12.59676933 | CC22: 0.2283333391 | CD22: 0.08333331347 | CE22: U | CF22: 0 | CG22: 38.39999944 | CH22: 25 | CI22: 36 | CJ22: 36 | CK22: 0 | CL22: 0 | CM22: 18 | DE22: 18 | DW22: 18 | EO22: 18
A23: 19 | B23: 0.1299999952 | C23: 42.34999847 | D23: 11.36093712 | E23: 11.61597905 | F23: 3.648333073 | G23: 0.748760581 | H23: 15.1729908 | I23: 0.2421840727 | J23: 0.03015679121 | K23: E | L23: 10.81081081 | M23: 1.96853464 | N23: 74.99996363 | O23: 36 | P23: 36 | Q23: 4 | R23: 10.81081081 | S23: 19 | T23: 35.52999878 | U23: 54.13000107 | V23: 42.95892334 | W23: 4.413866967 | X23: 40.18000031 | Y23: 100.941391 | Z23: 0.4255828261 | AA23: 0.2252266109 | AB23: 0.1048422754 | AC23: N | AD23: 0 | AE23: 39.98176386 | AF23: 25.0000084 | AG23: 37 | AH23: 37 | AI23: 0 | AJ23: 0 | AK23: 19 | AL23: 56.65999985 | AM23: 165.75 | AN23: 122.6772156 | AO23: 32.23046283 | AP23: 156.6591644 | AQ23: 12.68614483 | AR23: 9.670172691 | AS23: 0.2283333391 | AT23: 0.1161615849 | AU23: T | AV23: 0 | AW23: 4.437043658 | AX23: 74.99990894 | AY23: 36 | AZ23: 36 | BA23: 0 | BB23: 0 | BC23: 19 | BD23: 2.900000095 | BE23: 46.09999847 | BF23: 18.68055534 | BG23: 13.26272605 | BH23: 6.5 | BI23: 1.910148025 | BJ23: 9.779637337 | BK23: 0.2283333391 | BL23: 0.08275324106 | BM23: E | BN23: 0 | BO23: 25.89674226 | BP23: 25.0000084 | BQ23: 36 | BR23: 36 | BS23: 0 | BT23: 0 | BU23: 19 | BV23: 3.700000048 | BW23: 46.5 | BX23: 28.30856895 | BY23: 12.73585533 | BZ23: 35.79999924 | CA23: 3.03171134 | CB23: 9.337488174 | CC23: 0.2315722704 | CD23: 0.101529181 | CE23: N | CF23: 2.702702703 | CG23: 36.62246252 | CH23: 25.00000099 | CI23: 36 | CJ23: 36 | CK23: 1 | CL23: 2.702702703 | CM23: 19 | DE23: 19 | DW23: 19 | EO23: 19
A24: 20 | B24: 0.009999999776 | C24: 32.38000107 | D24: 6.638529778 | E24: 8.828420124 | F24: 2.707499981 | G24: 0.5496311784 | H24: 12.07815361 | I24: 0.2349530607 | J24: 0.05031234026 | K24: G | L24: 5.405405405 | M24: 0.5729580462 | N24: 75.00009739 | O24: 36 | P24: 36 | Q24: 2 | R24: 5.405405405 | S24: 20 | T24: 36.65999985 | U24: 54.29999924 | V24: 45.35108185 | W24: 4.247905664 | X24: 44.00999832 | Y24: 116.6586151 | Z24: 0.3887503743 | AA24: 0.2252266109 | AB24: 0.03392505646 | AC24: N | AD24: 0 | AE24: 42.48588926 | AF24: 25.00001023 | AG24: 37 | AH24: 37 | AI24: 0 | AJ24: 0 | AK24: 20 | AL24: 54.70000076 | AM24: 169.6600037 | AN24: 120.2238922 | AO24: 32.20917997 | AP24: 140.9199982 | AQ24: 12.1977253 | AR24: 9.856255531 | AS24: 0.2283333391 | AT24: 0.129629612 | AU24: T | AV24: 0 | AW24: 4.920773027 | AX24: 74.99991196 | AY24: 36 | AZ24: 36 | BA24: 0 | BB24: 0 | BC24: 20 | BD24: 2.099999905 | BE24: 45.59999847 | BF24: 15.46666622 | BG24: 11.99047346 | BH24: 5.724999905 | BI24: 1.728873968 | BJ24: 8.946092606 | BK24: 0.2283333391 | BL24: 0.05573809147 | BM24: E | BN24: 0 | BO24: 21.44134584 | BP24: 25.00001023 | BQ24: 36 | BR24: 36 | BS24: 0 | BT24: 0 | BU24: 20 | BV24: 3 | BW24: 49.40000153 | BX24: 30.57777596 | BY24: 11.30426198 | BZ24: 37.80000305 | CA24: 4.240722656 | CB24: 7.210510731 | CC24: 0.2283333391 | CD24: 0.08333331347 | CE24: T | CF24: 0 | CG24: 0 | CH24: 99.44262789 | CI24: 36 | CJ24: 36 | CK24: 0 | CL24: 0 | CM24: 20 | DE24: 20 | DW24: 20 | EO24: 20
A25: 21 | B25: 0.05999999866 | C25: 20 | D25: 4.870000362 | E25: 5.869234218 | F25: 2.053999901 | G25: 0.5865405202 | H25: 8.302922249 | I25: 0.2636566162 | J25: 0.05952680111 | K25: G | L25: 24.32432432 | M25: 0.002192707359 | N25: 75.00001911 | O25: 36 | P25: 36 | Q25: 9 | R25: 24.32432432 | S25: 21 | T25: 39.22000122 | U25: 56.40999985 | V25: 47.53136063 | W25: 3.960778107 | X25: 46.38249969 | Y25: 149.6564484 | Z25: 0.3176031709 | AA25: 0.2252266109 | AB25: 0.03245902061 | AC25: N | AD25: 0 | AE25: 44.85980556 | AF25: 24.99999529 | AG25: 37 | AH25: 37 | AI25: 0 | AJ25: 0 | AK25: 21 | AL25: 52.79999924 | AM25: 152.0599976 | AN25: 116.9430466 | AO25: 31.2719259 | AP25: 143.7883301 | AQ25: 12.10293007 | AR25: 9.662374496 | AS25: 0.2283333391 | AT25: 0.1492134929 | AU25: G | AV25: 0 | AW25: 92.86888142 | AX25: 75.00000093 | AY25: 36 | AZ25: 36 | BA25: 0 | BB25: 0 | BC25: 21 | BD25: 2.200000048 | BE25: 43.29999924 | BF25: 12.69999981 | BG25: 12.01703579 | BH25: 5.625 | BI25: 1.413270593 | BJ25: 8.986248016 | BK25: 0.2283333391 | BL25: 0.0379549861 | BM25: E | BN25: 0 | BO25: 17.60594052 | BP25: 24.99999529 | BQ25: 36 | BR25: 36 | BS25: 0 | BT25: 0 | BU25: 21 | BV25: 4.900000095 | BW25: 45.20000076 | BX25: 32.89722443 | BY25: 10.84267946 | BZ25: 41.84166718 | CA25: 5.369565964 | CB25: 6.126607895 | CC25: 0.2283333391 | CD25: 0.1155058742 | CE25: N | CF25: 0 | CG25: 40.21049979 | CH25: 25.00000233 | CI25: 36 | CJ25: 36 | CK25: 0 | CL25: 0 | CM25: 21 | DE25: 21 | DW25: 21 | EO25: 21
A26: 22 | B26: 0.01999999955 | C26: 5.389999866 | D26: 1.280714273 | E26: 1.58572702 | F26: 0.5569999814 | G26: 0.6598289013 | H26: 1.940979362 | I26: 0.340793103 | J26: 0.04182231426 | K26: G | L26: 59.45945946 | M26: 0 | N26: 40.54054054 | O26: 36 | P26: 36 | Q26: 22 | R26: 59.45945946 | S26: 22 | T26: 43.88999939 | U26: 61.25 | V26: 51.69649124 | W26: 3.862529006 | X26: 51.12333298 | Y26: 185.3612213 | Z26: 0.2788959444 | AA26: 0.2252266109 | AB26: 0.01925522089 | AC26: N | AD26: 0 | AE26: 49.0912516 | AF26: 24.9997972 | AG26: 37 | AH26: 37 | AI26: 0 | AJ26: 0 | AK26: 22 | AL26: 50.88999939 | AM26: 150 | AN26: 114.3697128 | AO26: 31.00472297 | AP26: 141.7408295 | AQ26: 11.72394371 | AR26: 9.755225182 | AS26: 0.2283333391 | AT26: 0.1553713083 | AU26: G | AV26: 0 | AW26: 90.43143842 | AX26: 75.00000145 | AY26: 36 | AZ26: 36 | BA26: 0 | BB26: 0 | BC26: 22 | BD26: 1.899999976 | BE26: 46.40000153 | BF26: 10.01388836 | BG26: 11.82511108 | BH26: 5.608333588 | BI26: 1.137011766 | BJ26: 8.807198524 | BK26: 0.2283333391 | BL26: 0.1266305447 | BM26: G | BN26: 0 | BO26: 13.85643424 | BP26: 24.9997972 | BQ26: 36 | BR26: 36 | BS26: 0 | BT26: 0 | BU26: 22 | BV26: 7.800000191 | BW26: 50.09999847 | BX26: 34.96666336 | BY26: 10.69352294 | BZ26: 32.47499847 | CA26: 7.366046906 | CB26: 4.747005463 | CC26: 0.2283333391 | CD26: 0.08796417713 | CE26: N | CF26: 0 | CG26: 42.179334 | CH26: 25.0000029 | CI26: 36 | CJ26: 36 | CK26: 0 | CL26: 0 | CM26: 22 | DE26: 22 | DW26: 22 | EO26: 22
A27: 23 | B27: 0.009999999776 | C27: 11.68000031 | D27: 1.739473701 | E27: 3.04252729 | F27: 1.177000046 | G27: 0.4842509329 | H27: 3.59209156 | I27: 0.3142995536 | J27: 0.05577903986 | K27: G | L27: 45.94594595 | M27: 0 | N27: 54.05405405 | O27: 36 | P27: 36 | Q27: 17 | R27: 45.94594595 | S27: 23 | T27: 43.88000107 | U27: 63.49000168 | V27: 54.31783676 | W27: 3.758641015 | X27: 52.05083466 | Y27: 211.5891571 | Z27: 0.2567137182 | AA27: 0.2252266109 | AB27: 0.08353039622 | AC27: N | AD27: 0 | AE27: 51.78266889 | AF27: 24.99998053 | AG27: 37 | AH27: 37 | AI27: 0 | AJ27: 0 | AK27: 23 | AL27: 49 | AM27: 148.0099945 | AN27: 112.2236023 | AO27: 31.00092339 | AP27: 139.7591553 | AQ27: 11.25187683 | AR27: 9.973767281 | AS27: 0.2283333391 | AT27: 0.1570740938 | AU27: G | AV27: 0 | AW27: 88.22628919 | AX27: 74.99925115 | AY27: 36 | AZ27: 36 | BA27: 0 | BB27: 0 | BC27: 23 | BD27: 1.600000024 | BE27: 43.29999924 | BF27: 7.052777767 | BG27: 9.267839704 | BH27: 5.074999809 | BI27: 1.261856079 | BJ27: 5.589209557 | BK27: 0.2283333391 | BL27: 0.1351523995 | BM27: G | BN27: 0 | BO27: 9.729774799 | BP27: 24.99998053 | BQ27: 36 | BR27: 36 | BS27: 0 | BT27: 0 | BU27: 23 | BV27: 3.700000048 | BW27: 49.79999924 | BX27: 36.33611679 | BY27: 9.18912829 | BZ27: 30.59166718 | CA27: 8.725710869 | CB27: 4.16425848 | CC27: 0.2283333391 | CD27: 0.08014498651 | CE27: N | CF27: 0 | CG27: 42.53408926 | CH27: 25.00000128 | CI27: 36 | CJ27: 36 | CK27: 0 | CL27: 0 | CM27: 23 | DE27: 23 | DW27: 23 | EO27: 23
A28: 24 | B28: 0.07999999821 | C28: 6.949999809 | D28: 1.553076982 | E28: 1.803960414 | F28: 0.7669999599 | G28: 1.063590765 | H28: 1.460220456 | I28: 0.3584900796 | J28: 0.07616108656 | K28: E | L28: 62.16216216 | M28: 0 | N28: 37.83783784 | O28: 36 | P28: 36 | Q28: 23 | R28: 62.16216216 | S28: 24 | T28: 50.49000168 | U28: 63.65999985 | V28: 56.87324524 | W28: 3.690560703 | X28: 55.97750092 | Y28: 244.5646667 | Z28: 0.2325489074 | AA28: 0.2252266109 | AB28: 0.0675675869 | AC28: U | AD28: 0 | AE28: 53.78250122 | AF28: 24.99991473 | AG28: 37 | AH28: 37 | AI28: 0 | AJ28: 0 | AK28: 24 | AL28: 47.20000076 | AM28: 146.1600037 | AN28: 110.1438828 | AO28: 31.02525826 | AP28: 137.9133301 | AQ28: 10.78378963 | AR28: 10.21383858 | AS28: 0.2283333391 | AT28: 0.1576696634 | AU28: N | AV28: 0 | AW28: 89.21766306 | AX28: 75.00000102 | AY28: 36 | AZ28: 36 | BA28: 0 | BB28: 0 | BC28: 24 | BD28: 1.200000048 | BE28: 28 | BF28: 4.475000381 | BG28: 4.711224751 | BH28: 3.433333397 | BI28: 2.072992802 | BJ28: 2.158714771 | BK28: 0.2283333391 | BL28: 0.1133076549 | BM28: G | BN28: 0 | BO28: 6.010177652 | BP28: 24.99991473 | BQ28: 36 | BR28: 36 | BS28: 0 | BT28: 0 | BU28: 24 | BV28: 25.89999962 | BW28: 50.29999924 | BX28: 36.44721985 | BY28: 7.116760576 | BZ28: 32 | CA28: 27.69708443 | CB28: 1.315922618 | CC28: 0.2283333391 | CD28: 0.1018518806 | CE28: T | CF28: 0 | CG28: 15.33448042 | CH28: 24.99987182 | CI28: 36 | CJ28: 36 | CK28: 0 | CL28: 0 | CM28: 24 | DE28: 24 | DW28: 24 | EO28: 24
A29: 25 | B29: 0.009999999776 | C29: 22.36000061 | D29: 3.556922674 | E29: 6.425163225 | F29: 2.245000124 | G29: 0.3955050111 | H29: 8.993369102 | I29: 0.3584900796 | J29: 0.09594291449 | K29: G | L29: 62.16216216 | M29: 0 | N29: 37.83783784 | O29: 36 | P29: 36 | Q29: 23 | R29: 62.16216216 | S29: 25 | T29: 51.61999893 | U29: 69.41000366 | V29: 59.01702499 | W29: 3.726775925 | X29: 61.99750137 | Y29: 257.5861816 | Z29: 0.2291156501 | AA29: 0.2252266109 | AB29: 0.05093944073 | AC29: N | AD29: 0 | AE29: 56.50330761 | AF29: 25.00040955 | AG29: 37 | AH29: 37 | AI29: 0 | AJ29: 0 | AK29: 25 | AL29: 45.52000046 | AM29: 154.2299957 | AN29: 108.5691757 | AO29: 31.52570663 | AP29: 145.1708221 | AQ29: 10.15213203 | AR29: 10.69422436 | AS29: 0.2283333391 | AT29: 0.1055051088 | AU29: N | AV29: 0 | AW29: 87.3054085 | AX29: 75.00000125 | AY29: 36 | AZ29: 36 | BA29: 0 | BB29: 0 | BC29: 25 | BD29: 1 | BE29: 16 | BF29: 3.566666603 | BG29: 3.042461152 | BH29: 2.25 | BI29: 2.423227549 | BJ29: 1.471866131 | BK29: 0.2283333391 | BL29: 0.09255200624 | BM29: G | BN29: 0 | BO29: 4.737218778 | BP29: 25.00040955 | BQ29: 36 | BR29: 36 | BS29: 0 | BT29: 0 | BU29: 25 | BV29: 19.70000076 | BW29: 52.40000153 | BX29: 36.0111084 | BY29: 7.115406739 | BZ29: 33.32500076 | CA29: 26.68364334 | CB29: 1.3495574 | CC29: 0.2283333391 | CD29: 0.09523802996 | CE29: T | CF29: 0 | CG29: 1.420181834 | CH29: 25.00030362 | CI29: 36 | CJ29: 36 | CK29: 0 | CL29: 0 | CM29: 25 | DE29: 25 | DW29: 25 | EO29: 25
A30: 26 | B30: 0.09000000358 | C30: 3.00999999 | D30: 0.7899999619 | E30: 1.039519131 | F30: 0.3819999993 | G30: 0.8829450607 | H30: 0.8947328925 | I30: 0.474429369 | J30: 0.1638709903 | K30: G | L30: 75.67567568 | M30: 0 | N30: 24.32432432 | O30: 36 | P30: 36 | Q30: 28 | R30: 75.67567568 | S30: 26 | T30: 55.83000183 | U30: 67.51999664 | V30: 61.79811478 | W30: 3.33340222 | X30: 62.64916611 | Y30: 352.7287292 | Z30: 0.1752001196 | AA30: 0.2252266109 | AB30: 0.05306527764 | AC30: G | AD30: 0 | AE30: 59.54802913 | AF30: 24.99994503 | AG30: 37 | AH30: 37 | AI30: 0 | AJ30: 0 | AK30: 26 | AL30: 43.95000076 | AM30: 151.6999969 | AN30: 106.6616669 | AO30: 31.55459949 | AP30: 142.7208252 | AQ30: 9.741222382 | AR30: 10.94951534 | AS30: 0.2283333391 | AT30: 0.1055049896 | AU30: N | AV30: 0 | AW30: 85.37841134 | AX30: 75.00000161 | AY30: 36 | AZ30: 36 | BA30: 0 | BB30: 0 | BC30: 26 | BD30: 1 | BE30: 6.300000191 | BF30: 2.574999809 | BG30: 1.451575653 | BH30: 2.325000048 | BI30: 3.992464066 | BJ30: 0.6449650526 | BK30: 0.2283333391 | BL30: 0.09977525473 | BM30: G | BN30: 0 | BO30: 3.289691395 | BP30: 24.99994503 | BQ30: 36 | BR30: 36 | BS30: 0 | BT30: 0 | BU30: 26 | BV30: 29.29999924 | BW30: 49 | BX30: 35.52777481 | BY30: 5.536146852 | BZ30: 30.94166565 | CA30: 46.94153595 | CB30: 0.7568515539 | CC30: 0.2283333391 | CD30: 0.1213707328 | CE30: G | CF30: 0 | CG30: 38.87450295 | CH30: 25.00001401 | CI30: 36 | CJ30: 36 | CK30: 0 | CL30: 0 | CM30: 26 | DE30: 26 | DW30: 26 | EO30: 26
A31: 27 | B31: 0.01999999955 | C31: 2.799999952 | D31: 0.4933333397 | E31: 0.8935323077 | F31: 0.2980000079 | G31: 0.6129683852 | H31: 0.8048267365 | I31: 0.4463027716 | J31: 0.08557021618 | K31: G | L31: 72.97297297 | M31: 0 | N31: 27.02702703 | O31: 36 | P31: 36 | Q31: 27 | R31: 72.97297297 | S31: 27 | T31: 54.09999847 | U31: 68.37999725 | V31: 62.35486221 | W31: 3.850559561 | X31: 62.42999649 | Y31: 264.9620667 | Z31: 0.235335052 | AA31: 0.2252266109 | AB31: 0.05288767815 | AC31: N | AD31: 0 | AE31: 59.75770987 | AF31: 25.00020227 | AG31: 37 | AH31: 37 | AI31: 0 | AJ31: 0 | AK31: 27 | AL31: 42.49000168 | AM31: 148.2299957 | AN31: 104.8222198 | AO31: 31.52925907 | AP31: 139.418335 | AQ31: 9.381628036 | AR31: 11.17313766 | AS31: 0.2283333391 | AT31: 0.128787905 | AU31: T | AV31: 0 | AW31: 85.37841134 | AX31: 75.00000161 | AY31: 36 | AZ31: 36 | BA31: 0 | BB31: 0 | BC31: 27 | BD31: 1 | BE31: 6.5 | BF31: 2.155555248 | BG31: 1.124898588 | BH31: 2.375 | BI31: 4.650089264 | BJ31: 0.4635513723 | BK31: 0.2283333391 | BL31: 0.1022414565 | BM31: N | BN31: 0 | BO31: 2.914280656 | BP31: 25.00020227 | BQ31: 36 | BR31: 36 | BS31: 0 | BT31: 0 | BU31: 27 | BV31: 26.70000076 | BW31: 49.29999924 | BX31: 34.8777771 | BY31: 4.863279289 | BZ31: 32.34999847 | CA31: 57.7881813 | CB31: 0.6035451889 | CC31: 0.2283333391 | CD31: 0.1221293509 | CE31: G | CF31: 0 | CG31: 37.85313595 | CH31: 25.00001153 | CI31: 36 | CJ31: 36 | CK31: 0 | CL31: 0 | CM31: 27 | DE31: 27 | DW31: 27 | EO31: 27
A32: 28 | B32: 0.01999999955 | C32: 3.430000067 | D32: 0.7764285803 | E32: 1.065902311 | F32: 0.3610000312 | G32: 0.6446023583 | H32: 1.204507828 | I32: 0.340793103 | J32: 0.08009815216 | K32: G | L32: 59.45945946 | M32: 0 | N32: 40.54054054 | O32: 36 | P32: 36 | Q32: 22 | R32: 59.45945946 | S32: 28 | T32: 51.09000015 | U32: 73.41999817 | V32: 63.74757004 | W32: 4.882693553 | X32: 64.11582947 | Y32: 170.4781799 | Z32: 0.3739338815 | AA32: 0.2252266109 | AB32: 0.06443935633 | AC32: G | AD32: 0 | AE32: 60.38994522 | AF32: 25.00018241 | AG32: 37 | AH32: 37 | AI32: 0 | AJ32: 0 | AK32: 28 | AL32: 41.08000183 | AM32: 145.8999939 | AN32: 103.1227722 | AO32: 31.56576213 | AP32: 137.1649933 | AQ32: 9.02298069 | AR32: 11.42890358 | AS32: 0.2283333391 | AT32: 0.1287878454 | AU32: T | AV32: 0 | AW32: 85.37841134 | AX32: 75.00000161 | AY32: 36 | AZ32: 36 | BA32: 0 | BB32: 0 | BC32: 28 | BD32: 1 | BE32: 7.099999905 | BF32: 1.938888788 | BG32: 1.219432591 | BH32: 1.508333325 | BI32: 3.977848053 | BJ32: 0.4874215424 | BK32: 0.2283333391 | BL32: 0.1298731565 | BM32: E | BN32: 0 | BO32: 2.687856447 | BP32: 25.00018241 | BQ32: 36 | BR32: 36 | BS32: 0 | BT32: 0 | BU32: 28 | BV32: 19.39999962 | BW32: 50.29999924 | BX32: 34.84443665 | BY32: 5.405628852 | BZ32: 32.27500153 | CA32: 41.79480743 | CB32: 0.8337025046 | CC32: 0.2283333391 | CD32: 0.05391848087 | CE32: N | CF32: 0 | CG32: 38.49047654 | CH32: 25.00000797 | CI32: 36 | CJ32: 36 | CK32: 0 | CL32: 0 | CM32: 28 | DE32: 28 | DW32: 28 | EO32: 28
A33: 29 | B33: 0.1099999994 | C33: 13.96000004 | D33: 2.475999832 | E33: 4.290781368 | F33: 1.495000005 | G33: 0.5994871259 | H33: 4.130197048 | I33: 0.4211426675 | J33: 0.09085655212 | K33: G | L33: 70.27027027 | M33: 0 | N33: 29.72972973 | O33: 36 | P33: 36 | Q33: 26 | R33: 70.27027027 | S33: 29 | T33: 47.52999878 | U33: 74.98999786 | V33: 64.65242767 | W33: 5.332658646 | X33: 68.125 | Y33: 141.0497589 | Z33: 0.458366096 | AA33: 0.2252266109 | AB33: 0.087474823 | AC33: N | AD33: 0 | AE33: 61.05555629 | AF33: 25.00004996 | AG33: 37 | AH33: 37 | AI33: 0 | AJ33: 0 | AK33: 29 | AL33: 39.70000076 | AM33: 144.0099945 | AN33: 101.9397202 | AO33: 31.98773435 | AP33: 135.3174896 | AQ33: 8.565347672 | AR33: 11.90141106 | AS33: 0.2283333391 | AT33: 0.1287878454 | AU33: T | AV33: 0 | AW33: 85.37841134 | AX33: 75.00000161 | AY33: 36 | AZ33: 36 | BA33: 0 | BB33: 0 | BC33: 29 | BD33: 1 | BE33: 22 | BF33: 2.452777863 | BG33: 3.907171522 | BH33: 2.75 | BI33: 1.461751461 | BJ33: 1.67797184 | BK33: 0.2283333391 | BL33: 0.08443003893 | BM33: G | BN33: 0 | BO33: 3.363194571 | BP33: 25.00004996 | BQ33: 36 | BR33: 36 | BS33: 0 | BT33: 0 | BU33: 29 | BV33: 6.300000191 | BW33: 52.09999847 | BX33: 34.00833511 | BY33: 7.289890385 | BZ33: 33.01666641 | CA33: 13.9340353 | CB33: 2.440666676 | CC33: 0.2283333391 | CD33: 0.1001842469 | CE33: N | CF33: 0 | CG33: 38.92527015 | CH33: 25.0000929 | CI33: 36 | CJ33: 36 | CK33: 0 | CL33: 0 | CM33: 29 | DE33: 29 | DW33: 29 | EO33: 29
A34: 30 | B34: 0.009999999776 | C34: 36.33000183 | D34: 6.32636404 | E34: 11.78460014 | F34: 3.642000198 | G34: 0.3563863635 | H34: 17.75142097 | I34: 0.3983826041 | J34: 0.1061764359 | K34: G | L34: 67.56756757 | M34: 0 | N34: 32.43243243 | O34: 36 | P34: 36 | Q34: 25 | R34: 67.56756757 | S34: 30 | T34: 53.04999924 | U34: 72.19999695 | V34: 64.13620758 | W34: 5.144183287 | X34: 64.22083282 | Y34: 157.1555328 | Z34: 0.4081065953 | AA34: 0.2252266109 | AB34: 0.04832258821 | AC34: N | AD34: 0 | AE34: 60.66650924 | AF34: 24.99932926 | AG34: 37 | AH34: 37 | AI34: 0 | AJ34: 0 | AK34: 30 | AL34: 38.47000122 | AM34: 142.2400055 | AN34: 100.6027756 | AO34: 32.11736899 | AP34: 133.5924988 | AQ34: 8.243467331 | AR34: 12.20393944 | AS34: 0.2283333391 | AT34: 0.1428925693 | AU34: N | AV34: 0 | AW34: 78.93967735 | AX34: 75.00025927 | AY34: 36 | AZ34: 36 | BA34: 0 | BB34: 0 | BC34: 30 | BD34: 1 | BE34: 9.899999619 | BF34: 2.186111212 | BG34: 2.067040964 | BH34: 1.741666555 | BI34: 2.099272013 | BJ34: 1.041366339 | BK34: 0.2283333391 | BL34: 0.1155950427 | BM34: G | BN34: 0 | BO34: 2.93356526 | BP34: 24.99932926 | BQ34: 36 | BR34: 36 | BS34: 0 | BT34: 0 | BU34: 30 | BV34: 21.10000038 | BW34: 48.90000153 | BX34: 33.45833206 | BY34: 5.349144962 | BZ34: 32.68333435 | CA34: 41.23974228 | CB34: 0.8113128543 | CC34: 0.2283333391 | CD34: 0.03760957718 | CE34: G | CF34: 0 | CG34: 36.8098755 | CH34: 25.00001513 | CI34: 36 | CJ34: 36 | CK34: 0 | CL34: 0 | CM34: 30 | DE34: 30 | DW34: 30 | EO34: 30
A35: 31 | B35: 0.009999999776 | C35: 12.32999992 | D35: 2.027647018 | E35: 3.585128394 | F35: 1.241999984 | G35: 0.3824675679 | H35: 5.301487446 | I35: 0.3322738111 | J35: 0.05187743902 | K35: G | L35: 51.35135135 | M35: 0 | N35: 48.64864865 | O35: 36 | P35: 36 | Q35: 19 | R35: 51.35135135 | S35: 31 | T35: 53.33000183 | U35: 69.56999969 | V35: 62.41622162 | W35: 4.530498784 | X35: 65.51000214 | Y35: 191.1993866 | Z35: 0.3264457285 | AA35: 0.2252266109 | AB35: 0.0620572567 | AC35: N | AD35: 0 | AE35: 59.36044732 | AF35: 25.00071827 | AG35: 37 | AH35: 37 | AI35: 0 | AJ35: 0 | AK35: 31 | AL35: 37.27999878 | AM35: 140.7400055 | AN35: 99.29056549 | AO35: 32.15742109 | AP35: 132.1183319 | AQ35: 7.973409176 | AR35: 12.45271206 | AS35: 0.2283333391 | AT35: 0.1428926289 | AU35: N | AV35: 0 | AW35: 77.6017223 | AX35: 74.99900416 | AY35: 36 | AZ35: 36 | BA35: 0 | BB35: 0 | BC35: 31 | BD35: 1 | BE35: 8.199999809 | BF35: 1.61944437 | BG35: 1.426047606 | BH35: 1.599999905 | BI35: 2.893919945 | BJ35: 0.5596023202 | BK35: 0.2283333391 | BL35: 0.06255114079 | BM35: G | BN35: 0 | BO35: 2.122195049 | BP35: 25.00071827 | BQ35: 36 | BR35: 36 | BS35: 0 | BT35: 0 | BU35: 31 | BV35: 22.10000038 | BW35: 51.5 | BX35: 34.06388855 | BY35: 5.232271324 | BZ35: 34.35000229 | CA35: 46.01429367 | CB35: 0.7402892709 | CC35: 0.2283333391 | CD35: 0.11436975 | CE35: G | CF35: 0 | CG35: 37.30329473 | CH35: 25.0000142 | CI35: 36 | CJ35: 36 | CK35: 0 | CL35: 0 | CM35: 31 | DE35: 31 | DW35: 31 | EO35: 31
A36: 32 | B36: 0.03999999911 | C36: 2.279999971 | D36: 0.666428566 | E36: 0.7888316959 | F36: 0.2639999986 | G36: 0.6794314384 | H36: 0.9808621407 | I36: 0.340793103 | J36: 0.05296391249 | K36: E | L36: 59.45945946 | M36: 0 | N36: 40.54054054 | O36: 36 | P36: 36 | Q36: 22 | R36: 59.45945946 | S36: 32 | T36: 50.20999908 | U36: 73.05999756 | V36: 62.17864609 | W36: 5.166678131 | X36: 63.5391655 | Y36: 145.0300903 | Z36: 0.4287292659 | AA36: 0.2252266109 | AB36: 0.03346199915 | AC36: T | AD36: 0 | AE36: 41.48397709 | AF36: 24.99999502 | AG36: 37 | AH36: 37 | AI36: 0 | AJ36: 0 | AK36: 32 | AL36: 36.18999863 | AM36: 139.2799988 | AN36: 98.00667572 | AO36: 32.03592573 | AP36: 130.6891632 | AQ36: 7.810715199 | AR36: 12.54772091 | AS36: 0.2283333391 | AT36: 0.1272837222 | AU36: N | AV36: 0 | AW36: 76.39886443 | AX36: 74.99990849 | AY36: 36 | AZ36: 36 | BA36: 0 | BB36: 0 | BC36: 32 | BD36: 1 | BE36: 4.599999905 | BF36: 1.48888886 | BG36: 0.8214195774 | BH36: 1.299999952 | BI36: 5.059969902 | BJ36: 0.2942485511 | BK36: 0.2283333391 | BL36: 0.04426014423 | BM36: G | BN36: 0 | BO36: 1.866628066 | BP36: 24.99999502 | BQ36: 36 | BR36: 36 | BS36: 0 | BT36: 0 | BU36: 32 | BV36: 24.39999962 | BW36: 52.40000153 | BX36: 33.35555267 | BY36: 5.459117843 | BZ36: 36.06666565 | CA36: 43.45640945 | CB36: 0.7675634623 | CC36: 0.2283333391 | CD36: 0.07515466213 | CE36: G | CF36: 0 | CG36: 36.61491285 | CH36: 25.0000147 | CI36: 36 | CJ36: 36 | CK36: 0 | CL36: 0 | CM36: 32 | DE36: 32 | DW36: 32 | EO36: 32
A37: 33 | B37: 0.01999999955 | C37: 18.26000023 | D37: 4.04285717 | E37: 5.491428806 | F37: 1.843999982 | G37: 0.5322037339 | H37: 7.596446514 | I37: 0.340793103 | J37: 0.06111901999 | K37: G | L37: 59.45945946 | M37: 0 | N37: 40.54054054 | O37: 36 | P37: 36 | Q37: 22 | R37: 59.45945946 | S37: 33 | T37: 48.22000122 | U37: 73.04000092 | V37: 60.97216797 | W37: 6.201187561 | X37: 62.69833374 | Y37: 96.62043762 | Z37: 0.6310483813 | AA37: 0.2252266109 | AB37: 0.03400415182 | AC37: G | AD37: 0 | AE37: 56.68167951 | AF37: 24.999989 | AG37: 37 | AH37: 37 | AI37: 0 | AJ37: 0 | AK37: 33 | AL37: 35.36000061 | AM37: 137.9499969 | AN37: 97.01223755 | AO37: 31.82667427 | AP37: 129.4008331 | AQ37: 7.738209248 | AR37: 12.53678131 | AS37: 0.2283333391 | AT37: 0.1272836626 | AU37: N | AV37: 0 | AW37: 75.54491235 | AX37: 75.00055876 | AY37: 36 | AZ37: 36 | BA37: 0 | BB37: 0 | BC37: 33 | BD37: 1 | BE37: 12.39999962 | BF37: 2.425000191 | BG37: 2.824219257 | BH37: 1.950000048 | BI37: 1.40354991 | BJ37: 1.727761984 | BK37: 0.2283333391 | BL37: 0.08667653799 | BM37: G | BN37: 0 | BO37: 3.331361806 | BP37: 24.999989 | BQ37: 36 | BR37: 36 | BS37: 0 | BT37: 0 | BU37: 33 | BV37: 16.79999924 | BW37: 47.29999924 | BX37: 31.88055801 | BY37: 5.736092708 | BZ37: 34.59166718 | CA37: 29.54773521 | CB37: 1.078951001 | CC37: 0.2283333391 | CD37: 0.1098207831 | CE37: N | CF37: 0 | CG37: 35.7494126 | CH37: 25.0004496 | CI37: 36 | CJ37: 36 | CK37: 0 | CL37: 0 | CM37: 33 | DE37: 33 | DW37: 33 | EO37: 33
A38: 34 | B38: 0.02999999933 | C38: 8.739999771 | D38: 1.55249989 | E38: 2.243413504 | F38: 0.9009999633 | G38: 0.535315156 | H38: 2.900160551 | I38: 0.3063413203 | J38: 0.05232608318 | K38: E | L38: 43.24324324 | M38: 0 | N38: 56.75675676 | O38: 36 | P38: 36 | Q38: 16 | R38: 43.24324324 | S38: 34 | T38: 44.88000107 | U38: 69.33000183 | V38: 59.61783981 | W38: 5.093289033 | X38: 63.21750259 | Y38: 133.095932 | Z38: 0.4479313493 | AA38: 0.2252266109 | AB38: 0.06117719412 | AC38: G | AD38: 0 | AE38: 56.05574155 | AF38: 24.99970371 | AG38: 37 | AH38: 37 | AI38: 0 | AJ38: 0 | AK38: 34 | AL38: 34.54000092 | AM38: 136.6199951 | AN38: 96.14805603 | AO38: 31.55036702 | AP38: 128.113327 | AQ38: 7.715729237 | AR38: 12.46130466 | AS38: 0.2283333391 | AT38: 0.1229162216 | AU38: N | AV38: 0 | AW38: 74.8680975 | AX38: 74.99955618 | AY38: 36 | AZ38: 36 | BA38: 0 | BB38: 0 | BC38: 34 | BD38: 0.8999999762 | BE38: 9.300000191 | BF38: 2.083333254 | BG38: 2.234214724 | BH38: 1.600000024 | BI38: 1.799687266 | BJ38: 1.157608509 | BK38: 0.2283333391 | BL38: 0.1283064485 | BM38: G | BN38: 0 | BO38: 2.82398804 | BP38: 24.99970371 | BQ38: 36 | BR38: 36 | BS38: 0 | BT38: 0 | BU38: 34 | BV38: 21.10000038 | BW38: 48 | BX38: 31.19722176 | BY38: 6.005925114 | BZ38: 32.30833435 | CA38: 28.43830872 | CB38: 1.09701395 | CC38: 0.2283333391 | CD38: 0.09842401743 | CE38: N | CF38: 0 | CG38: 35.24815698 | CH38: 24.99999847 | CI38: 36 | CJ38: 36 | CK38: 0 | CL38: 0 | CM38: 34 | DE38: 34 | DW38: 34 | EO38: 34
A39: 35 | B39: 0.02999999933 | C39: 68.65000153 | D39: 8.745715141 | E39: 15.536629 | F39: 6.892000198 | G39: 0.4497422278 | H39: 19.44606209 | I39: 0.2989585102 | J39: 0.03288549185 | K39: G | L39: 40.54054054 | M39: 0 | N39: 59.45945946 | O39: 36 | P39: 36 | Q39: 15 | R39: 40.54054054 | S39: 35 | T39: 40.45000076 | U39: 67.68000031 | V39: 57.85783768 | W39: 6.717869617 | X39: 60.87250137 | Y39: 69.56056976 | Z39: 0.8317620158 | AA39: 0.2252266109 | AB39: 0.09685882926 | AC39: N | AD39: 0 | AE39: 53.32670413 | AF39: 24.99917649 | AG39: 37 | AH39: 37 | AI39: 0 | AJ39: 0 | AK39: 35 | AL39: 33.61999893 | AM39: 135.4400024 | AN39: 97.2233429 | AO39: 31.58579934 | AP39: 126.9550018 | AQ39: 7.706495285 | AR39: 12.61576653 | AS39: 0.2283333391 | AT39: 0.1802382469 | AU39: N | AV39: 0 | AW39: 75.91903629 | AX39: 75.00000875 | AY39: 36 | AZ39: 36 | BA39: 0 | BB39: 0 | BC39: 35 | BD39: 0.8999999762 | BE39: 25.29999924 | BF39: 4.627777576 | BG39: 5.557882729 | BH39: 2.933333397 | BI39: 1.031312585 | BJ39: 4.487269402 | BK39: 0.2283333391 | BL39: 0.06561595201 | BM39: G | BN39: 0 | BO39: 6.414056708 | BP39: 24.99917649 | BQ39: 36 | BR39: 36 | BS39: 0 | BT39: 0 | BU39: 35 | BV39: 1.200000048 | BW39: 47.79999924 | BX39: 27.55833244 | BY39: 9.630023389 | BZ39: 28.38333321 | CA39: 4.46480751 | CB39: 6.172345161 | CC39: 0.2283333391 | CD39: 0.1122097969 | CE39: N | CF39: 0 | CG39: 34.05368404 | CH39: 25.00000157 | CI39: 36 | CJ39: 36 | CK39: 0 | CL39: 0 | CM39: 35 | DE39: 35 | DW39: 35 | EO39: 35
A40: 36 | B40: 0.05999999866 | C40: 59.72000122 | D40: 13.17400074 | E40: 15.46119262 | F40: 6.026000023 | G40: 0.6580933928 | H40: 20.01843643 | I40: 0.2501266301 | J40: 0.0342040062 | K40: G | L40: 16.21621622 | M40: 0.5648382956 | N40: 74.99981507 | O40: 36 | P40: 36 | Q40: 6 | R40: 16.21621622 | S40: 36 | T40: 32.65000153 | U40: 63.72000122 | V40: 53.26622391 | W40: 7.790721843 | X40: 55.95249939 | Y40: 42.95685196 | Z40: 1.239993691 | AA40: 0.2252266109 | AB40: 0.1650374234 | AC40: N | AD40: 0 | AE40: 48.01136636 | AF40: 25.00087146 | AG40: 37 | AH40: 37 | AI40: 0 | AJ40: 0 | AK40: 36 | AL40: 35.63000107 | AM40: 142.4199982 | AN40: 93.6258316 | AO40: 30.17039925 | AP40: 115.722496 | AQ40: 8.261385918 | AR40: 11.33294487 | AS40: 0.2283333391 | AT40: 0.08509576321 | AU40: N | AV40: 0 | AW40: 73.27709641 | AX40: 74.99906273 | AY40: 36 | AZ40: 36 | BA40: 0 | BB40: 0 | BC40: 36 | BD40: 1 | BE40: 34.90000153 | BF40: 10.65555573 | BG40: 8.090291702 | BH40: 3.825000048 | BI40: 1.490609765 | BJ40: 7.148454189 | BK40: 0.2283333391 | BL40: 0.09848999977 | BM40: N | BN40: 0 | BO40: 16.11215269 | BP40: 25.00087146 | BQ40: 36 | BR40: 36 | BS40: 0 | BT40: 0 | BU40: 36 | BV40: 3.099999905 | BW40: 40.59999847 | BX40: 20.86666489 | BY40: 9.80658675 | BZ40: 24.97500038 | CA40: 3.192604542 | CB40: 6.535937786 | CC40: 0.2283333391 | CD40: 0.1142681539 | CE40: N | CF40: 0 | CG40: 27.48110677 | CH40: 25.00000118 | CI40: 36 | CJ40: 36 | CK40: 0 | CL40: 0 | CM40: 36 | DE40: 36 | DW40: 36 | EO40: 36
A41: 37 | B41: 0.009999999776 | C41: 45.00999832 | D41: 9.746786118 | E41: 13.08661379 | F41: 4.510000229 | G41: 0.5111933351 | H41: 19.06673241 | I41: 0.2589056492 | J41: 0.05346912146 | K41: G | L41: 21.62162162 | M41: 0.0321518888 | N41: 75.00063902 | O41: 36 | P41: 36 | Q41: 8 | R41: 21.62162162 | S41: 37 | T41: 14.11999989 | U41: 37.22000122 | V41: 26.83296967 | W41: 5.27378887 | X41: 27.59500122 | Y41: 24.55760574 | Z41: 1.092654109 | AA41: 0.2252266109 | AB41: 0.02428090572 | AC41: N | AD41: 0 | AE41: 23.27581471 | AF41: 25.00002089 | AG41: 37 | AH41: 37 | AI41: 0 | AJ41: 0 | AK41: 37 | AL41: 20.70000076 | AM41: 64.34999847 | AN41: 34.84371567 | AO41: 10.83135859 | AP41: 31.61249924 | AQ41: 12.96741104 | AR41: 2.687021732 | AS41: 0.2315722704 | AT41: 0.1036585569 | AU41: G | AV41: 0 | AW41: 27.92410502 | AX41: 75.0000903 | AY41: 35 | AZ41: 35 | BA41: 0 | BB41: 0 | BC41: 37 | BD41: 3.700000048 | BE41: 28.39999962 | BF41: 16.16110992 | BG41: 6.118883154 | BH41: 13.99166679 | BI41: 6.445651531 | BJ41: 2.507288694 | BK41: 0.2283333391 | BL41: 0.06761914492 | BM41: G | BN41: 0 | BO41: 19.88333555 | BP41: 25.00002089 | BQ41: 36 | BR41: 36 | BS41: 0 | BT41: 0 | BU41: 37 | BV41: 0.1000000015 | BW41: 31.20000076 | BX41: 9.945714951 | BY41: 7.350884012 | BZ41: 7.875 | CA41: 1.449555516 | CB41: 6.861217022 | CC41: 0.2315722704 | CD41: 0.03361546993 | CE41: G | CF41: 2.702702703 | CG41: 13.41908717 | CH41: 25.00077689 | CI41: 36 | CJ41: 36 | CK41: 1 | CL41: 2.702702703 | CM41: 37 | DE41: 37 | DW41: 37 | EO41: 37
B42: =B4+1 -> 2 | C42: Componente hídrica: | G42: Precipitação (P) | L42: Ponto 2 lat-3.125_lon-41.625 | S42: Ponto: | T42: =B42 -> 2 | U42: Componente hídrica: | Y42: Evapotranspiração de referência (ETo) | AD42: =L42 -> Ponto 2 lat-3.125_lon-41.625 | AK42: Ponto: | AL42: =B42 -> 2 | AM42: Componente hídrica: | AQ42: Armazenamento da água no solo (S) | AV42: =L42 -> Ponto 2 lat-3.125_lon-41.625 | BC42: Ponto: | BD42: =B42 -> 2 | BE42: Componente hídrica: | BI42: Evapotranspiração Real (ETr) | BN42: =L42 -> Ponto 2 lat-3.125_lon-41.625 | BU42: Ponto: | BV42: =B42 -> 2 | BW42: Componente hídrica: | CA42: Deficiência hídrica (Def) | CF42: =L42 -> Ponto 2 lat-3.125_lon-41.625 | CM42: Ponto: | CN42: =B42 -> 2 | CO42: Componente hídrica: | CS42: Excedente hídrico (Exc) | CX42: =L42 -> Ponto 2 lat-3.125_lon-41.625 | DE42: Ponto: | DF42: =B42 -> 2 | DG42: Componente hídrica: | DK42: Temperatura mínima (Tmin) | DP42: =L42 -> Ponto 2 lat-3.125_lon-41.625 | DW42: Ponto: | DX42: =B42 -> 2 | DY42: Componente hídrica: | EC42: Temperatura máxima (Tmax) | EH42: =L42 -> Ponto 2 lat-3.125_lon-41.625 | EO42: Ponto: | EP42: =B42 -> 2 | EQ42: Componente hídrica: | EU42: Temperatura média (Tmed) | EZ42: =L42 -> Ponto 2 lat-3.125_lon-41.625
A43: 1 | B43: 0.01999999955 | C43: 112.3099976 | D43: 30.79944229 | E43: 28.54417022 | F43: 9.377500534 | G43: 0.7422788739 | H43: 41.49308777 | I43: 0.2283333391 | J43: 0.0479978919 | K43: E | L43: 0 | M43: 8.860447083 | N43: 75.00000074 | O43: 36 | P43: 36 | Q43: 0 | R43: 0 | S43: 1 | T43: 34.24000168 | U43: 67.26000214 | V43: 48.20027161 | W43: 7.733452636 | X43: 42.49500275 | Y43: 41.5097847 | Z43: 1.161178589 | AA43: 0.2252266109 | AB43: 0.04364446551 | AC43: G | AD43: 0 | AE43: 42.96579128 | AF43: 25.00000513 | AG43: 37 | AH43: 37 | AI43: 0 | AJ43: 0 | AK43: 1 | AL43: 21.73999977 | AM43: 77.91999817 | AN43: 45.56499863 | AO43: 14.42333554 | AP43: 35.78499985 | AQ43: 10.12558174 | AR43: 4.499988079 | AS43: 0.2283333391 | AT43: 0.04866051674 | AU43: G | AV43: 0 | AW43: 35.27025 | AX43: 74.99999169 | AY43: 36 | AZ43: 36 | BA43: 0 | BB43: 0 | BC43: 1 | BD43: 10.19999981 | BE43: 47.20000076 | BF43: 29.33611107 | BG43: 10.76324782 | BH43: 31.78333473 | BI43: 6.508872986 | BJ43: 4.507095337 | BK43: 0.2283333391 | BL43: 0.02777779102 | BM43: U | BN43: 0 | BO43: 37.95000052 | BP43: 25 | BQ43: 36 | BR43: 36 | BS43: 0 | BT43: 0 | BU43: 1 | BV43: 0.1000000015 | BW43: 55.20000076 | BX43: 22.03055573 | BY43: 16.47383679 | BZ43: 4.691666603 | CA43: 1.037016988 | CB43: 21.24416161 | CC43: 0.2283333391 | CD43: 0.1032551527 | CE43: G | CF43: 0 | CG43: 30.53165935 | CH43: 25.0000158 | CI43: 36 | CJ43: 36 | CK43: 0 | CL43: 0 | CM43: 1 | CN43: exc | DE43: 1 | DW43: 1 | EO43: 1 | EP43: tmed
A44: 2 | B44: 1.450000048 | C44: 114.8899994 | D44: 38.69912338 | E44: 34.15864799 | F44: 10.90333271 | G44: 1.237783194 | H44: 31.26486397 | I44: 0.2349530607 | J44: 0.05555671453 | K44: E | L44: 2.702702703 | M44: 10.0727015 | N44: 75.00005084 | O44: 36 | P44: 36 | Q44: 1 | R44: 2.702702703 | S44: 2 | T44: 34.36000061 | U44: 65.33999634 | V44: 45.20377731 | W44: 7.098497054 | X44: 52.43166351 | Y44: 42.37546539 | Z44: 1.066744089 | AA44: 0.2252266109 | AB44: 0.04903781414 | AC44: N | AD44: 0 | AE44: 40.41593628 | AF44: 25 | AG44: 37 | AH44: 37 | AI44: 0 | AJ44: 0 | AK44: 2 | AL44: 23.72999954 | AM44: 94.87999725 | AN44: 58.35027313 | AO44: 23.72187634 | AP44: 29.65916634 | AQ44: 5.461391926 | AR44: 10.68413925 | AS44: 0.2283333391 | AT44: 0.09879432619 | AU44: G | AV44: 0 | AW44: 40.16457011 | AX44: 74.99938054 | AY44: 36 | AZ44: 36 | BA44: 0 | BB44: 0 | BC44: 2 | BD44: 7.199999809 | BE44: 47 | BF44: 27.60277557 | BG44: 12.03636128 | BH44: 37.04999924 | BI44: 4.645050049 | BJ44: 5.942406654 | BK44: 0.2283333391 | BL44: 0.05555558205 | BM44: U | BN44: 0 | BO44: 37.04999995 | BP44: 25 | BQ44: 36 | BR44: 36 | BS44: 0 | BT44: 0 | BU44: 2 | BV44: 0.3000000119 | BW44: 64 | BX44: 21.48055649 | BY44: 18.63032527 | BZ44: 5.608333588 | CA44: 0.7963798046 | CB44: 26.97275352 | CC44: 0.2283333391 | CD44: 0.1271166801 | CE44: E | CF44: 0 | CG44: 29.77835514 | CH44: 25.00002234 | CI44: 36 | CJ44: 36 | CK44: 0 | CL44: 0 | CM44: 2 | DE44: 2 | DW44: 2 | EO44: 2
A45: 3 | B45: 0.2599999905 | C45: 343.4599915 | D45: 52.85639191 | E45: 68.13911838 | F45: 28.8599987 | G45: 0.8057770133 | H45: 65.59679413 | I45: 0.2283333391 | J45: 0.07641869783 | K45: G | L45: 0 | M45: 11.88751686 | N45: 75.0000531 | O45: 36 | P45: 36 | Q45: 0 | R45: 0 | S45: 3 | T45: 28.64999962 | U45: 62.52000046 | V45: 44.9802742 | W45: 7.244524236 | X45: 48.40750122 | Y45: 38.52521896 | Z45: 1.167554021 | AA45: 0.2252266109 | AB45: 0.03629048169 | AC45: N | AD45: 0 | AE45: 40.09392824 | AF45: 24.99999734 | AG45: 37 | AH45: 37 | AI45: 0 | AJ45: 0 | AK45: 3 | AL45: 20.82999992 | AM45: 121.3499985 | AN45: 70.08333588 | AO45: 29.55645419 | AP45: 79.46666718 | AQ45: 4.782758236 | AR45: 14.65332985 | AS45: 0.2283333391 | AT45: 0.05555561185 | AU45: U | AV45: 0 | AW45: 45.95999956 | AX45: 75 | AY45: 36 | AZ45: 36 | BA45: 0 | BB45: 0 | BC45: 3 | BD45: 9.100000381 | BE45: 48.79999924 | BF45: 30.15555573 | BG45: 12.15465576 | BH45: 32.2583313 | BI45: 4.888136387 | BJ45: 6.169131279 | BK45: 0.2283333391 | BL45: 0.08333334327 | BM45: U | BN45: 0 | BO45: 38.87499952 | BP45: 25 | BQ45: 36 | BR45: 36 | BS45: 0 | BT45: 0 | BU45: 3 | BV45: 0.200000003 | BW45: 54 | BX45: 20.47999763 | BY45: 17.12581972 | BZ45: 4.68333292 | CA45: 0.878061235 | CB45: 23.32411003 | CC45: 0.2315722704 | CD45: 0.07620102167 | CE45: E | CF45: 0 | CG45: 28.39128693 | CH45: 25.00002235 | CI45: 36 | CJ45: 36 | CK45: 0 | CL45: 0 | CM45: 3 | DE45: 3 | DW45: 3 | EO45: 3
A46: 4 | B46: 2.24000001 | C46: 162.3999939 | D46: 52.6724968 | E46: 37.97104546 | F46: 15.58666611 | G46: 1.610228896 | H46: 32.71118546 | I46: 0.2283333391 | J46: 0.07531905174 | K46: G | L46: 0 | M46: 22.31416801 | N46: 75.00000693 | O46: 36 | P46: 36 | Q46: 0 | R46: 0 | S46: 4 | T46: 32.09000015 | U46: 56.5 | V46: 44.93378067 | W46: 6.656680957 | X46: 46.32916641 | Y46: 45.85011673 | Z46: 0.980014503 | AA46: 0.2252266109 | AB46: 0.04495626688 | AC46: N | AD46: 0 | AE46: 40.44394338 | AF46: 24.99999492 | AG46: 37 | AH46: 37 | AI46: 0 | AJ46: 0 | AK46: 4 | AL46: 26.5 | AM46: 137.2200012 | AN46: 85.11222076 | AO46: 32.09527709 | AP46: 109.5400009 | AQ46: 5.553127766 | AR46: 15.32689762 | AS46: 0.2283333391 | AT46: 0.0663896203 | AU46: N | AV46: 0 | AW46: 63.46436218 | AX46: 74.99992391 | AY46: 36 | AZ46: 36 | BA46: 0 | BB46: 0 | BC46: 4 | BD46: 18.20000076 | BE46: 49.29999924 | BF46: 34.78333282 | BG46: 9.246512916 | BH46: 46.70833206 | BI46: 12.82599354 | BJ46: 2.711940527 | BK46: 0.2283333391 | BL46: 0.092212677 | BM46: N | BN46: 0 | BO46: 41.01974889 | BP46: 25.00090085 | BQ46: 36 | BR46: 36 | BS46: 0 | BT46: 0 | BU46: 4 | BV46: 0.200000003 | BW46: 34.29999924 | BX46: 13.52941132 | BY46: 11.04241188 | BZ46: 3.041666746 | CA46: 1.023192406 | CB46: 13.22274399 | CC46: 0.2349530607 | CD46: 0.124891147 | CE46: N | CF46: 5.405405405 | CG46: 20.48814165 | CH46: 25.00019011 | CI46: 36 | CJ46: 36 | CK46: 2 | CL46: 5.405405405 | CM46: 4 | DE46: 4 | DW46: 4 | EO46: 4
A47: 5 | B47: 16.32999992 | C47: 171.1999969 | D47: 69.7105484 | E47: 37.85104247 | F47: 55.04750061 | G47: 3.211435318 | H47: 21.70697594 | I47: 0.2283333391 | J47: 0.0286847949 | K47: G | L47: 0 | M47: 41.143866 | N47: 75.00010693 | O47: 36 | P47: 36 | Q47: 0 | R47: 0 | S47: 5 | T47: 32.36999893 | U47: 52.79000092 | V47: 41.12297821 | W47: 5.291243268 | X47: 37.47499847 | Y47: 62.9378891 | Z47: 0.6533898711 | AA47: 0.2252266109 | AB47: 0.05205202103 | AC47: T | AD47: 0 | AE47: 37.47499977 | AF47: 24.99997748 | AG47: 37 | AH47: 37 | AI47: 0 | AJ47: 0 | AK47: 5 | AL47: 31.13999939 | AM47: 156.6000061 | AN47: 107.183075 | AO47: 31.75069589 | AP47: 125.2350082 | AQ47: 9.443017006 | AR47: 11.35051155 | AS47: 0.2283333391 | AT47: 0.1378828585 | AU47: N | AV47: 0 | AW47: 85.7675546 | AX47: 75.00000141 | AY47: 36 | AZ47: 36 | BA47: 0 | BB47: 0 | BC47: 5 | BD47: 14.69999981 | BE47: 49.59999847 | BF47: 38.56944275 | BG47: 6.529091802 | BH47: 40.875 | BI47: 27.51345825 | BJ47: 1.401839137 | BK47: 0.2283333391 | BL47: 0.1031258404 | BM47: N | BN47: 0 | BO47: 42.97320473 | BP47: 25.00021183 | BQ47: 36 | BR47: 36 | BS47: 0 | BT47: 0 | BU47: 5 | BV47: 0.1000000015 | BW47: 47.5 | BX47: 8.256250381 | BY47: 10.89924322 | BZ47: 4.050000191 | CA47: 0.7377586961 | CB47: 11.19099045 | CC47: 0.2421840727 | CD47: 0.05286645889 | CE47: G | CF47: 10.81081081 | CG47: 10.27674941 | CH47: 25.00000155 | CI47: 36 | CJ47: 36 | CK47: 4 | CL47: 10.81081081 | CM47: 5 | DE47: 5 | DW47: 5 | EO47: 5
A48: 6 | B48: 0.4699999988 | C48: 213.3699951 | D48: 76.42556 | E48: 54.60224381 | F48: 18.21166611 | G48: 1.111927152 | H48: 68.73252106 | I48: 0.2283333391 | J48: 0.09090907872 | K48: T | L48: 0 | M48: 36.84262765 | N48: 75.00001443 | O48: 36 | P48: 36 | Q48: 0 | R48: 0 | S48: 6 | T48: 31.70000076 | U48: 62.65999985 | V48: 43.29188919 | W48: 7.926552018 | X48: 39.44000244 | Y48: 32.89770126 | Z48: 1.315954804 | AA48: 0.2252266109 | AB48: 0.0580573082 | AC48: G | AD48: 0 | AE48: 37.99063446 | AF48: 24.99999011 | AG48: 37 | AH48: 37 | AI48: 0 | AJ48: 0 | AK48: 6 | AL48: 34.13999939 | AM48: 166.5099945 | AN48: 119.9216614 | AO48: 32.58513489 | AP48: 133.4174957 | AQ48: 10.79960155 | AR48: 11.10426712 | AS48: 0.2283333391 | AT48: 0.08674392104 | AU48: N | AV48: 0 | AW48: 97.9433235 | AX48: 74.99999843 | AY48: 36 | AZ48: 36 | BA48: 0 | BB48: 0 | BC48: 6 | BD48: 6.800000191 | BE48: 49.09999847 | BF48: 37.76944351 | BG48: 9.073881592 | BH48: 45.57499695 | BI48: 10.87115288 | BJ48: 3.474281311 | BK48: 0.2283333391 | BL48: 0.0957750082 | BM48: N | BN48: 0 | BO48: 43.88967075 | BP48: 25.00004513 | BQ48: 36 | BR48: 36 | BS48: 0 | BT48: 0 | BU48: 6 | BV48: 0.200000003 | BW48: 57.20000076 | BX48: 10.87741852 | BY48: 15.4050139 | BZ48: 5.900000095 | CA48: 0.5467115045 | CB48: 19.89608574 | CC48: 0.2460592687 | CD48: 0.05741471052 | CE48: G | CF48: 13.51351351 | CG48: 12.49593011 | CH48: 25.00003859 | CI48: 36 | CJ48: 36 | CK48: 5 | CL48: 13.51351351 | CM48: 6 | DE48: 6 | DW48: 6 | EO48: 6
A49: 7 | B49: 1.940000057 | C49: 186.7799988 | D49: 66.02361298 | E49: 41.92748576 | F49: 48.15000153 | G49: 1.990789771 | H49: 33.16453171 | I49: 0.2283333391 | J49: 0.09547366202 | K49: G | L49: 0 | M49: 31.65637225 | N49: 74.99981534 | O49: 36 | P49: 36 | Q49: 0 | R49: 0 | S49: 7 | T49: 31.40999985 | U49: 58.47999954 | V49: 42.78433228 | W49: 6.704677873 | X49: 42.68916702 | Y49: 42.49013519 | Z49: 1.006923914 | AA49: 0.2252266109 | AB49: 0.01906192303 | AC49: G | AD49: 0 | AE49: 38.19365151 | AF49: 24.99994585 | AG49: 37 | AH49: 37 | AI49: 0 | AJ49: 0 | AK49: 7 | AL49: 37.68000031 | AM49: 177.3399963 | AN49: 126.3302383 | AO49: 38.03812784 | AP49: 165.7016602 | AQ49: 9.047410965 | AR49: 13.96313667 | AS49: 0.2283333391 | AT49: 0.07323230058 | AU49: T | AV49: 0 | AW49: 104.5380802 | AX49: 74.99929123 | AY49: 36 | AZ49: 36 | BA49: 0 | BB49: 0 | BC49: 7 | BD49: 17 | BE49: 53.90000153 | BF49: 39.79444122 | BG49: 7.955013868 | BH49: 44.67499924 | BI49: 20.08776665 | BJ49: 1.981028676 | BK49: 0.2283333391 | BL49: 0.1435507238 | BM49: N | BN49: 0 | BO49: 45.16002674 | BP49: 24.99995926 | BQ49: 36 | BR49: 36 | BS49: 0 | BT49: 0 | BU49: 7 | BV49: 0.1000000015 | BW49: 40.5 | BX49: 7.590624809 | BY49: 12.38537964 | BZ49: 3.46666646 | CA49: 0.4841960371 | CB49: 15.67675972 | CC49: 0.2421840727 | CD49: 0.08957207203 | CE49: G | CF49: 10.81081081 | CG49: 8.777234759 | CH49: 25.00005386 | CI49: 36 | CJ49: 36 | CK49: 4 | CL49: 10.81081081 | CM49: 7 | DE49: 7 | DW49: 7 | EO49: 7
A50: 8 | B50: 4.46999979 | C50: 207.1600037 | D50: 83.63228607 | E50: 49.99871336 | F50: 55.14249802 | G50: 4.095986366 | H50: 20.41810608 | I50: 0.2315722704 | J50: 0.07957220078 | K50: N | L50: 0 | M50: 49.90866513 | N50: 75.0000008 | O50: 36 | P50: 36 | Q50: 0 | R50: 0 | S50: 8 | T50: 32.91999817 | U50: 51.90000153 | V50: 41.10054016 | W50: 5.194564421 | X50: 40.82833099 | Y50: 64.06075287 | Z50: 0.6415868998 | AA50: 0.2252266109 | AB50: 0.07915310562 | AC50: G | AD50: 0 | AE50: 37.53039684 | AF50: 25.00000123 | AG50: 37 | AH50: 37 | AI50: 0 | AJ50: 0 | AK50: 8 | AL50: 55.45000076 | AM50: 181.8999939 | AN50: 131.8780212 | AO50: 36.92436612 | AP50: 171.3624878 | AQ50: 10.87285519 | AR50: 12.12910652 | AS50: 0.2283333391 | AT50: 0.1010100991 | AU50: T | AV50: 0 | AW50: 115.9833564 | AX50: 74.99997374 | AY50: 36 | AZ50: 36 | BA50: 0 | BB50: 0 | BC50: 8 | BD50: 17.29999924 | BE50: 49 | BF50: 40.21666718 | BG50: 6.351626162 | BH50: 35.79166412 | BI50: 33.03554153 | BJ50: 1.217375755 | BK50: 0.2283333391 | BL50: 0.0608522296 | BM50: N | BN50: 0 | BO50: 44.50077413 | BP50: 24.99999893 | BQ50: 36 | BR50: 36 | BS50: 0 | BT50: 0 | BU50: 8 | BV50: 0.1000000015 | BW50: 34.79999924 | BX50: 3.306451321 | BY50: 6.736909677 | BZ50: 3.569999933 | CA50: 0.5564800501 | CB50: 5.941724777 | CC50: 0.2460592687 | CD50: 0.02957457304 | CE50: G | CF50: 13.51351351 | CG50: 3.813391816 | CH50: 25.00002517 | CI50: 36 | CJ50: 36 | CK50: 5 | CL50: 13.51351351 | CM50: 8 | DE50: 8 | DW50: 8 | EO50: 8
A51: 9 | B51: 13.02000046 | C51: 206.25 | D51: 98.74000549 | E51: 46.76212712 | F51: 61.3275032 | G51: 4.220124722 | H51: 23.39741325 | I51: 0.2283333391 | J51: 0.07540088892 | K51: N | L51: 0 | M51: 67.19887086 | N51: 75.00038 | O51: 36 | P51: 36 | Q51: 0 | R51: 0 | S51: 9 | T51: 30.73999977 | U51: 46.08000183 | V51: 37.76514053 | W51: 4.021558838 | X51: 37.13166809 | Y51: 91.01728821 | Z51: 0.4149227142 | AA51: 0.2252266109 | AB51: 0.05845874548 | AC51: N | AD51: 0 | AE51: 35.0525334 | AF51: 25.0005848 | AG51: 37 | AH51: 37 | AI51: 0 | AJ51: 0 | AK51: 9 | AL51: 71.91000366 | AM51: 186.8500061 | AN51: 136.7733459 | AO51: 33.96873563 | AP51: 177.2716827 | AQ51: 14.72083664 | AR51: 9.291139603 | AS51: 0.2283333391 | AT51: 0.07096737623 | AU51: N | AV51: 0 | AW51: 113.861783 | AX51: 74.99999902 | AY51: 36 | AZ51: 36 | BA51: 0 | BB51: 0 | BC51: 9 | BD51: 31.79999924 | BE51: 50.09999847 | BF51: 41.3694458 | BG51: 4.434012534 | BH51: 42.47499847 | BI51: 89.15053558 | BJ51: 0.464040339 | BK51: 0.2283333391 | BL51: 0.02958869934 | BM51: N | BN51: 0 | BO51: 44.36014429 | BP51: 24.99998223 | BQ51: 36 | BR51: 36 | BS51: 0 | BT51: 0 | BU51: 9 | BV51: 0.1000000015 | BW51: 8.199999809 | BX51: 1.386363864 | BY51: 2.174811484 | BZ51: 0.9100000262 | CA51: 0.7063532472 | CB51: 1.962706208 | CC51: 0.2920849919 | CD51: 0.09800571203 | CE51: G | CF51: 37.83783784 | CG51: 1.141065795 | CH51: 25.00017625 | CI51: 36 | CJ51: 36 | CK51: 14 | CL51: 37.83783784 | CM51: 9 | DE51: 9 | DW51: 9 | EO51: 9
A52: 10 | B52: 24.35000038 | C52: 258.2099915 | D52: 92.10973358 | E52: 57.75657134 | F52: 43.83833313 | G52: 3.059519529 | H52: 30.10594749 | I52: 0.2283333391 | J52: 0.06583625078 | K52: E | L52: 0 | M52: 26.49939551 | N52: 74.99912351 | O52: 36 | P52: 36 | Q52: 0 | R52: 0 | S52: 10 | T52: 31.40999985 | U52: 46.54000092 | V52: 39.26621628 | W52: 3.65387577 | X52: 42.75749969 | Y52: 115.5431747 | Z52: 0.3398402035 | AA52: 0.2252266109 | AB52: 0.1126126051 | AC52: U | AD52: 0 | AE52: 35.19250011 | AF52: 24.99998189 | AG52: 37 | AH52: 37 | AI52: 0 | AJ52: 0 | AK52: 10 | AL52: 65.08000183 | AM52: 188.1399994 | AN52: 133.571701 | AO52: 35.88917947 | AP52: 157.375 | AQ52: 12.83545017 | AR52: 10.40646839 | AS52: 0.2283333391 | AT52: 0.1111111045 | AU52: T | AV52: 0 | AW52: 118.3666224 | AX52: 74.99992628 | AY52: 36 | AZ52: 36 | BA52: 0 | BB52: 0 | BC52: 10 | BD52: 29.29999924 | BE52: 51.59999847 | BF52: 41.41110992 | BG52: 4.940548113 | BH52: 42.30833054 | BI52: 69.44837189 | BJ52: 0.5962862372 | BK52: 0.2283333391 | BL52: 0.053211689 | BM52: G | BN52: 0 | BO52: 44.64578997 | BP52: 24.99999899 | BQ52: 36 | BR52: 36 | BS52: 0 | BT52: 0 | BU52: 10 | BV52: 0.1000000015 | BW52: 11.10000038 | BX52: 2.023999691 | BY52: 2.839202095 | BZ52: 1.200000048 | CA52: 0.686204493 | CB52: 2.949557543 | CC52: 0.273999989 | CD52: 0.03378814459 | CE52: G | CF52: 29.72972973 | CG52: 1.931157572 | CH52: 25.00004277 | CI52: 36 | CJ52: 36 | CK52: 11 | CL52: 29.72972973 | CM52: 10 | DE52: 10 | DW52: 10 | EO52: 10
A53: 11 | B53: 14.68000031 | C53: 217.3200073 | D53: 81.41861725 | E53: 53.47121332 | F53: 31.56666756 | G53: 2.30142808 | H53: 35.37743378 | I53: 0.2283333391 | J53: 0.06689339876 | K53: E | L53: 0 | M53: 23.42251932 | N53: 75.00014483 | O53: 36 | P53: 36 | Q53: 0 | R53: 0 | S53: 11 | T53: 30.94000053 | U53: 45.81000137 | V53: 38.81674957 | W53: 4.619964745 | X53: 42.09250259 | Y53: 70.32910156 | Z53: 0.5519301295 | AA53: 0.2252266109 | AB53: 0.09909898043 | AC53: U | AD53: 0 | AE53: 34.65750074 | AF53: 24.99999783 | AG53: 37 | AH53: 37 | AI53: 0 | AJ53: 0 | AK53: 11 | AL53: 57.09000015 | AM53: 184.9900055 | AN53: 130.8947144 | AO53: 38.10042433 | AP53: 174.331665 | AQ53: 10.71141338 | AR53: 12.22011566 | AS53: 0.2283333391 | AT53: 0.09358018637 | AU53: N | AV53: 0 | AW53: 105.1963706 | AX53: 74.99999842 | AY53: 36 | AZ53: 36 | BA53: 0 | BB53: 0 | BC53: 11 | BD53: 33.5 | BE53: 50.90000153 | BF53: 41.28889465 | BG53: 4.366874124 | BH53: 40.75 | BI53: 90.98867798 | BJ53: 0.4537805617 | BK53: 0.2283333391 | BL53: 0.05506694317 | BM53: N | BN53: 0 | BO53: 44.23430468 | BP53: 25.00001319 | BQ53: 36 | BR53: 36 | BS53: 0 | BT53: 0 | BU53: 11 | BV53: 0.1000000015 | BW53: 7.599999905 | BX53: 2.058333158 | BY53: 2.43612593 | BZ53: 0.8500000238 | CA53: 0.740945518 | CB53: 2.777981758 | CC53: 0.2796500921 | CD53: 0.055516541 | CE53: E | CF53: 32.43243243 | CG53: 2.046499437 | CH53: 25.00003626 | CI53: 36 | CJ53: 36 | CK53: 12 | CL53: 32.43243243 | CM53: 11 | DE53: 11 | DW53: 11 | EO53: 11
A54: 12 | B54: 10.38000011 | C54: 248.5599976 | D54: 83.99581909 | E54: 54.62211046 | F54: 69.92500305 | G54: 2.182355404 | H54: 38.4886055 | I54: 0.2283333391 | J54: 0.04435580969 | K54: G | L54: 0 | M54: 42.20142033 | N54: 74.99968616 | O54: 36 | P54: 36 | Q54: 0 | R54: 0 | S54: 12 | T54: 29.30999947 | U54: 50.38999939 | V54: 38.49486542 | W54: 5.516230131 | X54: 38.0933342 | Y54: 51.22701645 | Z54: 0.7514563203 | AA54: 0.2252266109 | AB54: 0.08644229174 | AC54: N | AD54: 0 | AE54: 34.77424637 | AF54: 24.99910529 | AG54: 37 | AH54: 37 | AI54: 0 | AJ54: 0 | AK54: 12 | AL54: 61.86999893 | AM54: 181.3999939 | AN54: 131.3669281 | AO54: 38.3559714 | AP54: 171.4391632 | AQ54: 10.53226471 | AR54: 12.47280884 | AS54: 0.2283333391 | AT54: 0.1199491024 | AU54: G | AV54: 0 | AW54: 102.2900118 | AX54: 74.99996777 | AY54: 36 | AZ54: 36 | BA54: 0 | BB54: 0 | BC54: 12 | BD54: 29.60000038 | BE54: 53.59999847 | BF54: 39.8972168 | BG54: 4.689227384 | BH54: 43.59999847 | BI54: 73.73181152 | BJ54: 0.5411126614 | BK54: 0.2283333391 | BL54: 0.05894809961 | BM54: N | BN54: 0 | BO54: 43.06006722 | BP54: 24.99990096 | BQ54: 36 | BR54: 36 | BS54: 0 | BT54: 0 | BU54: 12 | BV54: 0.1000000015 | BW54: 18.29999924 | BX54: 2.880952358 | BY54: 4.942531678 | BZ54: 1.919999957 | CA54: 0.4658030272 | CB54: 6.184915543 | CC54: 0.2989585102 | CD54: 0.04189604521 | CE54: G | CF54: 40.54054054 | CG54: 1.784945955 | CH54: 25.00002113 | CI54: 36 | CJ54: 36 | CK54: 15 | CL54: 40.54054054 | CM54: 12 | DE54: 12 | DW54: 12 | EO54: 12
A55: 13 | B55: 5.820000172 | C55: 212.4199982 | D55: 67.91000366 | E55: 49.59473209 | F55: 23.03666687 | G55: 1.838118434 | H55: 36.94538879 | I55: 0.2283333391 | J55: 0.06069386005 | K55: E | L55: 0 | M55: 19.53665432 | N55: 74.99981918 | O55: 36 | P55: 36 | Q55: 0 | R55: 0 | S55: 13 | T55: 30.70999908 | U55: 48.66999817 | V55: 38.89891815 | W55: 3.99293741 | X55: 41.18666458 | Y55: 96.79962158 | Z55: 0.4018498957 | AA55: 0.2252266109 | AB55: 0.08338773251 | AC55: N | AD55: 0 | AE55: 36.2057298 | AF55: 25.00045405 | AG55: 37 | AH55: 37 | AI55: 0 | AJ55: 0 | AK55: 13 | AL55: 58.15999985 | AM55: 180.4700012 | AN55: 124.0447311 | AO55: 37.83215689 | AP55: 149.8925018 | AQ55: 9.658680916 | AR55: 12.84282303 | AS55: 0.2283333391 | AT55: 0.1275420785 | AU55: N | AV55: 0 | AW55: 98.52733247 | AX55: 74.99999716 | AY55: 36 | AZ55: 36 | BA55: 0 | BB55: 0 | BC55: 13 | BD55: 28.70000076 | BE55: 48.79999924 | BF55: 41.41111755 | BG55: 5.312291938 | BH55: 47.125 | BI55: 58.34236145 | BJ55: 0.7097949982 | BK55: 0.2283333391 | BL55: 0.06313145161 | BM55: T | BN55: 0 | BO55: 12.03395519 | BP55: 24.99993718 | BQ55: 36 | BR55: 36 | BS55: 0 | BT55: 0 | BU55: 13 | BV55: 0.1000000015 | BW55: 23.89999962 | BX55: 4.090475559 | BY55: 6.322096074 | BZ55: 2.479999781 | CA55: 0.5509857535 | CB55: 7.423922539 | CC55: 0.2989585102 | CD55: 0.03855973482 | CE55: G | CF55: 40.54054054 | CG55: 2.811418087 | CH55: 25.00047155 | CI55: 36 | CJ55: 36 | CK55: 15 | CL55: 40.54054054 | CM55: 13 | DE55: 13 | DW55: 13 | EO55: 13
A56: 14 | B56: 0.3000000119 | C56: 155.5700073 | D56: 43.6166687 | E56: 38.7426231 | F56: 13.23916721 | G56: 1.069635153 | H56: 40.77714539 | I56: 0.2283333391 | J56: 0.02822953463 | K56: E | L56: 0 | M56: 12.54748641 | N56: 75.00042514 | O56: 36 | P56: 36 | Q56: 0 | R56: 0 | S56: 14 | T56: 32.18000031 | U56: 49.36000061 | V56: 40.21054459 | W56: 4.853822535 | X56: 45.06500244 | Y56: 70.14355469 | Z56: 0.5732607245 | AA56: 0.2252266109 | AB56: 0.09259653091 | AC56: G | AD56: 0 | AE56: 36.87655915 | AF56: 24.99998735 | AG56: 37 | AH56: 37 | AI56: 0 | AJ56: 0 | AK56: 14 | AL56: 43.00999832 | AM56: 173.7899933 | AN56: 115.2572174 | AO56: 35.89237826 | AP56: 141.094986 | AQ56: 9.028348923 | AR56: 12.76614571 | AS56: 0.2283333391 | AT56: 0.06127274036 | AU56: N | AV56: 0 | AW56: 91.04818083 | AX56: 74.99999586 | AY56: 36 | AZ56: 36 | BA56: 0 | BB56: 0 | BC56: 14 | BD56: 18.10000038 | BE56: 48.5 | BF56: 38.37221909 | BG56: 7.79243664 | BH56: 40.90000153 | BI56: 19.88000298 | BJ56: 1.930191875 | BK56: 0.2283333391 | BL56: 0.1314167678 | BM56: N | BN56: 0 | BO56: 43.62815282 | BP56: 24.99993846 | BQ56: 36 | BR56: 36 | BS56: 0 | BT56: 0 | BU56: 14 | BV56: 0.1000000015 | BW56: 34.20000076 | BX56: 8.845832825 | BY56: 11.13580038 | BZ56: 3.50999999 | CA56: 0.5447425842 | CB56: 16.23855591 | CC56: 0.2796500921 | CD56: 0.08336830139 | CE56: G | CF56: 32.43243243 | CG56: 7.390625912 | CH56: 25.00001312 | CI56: 36 | CJ56: 36 | CK56: 12 | CL56: 32.43243243 | CM56: 14 | DE56: 14 | DW56: 14 | EO56: 14
A57: 15 | B57: 0.8799999952 | C57: 120.7200012 | D57: 29.39916229 | E57: 28.26674244 | F57: 10.86666679 | G57: 1.263354659 | H57: 23.2707119 | I57: 0.2283333391 | J57: 0.03106504679 | K57: E | L57: 0 | M57: 8.457610421 | N57: 75.00000387 | O57: 36 | P57: 36 | Q57: 0 | R57: 0 | S57: 15 | T57: 29.73999977 | U57: 49.02999878 | V57: 40.67972946 | W57: 4.498350053 | X57: 40.99250031 | Y57: 81.13713074 | Z57: 0.5013700724 | AA57: 0.2252266109 | AB57: 0.07409644127 | AC57: N | AD57: 0 | AE57: 37.64559724 | AF57: 24.99998604 | AG57: 37 | AH57: 37 | AI57: 0 | AJ57: 0 | AK57: 15 | AL57: 40.63000107 | AM57: 158.9199982 | AN57: 107.8977814 | AO57: 34.1712695 | AP57: 149.0625 | AQ57: 9.021494865 | AR57: 11.96007824 | AS57: 0.2283333391 | AT57: 0.08333340287 | AU57: U | AV57: 0 | AW57: 70.20250034 | AX57: 75 | AY57: 36 | AZ57: 36 | BA57: 0 | BB57: 0 | BC57: 15 | BD57: 15.39999962 | BE57: 46.90000153 | BF57: 36.65000534 | BG57: 8.459432396 | BH57: 39.02500153 | BI57: 14.49503803 | BJ57: 2.52845192 | BK57: 0.2283333391 | BL57: 0.2006116509 | BM57: N | BN57: 0 | BO57: 42.35573395 | BP57: 25.00026984 | BQ57: 36 | BR57: 36 | BS57: 0 | BT57: 0 | BU57: 15 | BV57: 0.1000000015 | BW57: 38.59999847 | BX57: 10.23703766 | BY57: 11.96006615 | BZ57: 3.949999809 | CA57: 0.5911208391 | CB57: 17.31801224 | CC57: 0.2636566162 | CD57: 0.07288658619 | CE57: G | CF57: 24.32432432 | CG57: 10.24805926 | CH57: 25.00004716 | CI57: 36 | CJ57: 36 | CK57: 9 | CL57: 24.32432432 | CM57: 15 | DE57: 15 | DW57: 15 | EO57: 15
A58: 16 | B58: 0.2199999988 | C58: 68.66999817 | D58: 17.89057159 | E58: 14.82612029 | F58: 17.33249855 | G58: 1.049755931 | H58: 17.04260063 | I58: 0.2315722704 | J58: 0.1272437274 | K58: E | L58: 2.702702703 | M58: 4.656619314 | N58: 74.99997522 | O58: 36 | P58: 36 | Q58: 1 | R58: 2.702702703 | S58: 16 | T58: 34.54000092 | U58: 49.84000015 | V58: 40.52810287 | W58: 4.127438374 | X58: 38.36500168 | Y58: 103.1975403 | Z58: 0.3927235305 | AA58: 0.2252266109 | AB58: 0.06237053871 | AC58: G | AD58: 0 | AE58: 37.77061795 | AF58: 24.99985205 | AG58: 37 | AH58: 37 | AI58: 0 | AJ58: 0 | AK58: 16 | AL58: 34.20000076 | AM58: 149.9199982 | AN58: 100.0875092 | AO58: 29.84216803 | AP58: 120.9900055 | AQ58: 9.752684593 | AR58: 10.26255989 | AS58: 0.2283333391 | AT58: 0.08333337307 | AU58: T | AV58: 0 | AW58: 84.30825872 | AX58: 74.99997277 | AY58: 36 | AZ58: 36 | BA58: 0 | BB58: 0 | BC58: 16 | BD58: 8.699999809 | BE58: 45.20000076 | BF58: 32.4944458 | BG58: 10.96719706 | BH58: 42.15833282 | BI58: 6.316026211 | BJ58: 5.144761086 | BK58: 0.2283333391 | BL58: 0.1512278318 | BM58: N | BN58: 0 | BO58: 39.89172181 | BP58: 24.99995941 | BQ58: 36 | BR58: 36 | BS58: 0 | BT58: 0 | BU58: 16 | BV58: 0.200000003 | BW58: 44.90000153 | BX58: 14.38064575 | BY58: 13.99319947 | BZ58: 4.670000076 | CA58: 0.674143374 | CB58: 21.3317318 | CC58: 0.2460592687 | CD58: 0.05653375387 | CE58: E | CF58: 13.51351351 | CG58: 17.84798594 | CH58: 25.00001934 | CI58: 36 | CJ58: 36 | CK58: 5 | CL58: 13.51351351 | CM58: 16 | DE58: 16 | DW58: 16 | EO58: 16
A59: 17 | B59: 0.7900000215 | C59: 87.62999725 | D59: 17.09685516 | E59: 17.04871793 | F59: 8.026666641 | G59: 1.22986722 | H59: 13.90138245 | I59: 0.2315722704 | J59: 0.02977532148 | K59: G | L59: 2.702702703 | M59: 5.461028676 | N59: 75.00018831 | O59: 36 | P59: 36 | Q59: 1 | R59: 2.702702703 | S59: 17 | T59: 34.75999832 | U59: 48.84000015 | V59: 41.05298233 | W59: 3.826692274 | X59: 38.27999878 | Y59: 121.0833359 | Z59: 0.3390473425 | AA59: 0.2252266109 | AB59: 0.08935174346 | AC59: G | AD59: 0 | AE59: 38.47878746 | AF59: 24.99998326 | AG59: 37 | AH59: 37 | AI59: 0 | AJ59: 0 | AK59: 17 | AL59: 32.00999832 | AM59: 146.4499969 | AN59: 95.85249329 | AO59: 28.19411105 | AP59: 117.8399963 | AQ59: 9.874573708 | AR59: 9.707000732 | AS59: 0.2283333391 | AT59: 0.04629631341 | AU59: T | AV59: 0 | AW59: 84.30825872 | AX59: 72.15433847 | AY59: 36 | AZ59: 36 | BA59: 0 | BB59: 0 | BC59: 17 | BD59: 6.5 | BE59: 45.5 | BF59: 28.26111603 | BG59: 13.31100986 | BH59: 42.25 | BI59: 3.529901743 | BJ59: 8.006204605 | BK59: 0.2283333391 | BL59: 0.1328646541 | BM59: N | BN59: 0 | BO59: 37.23925429 | BP59: 25.00000347 | BQ59: 36 | BR59: 36 | BS59: 0 | BT59: 0 | BU59: 17 | BV59: 0.1000000015 | BW59: 43.29999924 | BX59: 18.30606079 | BY59: 15.45541763 | BZ59: 3.699999809 | CA59: 0.649463594 | CB59: 28.18643188 | CC59: 0.2384863943 | CD59: 0.1456317902 | CE59: E | CF59: 8.108108108 | CG59: 23.82899892 | CH59: 25.0009249 | CI59: 36 | CJ59: 36 | CK59: 3 | CL59: 8.108108108 | CM59: 17 | DE59: 17 | DW59: 17 | EO59: 17
A60: 18 | B60: 0.2099999934 | C60: 43.93000031 | D60: 11.22437668 | E60: 10.8054755 | F60: 3.853333473 | G60: 1.044515729 | H60: 10.74600983 | I60: 0.2421840727 | J60: 0.04958927631 | K60: E | L60: 10.81081081 | M60: 1.944865583 | N60: 75.00000992 | O60: 36 | P60: 36 | Q60: 4 | R60: 10.81081081 | S60: 18 | T60: 35.63999939 | U60: 54.59999847 | V60: 42.15351486 | W60: 3.966408106 | X60: 40.37999725 | Y60: 121.4107132 | Z60: 0.3471976519 | AA60: 0.2252266109 | AB60: 0.04867517948 | AC60: G | AD60: 0 | AE60: 39.51395323 | AF60: 25.00005325 | AG60: 37 | AH60: 37 | AI60: 0 | AJ60: 0 | AK60: 18 | AL60: 30.26000023 | AM60: 141.8200073 | AN60: 91.30249786 | AO60: 26.15336916 | AP60: 113.9300079 | AQ60: 10.37032413 | AR60: 8.804208755 | AS60: 0.2283333391 | AT60: 0.08333337307 | AU60: T | AV60: 0 | AW60: 84.30825872 | AX60: 68.70427134 | AY60: 36 | AZ60: 36 | BA60: 0 | BB60: 0 | BC60: 18 | BD60: 3.099999905 | BE60: 42.79999924 | BF60: 22.06666565 | BG60: 13.56293315 | BH60: 6.408333302 | BI60: 2.062261581 | BJ60: 10.70022678 | BK60: 0.2283333391 | BL60: 0.1108780801 | BM60: N | BN60: 0 | BO60: 31.21474337 | BP60: 24.99995705 | BQ60: 36 | BR60: 36 | BS60: 0 | BT60: 0 | BU60: 18 | BV60: 0.1000000015 | BW60: 46.59999847 | BX60: 22.36110687 | BY60: 15.16031125 | BZ60: 3.974999666 | CA60: 0.9502477646 | CB60: 23.53186989 | CC60: 0.2283333391 | CD60: 0.08333334327 | CE60: U | CF60: 0 | CG60: 34.97499886 | CH60: 25 | CI60: 36 | CJ60: 36 | CK60: 0 | CL60: 0 | CM60: 18 | DE60: 18 | DW60: 18 | EO60: 18
A61: 19 | B61: 0.1299999952 | C61: 50.81000137 | D61: 13.2420578 | E61: 13.49471716 | F61: 4.353333473 | G61: 0.7064919472 | H61: 18.74339485 | I61: 0.2349530607 | J61: 0.04673272371 | K61: G | L61: 5.405405405 | M61: 1.871330181 | N61: 74.99995606 | O61: 36 | P61: 36 | Q61: 2 | R61: 5.405405405 | S61: 19 | T61: 35.49000168 | U61: 54.04999924 | V61: 42.86080551 | W61: 4.364670248 | X61: 40.13000107 | Y61: 102.6677856 | Z61: 0.4174708426 | AA61: 0.2252266109 | AB61: 0.07907921076 | AC61: T | AD61: 0 | AE61: 40.13000698 | AF61: 25.0000084 | AG61: 37 | AH61: 37 | AI61: 0 | AJ61: 0 | AK61: 19 | AL61: 28.71999931 | AM61: 131.1699982 | AN61: 88.55056763 | AO61: 24.49680977 | AP61: 105.5575027 | AQ61: 10.90799332 | AR61: 8.117952347 | AS61: 0.2283333391 | AT61: 0.06481486559 | AU61: T | AV61: 0 | AW61: 84.30825872 | AX61: 60.74626849 | AY61: 36 | AZ61: 36 | BA61: 0 | BB61: 0 | BC61: 19 | BD61: 2.5 | BE61: 45.40000153 | BF61: 17.58611107 | BG61: 12.74311433 | BH61: 6.074999809 | BI61: 1.705939174 | BJ61: 10.30875587 | BK61: 0.2283333391 | BL61: 0.06064078212 | BM61: G | BN61: 0 | BO61: 23.9151444 | BP61: 24.99982485 | BQ61: 36 | BR61: 36 | BS61: 0 | BT61: 0 | BU61: 19 | BV61: 0.8000000119 | BW61: 46.29999924 | BX61: 28.35293961 | BY61: 12.13949819 | BZ61: 34.92499924 | CA61: 2.841812849 | CB61: 9.977061272 | CC61: 0.2349530607 | CD61: 0.08740305901 | CE61: N | CF61: 5.405405405 | CG61: 36.00279191 | CH61: 25.00080738 | CI61: 36 | CJ61: 36 | CK61: 2 | CL61: 5.405405405 | CM61: 19 | DE61: 19 | DW61: 19 | EO61: 19
A62: 20 | B62: 0.02999999933 | C62: 32.88999939 | D62: 7.365428925 | E62: 9.160048807 | F62: 2.768333197 | G62: 0.5666598678 | H62: 12.99797153 | I62: 0.2315722704 | J62: 0.03975754976 | K62: G | L62: 2.702702703 | M62: 0.8182557681 | N62: 75.00000151 | O62: 36 | P62: 36 | Q62: 1 | R62: 2.702702703 | S62: 20 | T62: 36.97999954 | U62: 54.06000137 | V62: 45.2937851 | W62: 4.179994604 | X62: 46.94333267 | Y62: 120.2644348 | Z62: 0.3766182959 | AA62: 0.2252266109 | AB62: 0.04185348749 | AC62: N | AD62: 0 | AE62: 42.47443591 | AF62: 25.00001023 | AG62: 37 | AH62: 37 | AI62: 0 | AJ62: 0 | AK62: 20 | AL62: 27.35000038 | AM62: 137.9499969 | AN62: 86.19750977 | AO62: 24.78655341 | AP62: 110.2999954 | AQ62: 10.18972206 | AR62: 8.459259987 | AS62: 0.2283333391 | AT62: 0.08333337307 | AU62: T | AV62: 0 | AW62: 84.30825872 | AX62: 64.63758438 | AY62: 36 | AZ62: 36 | BA62: 0 | BB62: 0 | BC62: 20 | BD62: 2 | BE62: 44.59999847 | BF62: 12.50555706 | BG62: 11.50900115 | BH62: 5.550000191 | BI62: 1.329664707 | BJ62: 9.405045509 | BK62: 0.2283333391 | BL62: 0.06889861822 | BM62: E | BN62: 0 | BO62: 17.33638532 | BP62: 24.99999584 | BQ62: 36 | BR62: 36 | BS62: 0 | BT62: 0 | BU62: 20 | BV62: 1.299999952 | BW62: 44.59999847 | BX62: 31.56285286 | BY62: 9.450430191 | BZ62: 33.77499771 | CA62: 5.256769657 | CB62: 6.004229546 | CC62: 0.2315722704 | CD62: 0.1200713813 | CE62: N | CF62: 2.702702703 | CG62: 37.73176635 | CH62: 25.00090818 | CI62: 36 | CJ62: 36 | CK62: 1 | CL62: 2.702702703 | CM62: 20 | DE62: 20 | DW62: 20 | EO62: 20
A63: 21 | B63: 0.02999999933 | C63: 21.52000046 | D63: 5.948275566 | E63: 6.172740866 | F63: 2.178999901 | G63: 0.6810193062 | H63: 8.734371185 | I63: 0.2544026077 | J63: 0.06227946281 | K63: E | L63: 16.21621622 | M63: 0.658779554 | N63: 75.00000101 | O63: 36 | P63: 36 | Q63: 6 | R63: 16.21621622 | S63: 21 | T63: 38.90000153 | U63: 56.27000046 | V63: 47.41134644 | W63: 3.861800447 | X63: 49.03250122 | Y63: 156.2842712 | Z63: 0.303366065 | AA63: 0.2252266109 | AB63: 0.01898443699 | AC63: G | AD63: 0 | AE63: 44.80130852 | AF63: 24.99999529 | AG63: 37 | AH63: 37 | AI63: 0 | AJ63: 0 | AK63: 21 | AL63: 26.19000053 | AM63: 117.6100006 | AN63: 83.10778046 | AO63: 23.38454565 | AP63: 109.9916687 | AQ63: 10.31172848 | AR63: 8.059538841 | AS63: 0.2283333391 | AT63: 0.06060606241 | AU63: T | AV63: 0 | AW63: 69.95401717 | AX63: 74.99997358 | AY63: 36 | AZ63: 36 | BA63: 0 | BB63: 0 | BC63: 21 | BD63: 1.799999952 | BE63: 40.29999924 | BF63: 7.519445419 | BG63: 8.189255854 | BH63: 5.008333206 | BI63: 1.487434626 | BJ63: 5.05531168 | BK63: 0.2283333391 | BL63: 0.0726544857 | BM63: G | BN63: 0 | BO63: 10.30179639 | BP63: 24.99996888 | BQ63: 36 | BR63: 36 | BS63: 0 | BT63: 0 | BU63: 21 | BV63: 4.599999905 | BW63: 46.90000153 | BX63: 34.49721527 | BY63: 8.752059694 | BZ63: 29.27500153 | CA63: 9.234492302 | CB63: 3.735691547 | CC63: 0.2283333391 | CD63: 0.07319688797 | CE63: N | CF63: 0 | CG63: 40.40038946 | CH63: 25.00000133 | CI63: 36 | CJ63: 36 | CK63: 0 | CL63: 0 | CM63: 21 | DE63: 21 | DW63: 21 | EO63: 21
A64: 22 | B64: 0.009999999776 | C64: 4.28000021 | D64: 1.178888917 | E64: 1.370795802 | F64: 0.4370000064 | G64: 0.5700310469 | H64: 2.068113565 | I64: 0.322912097 | J64: 0.05115830898 | K64: G | L64: 48.64864865 | M64: 0 | N64: 51.35135135 | O64: 36 | P64: 36 | Q64: 18 | R64: 48.64864865 | S64: 22 | T64: 43.65000153 | U64: 61.04000092 | V64: 51.56027222 | W64: 3.786330538 | X64: 53.79416656 | Y64: 191.2214508 | Z64: 0.2696364522 | AA64: 0.2252266109 | AB64: 0.03337270021 | AC64: G | AD64: 0 | AE64: 48.99878786 | AF64: 24.9997972 | AG64: 37 | AH64: 37 | AI64: 0 | AJ64: 0 | AK64: 22 | AL64: 25.05999947 | AM64: 107.8499985 | AN64: 80.50082397 | AO64: 22.8525347 | AP64: 100.9508286 | AQ64: 10.04682732 | AR64: 8.012561798 | AS64: 0.2283333391 | AT64: 0.1633973718 | AU64: N | AV64: 0 | AW64: 65.08702509 | AX64: 74.99999785 | AY64: 36 | AZ64: 36 | BA64: 0 | BB64: 0 | BC64: 22 | BD64: 1.399999976 | BE64: 20.70000076 | BF64: 4.241666794 | BG64: 4.156604035 | BH64: 3.008333206 | BI64: 2.195040703 | BJ64: 1.932386398 | BK64: 0.2283333391 | BL64: 0.1384679079 | BM64: E | BN64: 0 | BO64: 5.880353721 | BP64: 24.99908668 | BQ64: 36 | BR64: 36 | BS64: 0 | BT64: 0 | BU64: 22 | BV64: 25.20000076 | BW64: 46.5 | BX64: 36.69999695 | BY64: 6.246416209 | BZ64: 34.07500076 | CA64: 34.88735199 | CB64: 1.05195713 | CC64: 0.2283333391 | CD64: 0.06587272882 | CE64: G | CF64: 0 | CG64: 40.67835911 | CH64: 25.00001632 | CI64: 36 | CJ64: 36 | CK64: 0 | CL64: 0 | CM64: 22 | DE64: 22 | DW64: 22 | EO64: 22
A65: 23 | B65: 0.01999999955 | C65: 11.23999977 | D65: 2.061600208 | E65: 3.545855405 | F65: 1.14199996 | G65: 0.4778814912 | H65: 4.314040661 | I65: 0.273999989 | J65: 0.09159332514 | K65: G | L65: 29.72972973 | M65: 0 | N65: 70.27027027 | O65: 36 | P65: 36 | Q65: 11 | R65: 29.72972973 | S65: 23 | T65: 43.49000168 | U65: 63.22000122 | V65: 54.12486649 | W65: 3.681995098 | X65: 51.7108345 | Y65: 218.2767029 | Z65: 0.2479644716 | AA65: 0.2252266109 | AB65: 0.07858543098 | AC65: G | AD65: 0 | AE65: 51.61091486 | AF65: 24.99998053 | AG65: 37 | AH65: 37 | AI65: 0 | AJ65: 0 | AK65: 23 | AL65: 24.04999924 | AM65: 104.6399994 | AN65: 78.40471649 | AO65: 22.71849881 | AP65: 97.92416382 | AQ65: 9.624121666 | AR65: 8.146688461 | AS65: 0.2283333391 | AT65: 0.163397193 | AU65: N | AV65: 0 | AW65: 63.08132341 | AX65: 74.99999789 | AY65: 36 | AZ65: 36 | BA65: 0 | BB65: 0 | BC65: 23 | BD65: 1.399999976 | BE65: 13.80000019 | BF65: 3.814285755 | BG65: 2.893154378 | BH65: 2.433333397 | BI65: 2.811581135 | BJ65: 1.356633663 | BK65: 0.2315722704 | BL65: 0.09661054611 | BM65: E | BN65: 0 | BO65: 5.287727268 | BP65: 24.99997094 | BQ65: 36 | BR65: 36 | BS65: 0 | BT65: 0 | BU65: 23 | BV65: 24.70000076 | BW65: 46 | BX65: 35.3583374 | BY65: 5.631055497 | BZ65: 33.57500076 | CA65: 40.80620575 | CB65: 0.8664941192 | CC65: 0.2283333391 | CD65: 0.06311285496 | CE65: G | CF65: 0 | CG65: 38.91796976 | CH65: 25.00001521 | CI65: 36 | CJ65: 36 | CK65: 0 | CL65: 0 | CM65: 23 | DE65: 23 | DW65: 23 | EO65: 23
A66: 24 | B66: 0.03999999911 | C66: 5.210000038 | D66: 1.186841965 | E66: 1.346939117 | F66: 0.557000041 | G66: 0.6607494354 | H66: 1.796205759 | I66: 0.3142995536 | J66: 0.04884845018 | K66: E | L66: 45.94594595 | M66: 0 | N66: 54.05405405 | O66: 36 | P66: 36 | Q66: 17 | R66: 45.94594595 | S66: 24 | T66: 50.24000168 | U66: 63.56000137 | V66: 56.58946228 | W66: 3.675622335 | X66: 55.79000092 | Y66: 243.3674316 | Z66: 0.2325268537 | AA66: 0.2252266109 | AB66: 0.03762549162 | AC66: G | AD66: 0 | AE66: 54.10236423 | AF66: 24.99991473 | AG66: 37 | AH66: 37 | AI66: 0 | AJ66: 0 | AK66: 24 | AL66: 23.11000061 | AM66: 102.2200012 | AN66: 76.50917053 | AO66: 22.60776264 | AP66: 95.62750244 | AQ66: 9.227013588 | AR66: 8.291867256 | AS66: 0.2283333391 | AT66: 0.1598596573 | AU66: N | AV66: 0 | AW66: 61.26066674 | AX66: 74.99971835 | AY66: 36 | AZ66: 36 | BA66: 0 | BB66: 0 | BC66: 24 | BD66: 1 | BE66: 10.39999962 | BF66: 2.802777767 | BG66: 1.736249993 | BH66: 1.783333302 | BI66: 3.960420609 | BJ66: 0.7076969743 | BK66: 0.2283333391 | BL66: 0.05676975846 | BM66: G | BN66: 0 | BO66: 3.582990961 | BP66: 24.99997772 | BQ66: 36 | BR66: 36 | BS66: 0 | BT66: 0 | BU66: 24 | BV66: 26.20000076 | BW66: 45.5 | BX66: 34.01111603 | BY66: 5.25263366 | BZ66: 31.02499962 | CA66: 44.59136581 | CB66: 0.7627287507 | CC66: 0.2283333391 | CD66: 0.05143409967 | CE66: G | CF66: 0 | CG66: 37.29412364 | CH66: 25.00001448 | CI66: 36 | CJ66: 36 | CK66: 0 | CL66: 0 | CM66: 24 | DE66: 24 | DW66: 24 | EO66: 24
A67: 25 | B67: 0.009999999776 | C67: 31.20999908 | D67: 3.772222281 | E67: 7.962020366 | F67: 3.129999876 | G67: 0.3405740857 | H67: 11.07606983 | I67: 0.322912097 | J67: 0.03642582893 | K67: G | L67: 48.64864865 | M67: 0 | N67: 51.35135135 | O67: 36 | P67: 36 | Q67: 18 | R67: 48.64864865 | S67: 25 | T67: 51.25 | U67: 69.34999847 | V67: 58.78297043 | W67: 3.788071713 | X67: 61.80833435 | Y67: 247.5900879 | Z67: 0.2374205291 | AA67: 0.2252266109 | AB67: 0.05383342505 | AC67: N | AD67: 0 | AE67: 56.22795476 | AF67: 25.00040955 | AG67: 37 | AH67: 37 | AI67: 0 | AJ67: 0 | AK67: 25 | AL67: 22.26000023 | AM67: 108.75 | AN67: 75.26752472 | AO67: 23.11288349 | AP67: 101.5425034 | AQ67: 8.595452309 | AR67: 8.756668091 | AS67: 0.2283333391 | AT67: 0.08838388324 | AU67: T | AV67: 0 | AW67: 63.66398941 | AX67: 74.99993582 | AY67: 36 | AZ67: 36 | BA67: 0 | BB67: 0 | BC67: 25 | BD67: 1 | BE67: 20.29999924 | BF67: 3.000000238 | BG67: 3.712296087 | BH67: 2.608333111 | BI67: 1.784217596 | BJ67: 1.681409359 | BK67: 0.2283333391 | BL67: 0.1225029826 | BM67: G | BN67: 0 | BO67: 4.068692943 | BP67: 24.99983133 | BQ67: 36 | BR67: 36 | BS67: 0 | BT67: 0 | BU67: 25 | BV67: 9.300000191 | BW67: 47.40000153 | BX67: 33.66944122 | BY67: 7.130290159 | BZ67: 31.52500153 | CA67: 17.02337265 | CB67: 1.977836132 | CC67: 0.2283333391 | CD67: 0.09909962118 | CE67: N | CF67: 0 | CG67: 38.4787358 | CH67: 25.00005818 | CI67: 36 | CJ67: 36 | CK67: 0 | CL67: 0 | CM67: 25 | DE67: 25 | DW67: 25 | EO67: 25
A68: 26 | B68: 0.009999999776 | C68: 5.460000038 | D68: 1.131428599 | E68: 1.670079916 | F68: 0.5550000072 | G68: 0.547486186 | H68: 2.066588402 | I68: 0.340793103 | J68: 0.05783122778 | K68: G | L68: 59.45945946 | M68: 0 | N68: 40.54054054 | O68: 36 | P68: 36 | Q68: 22 | R68: 59.45945946 | S68: 26 | T68: 55.63000107 | U68: 67.83999634 | V68: 61.55621719 | W68: 3.375345707 | X68: 62.75249863 | Y68: 341.0508728 | Z68: 0.1804898381 | AA68: 0.2252266109 | AB68: 0.06475303322 | AC68: N | AD68: 0 | AE68: 59.27958084 | AF68: 24.99994503 | AG68: 37 | AH68: 37 | AI68: 0 | AJ68: 0 | AK68: 26 | AL68: 21.45999908 | AM68: 104.5599976 | AN68: 73.59915161 | AO68: 22.94422053 | AP68: 97.63499451 | AQ68: 8.297271729 | AR68: 8.870283127 | AS68: 0.2283333391 | AT68: 0.1186869144 | AU68: T | AV68: 0 | AW68: 61.24118013 | AX68: 74.99989156 | AY68: 36 | AZ68: 36 | BA68: 0 | BB68: 0 | BC68: 26 | BD68: 1 | BE68: 8 | BF68: 2.141666412 | BG68: 1.556438591 | BH68: 1.583333254 | BI68: 2.933877468 | BJ68: 0.7299781442 | BK68: 0.2283333391 | BL68: 0.08128911257 | BM68: G | BN68: 0 | BO68: 2.803604766 | BP68: 24.99968691 | BQ68: 36 | BR68: 36 | BS68: 0 | BT68: 0 | BU68: 26 | BV68: 24.10000038 | BW68: 50.20000076 | BX68: 34.972229 | BY68: 5.633857196 | BZ68: 34.97499847 | CA68: 42.03057861 | CB68: 0.8320662975 | CC68: 0.2283333391 | CD68: 0.05388379097 | CE68: G | CF68: 0 | CG68: 38.44404055 | CH68: 25.00001498 | CI68: 36 | CJ68: 36 | CK68: 0 | CL68: 0 | CM68: 26 | DE68: 26 | DW68: 26 | EO68: 26
A69: 27 | B69: 0.01999999955 | C69: 4.75 | D69: 1.118666768 | E69: 1.317458957 | F69: 0.4930000007 | G69: 0.7231751084 | H69: 1.546882272 | I69: 0.3243176043 | J69: 0.05693864822 | K69: G | L69: 56.75675676 | M69: 0 | N69: 43.24324324 | O69: 36 | P69: 36 | Q69: 21 | R69: 56.75675676 | S69: 27 | T69: 54.02000046 | U69: 68.37999725 | V69: 62.08568192 | W69: 3.850967949 | X69: 62.39666367 | Y69: 262.183197 | Z69: 0.2368026674 | AA69: 0.2252266109 | AB69: 0.06490385532 | AC69: G | AD69: 0 | AE69: 59.45824991 | AF69: 25.00020227 | AG69: 37 | AH69: 37 | AI69: 0 | AJ69: 0 | AK69: 27 | AL69: 20.93000031 | AM69: 100.9499969 | AN69: 72.10943604 | AO69: 22.76688505 | AP69: 94.28166199 | AQ69: 8.072775841 | AR69: 8.932421684 | AS69: 0.2283333391 | AT69: 0.1430330873 | AU69: G | AV69: 0 | AW69: 53.77327675 | AX69: 74.99999738 | AY69: 36 | AZ69: 36 | BA69: 0 | BB69: 0 | BC69: 27 | BD69: 1 | BE69: 4.5 | BF69: 1.883333445 | BG69: 1.028035558 | BH69: 1.291666627 | BI69: 4.221195698 | BJ69: 0.4461611211 | BK69: 0.2283333391 | BL69: 0.1019760966 | BM69: G | BN69: 0 | BO69: 2.395389856 | BP69: 24.99967125 | BQ69: 36 | BR69: 36 | BS69: 0 | BT69: 0 | BU69: 27 | BV69: 25.79999924 | BW69: 49.70000076 | BX69: 35.03333282 | BY69: 5.452496249 | BZ69: 35.7583313 | CA69: 45.04210281 | CB69: 0.7777907848 | CC69: 0.2283333391 | CD69: 0.06656259298 | CE69: G | CF69: 0 | CG69: 38.39890087 | CH69: 25.00001439 | CI69: 36 | CJ69: 36 | CK69: 0 | CL69: 0 | CM69: 27 | DE69: 27 | DW69: 27 | EO69: 27
A70: 28 | B70: 0.03999999911 | C70: 10.30000019 | D70: 1.442666531 | E70: 2.661917889 | F70: 1.065999985 | G70: 0.5659726858 | H70: 2.549003839 | I70: 0.3243176043 | J70: 0.09807467461 | K70: G | L70: 56.75675676 | M70: 0 | N70: 43.24324324 | O70: 36 | P70: 36 | Q70: 21 | R70: 56.75675676 | S70: 28 | T70: 51.00999832 | U70: 73.47000122 | V70: 63.4875679 | W70: 4.867540374 | X70: 64.11166382 | Y70: 169.8629913 | Z70: 0.3737575114 | AA70: 0.2252266109 | AB70: 0.06399779022 | AC70: G | AD70: 0 | AE70: 60.13775818 | AF70: 25.00018241 | AG70: 37 | AH70: 37 | AI70: 0 | AJ70: 0 | AK70: 28 | AL70: 20.89999962 | AM70: 98.52999878 | AN70: 70.90723419 | AO70: 22.63955069 | AP70: 92.06083679 | AQ70: 7.939480782 | AR70: 8.930966377 | AS70: 0.2283333391 | AT70: 0.1634010673 | AU70: G | AV70: 0 | AW70: 52.71952364 | AX70: 74.99999975 | AY70: 36 | AZ70: 36 | BA70: 0 | BB70: 0 | BC70: 28 | BD70: 1 | BE70: 7.900000095 | BF70: 1.665714264 | BG70: 1.34507234 | BH70: 1.575000048 | BI70: 3.008682251 | BJ70: 0.5536358356 | BK70: 0.2315722704 | BL70: 0.1715914607 | BM70: G | BN70: 0 | BO70: 2.176271482 | BP70: 24.99984894 | BQ70: 36 | BR70: 36 | BS70: 0 | BT70: 0 | BU70: 28 | BV70: 18.60000038 | BW70: 50.90000153 | BX70: 35.8666687 | BY70: 6.060834833 | BZ70: 37.44166946 | CA70: 33.96793747 | CB70: 1.055897713 | CC70: 0.2283333391 | CD70: 0.04000466317 | CE70: N | CF70: 0 | CG70: 39.95461882 | CH70: 25.00010935 | CI70: 36 | CJ70: 36 | CK70: 0 | CL70: 0 | CM70: 28 | DE70: 28 | DW70: 28 | EO70: 28
A71: 29 | B71: 0.02999999933 | C71: 9.550000191 | D71: 2.233333349 | E71: 3.009215981 | F71: 0.9819999933 | G71: 0.5483751297 | H71: 4.072638035 | I71: 0.3243176043 | J71: 0.07297903299 | K71: G | L71: 56.75675676 | M71: 0 | N71: 43.24324324 | O71: 36 | P71: 36 | Q71: 21 | R71: 56.75675676 | S71: 29 | T71: 47.52000046 | U71: 73.38999939 | V71: 64.47784424 | W71: 5.293745619 | X71: 66.92250061 | Y71: 142.2504425 | Z71: 0.4532698989 | AA71: 0.2252266109 | AB71: 0.0911244452 | AC71: N | AD71: 0 | AE71: 60.90740752 | AF71: 25.00004996 | AG71: 37 | AH71: 37 | AI71: 0 | AJ71: 0 | AK71: 29 | AL71: 20.89999962 | AM71: 98.01000214 | AN71: 70.28527832 | AO71: 22.76565985 | AP71: 91.58416748 | AQ71: 7.758340359 | AR71: 9.059318542 | AS71: 0.2283333391 | AT71: 0.1653602123 | AU71: G | AV71: 0 | AW71: 52.03880503 | AX71: 74.99999356 | AY71: 36 | AZ71: 36 | BA71: 0 | BB71: 0 | BC71: 29 | BD71: 1 | BE71: 21 | BF71: 2.394444466 | BG71: 3.642915194 | BH71: 2.666666508 | BI71: 1.322476506 | BJ71: 1.8105762 | BK71: 0.2283333391 | BL71: 0.03913253546 | BM71: G | BN71: 0 | BO71: 3.297589289 | BP71: 24.99999189 | BQ71: 36 | BR71: 36 | BS71: 0 | BT71: 0 | BU71: 29 | BV71: 7.300000191 | BW71: 52.29999924 | BX71: 34.97499847 | BY71: 7.577914331 | BZ71: 33.54999924 | CA71: 14.34849167 | CB71: 2.437538385 | CC71: 0.2283333391 | CD71: 0.09960608184 | CE71: N | CF71: 0 | CG71: 40.08619274 | CH71: 25.00013115 | CI71: 36 | CJ71: 36 | CK71: 0 | CL71: 0 | CM71: 29 | DE71: 29 | DW71: 29 | EO71: 29
A72: 30 | B72: 0.009999999776 | C72: 38.79000092 | D72: 4.49750042 | E72: 10.23840197 | F72: 3.888000011 | G72: 0.3510576785 | H72: 12.81128597 | I72: 0.3425000012 | J72: 0.05931121111 | K72: G | L72: 54.05405405 | M72: 0 | N72: 45.94594595 | O72: 36 | P72: 36 | Q72: 20 | R72: 54.05405405 | S72: 30 | T72: 53 | U72: 72.16000366 | V72: 63.9064827 | W72: 5.244425948 | X72: 67.37000275 | Y72: 150.1064301 | Z72: 0.4257411361 | AA72: 0.2252266109 | AB72: 0.06107139587 | AC72: G | AD72: 0 | AE72: 60.31532347 | AF72: 24.99932926 | AG72: 37 | AH72: 37 | AI72: 0 | AJ72: 0 | AK72: 30 | AL72: 20.89999962 | AM72: 95.54000092 | AN72: 69.5561142 | AO72: 22.50709456 | AP72: 89.31999969 | AQ72: 7.774273872 | AR72: 8.946959496 | AS72: 0.2283333391 | AT72: 0.1520917416 | AU72: G | AV72: 0 | AW72: 51.51824413 | AX72: 74.99999525 | AY72: 36 | AZ72: 36 | BA72: 0 | BB72: 0 | BC72: 30 | BD72: 1 | BE72: 12.60000038 | BF72: 2.213888884 | BG72: 2.272211432 | BH72: 1.966666698 | BI72: 1.958634734 | BJ72: 1.130322456 | BK72: 0.2283333391 | BL72: 0.09182345867 | BM72: G | BN72: 0 | BO72: 2.984740572 | BP72: 24.99999735 | BQ72: 36 | BR72: 36 | BS72: 0 | BT72: 0 | BU72: 30 | BV72: 18.29999924 | BW72: 48.5 | BX72: 34.34444427 | BY72: 6.051986545 | BZ72: 35.91666412 | CA72: 31.24073601 | CB72: 1.099348068 | CC72: 0.2283333391 | CD72: 0.03564524651 | CE72: N | CF72: 0 | CG72: 38.42638849 | CH72: 25.00030808 | CI72: 36 | CJ72: 36 | CK72: 0 | CL72: 0 | CM72: 30 | DE72: 30 | DW72: 30 | EO72: 30
A73: 31 | B73: 0.01999999955 | C73: 12.75 | D73: 2.458094835 | E73: 3.954050672 | F73: 1.292999983 | G73: 0.4893426001 | H73: 5.02325964 | I73: 0.2989585102 | J73: 0.114817977 | K73: G | L73: 40.54054054 | M73: 0 | N73: 59.45945946 | O73: 36 | P73: 36 | Q73: 15 | R73: 40.54054054 | S73: 31 | T73: 53.06000137 | U73: 68.73999786 | V73: 62.19568253 | W73: 4.370685084 | X73: 64.81999969 | Y73: 203.6038208 | Z73: 0.3054740429 | AA73: 0.2252266109 | AB73: 0.07972949743 | AC73: N | AD73: 0 | AE73: 59.24770018 | AF73: 25.00071827 | AG73: 37 | AH73: 37 | AI73: 0 | AJ73: 0 | AK73: 31 | AL73: 20.89999962 | AM73: 93.80999756 | AN73: 68.77194977 | AO73: 22.34336483 | AP73: 87.73416901 | AQ73: 7.744441509 | AR73: 8.880168915 | AS73: 0.2283333391 | AT73: 0.2014304996 | AU73: G | AV73: 0 | AW73: 50.90164299 | AX73: 74.99999589 | AY73: 36 | AZ73: 36 | BA73: 0 | BB73: 0 | BC73: 31 | BD73: 1 | BE73: 11.89999962 | BF73: 1.972222447 | BG73: 2.174214263 | BH73: 1.908333302 | BI73: 1.935252428 | BJ73: 1.019103408 | BK73: 0.2283333391 | BL73: 0.0437682271 | BM73: G | BN73: 0 | BO73: 2.661034473 | BP73: 24.99988297 | BQ73: 36 | BR73: 36 | BS73: 0 | BT73: 0 | BU73: 31 | BV73: 18.10000038 | BW73: 51.79999924 | BX73: 34.57500076 | BY73: 6.161325289 | BZ73: 32.14166641 | CA73: 31.0485878 | CB73: 1.113577247 | CC73: 0.2283333391 | CD73: 0.04657882452 | CE73: N | CF73: 0 | CG73: 38.73067773 | CH73: 25.00038056 | CI73: 36 | CJ73: 36 | CK73: 0 | CL73: 0 | CM73: 31 | DE73: 31 | DW73: 31 | EO73: 31
A74: 32 | B74: 0.009999999776 | C74: 5.139999866 | D74: 1.433749914 | E74: 1.699132597 | F74: 0.5230000019 | G74: 0.6996995807 | H74: 2.049093485 | I74: 0.3425000012 | J74: 0.111948967 | K74: G | L74: 54.05405405 | M74: 0 | N74: 45.94594595 | O74: 36 | P74: 36 | Q74: 20 | R74: 54.05405405 | S74: 32 | T74: 50.20999908 | U74: 73.27999878 | V74: 61.89323807 | W74: 5.254266731 | X74: 63.66749954 | Y74: 139.6778259 | Z74: 0.4431142807 | AA74: 0.2252266109 | AB74: 0.03653591871 | AC74: N | AD74: 0 | AE74: 58.3492881 | AF74: 24.99999502 | AG74: 37 | AH74: 37 | AI74: 0 | AJ74: 0 | AK74: 32 | AL74: 20.89999962 | AM74: 92.61000061 | AN74: 67.90972137 | AO74: 22.07178576 | AP74: 86.63417053 | AQ74: 7.778946877 | AR74: 8.729937553 | AS74: 0.2283333391 | AT74: 0.201992929 | AU74: G | AV74: 0 | AW74: 50.30432441 | AX74: 74.99999635 | AY74: 36 | AZ74: 36 | BA74: 0 | BB74: 0 | BC74: 32 | BD74: 1 | BE74: 6 | BF74: 1.902777553 | BG74: 1.374353994 | BH74: 1.416666627 | BI74: 2.759463549 | BJ74: 0.6895461679 | BK74: 0.2283333391 | BL74: 0.08270281553 | BM74: G | BN74: 0 | BO74: 2.502678138 | BP74: 24.99999138 | BQ74: 36 | BR74: 36 | BS74: 0 | BT74: 0 | BU74: 32 | BV74: 23.79999924 | BW74: 52.79999924 | BX74: 33.77777481 | BY74: 6.09257676 | BZ74: 35.8833313 | CA74: 33.90215302 | CB74: 0.9963312745 | CC74: 0.2283333391 | CD74: 0.07183581591 | CE74: G | CF74: 0 | CG74: 37.48903279 | CH74: 25.00001652 | CI74: 36 | CJ74: 36 | CK74: 0 | CL74: 0 | CM74: 32 | DE74: 32 | DW74: 32 | EO74: 32
A75: 33 | B75: 0.02999999933 | C75: 18.85000038 | D75: 3.513499737 | E75: 4.873627494 | F75: 1.91200006 | G75: 0.5700610876 | H75: 6.163373947 | I75: 0.3063413203 | J75: 0.03295004368 | K75: G | L75: 43.24324324 | M75: 0 | N75: 56.75675676 | O75: 36 | P75: 36 | Q75: 16 | R75: 43.24324324 | S75: 33 | T75: 47.18000031 | U75: 73.40000153 | V75: 60.68784332 | W75: 6.487484547 | X75: 66.84500122 | Y75: 87.10289001 | Z75: 0.6967374086 | AA75: 0.2252266109 | AB75: 0.06113839149 | AC75: G | AD75: 0 | AE75: 56.18461817 | AF75: 24.999989 | AG75: 37 | AH75: 37 | AI75: 0 | AJ75: 0 | AK75: 33 | AL75: 20.89999962 | AM75: 91.55000305 | AN75: 67.26222992 | AO75: 21.73779024 | AP75: 85.6625061 | AQ75: 7.908504486 | AR75: 8.505050659 | AS75: 0.2283333391 | AT75: 0.2016184926 | AU75: G | AV75: 0 | AW75: 49.97425537 | AX75: 74.99999685 | AY75: 36 | AZ75: 36 | BA75: 0 | BB75: 0 | BC75: 33 | BD75: 1 | BE75: 13.89999962 | BF75: 2.594444752 | BG75: 2.911548174 | BH75: 2.074999809 | BI75: 1.483605742 | BJ75: 1.7487427 | BK75: 0.2283333391 | BL75: 0.08047676086 | BM75: G | BN75: 0 | BO75: 3.554924446 | BP75: 24.99960008 | BQ75: 36 | BR75: 36 | BS75: 0 | BT75: 0 | BU75: 33 | BV75: 17.10000038 | BW75: 47.90000153 | BX75: 32.47222137 | BY75: 6.280928722 | BZ75: 35.06666946 | CA75: 25.16134071 | CB75: 1.290560007 | CC75: 0.2283333391 | CD75: 0.04801863432 | CE75: N | CF75: 0 | CG75: 36.70864375 | CH75: 24.99999834 | CI75: 36 | CJ75: 36 | CK75: 0 | CL75: 0 | CM75: 33 | DE75: 33 | DW75: 33 | EO75: 33
A76: 34 | B76: 0.01999999955 | C76: 12.77000046 | D76: 2.364210367 | E76: 3.291847337 | F76: 1.295000076 | G76: 0.5765411258 | H76: 4.100679398 | I76: 0.3142995536 | J76: 0.04347151518 | K76: G | L76: 45.94594595 | M76: 0 | N76: 54.05405405 | O76: 36 | P76: 36 | Q76: 17 | R76: 45.94594595 | S76: 34 | T76: 44.86000061 | U76: 69.33000183 | V76: 59.17432404 | W76: 5.040715193 | X76: 59.13416672 | Y76: 134.2798767 | Z76: 0.4406790137 | AA76: 0.2252266109 | AB76: 0.08051517606 | AC76: G | AD76: 0 | AE76: 55.65469423 | AF76: 24.99970371 | AG76: 37 | AH76: 37 | AI76: 0 | AJ76: 0 | AK76: 34 | AL76: 20.89999962 | AM76: 90.51000214 | AN76: 66.63916016 | AO76: 21.49094218 | AP76: 84.70916748 | AQ76: 7.959493637 | AR76: 8.372286797 | AS76: 0.2283333391 | AT76: 0.200424552 | AU76: G | AV76: 0 | AW76: 49.56864135 | AX76: 74.99999691 | AY76: 36 | AZ76: 36 | BA76: 0 | BB76: 0 | BC76: 34 | BD76: 0.6999999881 | BE76: 13 | BF76: 2.577777863 | BG76: 2.830861491 | BH76: 1.724999905 | BI76: 1.498208404 | BJ76: 1.720573664 | BK76: 0.2283333391 | BL76: 0.08392101526 | BM76: G | BN76: 0 | BO76: 3.530344172 | BP76: 24.99999821 | BQ76: 36 | BR76: 36 | BS76: 0 | BT76: 0 | BU76: 34 | BV76: 18.10000038 | BW76: 48.29999924 | BX76: 31.33889008 | BY76: 6.659956066 | BZ76: 30.68333435 | CA76: 22.6529274 | CB76: 1.38343668 | CC76: 0.2283333391 | CD76: 0.04478919506 | CE76: N | CF76: 0 | CG76: 35.83094809 | CH76: 25.00006723 | CI76: 36 | CJ76: 36 | CK76: 0 | CL76: 0 | CM76: 34 | DE76: 34 | DW76: 34 | EO76: 34
A77: 35 | B77: 0.009999999776 | C77: 64.08000183 | D77: 7.221599579 | E77: 13.54696567 | F77: 6.417000294 | G77: 0.4846698642 | H77: 14.90003872 | I77: 0.273999989 | J77: 0.03173905611 | K77: G | L77: 29.72972973 | M77: 0 | N77: 70.27027027 | O77: 36 | P77: 36 | Q77: 11 | R77: 29.72972973 | S77: 35 | T77: 40.49000168 | U77: 68.01000214 | V77: 57.4605484 | W77: 6.608903151 | X77: 61.13000107 | Y77: 71.35290527 | Z77: 0.8053007722 | AA77: 0.2252266109 | AB77: 0.05812233686 | AC77: N | AD77: 0 | AE77: 53.00294829 | AF77: 24.99917649 | AG77: 37 | AH77: 37 | AI77: 0 | AJ77: 0 | AK77: 35 | AL77: 21.27000046 | AM77: 92.91000366 | AN77: 67.83695221 | AO77: 21.91562146 | AP77: 86.94000244 | AQ77: 7.812517166 | AR77: 8.683111191 | AS77: 0.2283333391 | AT77: 0.2251804471 | AU77: N | AV77: 0 | AW77: 53.05509245 | AX77: 74.99999669 | AY77: 36 | AZ77: 36 | BA77: 0 | BB77: 0 | BC77: 35 | BD77: 0.6999999881 | BE77: 28 | BF77: 4.713889122 | BG77: 5.757338775 | BH77: 2.975000143 | BI77: 1.058887005 | BJ77: 4.451739311 | BK77: 0.2283333391 | BL77: 0.04467749596 | BM77: G | BN77: 0 | BO77: 6.531359517 | BP77: 24.99914236 | BQ77: 36 | BR77: 36 | BS77: 0 | BT77: 0 | BU77: 35 | BV77: 2 | BW77: 47.70000076 | BX77: 28.13333321 | BY77: 9.495773178 | BZ77: 28.65833282 | CA77: 5.299405575 | CB77: 5.30877161 | CC77: 0.2283333391 | CD77: 0.07372128963 | CE77: N | CF77: 0 | CG77: 34.53813428 | CH77: 25.00000204 | CI77: 36 | CJ77: 36 | CK77: 0 | CL77: 0 | CM77: 35 | DE77: 35 | DW77: 35 | EO77: 35
A78: 36 | B78: 0.01999999955 | C78: 66.91999817 | D78: 15.40733337 | E78: 17.74998882 | F78: 6.709999561 | G78: 0.6541782022 | H78: 23.5521965 | I78: 0.2501266301 | J78: 0.03747785091 | K78: G | L78: 16.21621622 | M78: 0.6495195386 | N78: 75.00003035 | O78: 36 | P78: 36 | Q78: 6 | R78: 16.21621622 | S78: 36 | T78: 32.52999878 | U78: 62.95000076 | V78: 52.99243164 | W78: 7.752696891 | X78: 60.41500092 | Y78: 42.84832001 | Z78: 1.236744642 | AA78: 0.2252266109 | AB78: 0.1334969997 | AC78: T | AD78: 0 | AE78: 47.09266235 | AF78: 25.00087146 | AG78: 37 | AH78: 37 | AI78: 0 | AJ78: 0 | AK78: 36 | AL78: 20.97999954 | AM78: 108.4300003 | AN78: 66.88749695 | AO78: 23.27753746 | AP78: 86.56749725 | AQ78: 7.210097313 | AR78: 9.276920319 | AS78: 0.2283333391 | AT78: 0.06804001331 | AU78: N | AV78: 0 | AW78: 51.18704011 | AX78: 74.99999511 | AY78: 36 | AZ78: 36 | BA78: 0 | BB78: 0 | BC78: 36 | BD78: 0.6000000238 | BE78: 36.90000153 | BF78: 11.35555649 | BG78: 8.232807162 | BH78: 3.625 | BI78: 1.601898193 | BJ78: 7.088812828 | BK78: 0.2283333391 | BL78: 0.07506710291 | BM78: G | BN78: 0 | BO78: 15.4974522 | BP78: 24.99998609 | BQ78: 36 | BR78: 36 | BS78: 0 | BT78: 0 | BU78: 36 | BV78: 0.400000006 | BW78: 39.40000153 | BX78: 20.71944427 | BY78: 10.74176917 | BZ78: 29.65000153 | CA78: 1.999074817 | CB78: 10.36451626 | CC78: 0.2283333391 | CD78: 0.1056627631 | CE78: N | CF78: 0 | CG78: 27.96465643 | CH78: 25.00000311 | CI78: 36 | CJ78: 36 | CK78: 0 | CL78: 0 | CM78: 36 | DE78: 36 | DW78: 36 | EO78: 36
A79: 37 | B79: 0.02999999933 | C79: 57.77000046 | D79: 9.476773262 | E79: 13.14462412 | F79: 5.804000378 | G79: 0.4974732399 | H79: 19.04981422 | I79: 0.2460592687 | J79: 0.02155953646 | K79: G | L79: 13.51351351 | M79: 0.2605549249 | N79: 75.00002007 | O79: 36 | P79: 36 | Q79: 5 | R79: 13.51351351 | S79: 37 | T79: 14 | U79: 37.38999939 | V79: 26.65350914 | W79: 5.27694852 | X79: 31.54249954 | Y79: 24.15501976 | Z79: 1.103435636 | AA79: 0.2252266109 | AB79: 0.05466610193 | AC79: G | AD79: 0 | AE79: 22.8235113 | AF79: 25.00002089 | AG79: 37 | AH79: 37 | AI79: 0 | AJ79: 0 | AK79: 37 | AL79: 14.11999989 | AM79: 47.83000183 | AN79: 25.12171555 | AO79: 8.428123859 | AP79: 22.54750061 | AQ79: 10.47874928 | AR79: 2.397396326 | AS79: 0.2315722704 | AT79: 0.07554918528 | AU79: G | AV79: 2.702702703 | AW79: 19.10900961 | AX79: 74.99958123 | AY79: 36 | AZ79: 36 | BA79: 1 | BB79: 2.702702703 | BC79: 37 | BD79: 3.400000095 | BE79: 28.10000038 | BF79: 15.59166431 | BG79: 5.897426898 | BH79: 17.80833435 | BI79: 6.226234436 | BJ79: 2.504188538 | BK79: 0.2283333391 | BL79: 0.05593788624 | BM79: N | BN79: 0 | BO79: 19.56936314 | BP79: 25.00029728 | BQ79: 36 | BR79: 36 | BS79: 0 | BT79: 0 | BU79: 37 | BV79: 0.6000000238 | BW79: 34.70000076 | BX79: 10.74706173 | BY79: 7.689908775 | BZ79: 3.441666603 | CA79: 1.878586292 | CB79: 5.720824242 | CC79: 0.2349530607 | CD79: 0.0174010396 | CE79: G | CF79: 5.405405405 | CG79: 14.10285331 | CH79: 25.0001387 | CI79: 36 | CJ79: 36 | CK79: 2 | CL79: 5.405405405 | CM79: 37 | DE79: 37 | DW79: 37 | EO79: 37
B80: =B42+1 -> 3 | C80: Componente hídrica: | G80: Precipitação (P) | L80: Ponto 3 lat-3.375_lon-41.375 | S80: Ponto: | T80: =B80 -> 3 | U80: Componente hídrica: | Y80: Evapotranspiração de referência (ETo) | AD80: =L80 -> Ponto 3 lat-3.375_lon-41.375 | AK80: Ponto: | AL80: =B80 -> 3 | AM80: Componente hídrica: | AQ80: Armazenamento da água no solo (S) | AV80: =L80 -> Ponto 3 lat-3.375_lon-41.375 | BC80: Ponto: | BD80: =B80 -> 3 | BE80: Componente hídrica: | BI80: Evapotranspiração Real (ETr) | BN80: =L80 -> Ponto 3 lat-3.375_lon-41.375 | BU80: Ponto: | BV80: =B80 -> 3 | BW80: Componente hídrica: | CA80: Deficiência hídrica (Def) | CF80: =L80 -> Ponto 3 lat-3.375_lon-41.375 | CM80: Ponto: | CN80: =B80 -> 3 | CO80: Componente hídrica: | CS80: Excedente hídrico (Exc) | CX80: =L80 -> Ponto 3 lat-3.375_lon-41.375 | DE80: Ponto: | DF80: =B80 -> 3 | DG80: Componente hídrica: | DK80: Temperatura mínima (Tmin) | DP80: =L80 -> Ponto 3 lat-3.375_lon-41.375 | DW80: Ponto: | DX80: =B80 -> 3 | DY80: Componente hídrica: | EC80: Temperatura máxima (Tmax) | EH80: =L80 -> Ponto 3 lat-3.375_lon-41.375 | EO80: Ponto: | EP80: =B80 -> 3 | EQ80: Componente hídrica: | EU80: Temperatura média (Tmed) | EZ80: =L80 -> Ponto 3 lat-3.375_lon-41.375
A81: 1 | B81: 0.05999999866 | C81: 120.6800003 | D81: 32.07972336 | E81: 28.07453372 | F81: 10.11166668 | G81: 1.156663179 | H81: 27.73471451 | I81: 0.2315722704 | J81: 0.05007472634 | K81: E | L81: 0 | M81: 9.228754333 | N81: 75.00001629 | O81: 36 | P81: 36 | Q81: 0 | R81: 0 | S81: 1 | T81: 34.20999908 | U81: 66.94000244 | V81: 48.26865005 | W81: 7.666563724 | X81: 42.39249802 | Y81: 42.22620392 | Z81: 1.143097043 | AA81: 0.2252266109 | AB81: 0.04404401779 | AC81: T | AD81: 0 | AE81: 42.39250373 | AF81: 25.00000513 | AG81: 37 | AH81: 37 | AI81: 0 | AJ81: 0 | AK81: 1 | AL81: 20.35000038 | AM81: 73.98999786 | AN81: 44.76249695 | AO81: 14.44243904 | AP81: 51.63999939 | AQ81: 9.256847382 | AR81: 4.835609436 | AS81: 0.2283333391 | AT81: 0.08333337307 | AU81: U | AV81: 0 | AW81: 33.75999975 | AX81: 75 | AY81: 36 | AZ81: 36 | BA81: 0 | BB81: 0 | BC81: 1 | BD81: 11.69999981 | BE81: 47.29999924 | BF81: 32.1305542 | BG81: 9.227840377 | BH81: 38.40000153 | BI81: 10.43710709 | BJ81: 3.078492403 | BK81: 0.2283333391 | BL81: 0.05371725559 | BM81: N | BN81: 0 | BO81: 38.35463731 | BP81: 25.0000022 | BQ81: 36 | BR81: 36 | BS81: 0 | BT81: 0 | BU81: 1 | BV81: 1.100000024 | BW81: 54.70000076 | BX81: 19.19722176 | BY81: 14.79143433 | BZ81: 5.566666603 | CA81: 1.275491357 | CB81: 15.05084419 | CC81: 0.2283333391 | CD81: 0.04810124636 | CE81: G | CF81: 0 | CG81: 26.47385488 | CH81: 25.00000171 | CI81: 36 | CJ81: 36 | CK81: 0 | CL81: 0 | CM81: 1 | CN81: exc | DE81: 1 | DW81: 1 | EO81: 1 | EP81: tmed
A82: 2 | B82: 0.7599999905 | C82: 103.2399979 | D82: 35.32666779 | E82: 30.55563334 | F82: 9.300000191 | G82: 1.080209136 | H82: 32.70354462 | I82: 0.2283333391 | J82: 0.08944618702 | K82: E | L82: 0 | M82: 10.16286249 | N82: 74.99997135 | O82: 36 | P82: 36 | Q82: 0 | R82: 0 | S82: 2 | T82: 34.38000107 | U82: 65.58999634 | V82: 45.12486649 | W82: 7.053578912 | X82: 42.18249893 | Y82: 42.97860718 | Z82: 1.049937844 | AA82: 0.2252266109 | AB82: 0.06710422039 | AC82: G | AD82: 0 | AE82: 40.31151366 | AF82: 25 | AG82: 37 | AH82: 37 | AI82: 0 | AJ82: 0 | AK82: 2 | AL82: 21.57999992 | AM82: 96.45999908 | AN82: 56.99138641 | AO82: 24.74147951 | AP82: 90.22000122 | AQ82: 4.921285629 | AR82: 11.58058929 | AS82: 0.2283333391 | AT82: 0.05555558205 | AU82: U | AV82: 0 | AW82: 40.29999971 | AX82: 75 | AY82: 36 | AZ82: 36 | BA82: 0 | BB82: 0 | BC82: 2 | BD82: 10.5 | BE82: 48 | BF82: 28.56110954 | BG82: 10.73811073 | BH82: 32.375 | BI82: 6.510444641 | BJ82: 4.386967659 | BK82: 0.2283333391 | BL82: 0.043958202 | BM82: N | BN82: 0 | BO82: 35.80354303 | BP82: 25.00092374 | BQ82: 36 | BR82: 36 | BS82: 0 | BT82: 0 | BU82: 2 | BV82: 1.200000048 | BW82: 60.29999924 | BX82: 21.12000275 | BY82: 17.33619803 | BZ82: 6.125 | CA82: 1.130289793 | CB82: 18.6854763 | CC82: 0.2315722704 | CD82: 0.07750958204 | CE82: G | CF82: 0 | CG82: 29.22793521 | CH82: 25.00000664 | CI82: 36 | CJ82: 36 | CK82: 0 | CL82: 0 | CM82: 2 | DE82: 2 | DW82: 2 | EO82: 2
A83: 3 | B83: 0.3700000048 | C83: 319.6499939 | D83: 53.77610779 | E83: 67.40886498 | F83: 26.9766674 | G83: 0.8022345901 | H83: 67.03289795 | I83: 0.2283333391 | J83: 0.04876804352 | K83: G | L83: 0 | M83: 12.02654461 | N83: 75.0000665 | O83: 36 | P83: 36 | Q83: 0 | R83: 0 | S83: 3 | T83: 28.68000031 | U83: 62.41999817 | V83: 44.95648575 | W83: 7.249110989 | X83: 48.36166382 | Y83: 38.38705444 | Z83: 1.171136618 | AA83: 0.2252266109 | AB83: 0.03628979623 | AC83: N | AD83: 0 | AE83: 40.06704333 | AF83: 24.99999734 | AG83: 37 | AH83: 37 | AI83: 0 | AJ83: 0 | AK83: 3 | AL83: 18.21999931 | AM83: 123.0199966 | AN83: 69.20249939 | AO83: 30.64094869 | AP83: 79.35333252 | AQ83: 4.197476387 | AR83: 16.48669243 | AS83: 0.2283333391 | AT83: 0.05555561185 | AU83: U | AV83: 0 | AW83: 44.41999865 | AX83: 75 | AY83: 36 | AZ83: 36 | BA83: 0 | BB83: 0 | BC83: 3 | BD83: 8.699999809 | BE83: 46.79999924 | BF83: 30.6305542 | BG83: 11.17064569 | BH83: 43.625 | BI83: 6.037216187 | BJ83: 5.073622227 | BK83: 0.2283333391 | BL83: 0.0789526701 | BM83: N | BN83: 0 | BO83: 38.16480131 | BP83: 25.00067964 | BQ83: 36 | BR83: 36 | BS83: 0 | BT83: 0 | BU83: 3 | BV83: 1 | BW83: 51.09999847 | BX83: 19.53610992 | BY83: 15.74065061 | BZ83: 5.174999714 | CA83: 1.232870579 | CB83: 15.846035 | CC83: 0.2283333391 | CD83: 0.1062736511 | CE83: G | CF83: 0 | CG83: 26.97219336 | CH83: 25.00000255 | CI83: 36 | CJ83: 36 | CK83: 0 | CL83: 0 | CM83: 3 | DE83: 3 | DW83: 3 | EO83: 3
A84: 4 | B84: 3.460000038 | C84: 141.7899933 | D84: 49.18138123 | E84: 31.9560875 | F84: 14.98749924 | G84: 2.163425207 | H84: 22.73310852 | I84: 0.2283333391 | J84: 0.03928601742 | K84: G | L84: 0 | M84: 24.60417632 | N84: 75.00010922 | O84: 36 | P84: 36 | Q84: 0 | R84: 0 | S84: 4 | T84: 32.29999924 | U84: 56.50999832 | V84: 45.03756714 | W84: 6.64584239 | X84: 46.42250061 | Y84: 46.21041489 | Z84: 0.9746193886 | AA84: 0.2252266109 | AB84: 0.04495728016 | AC84: N | AD84: 0 | AE84: 40.554991 | AF84: 24.99999492 | AG84: 37 | AH84: 37 | AI84: 0 | AJ84: 0 | AK84: 4 | AL84: 21.54999924 | AM84: 137.3500061 | AN84: 83.12361145 | AO84: 31.48149413 | AP84: 108.4000015 | AQ84: 5.679031372 | AR84: 14.63693428 | AS84: 0.2283333391 | AT84: 0.07859712839 | AU84: N | AV84: 0 | AW84: 61.88981562 | AX84: 74.99984932 | AY84: 36 | AZ84: 36 | BA84: 0 | BB84: 0 | BC84: 4 | BD84: 14.80000019 | BE84: 47.79999924 | BF84: 34.66110992 | BG84: 7.528357492 | BH84: 39.54999924 | BI84: 18.7173233 | BJ84: 1.851819754 | BK84: 0.2283333391 | BL84: 0.06481480598 | BM84: T | BN84: 0 | BO84: 39.54999607 | BP84: 25.00001994 | BQ84: 36 | BR84: 36 | BS84: 0 | BT84: 0 | BU84: 4 | BV84: 1.899999976 | BW84: 40.79999924 | BX84: 12.99999809 | BY84: 9.354815511 | BZ84: 5.141666412 | CA84: 1.924611568 | CB84: 6.754608631 | CC84: 0.2283333391 | CD84: 0.05540752411 | CE84: G | CF84: 0 | CG84: 17.54660776 | CH84: 25.00001031 | CI84: 36 | CJ84: 36 | CK84: 0 | CL84: 0 | CM84: 4 | DE84: 4 | DW84: 4 | EO84: 4
A85: 5 | B85: 13.85000038 | C85: 188.8099976 | D85: 66.87028503 | E85: 39.6802697 | F85: 28.43000031 | G85: 3.205052853 | H85: 20.86401939 | I85: 0.2283333391 | J85: 0.03964796662 | K85: G | L85: 0 | M85: 39.43983733 | N85: 74.99995827 | O85: 36 | P85: 36 | Q85: 0 | R85: 0 | S85: 5 | T85: 32.74000168 | U85: 52.84000015 | V85: 41.26702881 | W85: 5.278999526 | X85: 37.76499939 | Y85: 63.97136307 | Z85: 0.6450859904 | AA85: 0.2252266109 | AB85: 0.0780781284 | AC85: T | AD85: 0 | AE85: 37.76500487 | AF85: 24.99997748 | AG85: 37 | AH85: 37 | AI85: 0 | AJ85: 0 | AK85: 5 | AL85: 52.86000061 | AM85: 154.8899994 | AN85: 106.1036072 | AO85: 31.01675061 | AP85: 129.3824921 | AQ85: 10.65843201 | AR85: 9.954897881 | AS85: 0.2283333391 | AT85: 0.1111111045 | AU85: U | AV85: 0 | AW85: 78.36750031 | AX85: 75 | AY85: 36 | AZ85: 36 | BA85: 0 | BB85: 0 | BC85: 5 | BD85: 14.89999962 | BE85: 48.79999924 | BF85: 37.02500534 | BG85: 6.239294114 | BH85: 40.32500076 | BI85: 28.27790833 | BJ85: 1.309326172 | BK85: 0.2283333391 | BL85: 0.08442223817 | BM85: N | BN85: 0 | BO85: 41.23345268 | BP85: 24.99945293 | BQ85: 36 | BR85: 36 | BS85: 0 | BT85: 0 | BU85: 5 | BV85: 2.200000048 | BW85: 46.20000076 | BX85: 9.083333015 | BY85: 9.535273869 | BZ85: 5.866666794 | CA85: 1.646539927 | CB85: 5.516618729 | CC85: 0.2283333391 | CD85: 0.1229692698 | CE85: G | CF85: 0 | CG85: 12.37748227 | CH85: 25.00011644 | CI85: 36 | CJ85: 36 | CK85: 0 | CL85: 0 | CM85: 5 | DE85: 5 | DW85: 5 | EO85: 5
A86: 6 | B86: 0.6600000262 | C86: 191.2799988 | D86: 77.1341629 | E86: 53.38850779 | F86: 16.54500008 | G86: 1.323224783 | H86: 58.29256058 | I86: 0.2283333391 | J86: 0.1036927402 | K86: N | L86: 0 | M86: 41.12415303 | N86: 75.00000511 | O86: 36 | P86: 36 | Q86: 0 | R86: 0 | S86: 6 | T86: 31.89999962 | U86: 62.88999939 | V86: 43.44134521 | W86: 8.017201051 | X86: 39.64749908 | Y86: 32.36498642 | Z86: 1.342232823 | AA86: 0.2252266109 | AB86: 0.05388247967 | AC86: G | AD86: 0 | AE86: 38.07667108 | AF86: 24.99999011 | AG86: 37 | AH86: 37 | AI86: 0 | AJ86: 0 | AK86: 6 | AL86: 57.18000031 | AM86: 171.6100006 | AN86: 119.786377 | AO86: 32.60542359 | AP86: 143.0025024 | AQ86: 12.22806931 | AR86: 9.796017647 | AS86: 0.2283333391 | AT86: 0.08878612518 | AU86: N | AV86: 0 | AW86: 97.79436424 | AX86: 74.99998898 | AY86: 36 | AZ86: 36 | BA86: 0 | BB86: 0 | BC86: 6 | BD86: 7.699999809 | BE86: 45.79999924 | BF86: 35.15833664 | BG86: 7.58808694 | BH86: 36.27499771 | BI86: 13.85746193 | BJ86: 2.537141085 | BK86: 0.2283333391 | BL86: 0.09900274873 | BM86: N | BN86: 0 | BO86: 40.27645725 | BP86: 24.99985866 | BQ86: 36 | BR86: 36 | BS86: 0 | BT86: 0 | BU86: 6 | BV86: 2.599999905 | BW86: 56.09999847 | BX86: 12.52857018 | BY86: 13.13286943 | BZ86: 7.05833292 | CA86: 1.73286283 | CB86: 7.229983807 | CC86: 0.2315722704 | CD86: 0.1352164149 | CE86: E | CF86: 0 | CG86: 17.36827499 | CH86: 25.00002234 | CI86: 36 | CJ86: 36 | CK86: 0 | CL86: 0 | CM86: 6 | DE86: 6 | DW86: 6 | EO86: 6
A87: 7 | B87: 1.200000048 | C87: 145.1799927 | D87: 64.26555634 | E87: 36.61532809 | F87: 37.19499969 | G87: 2.150250673 | H87: 29.88747215 | I87: 0.2283333391 | J87: 0.0462962985 | K87: T | L87: 0 | M87: 37.19500197 | N87: 74.9999958 | O87: 36 | P87: 36 | Q87: 0 | R87: 0 | S87: 7 | T87: 31.56999969 | U87: 59.06000137 | V87: 42.99648666 | W87: 6.858575796 | X87: 38.44250107 | Y87: 41.25332642 | Z87: 1.042255044 | AA87: 0.2252266109 | AB87: 0.02502506971 | AC87: T | AD87: 0 | AE87: 38.44250466 | AF87: 24.99994585 | AG87: 37 | AH87: 37 | AI87: 0 | AJ87: 0 | AK87: 7 | AL87: 60.99000168 | AM87: 176.1900024 | AN87: 125.4516602 | AO87: 38.67917703 | AP87: 166.5900116 | AQ87: 9.485331535 | AR87: 13.22585964 | AS87: 0.2283333391 | AT87: 0.1227992177 | AU87: N | AV87: 0 | AW87: 99.36295922 | AX87: 74.99999383 | AY87: 36 | AZ87: 36 | BA87: 0 | BB87: 0 | BC87: 7 | BD87: 17.70000076 | BE87: 47.59999847 | BF87: 34.97499847 | BG87: 7.302773813 | BH87: 30.15833282 | BI87: 21.76274681 | BJ87: 1.607104063 | BK87: 0.2283333391 | BL87: 0.05646359921 | BM87: G | BN87: 0 | BO87: 39.69883328 | BP87: 24.99913525 | BQ87: 36 | BR87: 36 | BS87: 0 | BT87: 0 | BU87: 7 | BV87: 3 | BW87: 39.90000153 | BX87: 11.73888874 | BY87: 8.923332029 | BZ87: 6.074999809 | CA87: 2.818319082 | CB87: 4.165209293 | CC87: 0.2283333391 | CD87: 0.1267461777 | CE87: E | CF87: 0 | CG87: 16.27354478 | CH87: 25.00002234 | CI87: 36 | CJ87: 36 | CK87: 0 | CL87: 0 | CM87: 7 | DE87: 7 | DW87: 7 | EO87: 7
A88: 8 | B88: 15.06000042 | C88: 170.3600006 | D88: 78.75415802 | E88: 43.89315307 | F88: 53.88500214 | G88: 3.048765898 | H88: 25.83148766 | I88: 0.2283333391 | J88: 0.07413452864 | K88: G | L88: 0 | M88: 45.61675407 | N88: 74.99971226 | O88: 36 | P88: 36 | Q88: 0 | R88: 0 | S88: 8 | T88: 32.97000122 | U88: 53.15000153 | V88: 41.15378189 | W88: 5.229640904 | X88: 41.37833405 | Y88: 63.92936707 | Z88: 0.6437382698 | AA88: 0.2252266109 | AB88: 0.06801493466 | AC88: G | AD88: 0 | AE88: 37.57519475 | AF88: 25.00000123 | AG88: 37 | AH88: 37 | AI88: 0 | AJ88: 0 | AK88: 8 | AL88: 61.06000137 | AM88: 187.8300018 | AN88: 131.1766663 | AO88: 37.07687557 | AP88: 177.2658386 | AQ88: 11.51500988 | AR88: 11.39179802 | AS88: 0.2283333391 | AT88: 0.07424408197 | AU88: N | AV88: 0 | AW88: 106.1688822 | AX88: 74.9998385 | AY88: 36 | AZ88: 36 | BA88: 0 | BB88: 0 | BC88: 8 | BD88: 21.10000038 | BE88: 43 | BF88: 31.21944809 | BG88: 6.465504592 | BH88: 33.875 | BI88: 23.73639107 | BJ88: 1.315256715 | BK88: 0.2283333391 | BL88: 0.05023705959 | BM88: G | BN88: 0 | BO88: 35.270243 | BP88: 25.00001181 | BQ88: 36 | BR88: 36 | BS88: 0 | BT88: 0 | BU88: 8 | BV88: 3.900000095 | BW88: 31 | BX88: 12.2142849 | BY88: 5.256625219 | BZ88: 10.67499924 | CA88: 9.984882355 | CB88: 1.223277807 | CC88: 0.2315722704 | CD88: 0.02364256978 | CE88: N | CF88: 0 | CG88: 15.75977408 | CH88: 25.00030619 | CI88: 36 | CJ88: 36 | CK88: 0 | CL88: 0 | CM88: 8 | DE88: 8 | DW88: 8 | EO88: 8
A89: 9 | B89: 9.670000076 | C89: 203.6799927 | D89: 98.42610931 | E89: 49.01572711 | F89: 58.17250061 | G89: 3.554296732 | H89: 27.69214821 | I89: 0.2283333391 | J89: 0.05597740412 | K89: G | L89: 0 | M89: 60.13012118 | N89: 74.99999975 | O89: 36 | P89: 36 | Q89: 0 | R89: 0 | S89: 9 | T89: 31.40999985 | U89: 46.09999847 | V89: 37.78108215 | W89: 3.989661087 | X89: 37.5308342 | Y89: 92.7915802 | Z89: 0.4071606696 | AA89: 0.2252266109 | AB89: 0.04549580812 | AC89: N | AD89: 0 | AE89: 35.09007263 | AF89: 25.0005848 | AG89: 37 | AH89: 37 | AI89: 0 | AJ89: 0 | AK89: 9 | AL89: 75.33000183 | AM89: 186.9900055 | AN89: 136.4491425 | AO89: 35.33186001 | AP89: 177.6849976 | AQ89: 14.02941608 | AR89: 9.725932121 | AS89: 0.2283333391 | AT89: 0.09470522404 | AU89: G | AV89: 0 | AW89: 110.4417697 | AX89: 74.99917153 | AY89: 36 | AZ89: 36 | BA89: 0 | BB89: 0 | BC89: 9 | BD89: 15.5 | BE89: 44 | BF89: 25.49166298 | BG89: 7.641068834 | BH89: 22.625 | BI89: 12.32060623 | BJ89: 2.069026709 | BK89: 0.2283333391 | BL89: 0.1002789736 | BM89: G | BN89: 0 | BO89: 29.94424038 | BP89: 25.00000373 | BQ89: 36 | BR89: 36 | BS89: 0 | BT89: 0 | BU89: 9 | BV89: 4.900000095 | BW89: 30.10000038 | BX89: 17.23428726 | BY89: 6.176758044 | BZ89: 19.59999847 | CA89: 15.83594704 | CB89: 1.088301659 | CC89: 0.2315722704 | CD89: 0.08200797439 | CE89: N | CF89: 0 | CG89: 21.40025419 | CH89: 25.00099325 | CI89: 36 | CJ89: 36 | CK89: 0 | CL89: 0 | CM89: 9 | DE89: 9 | DW89: 9 | EO89: 9
A90: 10 | B90: 14.77000046 | C90: 265.7600098 | D90: 91.19470978 | E90: 55.78304663 | F90: 77.51750183 | G90: 2.990875244 | H90: 30.49097824 | I90: 0.2283333391 | J90: 0.09419071674 | K90: G | L90: 0 | M90: 52.4469575 | N90: 75.00003666 | O90: 36 | P90: 36 | Q90: 0 | R90: 0 | S90: 10 | T90: 31.39999962 | U90: 46.45999908 | V90: 39.23648834 | W90: 3.626199721 | X90: 42.69499969 | Y90: 117.2648773 | Z90: 0.3345971107 | AA90: 0.2252266109 | AB90: 0.09009000659 | AC90: U | AD90: 0 | AE90: 35.16499949 | AF90: 24.99998189 | AG90: 37 | AH90: 37 | AI90: 0 | AJ90: 0 | AK90: 10 | AL90: 61.09999847 | AM90: 185.3300018 | AN90: 134.0461121 | AO90: 36.90444733 | AP90: 174.9774933 | AQ90: 12.13171101 | AR90: 11.04923344 | AS90: 0.2283333391 | AT90: 0.1220631599 | AU90: N | AV90: 0 | AW90: 109.1545835 | AX90: 74.99987697 | AY90: 36 | AZ90: 36 | BA90: 0 | BB90: 0 | BC90: 10 | BD90: 9.100000381 | BE90: 39.59999847 | BF90: 20.99444199 | BG90: 9.279684738 | BH90: 11.64166641 | BI90: 5.640665054 | BJ90: 3.721979856 | BK90: 0.2283333391 | BL90: 0.0726506412 | BM90: G | BN90: 0 | BO90: 26.09743117 | BP90: 24.9999856 | BQ90: 36 | BR90: 36 | BS90: 0 | BT90: 0 | BU90: 10 | BV90: 7.400000095 | BW90: 33.59999847 | BX90: 21.68055534 | BY90: 7.059170639 | BZ90: 27.04999924 | CA90: 7.163693905 | CB90: 3.026449203 | CC90: 0.2283333391 | CD90: 0.09003329277 | CE90: N | CF90: 0 | CG90: 26.44189304 | CH90: 25.00000247 | CI90: 36 | CJ90: 36 | CK90: 0 | CL90: 0 | CM90: 10 | DE90: 10 | DW90: 10 | EO90: 10
A91: 11 | B91: 19.20999908 | C91: 163.3600006 | D91: 80.52861023 | E91: 52.01615772 | F91: 31.22249985 | G91: 2.263947964 | H91: 35.56999207 | I91: 0.2283333391 | J91: 0.09113681316 | K91: G | L91: 0 | M91: 41.17983421 | N91: 75.00005281 | O91: 36 | P91: 36 | Q91: 0 | R91: 0 | S91: 11 | T91: 31.04999924 | U91: 46.59999847 | V91: 38.71026993 | W91: 4.723182062 | X91: 40.12083054 | Y91: 67.27941895 | Z91: 0.5753657222 | AA91: 0.2252266109 | AB91: 0.06756743789 | AC91: U | AD91: 0 | AE91: 34.93749905 | AF91: 24.99999783 | AG91: 37 | AH91: 37 | AI91: 0 | AJ91: 0 | AK91: 11 | AL91: 65.40000153 | AM91: 185.1300049 | AN91: 130.2994385 | AO91: 38.69715083 | AP91: 175.1524963 | AQ91: 10.77174282 | AR91: 12.09641171 | AS91: 0.2283333391 | AT91: 0.1214952469 | AU91: N | AV91: 0 | AW91: 104.1981425 | AX91: 75.00038131 | AY91: 36 | AZ91: 36 | BA91: 0 | BB91: 0 | BC91: 11 | BD91: 7.699999809 | BE91: 48.09999847 | BF91: 18.39722252 | BG91: 11.33609835 | BH91: 11.0666666 | BI91: 3.273960114 | BJ91: 5.619256973 | BK91: 0.2283333391 | BL91: 0.08069294691 | BM91: E | BN91: 0 | BO91: 25.50397772 | BP91: 24.99998385 | BQ91: 36 | BR91: 36 | BS91: 0 | BT91: 0 | BU91: 11 | BV91: 1.700000048 | BW91: 35.70000076 | BX91: 24.18611336 | BY91: 8.398712296 | BZ91: 27.20000076 | CA91: 3.960767746 | CB91: 6.106420517 | CC91: 0.2283333391 | CD91: 0.154458344 | CE91: N | CF91: 0 | CG91: 29.85095828 | CH91: 25.00000166 | CI91: 36 | CJ91: 36 | CK91: 0 | CL91: 0 | CM91: 11 | DE91: 11 | DW91: 11 | EO91: 11
A92: 12 | B92: 7.139999866 | C92: 232.3999939 | D92: 81.10971069 | E92: 55.8077165 | F92: 25.91166496 | G92: 2.123575687 | H92: 38.19487762 | I92: 0.2283333391 | J92: 0.07467377186 | K92: G | L92: 0 | M92: 40.2043863 | N92: 74.99999847 | O92: 36 | P92: 36 | Q92: 0 | R92: 0 | S92: 12 | T92: 29.77000046 | U92: 50.33000183 | V92: 38.39189529 | W92: 5.431753871 | X92: 38.33666611 | Y92: 52.65026093 | Z92: 0.7291871905 | AA92: 0.2252266109 | AB92: 0.06368619204 | AC92: N | AD92: 0 | AE92: 34.72825016 | AF92: 24.99910529 | AG92: 37 | AH92: 37 | AI92: 0 | AJ92: 0 | AK92: 12 | AL92: 58.65000153 | AM92: 188.2700043 | AN92: 130.2350006 | AO92: 39.09964484 | AP92: 177.468338 | AQ92: 10.23375416 | AR92: 12.72602367 | AS92: 0.2283333391 | AT92: 0.079373613 | AU92: N | AV92: 0 | AW92: 103.8626541 | AX92: 75.00002995 | AY92: 36 | AZ92: 36 | BA92: 0 | BB92: 0 | BC92: 12 | BD92: 6.099999905 | BE92: 45.70000076 | BF92: 14.7527771 | BG92: 11.40740309 | BH92: 9.399999619 | BI92: 2.459282398 | BJ92: 5.998813629 | BK92: 0.2283333391 | BL92: 0.08269536495 | BM92: E | BN92: 0 | BO92: 20.45169103 | BP92: 25.00000113 | BQ92: 36 | BR92: 36 | BS92: 0 | BT92: 0 | BU92: 12 | BV92: 4.400000095 | BW92: 35.29999924 | BX92: 26.69999695 | BY92: 8.129031076 | BZ92: 32.72499847 | CA92: 6.134786606 | CB92: 4.352229118 | CC92: 0.2283333391 | CD92: 0.2050093412 | CE92: N | CF92: 0 | CG92: 32.18294434 | CH92: 25.00000291 | CI92: 36 | CJ92: 36 | CK92: 0 | CL92: 0 | CM92: 12 | DE92: 12 | DW92: 12 | EO92: 12
A93: 13 | B93: 4.21999979 | C93: 279.5899963 | D93: 66.62249756 | E93: 56.53239228 | F93: 27.16749954 | G93: 1.645112872 | H93: 40.49721909 | I93: 0.2283333391 | J93: 0.03091752529 | K93: E | L93: 0 | M93: 19.1656103 | N93: 75.00054922 | O93: 36 | P93: 36 | Q93: 0 | R93: 0 | S93: 13 | T93: 30.97999954 | U93: 47.99000168 | V93: 38.83513641 | W93: 3.972087508 | X93: 40.90250015 | Y93: 97.42917633 | Z93: 0.3985986412 | AA93: 0.2252266109 | AB93: 0.08939105272 | AC93: N | AD93: 0 | AE93: 36.15604224 | AF93: 25.00045405 | AG93: 37 | AH93: 37 | AI93: 0 | AJ93: 0 | AK93: 13 | AL93: 54.77000046 | AM93: 180.8200073 | AN93: 121.519989 | AO93: 37.23850723 | AP93: 149.3075104 | AQ93: 10.05040073 | AR93: 12.09105873 | AS93: 0.2283333391 | AT93: 0.05555552244 | AU93: U | AV93: 0 | AW93: 86.28250217 | AX93: 75 | AY93: 36 | AZ93: 36 | BA93: 0 | BB93: 0 | BC93: 13 | BD93: 5 | BE93: 43.09999847 | BF93: 14.08889008 | BG93: 9.606003283 | BH93: 8.175000191 | BI93: 2.872153282 | BJ93: 4.905340672 | BK93: 0.2283333391 | BL93: 0.05559164286 | BM93: E | BN93: 0 | BO93: 19.53110353 | BP93: 25.00043533 | BQ93: 36 | BR93: 36 | BS93: 0 | BT93: 0 | BU93: 13 | BV93: 9 | BW93: 39.09999847 | BX93: 30.53713989 | BY93: 6.026514596 | BZ93: 31.57499886 | CA93: 16.28661537 | CB93: 1.874983788 | CC93: 0.2315722704 | CD93: 0.166963622 | CE93: N | CF93: 2.702702703 | CG93: 34.47121249 | CH93: 25.00000974 | CI93: 36 | CJ93: 36 | CK93: 1 | CL93: 2.702702703 | CM93: 13 | DE93: 13 | DW93: 13 | EO93: 13
A94: 14 | B94: 0.5699999928 | C94: 159.5299988 | D94: 40.53916931 | E94: 41.78129382 | F94: 13.8166666 | G94: 0.9734803438 | H94: 41.64354324 | I94: 0.2283333391 | J94: 0.06463080645 | K94: G | L94: 0 | M94: 11.34356728 | N94: 74.99954391 | O94: 36 | P94: 36 | Q94: 0 | R94: 0 | S94: 14 | T94: 31.89999962 | U94: 49.56000137 | V94: 40.1256752 | W94: 4.836352797 | X94: 36.31499863 | Y94: 70.33519745 | Z94: 0.5704920888 | AA94: 0.2252266109 | AB94: 0.08219942451 | AC94: G | AD94: 0 | AE94: 36.80342953 | AF94: 24.99998735 | AG94: 37 | AH94: 37 | AI94: 0 | AJ94: 0 | AK94: 14 | AL94: 51.97000122 | AM94: 178.3899994 | AN94: 112.1549988 | AO94: 34.86936768 | AP94: 125.7149963 | AQ94: 9.908288956 | AR94: 11.31931019 | AS94: 0.2283333391 | AT94: 0.02777777612 | AU94: U | AV94: 0 | AW94: 83.57500076 | AX94: 75 | AY94: 36 | AZ94: 36 | BA94: 0 | BB94: 0 | BC94: 14 | BD94: 4.300000191 | BE94: 47.29999924 | BF94: 17.43610954 | BG94: 11.82257264 | BH94: 7.883333206 | BI94: 2.188841581 | BJ94: 7.965907574 | BK94: 0.2283333391 | BL94: 0.07762145996 | BM94: E | BN94: 0 | BO94: 24.17154439 | BP94: 25.00005155 | BQ94: 36 | BR94: 36 | BS94: 0 | BT94: 0 | BU94: 14 | BV94: 6.400000095 | BW94: 36.90000153 | BX94: 26.69167137 | BY94: 8.792346609 | BZ94: 34.35833359 | CA94: 6.802635193 | CB94: 3.923725128 | CC94: 0.2283333391 | CD94: 0.12255162 | CE94: N | CF94: 0 | CG94: 32.62201839 | CH94: 25.00000234 | CI94: 36 | CJ94: 36 | CK94: 0 | CL94: 0 | CM94: 14 | DE94: 14 | DW94: 14 | EO94: 14
A95: 15 | B95: 2.700000048 | C95: 119 | D95: 26.73610878 | E95: 27.46873445 | F95: 12.39166641 | G95: 1.322641492 | H95: 20.21417618 | I95: 0.2283333391 | J95: 0.06562763453 | K95: E | L95: 0 | M95: 7.691625294 | N95: 74.99964623 | O95: 36 | P95: 36 | Q95: 0 | R95: 0 | S95: 15 | T95: 30.45000076 | U95: 49.22000122 | V95: 40.57865524 | W95: 4.42689795 | X95: 41.39916611 | Y95: 84.54836273 | Z95: 0.4799460769 | AA95: 0.2252266109 | AB95: 0.06940823793 | AC95: G | AD95: 0 | AE95: 37.52138801 | AF95: 24.99998604 | AG95: 37 | AH95: 37 | AI95: 0 | AJ95: 0 | AK95: 15 | AL95: 49.38000107 | AM95: 160.8399963 | AN95: 105.6388931 | AO95: 32.97311508 | AP95: 77.24500275 | AQ95: 10.08729458 | AR95: 10.47247028 | AS95: 0.2283333391 | AT95: 0.05555555224 | AU95: U | AV95: 0 | AW95: 77.24499989 | AX95: 75 | AY95: 36 | AZ95: 36 | BA95: 0 | BB95: 0 | BC95: 15 | BD95: 4.5 | BE95: 48 | BF95: 21.45000267 | BG95: 15.34977974 | BH95: 8.125 | BI95: 1.896898746 | BJ95: 11.3079319 | BK95: 0.2283333391 | BL95: 0.1109856367 | BM95: G | BN95: 0 | BO95: 28.979273 | BP95: 24.99980728 | BQ95: 36 | BR95: 36 | BS95: 0 | BT95: 0 | BU95: 15 | BV95: 0.3000000119 | BW95: 37.70000076 | BX95: 22.89167023 | BY95: 13.29694787 | BZ95: 34.58333588 | CA95: 1.163074136 | CB95: 19.68203926 | CC95: 0.2283333391 | CD95: 0.1722995639 | CE95: N | CF95: 0 | CG95: 31.86024057 | CH95: 25.00020244 | CI95: 36 | CJ95: 36 | CK95: 0 | CL95: 0 | CM95: 15 | DE95: 15 | DW95: 15 | EO95: 15
A96: 16 | B96: 0.5799999833 | C96: 72.19000244 | D96: 17.46885681 | E96: 14.36586411 | F96: 6.547500134 | G96: 1.384827614 | H96: 12.61446285 | I96: 0.2315722704 | J96: 0.04823076725 | K96: G | L96: 2.702702703 | M96: 6.166627661 | N96: 75.00000096 | O96: 36 | P96: 36 | Q96: 1 | R96: 2.702702703 | S96: 16 | T96: 34.27000046 | U96: 50.27999878 | V96: 40.51459885 | W96: 4.101632021 | X96: 38.27249908 | Y96: 104.618576 | Z96: 0.3872600794 | AA96: 0.2252266109 | AB96: 0.06507882476 | AC96: G | AD96: 0 | AE96: 37.77726517 | AF96: 24.99985205 | AG96: 37 | AH96: 37 | AI96: 0 | AJ96: 0 | AK96: 16 | AL96: 46.81000137 | AM96: 158.5399933 | AN96: 98.76638794 | AO96: 28.61943113 | AP96: 74.74250031 | AQ96: 11.5296793 | AR96: 8.566273689 | AS96: 0.2283333391 | AT96: 0.09122264385 | AU96: G | AV96: 0 | AW96: 77.91307967 | AX96: 74.9999795 | AY96: 36 | AZ96: 36 | BA96: 0 | BB96: 0 | BC96: 16 | BD96: 4.900000095 | BE96: 45.79999924 | BF96: 22.69166565 | BG96: 14.5330833 | BH96: 8.308333397 | BI96: 2.289952278 | BJ96: 9.909231186 | BK96: 0.2283333391 | BL96: 0.1396742463 | BM96: E | BN96: 0 | BO96: 31.4575047 | BP96: 24.99980548 | BQ96: 36 | BR96: 36 | BS96: 0 | BT96: 0 | BU96: 16 | BV96: 1.5 | BW96: 40.09999847 | BX96: 22.30555534 | BY96: 13.1482524 | BZ96: 30.44999886 | CA96: 1.645799279 | CB96: 13.55302334 | CC96: 0.2283333391 | CD96: 0.1816144586 | CE96: N | CF96: 0 | CG96: 31.1739155 | CH96: 25.00000318 | CI96: 36 | CJ96: 36 | CK96: 0 | CL96: 0 | CM96: 16 | DE96: 16 | DW96: 16 | EO96: 16
A97: 17 | B97: 0.3000000119 | C97: 70.95999908 | D97: 15.99199963 | E97: 16.83596922 | F97: 6.188333511 | G97: 0.8607257009 | H97: 18.57966995 | I97: 0.2315722704 | J97: 0.08024823666 | K97: G | L97: 2.702702703 | M97: 3.485035374 | N97: 74.99999904 | O97: 36 | P97: 36 | Q97: 1 | R97: 2.702702703 | S97: 17 | T97: 34.75 | U97: 49.02000046 | V97: 41.09217072 | W97: 3.887390631 | X97: 38.31750107 | Y97: 117.6321411 | Z97: 0.3493277431 | AA97: 0.2252266109 | AB97: 0.07107102871 | AC97: T | AD97: 0 | AE97: 38.31750057 | AF97: 24.99998326 | AG97: 37 | AH97: 37 | AI97: 0 | AJ97: 0 | AK97: 17 | AL97: 44.72000122 | AM97: 150.8800049 | AN97: 95.39250183 | AO97: 27.9904202 | AP97: 106.6466751 | AQ97: 11.22898483 | AR97: 8.495203018 | AS97: 0.2283333391 | AT97: 0.09813982248 | AU97: N | AV97: 0 | AW97: 76.5134301 | AX97: 74.99979588 | AY97: 36 | AZ97: 36 | BA97: 0 | BB97: 0 | BC97: 17 | BD97: 3.599999905 | BE97: 41.5 | BF97: 20.9888916 | BG97: 12.10170624 | BH97: 6.758333206 | BI97: 2.560234547 | BJ97: 8.198034286 | BK97: 0.2283333391 | BL97: 0.09958702326 | BM97: G | BN97: 0 | BO97: 27.76363476 | BP97: 25.00002489 | BQ97: 36 | BR97: 36 | BS97: 0 | BT97: 0 | BU97: 17 | BV97: 0.8999999762 | BW97: 38.40000153 | BX97: 24.46944427 | BY97: 11.12918458 | BZ97: 35.27500153 | CA97: 2.271887541 | CB97: 10.77053547 | CC97: 0.2283333391 | CD97: 0.1186868548 | CE97: T | CF97: 0 | CG97: 43.8126606 | CH97: 25.00000171 | CI97: 36 | CJ97: 36 | CK97: 0 | CL97: 0 | CM97: 17 | DE97: 17 | DW97: 17 | EO97: 17
A98: 18 | B98: 0.03999999911 | C98: 45.63000107 | D98: 10.45182037 | E98: 11.4501363 | F98: 3.839166641 | G98: 0.7722244859 | H98: 13.53469181 | I98: 0.2384863943 | J98: 0.03477367759 | K98: E | L98: 8.108108108 | M98: 2.123012526 | N98: 75.00007311 | O98: 36 | P98: 36 | Q98: 3 | R98: 8.108108108 | S98: 18 | T98: 35.24000168 | U98: 54.63999939 | V98: 42.28324509 | W98: 3.999622566 | X98: 40.09000015 | Y98: 119.6409988 | Z98: 0.3534176946 | AA98: 0.2252266109 | AB98: 0.05393057317 | AC98: G | AD98: 0 | AE98: 39.61561179 | AF98: 25.00005325 | AG98: 37 | AH98: 37 | AI98: 0 | AJ98: 0 | AK98: 18 | AL98: 43.15000153 | AM98: 142.7700043 | AN98: 90.91834259 | AO98: 26.15044132 | AP98: 101.261673 | AQ98: 11.55858612 | AR98: 7.865870476 | AS98: 0.2283333391 | AT98: 0.08333332092 | AU98: U | AV98: 0 | AW98: 68.05500221 | AX98: 75 | AY98: 36 | AZ98: 36 | BA98: 0 | BB98: 0 | BC98: 18 | BD98: 4.800000191 | BE98: 44.09999847 | BF98: 20.22499847 | BG98: 13.08107419 | BH98: 8.074999809 | BI98: 2.455760717 | BJ98: 8.235736847 | BK98: 0.2283333391 | BL98: 0.09478288889 | BM98: G | BN98: 0 | BO98: 26.83641339 | BP98: 25.00005375 | BQ98: 36 | BR98: 36 | BS98: 0 | BT98: 0 | BU98: 18 | BV98: 0.8999999762 | BW98: 50 | BX98: 25.15277863 | BY98: 13.60335004 | BZ98: 37.72499847 | CA98: 1.937424898 | CB98: 12.98258209 | CC98: 0.2283333391 | CD98: 0.1059559137 | CE98: N | CF98: 0 | CG98: 34.32810009 | CH98: 24.99999696 | CI98: 36 | CJ98: 36 | CK98: 0 | CL98: 0 | CM98: 18 | DE98: 18 | DW98: 18 | EO98: 18
A99: 19 | B99: 0.009999999776 | C99: 52.18999863 | D99: 10.39909267 | E99: 12.37413376 | F99: 4.358333588 | G99: 0.7154841423 | H99: 14.53434372 | I99: 0.2384863943 | J99: 0.01718562841 | K99: G | L99: 8.108108108 | M99: 1.258536856 | N99: 74.9999191 | O99: 36 | P99: 36 | Q99: 3 | R99: 8.108108108 | S99: 19 | T99: 35.63000107 | U99: 54.13000107 | V99: 43.09000015 | W99: 4.443793119 | X99: 40.25500107 | Y99: 100.0743103 | Z99: 0.4305800498 | AA99: 0.2252266109 | AB99: 0.05205193162 | AC99: T | AD99: 0 | AE99: 40.25500417 | AF99: 25.0000084 | AG99: 37 | AH99: 37 | AI99: 0 | AJ99: 0 | AK99: 19 | AL99: 41.52999878 | AM99: 139.0500031 | AN99: 87.82361603 | AO99: 24.98116111 | AP99: 98.41667175 | AQ99: 11.7705698 | AR99: 7.461288452 | AS99: 0.2283333391 | AT99: 0.08333337307 | AU99: U | AV99: 0 | AW99: 65.90999985 | AX99: 75 | AY99: 36 | AZ99: 36 | BA99: 0 | BB99: 0 | BC99: 19 | BD99: 3.400000095 | BE99: 43.20000076 | BF99: 17.78055573 | BG99: 12.12927611 | BH99: 6.716666698 | BI99: 2.063383579 | BJ99: 8.617183685 | BK99: 0.2283333391 | BL99: 0.1193478107 | BM99: E | BN99: 0 | BO99: 24.64909058 | BP99: 24.99999094 | BQ99: 36 | BR99: 36 | BS99: 0 | BT99: 0 | BU99: 19 | BV99: 4.699999809 | BW99: 47.29999924 | BX99: 28.26388741 | BY99: 12.18634309 | BZ99: 29.54999924 | CA99: 4.253945827 | CB99: 6.644157887 | CC99: 0.2283333391 | CD99: 0.06789949536 | CE99: N | CF99: 0 | CG99: 36.48345249 | CH99: 24.99999588 | CI99: 36 | CJ99: 36 | CK99: 0 | CL99: 0 | CM99: 19 | DE99: 19 | DW99: 19 | EO99: 19
A100: 20 | B100: 0.05999999866 | C100: 23.87999916 | D100: 6.808235168 | E100: 6.955027391 | F100: 2.044999838 | G100: 0.6748456359 | H100: 10.08858109 | I100: 0.2349530607 | J100: 0.0653296113 | K100: E | L100: 5.405405405 | M100: 1.580186614 | N100: 75.00096914 | O100: 36 | P100: 36 | Q100: 2 | R100: 5.405405405 | S100: 20 | T100: 36.72000122 | U100: 54.75999832 | V100: 45.44269943 | W100: 4.26867522 | X100: 47.24333191 | Y100: 115.8288116 | Z100: 0.3923263848 | AA100: 0.2252266109 | AB100: 0.03336304426 | AC100: N | AD100: 0 | AE100: 42.56346412 | AF100: 25.00001023 | AG100: 37 | AH100: 37 | AI100: 0 | AJ100: 0 | AK100: 20 | AL100: 39.88000107 | AM100: 127.4700012 | AN100: 84.92362213 | AO100: 23.87217112 | AP100: 105.5725021 | AQ100: 11.81733227 | AR100: 7.186361313 | AS100: 0.2283333391 | AT100: 0.08333332092 | AU100: U | AV100: 0 | AW100: 61.77750111 | AX100: 75 | AY100: 36 | AZ100: 36 | BA100: 0 | BB100: 0 | BC100: 20 | BD100: 2 | BE100: 43.40000153 | BF100: 14.34444523 | BG100: 10.32009035 | BH100: 5.449999809 | BI100: 2.040870667 | BJ100: 7.028591156 | BK100: 0.2283333391 | BL100: 0.06844735146 | BM100: E | BN100: 0 | BO100: 19.88564352 | BP100: 24.99996517 | BQ100: 36 | BR100: 36 | BS100: 0 | BT100: 0 | BU100: 20 | BV100: 1.700000048 | BW100: 49.90000153 | BX100: 31.57222176 | BY100: 9.895528581 | BZ100: 37.85000229 | CA100: 5.114822865 | CB100: 6.172691345 | CC100: 0.2283333391 | CD100: 0.07782356441 | CE100: N | CF100: 0 | CG100: 38.24665349 | CH100: 25.00000279 | CI100: 36 | CJ100: 36 | CK100: 0 | CL100: 0 | CM100: 20 | DE100: 20 | DW100: 20 | EO100: 20
A101: 21 | B101: 0.02999999933 | C101: 14.67000008 | D101: 3.631723881 | E101: 4.122031791 | F101: 1.493999958 | G101: 0.5555897951 | H101: 6.536700249 | I101: 0.2544026077 | J101: 0.0547337532 | K101: E | L101: 18.91891892 | M101: 0.283134967 | N101: 74.99999639 | O101: 36 | P101: 36 | Q101: 7 | R101: 18.91891892 | S101: 21 | T101: 39.43999863 | U101: 56.47000122 | V101: 47.65189362 | W101: 3.962201701 | X101: 46.53583145 | Y101: 150.2810059 | Z101: 0.3170852661 | AA101: 0.2252266109 | AB101: 0.02575784922 | AC101: G | AD101: 0 | AE101: 44.97557961 | AF101: 24.99999529 | AG101: 37 | AH101: 37 | AI101: 0 | AJ101: 0 | AK101: 21 | AL101: 38.22000122 | AM101: 115.5500031 | AN101: 81.81916046 | AO101: 22.78607872 | AP101: 109.105835 | AQ101: 11.78531647 | AR101: 6.942466259 | AS101: 0.2283333391 | AT101: 0.1208440661 | AU101: N | AV101: 0 | AW101: 66.45019236 | AX101: 74.99998823 | AY101: 36 | AZ101: 36 | BA101: 0 | BB101: 0 | BC101: 21 | BD101: 2 | BE101: 45.70000076 | BF101: 13.09444523 | BG101: 12.83962627 | BH101: 5.641666412 | BI101: 1.354503393 | BJ101: 9.667340279 | BK101: 0.2283333391 | BL101: 0.07710164785 | BM101: E | BN101: 0 | BO101: 18.152758 | BP101: 24.99999538 | BQ101: 36 | BR101: 36 | BS101: 0 | BT101: 0 | BU101: 21 | BV101: 4.400000095 | BW101: 46.29999924 | BX101: 32.92499924 | BY101: 11.80351957 | BZ101: 35.82500076 | CA101: 3.980832577 | CB101: 8.270882607 | CC101: 0.2283333391 | CD101: 0.1531173587 | CE101: N | CF101: 0 | CG101: 40.88632166 | CH101: 25.00008224 | CI101: 36 | CJ101: 36 | CK101: 0 | CL101: 0 | CM101: 21 | DE101: 21 | DW101: 21 | EO101: 21
A102: 22 | B102: 0.009999999776 | C102: 4.110000134 | D102: 0.8916666508 | E102: 1.077825919 | F102: 0.4200000167 | G102: 0.6083121896 | H102: 1.465804338 | I102: 0.322912097 | J102: 0.0348572731 | K102: E | L102: 48.64864865 | M102: 0 | N102: 51.35135135 | O102: 36 | P102: 36 | Q102: 18 | R102: 48.64864865 | S102: 22 | T102: 44.13000107 | U102: 61.5 | V102: 51.88811111 | W102: 3.830762554 | X102: 51.36750031 | Y102: 189.7826996 | Z102: 0.2734080255 | AA102: 0.2252266109 | AB102: 0.0199509263 | AC102: G | AD102: 0 | AE102: 49.30034146 | AF102: 24.9997972 | AG102: 37 | AH102: 37 | AI102: 0 | AJ102: 0 | AK102: 22 | AL102: 36.65000153 | AM102: 107.8799973 | AN102: 79.45250702 | AO102: 22.55397782 | AP102: 101.9441681 | AQ102: 11.26668358 | AR102: 7.051987171 | AS102: 0.2283333391 | AT102: 0.1634382606 | AU102: G | AV102: 0 | AW102: 62.47397086 | AX102: 74.99999921 | AY102: 36 | AZ102: 36 | BA102: 0 | BB102: 0 | BC102: 22 | BD102: 1.799999952 | BE102: 45.40000153 | BF102: 10.53611088 | BG102: 12.45566233 | BH102: 5.433333397 | BI102: 1.126088619 | BJ102: 9.356378555 | BK102: 0.2283333391 | BL102: 0.1564065814 | BM102: G | BN102: 0 | BO102: 14.58243596 | BP102: 24.99914338 | BQ102: 36 | BR102: 36 | BS102: 0 | BT102: 0 | BU102: 22 | BV102: 8.100000381 | BW102: 48 | BX102: 34.09165955 | BY102: 10.89344189 | BZ102: 44.67499924 | CA102: 6.45080328 | CB102: 5.284870625 | CC102: 0.2283333391 | CD102: 0.1005515605 | CE102: N | CF102: 0 | CG102: 41.43913641 | CH102: 25.00011096 | CI102: 36 | CJ102: 36 | CK102: 0 | CL102: 0 | CM102: 22 | DE102: 22 | DW102: 22 | EO102: 22
A103: 23 | B103: 0.009999999776 | C103: 15.34000015 | D103: 2.904999971 | E103: 4.359225363 | F103: 1.542999983 | G103: 0.4751907289 | H103: 6.113334656 | I103: 0.2920849919 | J103: 0.04910594225 | K103: G | L103: 37.83783784 | M103: 0 | N103: 62.16216216 | O103: 36 | P103: 36 | Q103: 14 | R103: 37.83783784 | S103: 23 | T103: 44.16999817 | U103: 63.59000015 | V103: 54.31594467 | W103: 3.711992166 | X103: 52.26166534 | Y103: 217.4806671 | Z103: 0.2497506738 | AA103: 0.2252266109 | AB103: 0.07696937025 | AC103: N | AD103: 0 | AE103: 51.81224408 | AF103: 24.99998053 | AG103: 37 | AH103: 37 | AI103: 0 | AJ103: 0 | AK103: 23 | AL103: 35.09999847 | AM103: 105.25 | AN103: 77.53443909 | AO103: 22.61988393 | AP103: 99.40416718 | AQ103: 10.62952614 | AR103: 7.294251919 | AS103: 0.2283333391 | AT103: 0.1571407914 | AU103: G | AV103: 0 | AW103: 60.45495158 | AX103: 74.99999922 | AY103: 36 | AZ103: 36 | BA103: 0 | BB103: 0 | BC103: 23 | BD103: 1.799999952 | BE103: 35 | BF103: 6.75 | BG103: 7.088119087 | BH103: 4.566666603 | BI103: 1.582435727 | BJ103: 4.265575886 | BK103: 0.2283333391 | BL103: 0.1328103542 | BM103: G | BN103: 0 | BO103: 9.2181652 | BP103: 24.99989906 | BQ103: 36 | BR103: 36 | BS103: 0 | BT103: 0 | BU103: 23 | BV103: 12.39999962 | BW103: 50.09999847 | BX103: 36.14999771 | BY103: 7.395307352 | BZ103: 40.67499924 | CA103: 19.70339394 | CB103: 1.834709167 | CC103: 0.2283333391 | CD103: 0.05779445171 | CE103: N | CF103: 0 | CG103: 41.13805528 | CH103: 25.00000619 | CI103: 36 | CJ103: 36 | CK103: 0 | CL103: 0 | CM103: 23 | DE103: 23 | DW103: 23 | EO103: 23
A104: 24 | B104: 0.07999999821 | C104: 5.71999979 | D104: 1.873571277 | E104: 1.739906905 | F104: 0.6439999342 | G104: 0.900087893 | H104: 2.081542492 | I104: 0.340793103 | J104: 0.04974991083 | K104: E | L104: 56.75675676 | M104: 0 | N104: 43.24324324 | O104: 36 | P104: 36 | Q104: 21 | R104: 56.75675676 | S104: 24 | T104: 50.13000107 | U104: 64.16000366 | V104: 56.75622177 | W104: 3.704981343 | X104: 55.97583389 | Y104: 241.5728912 | Z104: 0.2349444926 | AA104: 0.2252266109 | AB104: 0.0364381969 | AC104: N | AD104: 0 | AE104: 54.25724991 | AF104: 24.99991473 | AG104: 37 | AH104: 37 | AI104: 0 | AJ104: 0 | AK104: 24 | AL104: 33.65000153 | AM104: 103.4800034 | AN104: 75.74056244 | AO104: 22.61662146 | AP104: 97.66083527 | AQ104: 10.09672928 | AR104: 7.501494884 | AS104: 0.2283333391 | AT104: 0.1580889821 | AU104: G | AV104: 0 | AW104: 58.60258774 | AX104: 74.99999919 | AY104: 36 | AZ104: 36 | BA104: 0 | BB104: 0 | BC104: 24 | BD104: 1.399999976 | BE104: 23.79999924 | BF104: 4.436111927 | BG104: 3.911459661 | BH104: 3.266666412 | BI104: 2.489928007 | BJ104: 1.781622529 | BK104: 0.2283333391 | BL104: 0.04985707998 | BM104: G | BN104: 0 | BO104: 5.88020794 | BP104: 25.00009768 | BQ104: 36 | BR104: 36 | BS104: 0 | BT104: 0 | BU104: 24 | BV104: 26.70000076 | BW104: 48.40000153 | BX104: 36.22222519 | BY104: 6.765167996 | BZ104: 32.125 | CA104: 30.20755768 | CB104: 1.199111342 | CC104: 0.2283333391 | CD104: 0.1155748367 | CE104: G | CF104: 0 | CG104: 40.4233823 | CH104: 25.00001738 | CI104: 36 | CJ104: 36 | CK104: 0 | CL104: 0 | CM104: 24 | DE104: 24 | DW104: 24 | EO104: 24
A105: 25 | B105: 0.02999999933 | C105: 21.73999977 | D105: 3.20187521 | E105: 5.932254763 | F105: 2.200999975 | G105: 0.5127199292 | H105: 6.24488163 | I105: 0.3425000012 | J105: 0.1184560061 | K105: G | L105: 54.05405405 | M105: 0 | N105: 45.94594595 | O105: 36 | P105: 36 | Q105: 20 | R105: 54.05405405 | S105: 25 | T105: 51.90000153 | U105: 69.37999725 | V105: 58.9359436 | W105: 3.779669313 | X105: 62.09666443 | Y105: 250.5518646 | Z105: 0.2352245301 | AA105: 0.2252266109 | AB105: 0.05961477757 | AC105: N | AD105: 0 | AE105: 56.38659548 | AF105: 25.00040955 | AG105: 37 | AH105: 37 | AI105: 0 | AJ105: 0 | AK105: 25 | AL105: 32.33000183 | AM105: 101.1299973 | AN105: 74.38778687 | AO105: 22.94174247 | AP105: 95.39666748 | AQ105: 9.425729752 | AR105: 7.891992092 | AS105: 0.2283333391 | AT105: 0.1465925574 | AU105: G | AV105: 0 | AW105: 56.94108114 | AX105: 74.99996183 | AY105: 36 | AZ105: 36 | BA105: 0 | BB105: 0 | BC105: 25 | BD105: 1.100000024 | BE105: 15.5 | BF105: 3.561110497 | BG105: 3.283489662 | BH105: 2.300000191 | BI105: 2.320443392 | BJ105: 1.534668088 | BK105: 0.2283333391 | BL105: 0.08951538801 | BM105: G | BN105: 0 | BO105: 4.744877023 | BP105: 25.00001875 | BQ105: 36 | BR105: 36 | BS105: 0 | BT105: 0 | BU105: 25 | BV105: 14.69999981 | BW105: 51.09999847 | BX105: 35.96110535 | BY105: 7.367157986 | BZ105: 29.86666679 | CA105: 22.35865784 | CB105: 1.608374953 | CC105: 0.2283333391 | CD105: 0.07825645059 | CE105: G | CF105: 0 | CG105: 40.7577844 | CH105: 25.00010951 | CI105: 36 | CJ105: 36 | CK105: 0 | CL105: 0 | CM105: 25 | DE105: 25 | DW105: 25 | EO105: 25
A106: 26 | B106: 0.05000000075 | C106: 4.920000076 | D106: 1.351999998 | E106: 1.493822809 | F106: 0.5370000005 | G106: 0.8019410968 | H106: 1.68590939 | I106: 0.4211426675 | J106: 0.03988850117 | K106: E | L106: 70.27027027 | M106: 0 | N106: 29.72972973 | O106: 36 | P106: 36 | Q106: 26 | R106: 70.27027027 | S106: 26 | T106: 56.00999832 | U106: 67.40000153 | V106: 61.79918289 | W106: 3.197702722 | X106: 62.65416718 | Y106: 382.296814 | Z106: 0.1616523564 | AA106: 0.2252266109 | AB106: 0.05751734972 | AC106: N | AD106: 0 | AE106: 59.64236538 | AF106: 24.99994503 | AG106: 37 | AH106: 37 | AI106: 0 | AJ106: 0 | AK106: 26 | AL106: 31.94000053 | AM106: 99.20999908 | AN106: 72.84778595 | AO106: 22.87636208 | AP106: 93.60416412 | AQ106: 9.072699547 | AR106: 8.02933979 | AS106: 0.2283333391 | AT106: 0.1459194422 | AU106: G | AV106: 0 | AW106: 55.41858132 | AX106: 74.99997737 | AY106: 36 | AZ106: 36 | BA106: 0 | BB106: 0 | BC106: 26 | BD106: 1 | BE106: 8.300000191 | BF106: 2.797221899 | BG106: 1.554070432 | BH106: 1.608333349 | BI106: 3.903234959 | BJ106: 0.7166419625 | BK106: 0.2283333391 | BL106: 0.1018577814 | BM106: E | BN106: 0 | BO106: 3.877775055 | BP106: 24.99998114 | BQ106: 36 | BR106: 36 | BS106: 0 | BT106: 0 | BU106: 26 | BV106: 24.60000038 | BW106: 48.09999847 | BX106: 35.53055191 | BY106: 6.029300038 | BZ106: 30.47500038 | CA106: 37.6307869 | CB106: 0.9441883564 | CC106: 0.2283333391 | CD106: 0.08949047327 | CE106: G | CF106: 0 | CG106: 39.24714493 | CH106: 25.0000158 | CI106: 36 | CJ106: 36 | CK106: 0 | CL106: 0 | CM106: 26 | DE106: 26 | DW106: 26 | EO106: 26
A107: 27 | B107: 0.009999999776 | C107: 8.619999886 | D107: 2.072999716 | E107: 2.599521512 | F107: 0.8709999919 | G107: 0.6358422041 | H107: 3.260242462 | I107: 0.4211426675 | J107: 0.08659750223 | K107: G | L107: 70.27027027 | M107: 0 | N107: 29.72972973 | O107: 36 | P107: 36 | Q107: 26 | R107: 70.27027027 | S107: 27 | T107: 54.29000092 | U107: 68.30999756 | V107: 62.13378906 | W107: 3.61487019 | X107: 62.46833038 | Y107: 298.8350525 | Z107: 0.2079200149 | AA107: 0.2252266109 | AB107: 0.06303691864 | AC107: N | AD107: 0 | AE107: 59.69559635 | AF107: 25.00020227 | AG107: 37 | AH107: 37 | AI107: 0 | AJ107: 0 | AK107: 27 | AL107: 31.76000023 | AM107: 97.55999756 | AN107: 71.44834137 | AO107: 22.76594672 | AP107: 92.07666779 | AQ107: 8.804102898 | AR107: 8.115345955 | AS107: 0.2283333391 | AT107: 0.1469563842 | AU107: G | AV107: 0 | AW107: 54.08382416 | AX107: 75.00000281 | AY107: 36 | AZ107: 36 | BA107: 0 | BB107: 0 | BC107: 27 | BD107: 1 | BE107: 11.10000038 | BF107: 2.483333111 | BG107: 1.841195357 | BH107: 1.841666698 | BI107: 3.30866003 | BJ107: 0.7505555153 | BK107: 0.2283333391 | BL107: 0.09444648027 | BM107: G | BN107: 0 | BO107: 3.220353228 | BP107: 24.99997189 | BQ107: 36 | BR107: 36 | BS107: 0 | BT107: 0 | BU107: 27 | BV107: 20.39999962 | BW107: 48 | BX107: 34.28055573 | BY107: 4.99798925 | BZ107: 31.89999962 | CA107: 47.39080811 | CB107: 0.7233587503 | CC107: 0.2283333391 | CD107: 0.04720849544 | CE107: N | CF107: 0 | CG107: 37.6516284 | CH107: 25.00012616 | CI107: 36 | CJ107: 36 | CK107: 0 | CL107: 0 | CM107: 27 | DE107: 27 | DW107: 27 | EO107: 27
A108: 28 | B108: 0.009999999776 | C108: 10.18999958 | D108: 1.863333225 | E108: 2.790193644 | F108: 1.027999997 | G108: 0.4919707477 | H108: 3.787487745 | I108: 0.3243176043 | J108: 0.02960413694 | K108: G | L108: 56.75675676 | M108: 0 | N108: 43.24324324 | O108: 36 | P108: 36 | Q108: 21 | R108: 56.75675676 | S108: 28 | T108: 51.08000183 | U108: 73.55999756 | V108: 63.45676041 | W108: 4.670085654 | X108: 64.19332886 | Y108: 184.5455017 | Z108: 0.3438542783 | AA108: 0.2252266109 | AB108: 0.07133919001 | AC108: N | AD108: 0 | AE108: 60.30683556 | AF108: 25.00018241 | AG108: 37 | AH108: 37 | AI108: 0 | AJ108: 0 | AK108: 28 | AL108: 31.60000038 | AM108: 96.12999725 | AN108: 70.26499176 | AO108: 22.74198756 | AP108: 90.75249481 | AQ108: 8.524413109 | AR108: 8.242794991 | AS108: 0.2283333391 | AT108: 0.1470322013 | AU108: G | AV108: 0 | AW108: 52.89803382 | AX108: 75.0000037 | AY108: 36 | AZ108: 36 | BA108: 0 | BB108: 0 | BC108: 28 | BD108: 1 | BE108: 6.800000191 | BF108: 2.122221947 | BG108: 1.494774139 | BH108: 1.483333349 | BI108: 3.06414032 | BJ108: 0.6925994754 | BK108: 0.2283333391 | BL108: 0.07725131512 | BM108: G | BN108: 0 | BO108: 2.768751498 | BP108: 24.99978645 | BQ108: 36 | BR108: 36 | BS108: 0 | BT108: 0 | BU108: 28 | BV108: 25.79999924 | BW108: 48.90000153 | BX108: 34.60000229 | BY108: 4.948130885 | BZ108: 35.42499924 | CA108: 52.90322876 | CB108: 0.6540244222 | CC108: 0.2283333391 | CD108: 0.04903900623 | CE108: G | CF108: 0 | CG108: 37.67890485 | CH108: 24.99989766 | CI108: 36 | CJ108: 36 | CK108: 0 | CL108: 0 | CM108: 28 | DE108: 28 | DW108: 28 | EO108: 28
A109: 29 | B109: 0.5199999809 | C109: 20.68000031 | D109: 3.681666374 | E109: 5.513001074 | F109: 2.536000013 | G109: 1.047705412 | H109: 3.514028311 | I109: 0.3776043057 | J109: 0.124632895 | K109: G | L109: 64.86486486 | M109: 0 | N109: 35.13513514 | O109: 36 | P109: 36 | Q109: 24 | R109: 64.86486486 | S109: 29 | T109: 47.45999908 | U109: 71.93000031 | V109: 64.40080261 | W109: 5.073118776 | X109: 65.8125 | Y109: 152.9783936 | Z109: 0.4209797382 | AA109: 0.2252266109 | AB109: 0.1355616152 | AC109: N | AD109: 0 | AE109: 60.97895506 | AF109: 25.00004996 | AG109: 37 | AH109: 37 | AI109: 0 | AJ109: 0 | AK109: 29 | AL109: 31.43000031 | AM109: 104.0599976 | AN109: 70.21611023 | AO109: 23.23364864 | AP109: 98.00749969 | AQ109: 8.156692505 | AR109: 8.608405113 | AS109: 0.2283333391 | AT109: 0.1108636856 | AU109: N | AV109: 0 | AW109: 54.54524948 | AX109: 75.00000394 | AY109: 36 | AZ109: 36 | BA109: 0 | BB109: 0 | BC109: 29 | BD109: 1 | BE109: 22.20000076 | BF109: 2.847222328 | BG109: 3.942260529 | BH109: 2.766666889 | BI109: 1.44031918 | BJ109: 1.976799607 | BK109: 0.2283333391 | BL109: 0.05188399553 | BM109: G | BN109: 0 | BO109: 3.906781933 | BP109: 24.99998989 | BQ109: 36 | BR109: 36 | BS109: 0 | BT109: 0 | BU109: 29 | BV109: 5.599999905 | BW109: 48.79999924 | BX109: 33.38333893 | BY109: 7.434149492 | BZ109: 38 | CA109: 12.57756138 | CB109: 2.65419817 | CC109: 0.2283333391 | CD109: 0.0605474785 | CE109: N | CF109: 0 | CG109: 38.39753559 | CH109: 25.00026062 | CI109: 36 | CJ109: 36 | CK109: 0 | CL109: 0 | CM109: 29 | DE109: 29 | DW109: 29 | EO109: 29
A110: 30 | B110: 0.07999999821 | C110: 51.58000183 | D110: 9.539999962 | E110: 18.07562392 | F110: 5.230000019 | G110: 0.4335127771 | H110: 22.00627136 | I110: 0.3584900796 | J110: 0.1329715848 | K110: G | L110: 62.16216216 | M110: 0 | N110: 37.83783784 | O110: 36 | P110: 36 | Q110: 23 | R110: 62.16216216 | S110: 30 | T110: 53.06999969 | U110: 72.05000305 | V110: 63.77512741 | W110: 5.099715034 | X110: 64.14167023 | Y110: 157.9343719 | Z110: 0.4038077891 | AA110: 0.2252266109 | AB110: 0.04723620415 | AC110: N | AD110: 0 | AE110: 60.33539589 | AF110: 24.99932926 | AG110: 37 | AH110: 37 | AI110: 0 | AJ110: 0 | AK110: 30 | AL110: 31.26000023 | AM110: 106.7799988 | AN110: 69.64971924 | AO110: 23.01968603 | AP110: 87.8999939 | AQ110: 8.154427528 | AR110: 8.541337967 | AS110: 0.2283333391 | AT110: 0.1111111641 | AU110: U | AV110: 0 | AW110: 50.13999987 | AX110: 75 | AY110: 36 | AZ110: 36 | BA110: 0 | BB110: 0 | BC110: 30 | BD110: 1 | BE110: 17.79999924 | BF110: 3.063889027 | BG110: 3.697656255 | BH110: 2.400000095 | BI110: 1.386512041 | BJ110: 2.209781647 | BK110: 0.2283333391 | BL110: 0.07085770369 | BM110: G | BN110: 0 | BO110: 4.211335383 | BP110: 24.99965987 | BQ110: 36 | BR110: 36 | BS110: 0 | BT110: 0 | BU110: 30 | BV110: 16.60000038 | BW110: 45.40000153 | BX110: 32.3861084 | BY110: 5.872558411 | BZ110: 33.40000153 | CA110: 27.87712288 | CB110: 1.161744952 | CC110: 0.2283333391 | CD110: 0.05106014013 | CE110: N | CF110: 0 | CG110: 36.34699462 | CH110: 25.00050993 | CI110: 36 | CJ110: 36 | CK110: 0 | CL110: 0 | CM110: 30 | DE110: 30 | DW110: 30 | EO110: 30
A111: 31 | B111: 0.009999999776 | C111: 17.07999992 | D111: 3.246842146 | E111: 4.921324296 | F111: 1.717000008 | G111: 0.4811804593 | H111: 6.74766016 | I111: 0.3142995536 | J111: 0.09109401703 | K111: G | L111: 45.94594595 | M111: 0 | N111: 54.05405405 | O111: 36 | P111: 36 | Q111: 17 | R111: 45.94594595 | S111: 31 | T111: 53.50999832 | U111: 67.87000275 | V111: 62.03351974 | W111: 4.169300671 | X111: 66.67333984 | Y111: 222.5003052 | Z111: 0.2788019478 | AA111: 0.2252266109 | AB111: 0.08440411091 | AC111: N | AD111: 0 | AE111: 59.22143382 | AF111: 25.00071827 | AG111: 37 | AH111: 37 | AI111: 0 | AJ111: 0 | AK111: 31 | AL111: 31.12000084 | AM111: 97.84999847 | AN111: 68.62306213 | AO111: 22.45666468 | AP111: 92.28916168 | AQ111: 8.303006172 | AR111: 8.264845848 | AS111: 0.2283333391 | AT111: 0.1742424965 | AU111: T | AV111: 0 | AW111: 63.06456817 | AX111: 74.99997815 | AY111: 36 | AZ111: 36 | BA111: 0 | BB111: 0 | BC111: 31 | BD111: 1 | BE111: 12.10000038 | BF111: 2.524999857 | BG111: 2.752803847 | BH111: 1.924999952 | BI111: 1.539259791 | BJ111: 1.640398741 | BK111: 0.2283333391 | BL111: 0.114185214 | BM111: G | BN111: 0 | BO111: 3.453319012 | BP111: 24.9999283 | BQ111: 36 | BR111: 36 | BS111: 0 | BT111: 0 | BU111: 31 | BV111: 19.29999924 | BW111: 47.90000153 | BX111: 32.93611145 | BY111: 5.645384748 | BZ111: 35.98333359 | CA111: 33.93110657 | CB111: 0.9706760049 | CC111: 0.2283333391 | CD111: 0.05522811413 | CE111: G | CF111: 0 | CG111: 36.55344039 | CH111: 25.00001651 | CI111: 36 | CJ111: 36 | CK111: 0 | CL111: 0 | CM111: 31 | DE111: 31 | DW111: 31 | EO111: 31
A112: 32 | B112: 0.1099999994 | C112: 8.050000191 | D112: 1.88062501 | E112: 2.264310047 | F112: 0.9040000439 | G112: 0.8306040168 | H112: 2.26416564 | I112: 0.3425000012 | J112: 0.03981459141 | K112: G | L112: 54.05405405 | M112: 0 | N112: 45.94594595 | O112: 36 | P112: 36 | Q112: 20 | R112: 54.05405405 | S112: 32 | T112: 50.15000153 | U112: 72.83000183 | V112: 61.80730057 | W112: 5.075780521 | X112: 63.38000107 | Y112: 149.3267517 | Z112: 0.4139064252 | AA112: 0.2252266109 | AB112: 0.02452605218 | AC112: N | AD112: 0 | AE112: 58.38369835 | AF112: 24.99999502 | AG112: 37 | AH112: 37 | AI112: 0 | AJ112: 0 | AK112: 32 | AL112: 30.95999908 | AM112: 93.51999664 | AN112: 67.74389648 | AO112: 22.20184395 | AP112: 88.30666351 | AQ112: 8.308203697 | AR112: 8.153856277 | AS112: 0.2283333391 | AT112: 0.1742424369 | AU112: T | AV112: 0 | AW112: 60.90832123 | AX112: 74.99999435 | AY112: 36 | AZ112: 36 | BA112: 0 | BB112: 0 | BC112: 32 | BD112: 1 | BE112: 8.300000191 | BF112: 2.09166646 | BG112: 1.617824705 | BH112: 1.608333349 | BI112: 2.565177679 | BJ112: 0.815408051 | BK112: 0.2283333391 | BL112: 0.07554155588 | BM112: G | BN112: 0 | BO112: 2.766408648 | BP112: 25.00002943 | BQ112: 36 | BR112: 36 | BS112: 0 | BT112: 0 | BU112: 32 | BV112: 19.5 | BW112: 48.59999847 | BX112: 32.43333435 | BY112: 5.690593842 | BZ112: 36.47499847 | CA112: 34.21806335 | CB112: 0.9478424788 | CC112: 0.2283333391 | CD112: 0.06010562181 | CE112: N | CF112: 0 | CG112: 36.27153099 | CH112: 25.00028243 | CI112: 36 | CJ112: 36 | CK112: 0 | CL112: 0 | CM112: 32 | DE112: 32 | DW112: 32 | EO112: 32
A113: 33 | B113: 0.1199999973 | C113: 39.00999832 | D113: 7.930000305 | E113: 11.36338666 | F113: 4.008999825 | G113: 0.5178352594 | H113: 15.31375122 | I113: 0.3425000012 | J113: 0.04090535641 | K113: G | L113: 54.05405405 | M113: 0 | N113: 45.94594595 | O113: 36 | P113: 36 | Q113: 20 | R113: 54.05405405 | S113: 33 | T113: 47.52000046 | U113: 72.25 | V113: 60.48622131 | W113: 6.323241509 | X113: 61.9458313 | Y113: 91.09571075 | Z113: 0.6639853716 | AA113: 0.2252266109 | AB113: 0.0626167655 | AC113: N | AD113: 0 | AE113: 56.22123368 | AF113: 24.999989 | AG113: 37 | AH113: 37 | AI113: 0 | AJ113: 0 | AK113: 33 | AL113: 30.82999992 | AM113: 98.62000275 | AN113: 67.7930603 | AO113: 21.60275906 | AP113: 92.97084045 | AQ113: 8.795760155 | AR113: 7.707470417 | AS113: 0.2283333391 | AT113: 0.1268417835 | AU113: N | AV113: 0 | AW113: 53.22220145 | AX113: 75.00002838 | AY113: 36 | AZ113: 36 | BA113: 0 | BB113: 0 | BC113: 33 | BD113: 1 | BE113: 20 | BF113: 3.402777672 | BG113: 4.532705139 | BH113: 2.583333492 | BI113: 1.035267115 | BJ113: 3.286859512 | BK113: 0.2283333391 | BL113: 0.03941488266 | BM113: G | BN113: 0 | BO113: 4.715959295 | BP113: 24.99971661 | BQ113: 36 | BR113: 36 | BS113: 0 | BT113: 0 | BU113: 33 | BV113: 9.399999619 | BW113: 45.90000153 | BX113: 30.57499504 | BY113: 6.700079664 | BZ113: 30.69166756 | CA113: 16.11510849 | CB113: 1.897287607 | CC113: 0.2283333391 | CD113: 0.1328084469 | CE113: N | CF113: 0 | CG113: 35.0940923 | CH113: 25.00017929 | CI113: 36 | CJ113: 36 | CK113: 0 | CL113: 0 | CM113: 33 | DE113: 33 | DW113: 33 | EO113: 33
A114: 34 | B114: 0.009999999776 | C114: 12.38000011 | D114: 4.268823624 | E114: 4.483477885 | F114: 1.246999979 | G114: 0.5954580307 | H114: 7.168974876 | I114: 0.3322738111 | J114: 0.1059873104 | K114: E | L114: 51.35135135 | M114: 0 | N114: 48.64864865 | O114: 36 | P114: 36 | Q114: 19 | R114: 51.35135135 | S114: 34 | T114: 44.88999939 | U114: 69.25 | V114: 59.02783966 | W114: 4.946341795 | X114: 59.09999847 | Y114: 139.7463074 | Z114: 0.4223928452 | AA114: 0.2252266109 | AB114: 0.06170499325 | AC114: N | AD114: 0 | AE114: 55.69154195 | AF114: 24.99970371 | AG114: 37 | AH114: 37 | AI114: 0 | AJ114: 0 | AK114: 34 | AL114: 30.71999931 | AM114: 96.93000031 | AN114: 67.29472351 | AO114: 21.22644029 | AP114: 91.41249847 | AQ114: 8.962769508 | AR114: 7.50825119 | AS114: 0.2283333391 | AT114: 0.1479001045 | AU114: N | AV114: 0 | AW114: 52.97767917 | AX114: 75.0000418 | AY114: 36 | AZ114: 36 | BA114: 0 | BB114: 0 | BC114: 34 | BD114: 0.8999999762 | BE114: 19.60000038 | BF114: 3.308333397 | BG114: 3.976098054 | BH114: 2.458333492 | BI114: 1.24914515 | BJ114: 2.648478031 | BK114: 0.2283333391 | BL114: 0.07884979248 | BM114: G | BN114: 0 | BO114: 4.565708917 | BP114: 24.99935123 | BQ114: 36 | BR114: 36 | BS114: 0 | BT114: 0 | BU114: 34 | BV114: 11.30000019 | BW114: 43.59999847 | BX114: 29.57499886 | BY114: 7.117438604 | BZ114: 30.14166641 | CA114: 15.3147049 | CB114: 1.931150436 | CC114: 0.2283333391 | CD114: 0.0409912169 | CE114: N | CF114: 0 | CG114: 34.37545764 | CH114: 25.00080635 | CI114: 36 | CJ114: 36 | CK114: 0 | CL114: 0 | CM114: 34 | DE114: 34 | DW114: 34 | EO114: 34
A115: 35 | B115: 0.05000000075 | C115: 89.45999908 | D115: 10.40833378 | E115: 18.90917462 | F115: 8.991000175 | G115: 0.4723433852 | H115: 22.03552437 | I115: 0.2796500921 | J115: 0.03183877468 | K115: G | L115: 32.43243243 | M115: 0 | N115: 67.56756757 | O115: 36 | P115: 36 | Q115: 12 | R115: 32.43243243 | S115: 35 | T115: 40.15000153 | U115: 66.41999817 | V115: 57.28352737 | W115: 6.655833916 | X115: 59.8524971 | Y115: 69.40086365 | Z115: 0.8254007697 | AA115: 0.2252266109 | AB115: 0.1054567993 | AC115: G | AD115: 0 | AE115: 52.50798595 | AF115: 24.99917649 | AG115: 37 | AH115: 37 | AI115: 0 | AJ115: 0 | AK115: 35 | AL115: 30.59000015 | AM115: 95.62999725 | AN115: 68.65361023 | AO115: 22.02514529 | AP115: 90.20999908 | AQ115: 8.490205765 | AR115: 8.086213112 | AS115: 0.2283333391 | AT115: 0.1764907241 | AU115: N | AV115: 0 | AW115: 53.79786738 | AX115: 75.00001168 | AY115: 36 | AZ115: 36 | BA115: 0 | BB115: 0 | BC115: 35 | BD115: 1 | BE115: 25.39999962 | BF115: 5.708333015 | BG115: 5.888069388 | BH115: 3.033333302 | BI115: 1.187374115 | BJ115: 4.807527065 | BK115: 0.2283333391 | BL115: 0.06560534239 | BM115: G | BN115: 0 | BO115: 7.890129125 | BP115: 24.99942308 | BQ115: 36 | BR115: 36 | BS115: 0 | BT115: 0 | BU115: 35 | BV115: 1.299999952 | BW115: 43.90000153 | BX115: 26.18333054 | BY115: 10.02016514 | BZ115: 33.25 | CA115: 3.501734734 | CB115: 7.477245808 | CC115: 0.2283333391 | CD115: 0.04629629478 | CE115: T | CF115: 0 | CG115: 54.55000296 | CH115: 25.00000224 | CI115: 36 | CJ115: 36 | CK115: 0 | CL115: 0 | CM115: 35 | DE115: 35 | DW115: 35 | EO115: 35
A116: 36 | B116: 0.03999999911 | C116: 75.37999725 | D116: 17.85766411 | E116: 19.73335588 | F116: 7.573999882 | G116: 0.6800623536 | H116: 26.25886345 | I116: 0.2501266301 | J116: 0.02792525291 | K116: G | L116: 16.21621622 | M116: 0.8383397286 | N116: 75.00088562 | O116: 36 | P116: 36 | Q116: 6 | R116: 16.21621622 | S116: 36 | T116: 32.58000183 | U116: 63.40999985 | V116: 52.74648666 | W116: 7.746696753 | X116: 55.70249939 | Y116: 42.63923264 | Z116: 1.237041235 | AA116: 0.2252266109 | AB116: 0.1252551675 | AC116: N | AD116: 0 | AE116: 47.52141762 | AF116: 25.00087146 | AG116: 37 | AH116: 37 | AI116: 0 | AJ116: 0 | AK116: 36 | AL116: 20.80999947 | AM116: 115.2799988 | AN116: 68.74584198 | AO116: 24.57833732 | AP116: 44.42749786 | AQ116: 7.184930325 | AR116: 9.568059921 | AS116: 0.2283333391 | AT116: 0.05555555969 | AU116: U | AV116: 0 | AW116: 44.42749929 | AX116: 75 | AY116: 36 | AZ116: 36 | BA116: 0 | BB116: 0 | BC116: 36 | BD116: 1 | BE116: 34.29999924 | BF116: 12.86111164 | BG116: 8.184245387 | BH116: 14.87499905 | BI116: 1.761255026 | BJ116: 7.302242756 | BK116: 0.2283333391 | BL116: 0.1083005071 | BM116: N | BN116: 0 | BO116: 18.38126544 | BP116: 25.00013912 | BQ116: 36 | BR116: 36 | BS116: 0 | BT116: 0 | BU116: 36 | BV116: 0.8999999762 | BW116: 39.20000076 | BX116: 18.94571114 | BY116: 10.13213747 | BZ116: 29.62500191 | CA116: 2.285222054 | CB116: 8.290534019 | CC116: 0.2315722704 | CD116: 0.05776822567 | CE116: N | CF116: 2.702702703 | CG116: 25.55991237 | CH116: 25.00000156 | CI116: 36 | CJ116: 36 | CK116: 1 | CL116: 2.702702703 | CM116: 36 | DE116: 36 | DW116: 36 | EO116: 36
A117: 37 | B117: 0.07999999821 | C117: 42.70000076 | D117: 11.65466595 | E117: 12.32359534 | F117: 4.342000008 | G117: 0.6969848871 | H117: 16.72154808 | I117: 0.2501266301 | J117: 0.06382060051 | K117: E | L117: 16.21621622 | M117: 1.290714356 | N117: 75.00035907 | O117: 36 | P117: 36 | Q117: 6 | R117: 16.21621622 | S117: 37 | T117: 14.15999985 | U117: 37.25 | V117: 26.57919121 | W117: 5.190009372 | X117: 31.47750092 | Y117: 25.05434799 | Z117: 1.060861468 | AA117: 0.2252266109 | AB117: 0.05224239826 | AC117: G | AD117: 0 | AE117: 22.8314454 | AF117: 25.00002089 | AG117: 37 | AH117: 37 | AI117: 0 | AJ117: 0 | AK117: 37 | AL117: 12.26000023 | AM117: 48.68000031 | AN117: 25.13457298 | AO117: 8.583016646 | AP117: 21.36499977 | AQ117: 9.641898155 | AR117: 2.60680747 | AS117: 0.2315722704 | AT117: 0.1221027374 | AU117: G | AV117: 2.702702703 | AW117: 18.85656193 | AX117: 74.99999442 | AY117: 36 | AZ117: 36 | BA117: 1 | BB117: 2.702702703 | BC117: 37 | BD117: 3.599999905 | BE117: 28.70000076 | BF117: 17.52777863 | BG117: 6.072307715 | BH117: 18.24166679 | BI117: 6.476599693 | BJ117: 2.706324339 | BK117: 0.2283333391 | BL117: 0.06518623233 | BM117: N | BN117: 0 | BO117: 21.62348767 | BP117: 25.0000014 | BQ117: 36 | BR117: 36 | BS117: 0 | BT117: 0 | BU117: 37 | BV117: 0.1000000015 | BW117: 31.29999924 | BX117: 8.357143402 | BY117: 6.965852554 | BZ117: 2.699999809 | CA117: 1.320530534 | CB117: 6.328625679 | CC117: 0.2315722704 | CD117: 0.03023526073 | CE117: G | CF117: 2.702702703 | CG117: 11.31247694 | CH117: 25.00000236 | CI117: 36 | CJ117: 36 | CK117: 1 | CL117: 2.702702703 | CM117: 37 | DE117: 37 | DW117: 37 | EO117: 37
B118: =B80+1 -> 4 | C118: Componente hídrica: | G118: Precipitação (P) | L118: Ponto 4 lat-3.375_lon-41.875 | S118: Ponto: | T118: =B118 -> 4 | U118: Componente hídrica: | Y118: Evapotranspiração de referência (ETo) | AD118: =L118 -> Ponto 4 lat-3.375_lon-41.875 | AK118: Ponto: | AL118: =B118 -> 4 | AM118: Componente hídrica: | AQ118: Armazenamento da água no solo (S) | AV118: =L118 -> Ponto 4 lat-3.375_lon-41.875 | BC118: Ponto: | BD118: =B118 -> 4 | BE118: Componente hídrica: | BI118: Evapotranspiração Real (ETr) | BN118: =L118 -> Ponto 4 lat-3.375_lon-41.875 | BU118: Ponto: | BV118: =B118 -> 4 | BW118: Componente hídrica: | CA118: Deficiência hídrica (Def) | CF118: =L118 -> Ponto 4 lat-3.375_lon-41.875 | CM118: Ponto: | CN118: =B118 -> 4 | CO118: Componente hídrica: | CS118: Excedente hídrico (Exc) | CX118: =L118 -> Ponto 4 lat-3.375_lon-41.875 | DE118: Ponto: | DF118: =B118 -> 4 | DG118: Componente hídrica: | DK118: Temperatura mínima (Tmin) | DP118: =L118 -> Ponto 4 lat-3.375_lon-41.875 | DW118: Ponto: | DX118: =B118 -> 4 | DY118: Componente hídrica: | EC118: Temperatura máxima (Tmax) | EH118: =L118 -> Ponto 4 lat-3.375_lon-41.875 | EO118: Ponto: | EP118: =B118 -> 4 | EQ118: Componente hídrica: | EU118: Temperatura média (Tmed) | EZ118: =L118 -> Ponto 4 lat-3.375_lon-41.875
A119: 1 | B119: 0.4900000095 | C119: 149.5700073 | D119: 39.47222519 | E119: 34.04806173 | F119: 12.91333389 | G119: 1.269976616 | H119: 31.08106422 | I119: 0.2283333391 | J119: 0.0230730176 | K119: G | L119: 0 | M119: 14.09871464 | N119: 75.00083135 | O119: 36 | P119: 36 | Q119: 0 | R119: 0 | S119: 1 | T119: 34.22000122 | U119: 66.80000305 | V119: 47.56973267 | W119: 7.732907551 | X119: 42.36500168 | Y119: 40.9371109 | Z119: 1.16201973 | AA119: 0.2252266109 | AB119: 0.0440440774 | AC119: T | AD119: 0 | AE119: 42.36501728 | AF119: 25.00000513 | AG119: 37 | AH119: 37 | AI119: 0 | AJ119: 0 | AK119: 1 | AL119: 47.20999908 | AM119: 90.62999725 | AN119: 67.63610077 | AO119: 13.69686054 | AP119: 50.82833099 | AQ119: 24.57218552 | AR119: 2.752547264 | AS119: 0.2283333391 | AT119: 0.1111110896 | AU119: U | AV119: 0 | AW119: 58.06499863 | AX119: 75 | AY119: 36 | AZ119: 36 | BA119: 0 | BB119: 0 | BC119: 1 | BD119: 14 | BE119: 44.70000076 | BF119: 34.01944733 | BG119: 8.504245371 | BH119: 42.14166641 | BI119: 13.61646175 | BJ119: 2.498405933 | BK119: 0.2283333391 | BL119: 0.09090918303 | BM119: T | BN119: 0 | BO119: 39.45505871 | BP119: 25.00021659 | BQ119: 36 | BR119: 36 | BS119: 0 | BT119: 0 | BU119: 1 | BV119: 0.8000000119 | BW119: 47.70000076 | BX119: 16.69722176 | BY119: 14.13998455 | BZ119: 4.708333492 | CA119: 1.080717444 | CB119: 15.45012665 | CC119: 0.2283333391 | CD119: 0.05561801791 | CE119: G | CF119: 0 | CG119: 23.12726551 | CH119: 25.00001052 | CI119: 36 | CJ119: 36 | CK119: 0 | CL119: 0 | CM119: 1 | CN119: exc | DE119: 1 | DW119: 1 | EO119: 1 | EP119: tmed
A120: 2 | B120: 2.619999886 | C120: 126.5999985 | D120: 46.37542343 | E120: 31.59531285 | F120: 33.61500168 | G120: 1.626733899 | H120: 28.50830269 | I120: 0.2315722704 | J120: 0.07236409187 | K120: N | L120: 2.702702703 | M120: 22.94397267 | N120: 75.00051785 | O120: 36 | P120: 36 | Q120: 1 | R120: 2.702702703 | S120: 2 | T120: 34.13999939 | U120: 65 | V120: 44.61459732 | W120: 6.882512652 | X120: 41.85499954 | Y120: 44.22330475 | Z120: 1.008848071 | AA120: 0.2252266109 | AB120: 0.04497236013 | AC120: N | AD120: 0 | AE120: 39.97241636 | AF120: 25 | AG120: 37 | AH120: 37 | AI120: 0 | AJ120: 0 | AK120: 2 | AL120: 40.83000183 | AM120: 118.9700012 | AN120: 88.03333282 | AO120: 23.3158117 | AP120: 112.4583359 | AQ120: 12.36812687 | AR120: 7.117757797 | AS120: 0.2283333391 | AT120: 0.0893368125 | AU120: N | AV120: 0 | AW120: 72.30705913 | AX120: 74.99999685 | AY120: 36 | AZ120: 36 | BA120: 0 | BB120: 0 | BC120: 2 | BD120: 9.5 | BE120: 46.20000076 | BF120: 32.9888916 | BG120: 10.3480507 | BH120: 37.02500153 | BI120: 7.361176014 | BJ120: 4.481470108 | BK120: 0.2283333391 | BL120: 0.1594641209 | BM120: N | BN120: 0 | BO120: 39.96831017 | BP120: 25.00072341 | BQ120: 36 | BR120: 36 | BS120: 0 | BT120: 0 | BU120: 2 | BV120: 1.299999952 | BW120: 61.5 | BX120: 15.67777634 | BY120: 16.06519102 | BZ120: 6.316666603 | CA120: 1.034778833 | CB120: 15.15084743 | CC120: 0.2283333391 | CD120: 0.04491490126 | CE120: E | CF120: 0 | CG120: 21.73399892 | CH120: 25.00002234 | CI120: 36 | CJ120: 36 | CK120: 0 | CL120: 0 | CM120: 2 | DE120: 2 | DW120: 2 | EO120: 2
A121: 3 | B121: 1.230000019 | C121: 233.9299927 | D121: 54.16389847 | E121: 48.48752709 | F121: 20.62166595 | G121: 1.243202686 | H121: 43.56803513 | I121: 0.2283333391 | J121: 0.03544437885 | K121: G | L121: 0 | M121: 19.01526057 | N121: 75.00000051 | O121: 36 | P121: 36 | Q121: 0 | R121: 0 | S121: 3 | T121: 28.82999992 | U121: 60.68999863 | V121: 44.56594467 | W121: 7.057601445 | X121: 47.41500092 | Y121: 39.70426559 | Z121: 1.122447252 | AA121: 0.2252266109 | AB121: 0.01563048363 | AC121: N | AD121: 0 | AE121: 39.80567643 | AF121: 24.99999734 | AG121: 37 | AH121: 37 | AI121: 0 | AJ121: 0 | AK121: 3 | AL121: 42.77000046 | AM121: 143.9100037 | AN121: 105.4686127 | AO121: 28.04587829 | AP121: 135.4816589 | AQ121: 11.58646774 | AR121: 9.102741241 | AS121: 0.2283333391 | AT121: 0.0891417563 | AU121: N | AV121: 0 | AW121: 86.55195418 | AX121: 75.00000119 | AY121: 36 | AZ121: 36 | BA121: 0 | BB121: 0 | BC121: 3 | BD121: 13.10000038 | BE121: 46.59999847 | BF121: 33.31944275 | BG121: 9.523319334 | BH121: 38.22499847 | BI121: 10.50880051 | BJ121: 3.170622826 | BK121: 0.2283333391 | BL121: 0.1238457561 | BM121: N | BN121: 0 | BO121: 39.74280269 | BP121: 25.00007121 | BQ121: 36 | BR121: 36 | BS121: 0 | BT121: 0 | BU121: 3 | BV121: 1.200000048 | BW121: 46 | BX121: 16.35555267 | BY121: 13.7640409 | BZ121: 4.933333397 | CA121: 1.247819901 | CB121: 13.10730267 | CC121: 0.2283333391 | CD121: 0.08457320929 | CE121: E | CF121: 0 | CG121: 22.67359583 | CH121: 25.00002234 | CI121: 36 | CJ121: 36 | CK121: 0 | CL121: 0 | CM121: 3 | DE121: 3 | DW121: 3 | EO121: 3
A122: 4 | B122: 3.25999999 | C122: 127.4700012 | D122: 54.2836113 | E122: 30.81189187 | F122: 34.3125 | G122: 2.263948679 | H122: 23.97740364 | I122: 0.2283333391 | J122: 0.06481480598 | K122: T | L122: 0 | M122: 34.31251065 | N122: 74.9999831 | O122: 36 | P122: 36 | Q122: 0 | R122: 0 | S122: 4 | T122: 31.79000092 | U122: 56.38000107 | V122: 44.617836 | W122: 6.592844245 | X122: 46.13416672 | Y122: 45.99178314 | Z122: 0.9701262712 | AA122: 0.2252266109 | AB122: 0.04054045677 | AC122: U | AD122: 0 | AE122: 37.93750095 | AF122: 24.99999492 | AG122: 37 | AH122: 37 | AI122: 0 | AJ122: 0 | AK122: 4 | AL122: 57.88999939 | AM122: 165.3699951 | AN122: 126.6955414 | AO122: 31.21391667 | AP122: 156.4133301 | AQ122: 13.12013054 | AR122: 9.656576157 | AS122: 0.2283333391 | AT122: 0.09595966339 | AU122: T | AV122: 0 | AW122: 109.3414802 | AX122: 75.00063193 | AY122: 36 | AZ122: 36 | BA122: 0 | BB122: 0 | BC122: 4 | BD122: 18.70000076 | BE122: 49 | BF122: 36.68333054 | BG122: 7.537165048 | BH122: 36.375 | BI122: 22.05496216 | BJ122: 1.663268805 | BK122: 0.2283333391 | BL122: 0.07615461946 | BM122: G | BN122: 0 | BO122: 41.60732234 | BP122: 24.99998473 | BQ122: 36 | BR122: 36 | BS122: 0 | BT122: 0 | BU122: 4 | BV122: 2.5 | BW122: 32.70000076 | BX122: 10.61389065 | BY122: 8.910640879 | BZ122: 5.016666412 | CA122: 1.748417258 | CB122: 6.070570946 | CC122: 0.2283333391 | CD122: 0.05156093836 | CE122: E | CF122: 0 | CG122: 14.71396727 | CH122: 25.00002234 | CI122: 36 | CJ122: 36 | CK122: 0 | CL122: 0 | CM122: 4 | DE122: 4 | DW122: 4 | EO122: 4
A123: 5 | B123: 18.47999954 | C123: 148.7899933 | D123: 72.92610168 | E123: 29.39040072 | F123: 72.77583313 | G123: 6.100310802 | H123: 11.95448971 | I123: 0.2283333391 | J123: 0.03775888681 | K123: G | L123: 0 | M123: 51.46763621 | N123: 75.00003321 | O123: 36 | P123: 36 | Q123: 0 | R123: 0 | S123: 5 | T123: 31.97999954 | U123: 52.09000015 | V123: 40.95404434 | W123: 5.076405208 | X123: 37.00749969 | Y123: 67.54165649 | Z123: 0.6063523889 | AA123: 0.2252266109 | AB123: 0.07411116362 | AC123: N | AD123: 0 | AE123: 37.53008231 | AF123: 24.99997748 | AG123: 37 | AH123: 37 | AI123: 0 | AJ123: 0 | AK123: 5 | AL123: 86.90000153 | AM123: 185.6799927 | AN123: 151.9249878 | AO123: 27.82225294 | AP123: 177.4483185 | AQ123: 25.68274117 | AR123: 5.915450573 | AS123: 0.2283333391 | AT123: 0.1237373948 | AU123: T | AV123: 0 | AW123: 39.61268545 | AX123: 75.00000252 | AY123: 36 | AZ123: 36 | BA123: 0 | BB123: 0 | BC123: 5 | BD123: 26.70000076 | BE123: 49.79999924 | BF123: 38.54722214 | BG123: 4.832301041 | BH123: 36.32500076 | BI123: 65.61351013 | BJ123: 0.5874891281 | BK123: 0.2283333391 | BL123: 0.1196583807 | BM123: G | BN123: 0 | BO123: 41.64143104 | BP123: 25.00027488 | BQ123: 36 | BR123: 36 | BS123: 0 | BT123: 0 | BU123: 5 | BV123: 1.899999976 | BW123: 35.09999847 | BX123: 7.172221661 | BY123: 6.743445711 | BZ123: 4.666666508 | CA123: 2.119993925 | CB123: 3.383133173 | CC123: 0.2283333391 | CD123: 0.1657489538 | CE123: E | CF123: 0 | CG123: 9.942804035 | CH123: 25.00002234 | CI123: 36 | CJ123: 36 | CK123: 0 | CL123: 0 | CM123: 5 | DE123: 5 | DW123: 5 | EO123: 5
A124: 6 | B124: 1.25999999 | C124: 177.8099976 | D124: 74.56416321 | E124: 46.86402997 | F124: 104.2474976 | G124: 1.398185134 | H124: 53.32925034 | I124: 0.2283333391 | J124: 0.08958438039 | K124: N | L124: 0 | M124: 42.95465256 | N124: 75.0001375 | O124: 36 | P124: 36 | Q124: 0 | R124: 0 | S124: 6 | T124: 31.57999992 | U124: 62.36000061 | V124: 43.11621094 | W124: 7.77531875 | X124: 39.27500153 | Y124: 33.85075378 | Z124: 1.2737149 | AA124: 0.2252266109 | AB124: 0.07076710463 | AC124: G | AD124: 0 | AE124: 37.91384807 | AF124: 24.99999011 | AG124: 37 | AH124: 37 | AI124: 0 | AJ124: 0 | AK124: 6 | AL124: 88.44000244 | AM124: 199.2400055 | AN124: 166.5800171 | AO124: 29.10011112 | AP124: 190.0066681 | AQ124: 28.6200695 | AR124: 5.820391655 | AS124: 0.2283333391 | AT124: 0.1396170855 | AU124: N | AV124: 0 | AW124: 146.9522348 | AX124: 75.00006068 | AY124: 36 | AZ124: 36 | BA124: 0 | BB124: 0 | BC124: 6 | BD124: 21.10000038 | BE124: 45.59999847 | BF124: 35.71389389 | BG124: 5.6702808 | BH124: 39.47499847 | BI124: 38.04346848 | BJ124: 0.9387654662 | BK124: 0.2283333391 | BL124: 0.03088372946 | BM124: N | BN124: 0 | BO124: 39.53843932 | BP124: 25.00000477 | BQ124: 36 | BR124: 36 | BS124: 0 | BT124: 0 | BU124: 6 | BV124: 2.700000048 | BW124: 47.09999847 | BX124: 11.25 | BY124: 10.80448308 | BZ124: 6.399999619 | CA124: 1.887582302 | CB124: 5.960004807 | CC124: 0.2283333391 | CD124: 0.1601728797 | CE124: E | CF124: 0 | CG124: 15.59580151 | CH124: 25.00002234 | CI124: 36 | CJ124: 36 | CK124: 0 | CL124: 0 | CM124: 6 | DE124: 6 | DW124: 6 | EO124: 6
A125: 7 | B125: 9.329999924 | C125: 167.7200012 | D125: 66.59500122 | E125: 34.65893919 | F125: 75.32583618 | G125: 3.239402533 | H125: 20.55780411 | I125: 0.2283333391 | J125: 0.06355054677 | K125: N | L125: 0 | M125: 43.21789924 | N125: 75.00000252 | O125: 36 | P125: 36 | Q125: 0 | R125: 0 | S125: 7 | T125: 30.94000053 | U125: 58.16999817 | V125: 42.65621948 | W125: 6.553172431 | X125: 37.74750137 | Y125: 44.26639175 | Z125: 0.9636253715 | AA125: 0.2252266109 | AB125: 0.01801806688 | AC125: T | AD125: 0 | AE125: 37.74753932 | AF125: 24.99994585 | AG125: 37 | AH125: 37 | AI125: 0 | AJ125: 0 | AK125: 7 | AL125: 89.94000244 | AM125: 212.2299957 | AN125: 174.6063843 | AO125: 34.71332618 | AP125: 202.0391693 | AQ125: 21.46546936 | AR125: 8.134291649 | AS125: 0.2283333391 | AT125: 0.1688449383 | AU125: G | AV125: 0 | AW125: 147.9298878 | AX125: 75.00068273 | AY125: 36 | AZ125: 36 | BA125: 0 | BB125: 0 | BC125: 7 | BD125: 20.39999962 | BE125: 46 | BF125: 35.09167099 | BG125: 5.759978882 | BH125: 35.33333206 | BI125: 36.51166534 | BJ125: 0.9611084461 | BK125: 0.2283333391 | BL125: 0.02927851677 | BM125: N | BN125: 0 | BO125: 38.9767195 | BP125: 24.99999014 | BQ125: 36 | BR125: 36 | BS125: 0 | BT125: 0 | BU125: 7 | BV125: 4.900000095 | BW125: 40.40000153 | BX125: 11.38333416 | BY125: 5.867708592 | BZ125: 7.858333588 | CA125: 6.173578739 | CB125: 1.843879342 | CC125: 0.2283333391 | CD125: 0.04113459587 | CE125: G | CF125: 0 | CG125: 14.05156281 | CH125: 25.00001279 | CI125: 36 | CJ125: 36 | CK125: 0 | CL125: 0 | CM125: 7 | DE125: 7 | DW125: 7 | EO125: 7
A126: 8 | B126: 10.96000004 | C126: 170.5700073 | D126: 85.16443634 | E126: 44.63971577 | F126: 50.86250305 | G126: 3.039352417 | H126: 28.02058601 | I126: 0.2283333391 | J126: 0.06376934052 | K126: G | L126: 0 | M126: 49.2726423 | N126: 75.00045364 | O126: 36 | P126: 36 | Q126: 0 | R126: 0 | S126: 8 | T126: 33.02999878 | U126: 50.91999817 | V126: 41.00460052 | W126: 5.027622408 | X126: 40.48416519 | Y126: 67.99581146 | Z126: 0.603046 | AA126: 0.2252266109 | AB126: 0.08630611002 | AC126: G | AD126: 0 | AE126: 37.550128 | AF126: 25.00000123 | AG126: 37 | AH126: 37 | AI126: 0 | AJ126: 0 | AK126: 8 | AL126: 90.01000214 | AM126: 213.5500031 | AN126: 178.054718 | AO126: 34.1395273 | AP126: 203.2550049 | AQ126: 22.4986515 | AR126: 7.9140172 | AS126: 0.2283333391 | AT126: 0.1553230286 | AU126: N | AV126: 0 | AW126: 155.0276506 | AX126: 75.00028502 | AY126: 36 | AZ126: 36 | BA126: 0 | BB126: 0 | BC126: 8 | BD126: 21.39999962 | BE126: 39.20000076 | BF126: 29.8694458 | BG126: 5.097047826 | BH126: 31.78333473 | BI126: 34.55365372 | BJ126: 0.864436686 | BK126: 0.2283333391 | BL126: 0.05555558205 | BM126: U | BN126: 0 | BO126: 34.75000048 | BP126: 25 | BQ126: 36 | BR126: 36 | BS126: 0 | BT126: 0 | BU126: 8 | BV126: 4.099999905 | BW126: 20.70000076 | BX126: 13.21389008 | BY126: 3.86250481 | BZ126: 13.78333378 | CA126: 10.14702415 | CB126: 1.302242875 | CC126: 0.2283333391 | CD126: 0.01636219025 | CE126: N | CF126: 0 | CG126: 15.81910963 | CH126: 25.00000289 | CI126: 36 | CJ126: 36 | CK126: 0 | CL126: 0 | CM126: 8 | DE126: 8 | DW126: 8 | EO126: 8
A127: 9 | B127: 8.329999924 | C127: 185.4199982 | D127: 95.5430603 | E127: 40.04277803 | F127: 82.11750031 | G127: 4.419791698 | H127: 21.61709595 | I127: 0.2283333391 | J127: 0.03888889402 | K127: T | L127: 0 | M127: 65.48552895 | N127: 75.00001974 | O127: 36 | P127: 36 | Q127: 0 | R127: 0 | S127: 9 | T127: 30.82999992 | U127: 46.38000107 | V127: 37.84703064 | W127: 3.986974728 | X127: 37.30916595 | Y127: 92.82019043 | Z127: 0.4077456594 | AA127: 0.2252266109 | AB127: 0.03143844008 | AC127: N | AD127: 0 | AE127: 35.15782104 | AF127: 25.0005848 | AG127: 37 | AH127: 37 | AI127: 0 | AJ127: 0 | AK127: 9 | AL127: 104.0699997 | AM127: 213.1900024 | AN127: 180.5902863 | AO127: 31.36307375 | AP127: 204.0966644 | AQ127: 28.62478447 | AR127: 6.308878422 | AS127: 0.2283333391 | AT127: 0.1397186816 | AU127: N | AV127: 0 | AW127: 159.4361973 | AX127: 75.0000174 | AY127: 36 | AZ127: 36 | BA127: 0 | BB127: 0 | BC127: 9 | BD127: 15.10000038 | BE127: 41.70000076 | BF127: 23.28333092 | BG127: 6.561380345 | BH127: 17.31666756 | BI127: 14.40854359 | BJ127: 1.61593926 | BK127: 0.2283333391 | BL127: 0.05684459209 | BM127: G | BN127: 0 | BO127: 27.07633734 | BP127: 25.00000116 | BQ127: 36 | BR127: 36 | BS127: 0 | BT127: 0 | BU127: 9 | BV127: 1.700000048 | BW127: 29.20000076 | BX127: 19.07777786 | BY127: 5.968972407 | BZ127: 22.32500076 | CA127: 5.772686005 | CB127: 3.304835558 | CC127: 0.2283333391 | CD127: 0.1168374121 | CE127: N | CF127: 0 | CG127: 23.10378804 | CH127: 25.0000028 | CI127: 36 | CJ127: 36 | CK127: 0 | CL127: 0 | CM127: 9 | DE127: 9 | DW127: 9 | EO127: 9
A128: 10 | B128: 19.12000084 | C128: 209.5899963 | D128: 87.10862732 | E128: 46.03810996 | F128: 66.73750305 | G128: 3.925099134 | H128: 22.19272041 | I128: 0.2283333391 | J128: 0.04433614016 | K128: G | L128: 0 | M128: 54.89993921 | N128: 75.00019392 | O128: 36 | P128: 36 | Q128: 0 | R128: 0 | S128: 10 | T128: 31.5 | U128: 46.45999908 | V128: 39.35730362 | W128: 3.597305397 | X128: 42.71999741 | Y128: 119.9966431 | Z128: 0.3279867172 | AA128: 0.2252266109 | AB128: 0.0950127244 | AC128: N | AD128: 0 | AE128: 36.93096983 | AF128: 24.99998189 | AG128: 37 | AH128: 37 | AI128: 0 | AJ128: 0 | AK128: 10 | AL128: 106.3499985 | AM128: 214.1100006 | AN128: 179.1144257 | AO128: 30.93702158 | AP128: 205.1300049 | AQ128: 29.59933281 | AR128: 6.051299572 | AS128: 0.2283333391 | AT128: 0.1237373948 | AU128: T | AV128: 0 | AW128: 54.76380535 | AX128: 74.9999822 | AY128: 36 | AZ128: 36 | BA128: 0 | BB128: 0 | BC128: 10 | BD128: 9.800000191 | BE128: 39.79999924 | BF128: 18.60277748 | BG128: 7.883707954 | BH128: 12.30000019 | BI128: 6.68625164 | BJ128: 2.782243013 | BK128: 0.2283333391 | BL128: 0.08596488833 | BM128: G | BN128: 0 | BO128: 22.82348973 | BP128: 25.00015282 | BQ128: 36 | BR128: 36 | BS128: 0 | BT128: 0 | BU128: 10 | BV128: 5.900000095 | BW128: 33.29999924 | BX128: 24.1444397 | BY128: 6.010155666 | BZ128: 26.45000076 | CA128: 11.06721115 | CB128: 2.181619167 | CC128: 0.2283333391 | CD128: 0.1007120907 | CE128: N | CF128: 0 | CG128: 28.19822789 | CH128: 25.00000107 | CI128: 36 | CJ128: 36 | CK128: 0 | CL128: 0 | CM128: 10 | DE128: 10 | DW128: 10 | EO128: 10
A129: 11 | B129: 19.38999939 | C129: 182.8899994 | D129: 85.34472656 | E129: 48.1234603 | F129: 60.26499939 | G129: 2.84311676 | H129: 30.01801682 | I129: 0.2283333391 | J129: 0.07716190815 | K129: G | L129: 0 | M129: 48.13942626 | N129: 75.00038204 | O129: 36 | P129: 36 | Q129: 0 | R129: 0 | S129: 11 | T129: 30.92000008 | U129: 45.63000107 | V129: 38.74621964 | W129: 4.590313099 | X129: 41.95249939 | Y129: 71.18361664 | Z129: 0.5443137288 | AA129: 0.2252266109 | AB129: 0.07207220793 | AC129: U | AD129: 0 | AE129: 34.59750032 | AF129: 24.99999783 | AG129: 37 | AH129: 37 | AI129: 0 | AJ129: 0 | AK129: 11 | AL129: 93.48999786 | AM129: 214.2200012 | AN129: 177.0466614 | AO129: 32.90181112 | AP129: 204.1591644 | AQ129: 25.24086189 | AR129: 7.014287472 | AS129: 0.2283333391 | AT129: 0.1099219918 | AU129: N | AV129: 0 | AW129: 154.8542679 | AX129: 75.00044347 | AY129: 36 | AZ129: 36 | BA129: 0 | BB129: 0 | BC129: 11 | BD129: 7.599999905 | BE129: 42.40000153 | BF129: 15.1305542 | BG129: 8.764892112 | BH129: 10.5 | BI129: 4.300413132 | BJ129: 3.518395424 | BK129: 0.2283333391 | BL129: 0.1116341949 | BM129: E | BN129: 0 | BO129: 20.97546367 | BP129: 24.99989805 | BQ129: 36 | BR129: 36 | BS129: 0 | BT129: 0 | BU129: 11 | BV129: 4.900000095 | BW129: 34.20000076 | BX129: 27.43611336 | BY129: 6.398354629 | BZ129: 31.75833321 | CA129: 10.65098572 | CB129: 2.575922489 | CC129: 0.2283333391 | CD129: 0.1477086842 | CE129: N | CF129: 0 | CG129: 31.75162462 | CH129: 25.00056299 | CI129: 36 | CJ129: 36 | CK129: 0 | CL129: 0 | CM129: 11 | DE129: 11 | DW129: 11 | EO129: 11
A130: 12 | B130: 11.15999985 | C130: 260.9299927 | D130: 89.39111328 | E130: 54.8805877 | F130: 73.60250092 | G130: 2.493679523 | H130: 35.8470726 | I130: 0.2283333391 | J130: 0.02164334059 | K130: G | L130: 0 | M130: 47.76402704 | N130: 75.00036095 | O130: 36 | P130: 36 | Q130: 0 | R130: 0 | S130: 12 | T130: 28.62000084 | U130: 50.70000076 | V130: 38.38729095 | W130: 5.492637909 | X130: 37.81999969 | Y130: 51.38602829 | Z130: 0.7470375299 | AA130: 0.2252266109 | AB130: 0.09187293053 | AC130: G | AD130: 0 | AE130: 34.65265625 | AF130: 24.99910529 | AG130: 37 | AH130: 37 | AI130: 0 | AJ130: 0 | AK130: 12 | AL130: 86.20999908 | AM130: 213.6499939 | AN130: 176.8530884 | AO130: 35.01213517 | AP130: 203.0299988 | AQ130: 21.36860085 | AR130: 8.276306152 | AS130: 0.2283333391 | AT130: 0.201144278 | AU130: N | AV130: 0 | AW130: 153.2372245 | AX130: 75.00048787 | AY130: 36 | AZ130: 36 | BA130: 0 | BB130: 0 | BC130: 12 | BD130: 5.599999905 | BE130: 48.09999847 | BF130: 13.03055668 | BG130: 11.40924083 | BH130: 9.141666412 | BI130: 2.348581553 | BJ130: 5.548266411 | BK130: 0.2283333391 | BL130: 0.1731145382 | BM130: E | BN130: 0 | BO130: 18.06419132 | BP130: 24.99999219 | BQ130: 36 | BR130: 36 | BS130: 0 | BT130: 0 | BU130: 12 | BV130: 2.900000095 | BW130: 35.90000153 | BX130: 28.32499886 | BY130: 7.982958763 | BZ130: 33.15000153 | CA130: 5.678421497 | CB130: 4.988181591 | CC130: 0.2283333391 | CD130: 0.1613558531 | CE130: N | CF130: 0 | CG130: 33.70942205 | CH130: 25.00000266 | CI130: 36 | CJ130: 36 | CK130: 0 | CL130: 0 | CM130: 12 | DE130: 12 | DW130: 12 | EO130: 12
A131: 13 | B131: 14.96000004 | C131: 149.6600037 | D131: 66.07750702 | E131: 37.50085937 | F131: 26.18500137 | G131: 3.026232719 | H131: 21.83490562 | I131: 0.2283333391 | J131: 0.04837971926 | K131: G | L131: 0 | M131: 38.16880892 | N131: 75.00004854 | O131: 36 | P131: 36 | Q131: 0 | R131: 0 | S131: 13 | T131: 30.57999992 | U131: 48.79999924 | V131: 38.68054199 | W131: 4.022863847 | X131: 41.20833206 | Y131: 94.54455566 | Z131: 0.4091250002 | AA131: 0.2252266109 | AB131: 0.04631215334 | AC131: G | AD131: 0 | AE131: 35.92828295 | AF131: 25.00045405 | AG131: 37 | AH131: 37 | AI131: 0 | AJ131: 0 | AK131: 13 | AL131: 80.34999847 | AM131: 214 | AN131: 172.9719391 | AO131: 35.57251651 | AP131: 202.8625031 | AQ131: 19.56464195 | AR131: 8.841048241 | AS131: 0.2283333391 | AT131: 0.1408163309 | AU131: N | AV131: 0 | AW131: 148.9786394 | AX131: 75.00000172 | AY131: 36 | AZ131: 36 | BA131: 0 | BB131: 0 | BC131: 13 | BD131: 5.099999905 | BE131: 47.29999924 | BF131: 13.90833378 | BG131: 12.00415158 | BH131: 8.616666794 | BI131: 2.167541265 | BJ131: 6.416640759 | BK131: 0.2283333391 | BL131: 0.08572566509 | BM131: E | BN131: 0 | BO131: 19.28105368 | BP131: 24.99998383 | BQ131: 36 | BR131: 36 | BS131: 0 | BT131: 0 | BU131: 13 | BV131: 0.6999999881 | BW131: 38.59999847 | BX131: 30.5714283 | BY131: 9.085203999 | BZ131: 35.44166565 | CA131: 3.367007494 | CB131: 9.079703331 | CC131: 0.2315722704 | CD131: 0.1891551912 | CE131: N | CF131: 2.702702703 | CG131: 36.501924 | CH131: 25.0009454 | CI131: 36 | CJ131: 36 | CK131: 1 | CL131: 2.702702703 | CM131: 13 | DE131: 13 | DW131: 13 | EO131: 13
A132: 14 | B132: 0.3799999952 | C132: 137.9299927 | D132: 45.49139023 | E132: 37.41337978 | F132: 11.84249973 | G132: 1.239884853 | H132: 36.69001389 | I132: 0.2283333391 | J132: 0.05799216032 | K132: E | L132: 0 | M132: 13.0870095 | N132: 75.00007901 | O132: 36 | P132: 36 | Q132: 0 | R132: 0 | S132: 14 | T132: 32.24000168 | U132: 49.16999817 | V132: 40.0583725 | W132: 4.769873754 | X132: 44.9375 | Y132: 72.18406677 | Z132: 0.5549475551 | AA132: 0.2252266109 | AB132: 0.1126126051 | AC132: U | AD132: 0 | AE132: 36.4725008 | AF132: 24.99998735 | AG132: 37 | AH132: 37 | AI132: 0 | AJ132: 0 | AK132: 14 | AL132: 88.08000183 | AM132: 213.0899963 | AN132: 167.0994263 | AO132: 34.41515942 | AP132: 202.6725006 | AQ132: 20.48846626 | AR132: 8.155779839 | AS132: 0.2283333391 | AT132: 0.07323233038 | AU132: T | AV132: 0 | AW132: 28.23559191 | AX132: 74.99964057 | AY132: 36 | AZ132: 36 | BA132: 0 | BB132: 0 | BC132: 14 | BD132: 4.099999905 | BE132: 44 | BF132: 15.39444447 | BG132: 11.75856972 | BH132: 7.425000191 | BI132: 2.058012724 | BJ132: 7.480247498 | BK132: 0.2283333391 | BL132: 0.06106173992 | BM132: E | BN132: 0 | BO132: 21.34122629 | BP132: 25.00000854 | BQ132: 36 | BR132: 36 | BS132: 0 | BT132: 0 | BU132: 14 | BV132: 7.300000191 | BW132: 38.09999847 | BX132: 28.71666718 | BY132: 8.752975394 | BZ132: 35.53333282 | CA132: 7.485076904 | CB132: 3.836522579 | CC132: 0.2283333391 | CD132: 0.1779376268 | CE132: N | CF132: 0 | CG132: 34.62045856 | CH132: 25.00000291 | CI132: 36 | CJ132: 36 | CK132: 0 | CL132: 0 | CM132: 14 | DE132: 14 | DW132: 14 | EO132: 14
A133: 15 | B133: 0.75 | C133: 156.8300018 | D133: 35.08694839 | E133: 30.15936978 | F133: 39.77000046 | G133: 1.752858162 | H133: 20.01699257 | I133: 0.2283333391 | J133: 0.09342455864 | K133: G | L133: 0 | M133: 15.66367121 | N133: 75.00013124 | O133: 36 | P133: 36 | Q133: 0 | R133: 0 | S133: 15 | T133: 29.94000053 | U133: 48.84999847 | V133: 40.51567078 | W133: 4.348503531 | X133: 40.97083282 | Y133: 86.30275726 | Z133: 0.4694597423 | AA133: 0.2252266109 | AB133: 0.06228154898 | AC133: N | AD133: 0 | AE133: 37.58261618 | AF133: 24.99998604 | AG133: 37 | AH133: 37 | AI133: 0 | AJ133: 0 | AK133: 15 | AL133: 91.90000153 | AM133: 209.2200012 | AN133: 162.6922455 | AO133: 33.59616634 | AP133: 199.4433289 | AQ133: 20.92036629 | AR133: 7.776739597 | AS133: 0.2283333391 | AT133: 0.08211043477 | AU133: N | AV133: 0 | AW133: 140.0321389 | AX133: 74.99984557 | AY133: 36 | AZ133: 36 | BA133: 0 | BB133: 0 | BC133: 15 | BD133: 4.400000095 | BE133: 52.09999847 | BF133: 17.59722137 | BG133: 14.23025966 | BH133: 8.375 | BI133: 1.723557115 | BJ133: 10.20982742 | BK133: 0.2283333391 | BL133: 0.06215965748 | BM133: E | BN133: 0 | BO133: 24.3949258 | BP133: 25.00000422 | BQ133: 36 | BR133: 36 | BS133: 0 | BT133: 0 | BU133: 15 | BV133: 1.100000024 | BW133: 39 | BX133: 27.3942852 | BY133: 11.17283786 | BZ133: 35.84166718 | CA133: 2.642343044 | CB133: 10.3674221 | CC133: 0.2315722704 | CD133: 0.1484379172 | CE133: N | CF133: 2.702702703 | CG133: 34.68775857 | CH133: 25.00025738 | CI133: 36 | CJ133: 36 | CK133: 1 | CL133: 2.702702703 | CM133: 15 | DE133: 15 | DW133: 15 | EO133: 15
A134: 16 | B134: 0.6899999976 | C134: 65.01999664 | D134: 23.92833328 | E134: 17.61258601 | F134: 6.050833225 | G134: 1.319498062 | H134: 18.13442039 | I134: 0.2283333391 | J134: 0.0820993185 | K134: G | L134: 0 | M134: 8.808666988 | N134: 75.00020386 | O134: 36 | P134: 36 | Q134: 0 | R134: 0 | S134: 16 | T134: 34.77999878 | U134: 49.61999893 | V134: 40.43080902 | W134: 3.905440834 | X134: 38.48999786 | Y134: 114.5744705 | Z134: 0.3528780043 | AA134: 0.2252266109 | AB134: 0.06528782845 | AC134: G | AD134: 0 | AE134: 37.82308138 | AF134: 24.99985205 | AG134: 37 | AH134: 37 | AI134: 0 | AJ134: 0 | AK134: 16 | AL134: 85.25 | AM134: 208.1999969 | AN134: 156.6588898 | AO134: 33.67452498 | AP134: 177.4624939 | AQ134: 19.58303452 | AR134: 7.999724865 | AS134: 0.2283333391 | AT134: 0.07333439589 | AU134: N | AV134: 0 | AW134: 133.9457576 | AX134: 75.00000969 | AY134: 36 | AZ134: 36 | BA134: 0 | BB134: 0 | BC134: 16 | BD134: 4.800000191 | BE134: 48.59999847 | BF134: 19.69999886 | BG134: 13.74656218 | BH134: 8.449999809 | BI134: 2.127546072 | BJ134: 9.259493828 | BK134: 0.2283333391 | BL134: 0.08882057667 | BM134: G | BN134: 0 | BO134: 26.41080871 | BP134: 25.0000188 | BQ134: 36 | BR134: 36 | BS134: 0 | BT134: 0 | BU134: 16 | BV134: 1.200000048 | BW134: 38.90000153 | BX134: 25.95428658 | BY134: 11.4940482 | BZ134: 35.75833511 | CA134: 2.319698572 | CB134: 11.18864632 | CC134: 0.2315722704 | CD134: 0.1626597643 | CE134: N | CF134: 2.702702703 | CG134: 33.45720836 | CH134: 25.00089387 | CI134: 36 | CJ134: 36 | CK134: 1 | CL134: 2.702702703 | CM134: 16 | DE134: 16 | DW134: 16 | EO134: 16
A135: 17 | B135: 0.01999999955 | C135: 73.95999908 | D135: 21.40305901 | E135: 16.0295414 | F135: 18.50499916 | G135: 1.186539888 | H135: 18.03821373 | I135: 0.2283333391 | J135: 0.07616943121 | K135: G | L135: 0 | M135: 7.225578781 | N135: 75.00000135 | O135: 36 | P135: 36 | Q135: 0 | R135: 0 | S135: 17 | T135: 34.79000092 | U135: 48.70999908 | V135: 40.93810654 | W135: 3.586675165 | X135: 38.27000046 | Y135: 136.898468 | Z135: 0.2990399301 | AA135: 0.2252266109 | AB135: 0.07114636898 | AC135: G | AD135: 0 | AE135: 38.52693722 | AF135: 24.99998326 | AG135: 37 | AH135: 37 | AI135: 0 | AJ135: 0 | AK135: 17 | AL135: 81.41000366 | AM135: 205.7200012 | AN135: 151.4824829 | AO135: 32.72042513 | AP135: 153.9241638 | AQ135: 18.9956646 | AR135: 7.974581718 | AS135: 0.2283333391 | AT135: 0.06423664093 | AU135: N | AV135: 0 | AW135: 129.4129588 | AX135: 74.99993469 | AY135: 36 | AZ135: 36 | BA135: 0 | BB135: 0 | BC135: 17 | BD135: 3.700000048 | BE135: 46.90000153 | BF135: 20.58055305 | BG135: 14.23618758 | BH135: 7.300000191 | BI135: 2.027812243 | BJ135: 10.14914131 | BK135: 0.2283333391 | BL135: 0.1013236046 | BM135: E | BN135: 0 | BO135: 28.53071292 | BP135: 24.99998996 | BQ135: 36 | BR135: 36 | BS135: 0 | BT135: 0 | BU135: 17 | BV135: 0.5 | BW135: 38.79999924 | BX135: 24.77777863 | BY135: 12.52910004 | BZ135: 35.60833359 | CA135: 1.596168995 | CB135: 15.52328014 | CC135: 0.2283333391 | CD135: 0.1716303229 | CE135: N | CF135: 0 | CG135: 33.22852713 | CH135: 25.00000266 | CI135: 36 | CJ135: 36 | CK135: 0 | CL135: 0 | CM135: 17 | DE135: 17 | DW135: 17 | EO135: 17
A136: 18 | B136: 0.8199999928 | C136: 47.31000137 | D136: 15.89562416 | E136: 13.60021791 | F136: 4.69416666 | G136: 1.146922231 | H136: 13.85937405 | I136: 0.2421840727 | J136: 0.04372096062 | K136: G | L136: 10.81081081 | M136: 3.30456531 | N136: 75.0001402 | O136: 36 | P136: 36 | Q136: 4 | R136: 10.81081081 | S136: 18 | T136: 35.95000076 | U136: 54.41999817 | V136: 42.06783295 | W136: 3.760948475 | X136: 40.56750107 | Y136: 134.5804901 | Z136: 0.3125849366 | AA136: 0.2252266109 | AB136: 0.07886368036 | AC136: G | AD136: 0 | AE136: 39.56855599 | AF136: 25.00005325 | AG136: 37 | AH136: 37 | AI136: 0 | AJ136: 0 | AK136: 18 | AL136: 78.55999756 | AM136: 191.5299988 | AN136: 145.1105499 | AO136: 29.91780835 | AP136: 163.2874908 | AQ136: 20.55467606 | AR136: 7.059734344 | AS136: 0.2283333391 | AT136: 0.0925924778 | AU136: T | AV136: 0 | AW136: 29.64256069 | AX136: 75.00000654 | AY136: 36 | AZ136: 36 | BA136: 0 | BB136: 0 | BC136: 18 | BD136: 5.300000191 | BE136: 45 | BF136: 21.17222214 | BG136: 13.53033994 | BH136: 8.608333588 | BI136: 2.279035091 | BJ136: 9.28999424 | BK136: 0.2283333391 | BL136: 0.1252095699 | BM136: E | BN136: 0 | BO136: 29.35092791 | BP136: 25.00000502 | BQ136: 36 | BR136: 36 | BS136: 0 | BT136: 0 | BU136: 18 | BV136: 1.399999976 | BW136: 49.90000153 | BX136: 24.33611107 | BY136: 13.72022811 | BZ136: 29.69166946 | CA136: 1.708416224 | CB136: 14.24483681 | CC136: 0.2283333391 | CD136: 0.08333340287 | CE136: U | CF136: 0 | CG136: 37.77500114 | CH136: 25 | CI136: 36 | CJ136: 36 | CK136: 0 | CL136: 0 | CM136: 18 | DE136: 18 | DW136: 18 | EO136: 18
A137: 19 | B137: 0.1700000018 | C137: 58.65000153 | D137: 16.48411942 | E137: 17.32376382 | F137: 5.04333353 | G137: 0.7828384638 | H137: 21.05685997 | I137: 0.2349530607 | J137: 0.04104298353 | K137: G | L137: 5.405405405 | M137: 2.749792172 | N137: 75.00002825 | O137: 36 | P137: 36 | Q137: 2 | R137: 5.405405405 | S137: 19 | T137: 35.59999847 | U137: 53.90999985 | V137: 42.75892258 | W137: 4.220288484 | X137: 40.17749786 | Y137: 109.1628799 | Z137: 0.3916983604 | AA137: 0.2252266109 | AB137: 0.1037328839 | AC137: G | AD137: 0 | AE137: 39.93206679 | AF137: 25.0000084 | AG137: 37 | AH137: 37 | AI137: 0 | AJ137: 0 | AK137: 19 | AL137: 76.18000031 | AM137: 190.3099976 | AN137: 140.7905731 | AO137: 27.45426884 | AP137: 161.7774963 | AQ137: 22.7055397 | AR137: 6.200714588 | AS137: 0.2283333391 | AT137: 0.07407407463 | AU137: T | AV137: 0 | AW137: 26.76026478 | AX137: 75.00000243 | AY137: 36 | AZ137: 36 | BA137: 0 | BB137: 0 | BC137: 19 | BD137: 3.5 | BE137: 47.70000076 | BF137: 20.04444504 | BG137: 14.32429385 | BH137: 7.183333397 | BI137: 1.954474211 | BJ137: 10.2556715 | BK137: 0.2283333391 | BL137: 0.06179782748 | BM137: G | BN137: 0 | BO137: 27.02733516 | BP137: 25.00027774 | BQ137: 36 | BR137: 36 | BS137: 0 | BT137: 0 | BU137: 19 | BV137: 0.8000000119 | BW137: 45.29999924 | BX137: 26.6444416 | BY137: 14.1203892 | BZ137: 41.59166718 | CA137: 1.734774351 | CB137: 15.35902405 | CC137: 0.2283333391 | CD137: 0.1082062721 | CE137: N | CF137: 0 | CG137: 36.16852176 | CH137: 24.99994965 | CI137: 36 | CJ137: 36 | CK137: 0 | CL137: 0 | CM137: 19 | DE137: 19 | DW137: 19 | EO137: 19
A138: 20 | B138: 0.09000000358 | C138: 33.29999924 | D138: 9.551714897 | E138: 9.128988988 | F138: 2.857499838 | G138: 0.8326587081 | H138: 11.47134495 | I138: 0.2315722704 | J138: 0.03887760639 | K138: G | L138: 2.702702703 | M138: 1.99367485 | N138: 75.00000108 | O138: 36 | P138: 36 | Q138: 1 | R138: 2.702702703 | S138: 20 | T138: 37.29999924 | U138: 53.90999985 | V138: 45.16783905 | W138: 4.053208039 | X138: 44.22083282 | Y138: 127.3043594 | Z138: 0.3548019826 | AA138: 0.2252266109 | AB138: 0.03319744766 | AC138: N | AD138: 0 | AE138: 42.43407599 | AF138: 25.00001023 | AG138: 37 | AH138: 37 | AI138: 0 | AJ138: 0 | AK138: 20 | AL138: 72.55000305 | AM138: 178.2799988 | AN138: 136.4202881 | AO138: 26.6168401 | AP138: 151.8475037 | AQ138: 22.5268116 | AR138: 6.055907726 | AS138: 0.2283333391 | AT138: 0.1203703284 | AU138: T | AV138: 0 | AW138: 26.76757531 | AX138: 75.00000489 | AY138: 36 | AZ138: 36 | BA138: 0 | BB138: 0 | BC138: 20 | BD138: 3.400000095 | BE138: 46.40000153 | BF138: 18.82222176 | BG138: 12.24665756 | BH138: 6.983333588 | BI138: 2.136667728 | BJ138: 8.809147835 | BK138: 0.2283333391 | BL138: 0.09115219116 | BM138: G | BN138: 0 | BO138: 25.22657099 | BP138: 24.99989585 | BQ138: 36 | BR138: 36 | BS138: 0 | BT138: 0 | BU138: 20 | BV138: 4.400000095 | BW138: 48 | BX138: 28.4888916 | BY138: 12.17812578 | BZ138: 37.09999847 | CA138: 3.634589434 | CB138: 7.838269711 | CC138: 0.2283333391 | CD138: 0.1018518656 | CE138: T | CF138: 0 | CG138: 58.90000123 | CH138: 25.00000219 | CI138: 36 | CJ138: 36 | CK138: 0 | CL138: 0 | CM138: 20 | DE138: 20 | DW138: 20 | EO138: 20
A139: 21 | B139: 0.4699999988 | C139: 33.84999847 | D139: 8.439354897 | E139: 8.307626314 | F139: 3.807999849 | G139: 0.9956749082 | H139: 8.476014137 | I139: 0.2460592687 | J139: 0.03127634525 | K139: G | L139: 13.51351351 | M139: 1.194344216 | N139: 75.00001491 | O139: 36 | P139: 36 | Q139: 5 | R139: 13.51351351 | S139: 21 | T139: 38.90000153 | U139: 56.04999924 | V139: 47.26324463 | W139: 3.720610338 | X139: 48.90416718 | Y139: 166.8312836 | Z139: 0.2832996547 | AA139: 0.2252266109 | AB139: 0.02937668562 | AC139: N | AD139: 0 | AE139: 44.75382944 | AF139: 24.99999529 | AG139: 37 | AH139: 37 | AI139: 0 | AJ139: 0 | AK139: 21 | AL139: 69.80999756 | AM139: 161.8899994 | AN139: 132.5858307 | AO139: 25.24612246 | AP139: 154.2166748 | AQ139: 23.21146774 | AR139: 5.712082863 | AS139: 0.2283333391 | AT139: 0.1237373948 | AU139: T | AV139: 0 | AW139: 25.7300537 | AX139: 75.00000383 | AY139: 36 | AZ139: 36 | BA139: 0 | BB139: 0 | BC139: 21 | BD139: 2.5 | BE139: 44.20000076 | BF139: 17.51944542 | BG139: 12.46264928 | BH139: 5.975000381 | BI139: 1.865781426 | BJ139: 9.389870644 | BK139: 0.2283333391 | BL139: 0.0772190094 | BM139: G | BN139: 0 | BO139: 23.69406365 | BP139: 24.99994988 | BQ139: 36 | BR139: 36 | BS139: 0 | BT139: 0 | BU139: 21 | BV139: 4.199999809 | BW139: 46.90000153 | BX139: 30.66666412 | BY139: 11.94367733 | BZ139: 43.34166718 | CA139: 4.043774605 | CB139: 7.583673 | CC139: 0.2283333391 | CD139: 0.08080808073 | CE139: T | CF139: 0 | CG139: 53.06321685 | CH139: 25.00000163 | CI139: 36 | CJ139: 36 | CK139: 0 | CL139: 0 | CM139: 21 | DE139: 21 | DW139: 21 | EO139: 21
A140: 22 | B140: 0.01999999955 | C140: 7.21999979 | D140: 2.171538591 | E140: 2.349390998 | F140: 0.7399999499 | G140: 0.6376774907 | H140: 3.405386925 | I140: 0.2686791122 | J140: 0.09037959576 | K140: G | L140: 27.02702703 | M140: 0 | N140: 72.97297297 | O140: 36 | P140: 36 | Q140: 10 | R140: 27.02702703 | S140: 22 | T140: 43.68999863 | U140: 60.56000137 | V140: 51.31026459 | W140: 3.71297102 | X140: 53.5308342 | Y140: 196.7104645 | Z140: 0.2608415484 | AA140: 0.2252266109 | AB140: 0.02702480555 | AC140: N | AD140: 0 | AE140: 48.80596298 | AF140: 24.9997972 | AG140: 37 | AH140: 37 | AI140: 0 | AJ140: 0 | AK140: 22 | AL140: 67.05000305 | AM140: 153.2200012 | AN140: 129.1330414 | AO140: 24.46366711 | AP140: 146.0391693 | AQ140: 23.20506287 | AR140: 5.564865112 | AS140: 0.2283333391 | AT140: 0.2305597365 | AU140: T | AV140: 0 | AW140: 25.79926358 | AX140: 75.00000839 | AY140: 36 | AZ140: 36 | BA140: 0 | BB140: 0 | BC140: 22 | BD140: 2.599999905 | BE140: 47.70000076 | BF140: 15.58611202 | BG140: 14.55464923 | BH140: 6.358333588 | BI140: 1.30949688 | BJ140: 11.90236664 | BK140: 0.2283333391 | BL140: 0.1182864904 | BM140: E | BN140: 0 | BO140: 21.60697124 | BP140: 24.99994862 | BQ140: 36 | BR140: 36 | BS140: 0 | BT140: 0 | BU140: 22 | BV140: 5.699999809 | BW140: 52.5 | BX140: 32.8444519 | BY140: 13.42893304 | BZ140: 40.79999924 | CA140: 4.02589798 | CB140: 8.158291817 | CC140: 0.2283333391 | CD140: 0.09421950579 | CE140: N | CF140: 0 | CG140: 41.90212742 | CH140: 25.00000515 | CI140: 36 | CJ140: 36 | CK140: 0 | CL140: 0 | CM140: 22 | DE140: 22 | DW140: 22 | EO140: 22
A141: 23 | B141: 0.03999999911 | C141: 17.48999977 | D141: 3.783929348 | E141: 5.168690049 | F141: 1.784999967 | G141: 0.6802785993 | H141: 5.562323093 | I141: 0.2589056492 | J141: 0.07592755556 | K141: G | L141: 21.62162162 | M141: 0.04747712186 | N141: 75.00019419 | O141: 36 | P141: 36 | Q141: 8 | R141: 21.62162162 | S141: 23 | T141: 43.45999908 | U141: 62.88000107 | V141: 53.90972519 | W141: 3.63452843 | X141: 51.55166626 | Y141: 222.3817444 | Z141: 0.2424197495 | AA141: 0.2252266109 | AB141: 0.07208178937 | AC141: N | AD141: 0 | AE141: 51.45835478 | AF141: 24.99998053 | AG141: 37 | AH141: 37 | AI141: 0 | AJ141: 0 | AK141: 23 | AL141: 64.38999939 | AM141: 153.1600037 | AN141: 126.8485947 | AO141: 24.36573842 | AP141: 145.7625122 | AQ141: 22.3957386 | AR141: 5.663961411 | AS141: 0.2283333391 | AT141: 0.1353570223 | AU141: N | AV141: 0 | AW141: 110.4146694 | AX141: 74.99932758 | AY141: 36 | AZ141: 36 | BA141: 0 | BB141: 0 | BC141: 23 | BD141: 2.099999905 | BE141: 46.40000153 | BF141: 11.46110916 | BG141: 11.0689089 | BH141: 5.791666985 | BI141: 1.527019739 | BJ141: 7.505540848 | BK141: 0.2283333391 | BL141: 0.05254971981 | BM141: E | BN141: 0 | BO141: 15.88847195 | BP141: 24.99999793 | BQ141: 36 | BR141: 36 | BS141: 0 | BT141: 0 | BU141: 23 | BV141: 7.099999905 | BW141: 50 | BX141: 35.61110687 | BY141: 10.02593226 | BZ141: 32.125 | CA141: 8.627943039 | CB141: 4.127415657 | CC141: 0.2283333391 | CD141: 0.1043955162 | CE141: N | CF141: 0 | CG141: 42.3734716 | CH141: 25.00007549 | CI141: 36 | CJ141: 36 | CK141: 0 | CL141: 0 | CM141: 23 | DE141: 23 | DW141: 23 | EO141: 23
A142: 24 | B142: 0.009999999776 | C142: 13.01000023 | D142: 2.370714188 | E142: 3.062677339 | F142: 1.310000062 | G142: 0.596110642 | H142: 3.976970196 | I142: 0.2589056492 | J142: 0.05534505844 | K142: G | L142: 21.62162162 | M142: 0.01689130809 | N142: 75.00000625 | O142: 36 | P142: 36 | Q142: 8 | R142: 21.62162162 | S142: 24 | T142: 49.70000076 | U142: 62.91999817 | V142: 56.32838058 | W142: 3.596205163 | X142: 55.20833206 | Y142: 250.7107391 | Z142: 0.2246747762 | AA142: 0.2252266109 | AB142: 0.06756773591 | AC142: U | AD142: 0 | AE142: 53.00500011 | AF142: 24.99991473 | AG142: 37 | AH142: 37 | AI142: 0 | AJ142: 0 | AK142: 24 | AL142: 62 | AM142: 151.7299957 | AN142: 124.7764206 | AO142: 24.36703972 | AP142: 144.2524872 | AQ142: 21.49771881 | AR142: 5.804170132 | AS142: 0.2283333391 | AT142: 0.1095986366 | AU142: N | AV142: 0 | AW142: 108.3411006 | AX142: 75.00000186 | AY142: 36 | AZ142: 36 | BA142: 0 | BB142: 0 | BC142: 24 | BD142: 1.299999952 | BE142: 37 | BF142: 7.06388855 | BG142: 6.800972802 | BH142: 4.274999619 | BI142: 1.832429886 | BJ142: 3.854929686 | BK142: 0.2283333391 | BL142: 0.05507999659 | BM142: G | BN142: 0 | BO142: 9.564399593 | BP142: 24.99999397 | BQ142: 36 | BR142: 36 | BS142: 0 | BT142: 0 | BU142: 24 | BV142: 16.89999962 | BW142: 51.5 | BX142: 37.66944885 | BY142: 7.958672827 | BZ142: 42.85000229 | CA142: 19.81597137 | CB142: 1.900964022 | CC142: 0.2283333391 | CD142: 0.04792290926 | CE142: N | CF142: 0 | CG142: 43.03747895 | CH142: 25.00005249 | CI142: 36 | CJ142: 36 | CK142: 0 | CL142: 0 | CM142: 24 | DE142: 24 | DW142: 24 | EO142: 24
A143: 25 | B143: 0.0700000003 | C143: 36.45000076 | D143: 4.918076515 | E143: 8.901061143 | F143: 3.707999945 | G143: 0.5347836018 | H143: 9.196386337 | I143: 0.2686791122 | J143: 0.06918781996 | K143: G | L143: 27.02702703 | M143: 0 | N143: 72.97297297 | O143: 36 | P143: 36 | Q143: 10 | R143: 27.02702703 | S143: 25 | T143: 50.88999939 | U143: 68.01999664 | V143: 58.53730011 | W143: 3.779967161 | X143: 58.02749634 | Y143: 244.6109772 | Z143: 0.2393077463 | AA143: 0.2252266109 | AB143: 0.06256279349 | AC143: N | AD143: 0 | AE143: 55.98783649 | AF143: 25.00040955 | AG143: 37 | AH143: 37 | AI143: 0 | AJ143: 0 | AK143: 25 | AL143: 59.79999924 | AM143: 155.4900055 | AN143: 123.1969528 | AO143: 24.67671095 | AP143: 131.5675049 | AQ143: 20.33744621 | AR143: 6.057641029 | AS143: 0.2283333391 | AT143: 0.1460857987 | AU143: N | AV143: 0 | AW143: 106.5527606 | AX143: 75.00000468 | AY143: 36 | AZ143: 36 | BA143: 0 | BB143: 0 | BC143: 25 | BD143: 1.100000024 | BE143: 33.29999924 | BF143: 6.06111145 | BG143: 6.221266654 | BH143: 3.783333302 | BI143: 1.817492247 | BJ143: 3.33487606 | BK143: 0.2283333391 | BL143: 0.1178794503 | BM143: E | BN143: 0 | BO143: 8.402498995 | BP143: 24.99994073 | BQ143: 36 | BR143: 36 | BS143: 0 | BT143: 0 | BU143: 25 | BV143: 14.39999962 | BW143: 51 | BX143: 36.56944275 | BY143: 8.59580675 | BZ143: 35.75 | CA143: 16.77749062 | CB143: 2.179672956 | CC143: 0.2283333391 | CD143: 0.05283772945 | CE143: N | CF143: 0 | CG143: 42.36712599 | CH143: 25.00037082 | CI143: 36 | CJ143: 36 | CK143: 0 | CL143: 0 | CM143: 25 | DE143: 25 | DW143: 25 | EO143: 25
A144: 26 | B144: 0.01999999955 | C144: 12.77999973 | D144: 2.304166555 | E144: 3.141216773 | F144: 1.296000004 | G144: 0.7097129226 | H144: 3.246617794 | I144: 0.2796500921 | J144: 0.1030868292 | K144: G | L144: 32.43243243 | M144: 0 | N144: 67.56756757 | O144: 36 | P144: 36 | Q144: 12 | R144: 32.43243243 | S144: 26 | T144: 55.52000046 | U144: 67.45999908 | V144: 61.22406006 | W144: 3.238411416 | X144: 62.48500061 | Y144: 366.5811157 | Z144: 0.167013675 | AA144: 0.2252266109 | AB144: 0.05652867258 | AC144: N | AD144: 0 | AE144: 59.03978497 | AF144: 24.99994503 | AG144: 37 | AH144: 37 | AI144: 0 | AJ144: 0 | AK144: 26 | AL144: 57.59000015 | AM144: 152.5099945 | AN144: 121.2222061 | AO144: 24.67820978 | AP144: 128.7799988 | AQ144: 19.54564857 | AR144: 6.20200491 | AS144: 0.2283333391 | AT144: 0.1388888955 | AU144: N | AV144: 0 | AW144: 104.5770002 | AX144: 75.00000822 | AY144: 36 | AZ144: 36 | BA144: 0 | BB144: 0 | BC144: 26 | BD144: 1 | BE144: 10.5 | BF144: 4.219443798 | BG144: 2.438831161 | BH144: 1.791666746 | BI144: 3.219468594 | BJ144: 1.310602546 | BK144: 0.2283333391 | BL144: 0.0380397439 | BM144: G | BN144: 0 | BO144: 5.483529999 | BP144: 24.99999863 | BQ144: 36 | BR144: 36 | BS144: 0 | BT144: 0 | BU144: 26 | BV144: 25.10000038 | BW144: 49.29999924 | BX144: 36.43055725 | BY144: 6.368306255 | BZ144: 31.14999962 | CA144: 34.17471313 | CB144: 1.066009164 | CC144: 0.2283333391 | CD144: 0.07425755262 | CE144: G | CF144: 0 | CG144: 40.41824102 | CH144: 25.00001646 | CI144: 36 | CJ144: 36 | CK144: 0 | CL144: 0 | CM144: 26 | DE144: 26 | DW144: 26 | EO144: 26
A145: 27 | B145: 0.02999999933 | C145: 16.36000061 | D145: 3.17869544 | E145: 4.448353564 | F145: 1.662999988 | G145: 0.6466760039 | H145: 4.915437222 | I145: 0.2856647372 | J145: 0.1098370552 | K145: G | L145: 35.13513514 | M145: 0 | N145: 64.86486486 | O145: 36 | P145: 36 | Q145: 13 | R145: 35.13513514 | S145: 27 | T145: 54.22999954 | U145: 68.16000366 | V145: 61.70377731 | W145: 3.793191387 | X145: 62.35583496 | Y145: 266.9579773 | Z145: 0.2311366647 | AA145: 0.2252266109 | AB145: 0.1029998362 | AC145: G | AD145: 0 | AE145: 59.11631581 | AF145: 25.00020227 | AG145: 37 | AH145: 37 | AI145: 0 | AJ145: 0 | AK145: 27 | AL145: 55.5 | AM145: 148.2599945 | AN145: 119.4694519 | AO145: 24.29985035 | AP145: 140.5299988 | AQ145: 19.58461571 | AR145: 6.100168228 | AS145: 0.2283333391 | AT145: 0.1124414206 | AU145: N | AV145: 0 | AW145: 103.0794364 | AX145: 75.00002031 | AY145: 36 | AZ145: 36 | BA145: 0 | BB145: 0 | BC145: 27 | BD145: 1 | BE145: 12.30000019 | BF145: 3.911111593 | BG145: 2.829919572 | BH145: 1.941666603 | BI145: 2.36180377 | BJ145: 1.655984998 | BK145: 0.2283333391 | BL145: 0.05347198248 | BM145: E | BN145: 0 | BO145: 5.422093737 | BP145: 24.99909369 | BQ145: 36 | BR145: 36 | BS145: 0 | BT145: 0 | BU145: 27 | BV145: 20.79999924 | BW145: 46.09999847 | BX145: 34.46944427 | BY145: 5.139862097 | BZ145: 31.34166527 | CA145: 43.92042542 | CB145: 0.7848157883 | CC145: 0.2283333391 | CD145: 0.03365509957 | CE145: N | CF145: 0 | CG145: 37.93621738 | CH145: 25.0000692 | CI145: 36 | CJ145: 36 | CK145: 0 | CL145: 0 | CM145: 27 | DE145: 27 | DW145: 27 | EO145: 27
A146: 28 | B146: 0.009999999776 | C146: 19.79000092 | D146: 2.506774426 | E146: 3.853755798 | F146: 1.988000035 | G146: 0.5578666925 | H146: 4.49350071 | I146: 0.2460592687 | J146: 0.03858882189 | K146: G | L146: 13.51351351 | M146: 0.09905572369 | N146: 75.00023297 | O146: 36 | P146: 36 | Q146: 5 | R146: 13.51351351 | S146: 28 | T146: 50.79999924 | U146: 72.37999725 | V146: 63.09378433 | W146: 4.793833809 | X146: 63.38833237 | Y146: 172.6128998 | Z146: 0.3655218482 | AA146: 0.2252266109 | AB146: 0.08491402864 | AC146: N | AD146: 0 | AE146: 59.86044585 | AF146: 25.00018241 | AG146: 37 | AH146: 37 | AI146: 0 | AJ146: 0 | AK146: 28 | AL146: 53.5 | AM146: 146.0200043 | AN146: 117.8522263 | AO146: 24.24774096 | AP146: 138.3100128 | AQ146: 18.99658775 | AR146: 6.203863144 | AS146: 0.2283333391 | AT146: 0.1124418974 | AU146: N | AV146: 0 | AW146: 101.4973511 | AX146: 75.00002931 | AY146: 36 | AZ146: 36 | BA146: 0 | BB146: 0 | BC146: 28 | BD146: 1 | BE146: 12 | BF146: 3.591666698 | BG146: 2.62965217 | BH146: 1.916666746 | BI146: 2.221870184 | BJ146: 1.6165061 | BK146: 0.2283333391 | BL146: 0.04404214025 | BM146: G | BN146: 0 | BO146: 4.800513813 | BP146: 25.00004963 | BQ146: 36 | BR146: 36 | BS146: 0 | BT146: 0 | BU146: 28 | BV146: 24.89999962 | BW146: 44 | BX146: 33.43333054 | BY146: 4.311512931 | BZ146: 36.04166794 | CA146: 61.9129715 | CB146: 0.5400052667 | CC146: 0.2283333391 | CD146: 0.03911274672 | CE146: N | CF146: 0 | CG146: 36.34132401 | CH146: 25.00057349 | CI146: 36 | CJ146: 36 | CK146: 0 | CL146: 0 | CM146: 28 | DE146: 28 | DW146: 28 | EO146: 28
A147: 29 | B147: 0.02999999933 | C147: 24.56999969 | D147: 3.681538105 | E147: 6.108879206 | F147: 2.483999968 | G147: 0.5153889656 | H147: 7.143222809 | I147: 0.2686791122 | J147: 0.05561292171 | K147: G | L147: 27.02702703 | M147: 0 | N147: 72.97297297 | O147: 36 | P147: 36 | Q147: 10 | R147: 27.02702703 | S147: 29 | T147: 47.45999908 | U147: 73.02999878 | V147: 64.1499939 | W147: 5.182880229 | X147: 66.63749695 | Y147: 147.1597748 | Z147: 0.4359207153 | AA147: 0.2252266109 | AB147: 0.08117467165 | AC147: G | AD147: 0 | AE147: 60.50848924 | AF147: 25.00004996 | AG147: 37 | AH147: 37 | AI147: 0 | AJ147: 0 | AK147: 29 | AL147: 51.56999969 | AM147: 145.8500061 | AN147: 117.4272156 | AO147: 24.90016198 | AP147: 137.9933319 | AQ147: 17.68602562 | AR147: 6.639547825 | AS147: 0.2283333391 | AT147: 0.1505542397 | AU147: N | AV147: 0 | AW147: 100.632736 | AX147: 74.99945828 | AY147: 36 | AZ147: 36 | BA147: 0 | BB147: 0 | BC147: 29 | BD147: 1 | BE147: 23 | BF147: 4.427777767 | BG147: 5.211394466 | BH147: 2.833333492 | BI147: 1.218685031 | BJ147: 3.63324213 | BK147: 0.2283333391 | BL147: 0.1361400485 | BM147: G | BN147: 0 | BO147: 6.115416656 | BP147: 24.9996407 | BQ147: 36 | BR147: 36 | BS147: 0 | BT147: 0 | BU147: 29 | BV147: 5.300000191 | BW147: 42.5 | BX147: 31.27500153 | BY147: 7.326600654 | BZ147: 33.20000076 | CA147: 11.14147377 | CB147: 2.807079315 | CC147: 0.2283333391 | CD147: 0.1389940977 | CE147: N | CF147: 0 | CG147: 36.21658104 | CH147: 25.00059651 | CI147: 36 | CJ147: 36 | CK147: 0 | CL147: 0 | CM147: 29 | DE147: 29 | DW147: 29 | EO147: 29
A148: 30 | B148: 0.01999999955 | C148: 56.40999985 | D148: 5.718400478 | E148: 12.9261956 | F148: 5.65899992 | G148: 0.4676325917 | H148: 12.22840405 | I148: 0.273999989 | J148: 0.08048051596 | K148: G | L148: 29.72972973 | M148: 0 | N148: 70.27027027 | O148: 36 | P148: 36 | Q148: 11 | R148: 29.72972973 | S148: 30 | T148: 53.00999832 | U148: 71.79000092 | V148: 63.49892426 | W148: 5.061088459 | X148: 67.09500122 | Y148: 158.6456604 | Z148: 0.4002563059 | AA148: 0.2252266109 | AB148: 0.07000869513 | AC148: G | AD148: 0 | AE148: 60.02987373 | AF148: 24.99932926 | AG148: 37 | AH148: 37 | AI148: 0 | AJ148: 0 | AK148: 30 | AL148: 49.88999939 | AM148: 151.8800049 | AN148: 116.2836075 | AO148: 25.49603001 | AP148: 126.3825073 | AQ148: 16.60483551 | AR148: 7.002996445 | AS148: 0.2283333391 | AT148: 0.170527935 | AU148: N | AV148: 0 | AW148: 99.08672731 | AX148: 75.00008632 | AY148: 36 | AZ148: 36 | BA148: 0 | BB148: 0 | BC148: 30 | BD148: 1 | BE148: 19.20000076 | BF148: 4.502777576 | BG148: 4.236946029 | BH148: 2.516666889 | BI148: 1.709465265 | BJ148: 2.634027004 | BK148: 0.2283333391 | BL148: 0.06144750118 | BM148: E | BN148: 0 | BO148: 6.24217485 | BP148: 25.00000174 | BQ148: 36 | BR148: 36 | BS148: 0 | BT148: 0 | BU148: 30 | BV148: 12.30000019 | BW148: 41.90000153 | BX148: 30.10833359 | BY148: 6.078174895 | BZ148: 34.5 | CA148: 20.29986382 | CB148: 1.483179092 | CC148: 0.2283333391 | CD148: 0.07782377303 | CE148: N | CF148: 0 | CG148: 34.20784409 | CH148: 25.00081644 | CI148: 36 | CJ148: 36 | CK148: 0 | CL148: 0 | CM148: 30 | DE148: 30 | DW148: 30 | EO148: 30
A149: 31 | B149: 0.07999999821 | C149: 26.05999947 | D149: 5.416429043 | E149: 6.438681485 | F149: 2.677999973 | G149: 0.7056076527 | H149: 7.676261902 | I149: 0.2589056492 | J149: 0.03265792131 | K149: E | L149: 21.62162162 | M149: 0.2386160423 | N149: 75.00043986 | O149: 36 | P149: 36 | Q149: 8 | R149: 21.62162162 | S149: 31 | T149: 52.50999832 | U149: 68.19000244 | V149: 61.76972961 | W149: 4.346277394 | X149: 64.27000427 | Y149: 202.9171143 | Z149: 0.3044086695 | AA149: 0.2252266109 | AB149: 0.1061058044 | AC149: T | AD149: 0 | AE149: 59.29953547 | AF149: 25.00071827 | AG149: 37 | AH149: 37 | AI149: 0 | AJ149: 0 | AK149: 31 | AL149: 48.27999878 | AM149: 147.5599976 | AN149: 115.2672272 | AO149: 25.60568537 | AP149: 122.7399979 | AQ149: 15.96450138 | AR149: 7.220221043 | AS149: 0.2283333391 | AT149: 0.15919438 | AU149: N | AV149: 0 | AW149: 97.99643264 | AX149: 75.00002756 | AY149: 36 | AZ149: 36 | BA149: 0 | BB149: 0 | BC149: 31 | BD149: 1 | BE149: 17.29999924 | BF149: 3.925000429 | BG149: 4.107719291 | BH149: 2.358333111 | BI149: 1.369494915 | BJ149: 2.866020441 | BK149: 0.2283333391 | BL149: 0.05068981647 | BM149: G | BN149: 0 | BO149: 5.397865225 | BP149: 24.99915621 | BQ149: 36 | BR149: 36 | BS149: 0 | BT149: 0 | BU149: 31 | BV149: 16.60000038 | BW149: 41.40000153 | BX149: 30.5111084 | BY149: 5.677916113 | BZ149: 31.06666756 | CA149: 25.23299026 | CB149: 1.209175348 | CC149: 0.2283333391 | CD149: 0.09812375903 | CE149: N | CF149: 0 | CG149: 34.34067189 | CH149: 25.00074284 | CI149: 36 | CJ149: 36 | CK149: 0 | CL149: 0 | CM149: 31 | DE149: 31 | DW149: 31 | EO149: 31
A150: 32 | B150: 0.01999999955 | C150: 27.59000015 | D150: 4.250869274 | E150: 7.006460478 | F150: 2.77699995 | G150: 0.6000267863 | H150: 7.084465981 | I150: 0.2856647372 | J150: 0.0868678093 | K150: G | L150: 35.13513514 | M150: 0 | N150: 64.86486486 | O150: 36 | P150: 36 | Q150: 13 | R150: 35.13513514 | S150: 32 | T150: 49.79000092 | U150: 69.48000336 | V150: 61.43107224 | W150: 5.065099355 | X150: 64.55750275 | Y150: 147.2163391 | Z150: 0.4172843397 | AA150: 0.2252266109 | AB150: 0.05205196142 | AC150: T | AD150: 0 | AE150: 58.31608775 | AF150: 24.99999502 | AG150: 37 | AH150: 37 | AI150: 0 | AJ150: 0 | AK150: 32 | AL150: 46.70999908 | AM150: 150.6600037 | AN150: 114.6899948 | AO150: 26.29082345 | AP150: 124.6725006 | AQ150: 15.02994347 | AR150: 7.630766869 | AS150: 0.2283333391 | AT150: 0.1680810452 | AU150: N | AV150: 0 | AW150: 96.95709585 | AX150: 75.0000097 | AY150: 36 | AZ150: 36 | BA150: 0 | BB150: 0 | BC150: 32 | BD150: 1 | BE150: 19.89999962 | BF150: 3.974999428 | BG150: 4.328865732 | BH150: 2.574999809 | BI150: 1.213658094 | BJ150: 3.275221825 | BK150: 0.2283333391 | BL150: 0.02871966362 | BM150: G | BN150: 0 | BO150: 5.490770833 | BP150: 24.99954339 | BQ150: 36 | BR150: 36 | BS150: 0 | BT150: 0 | BU150: 32 | BV150: 11.5 | BW150: 43.09999847 | BX150: 29.42222404 | BY150: 6.74884645 | BZ150: 29.93333244 | CA150: 15.98429012 | CB150: 1.840696335 | CC150: 0.2283333391 | CD150: 0.03446424007 | CE150: N | CF150: 0 | CG150: 33.97415738 | CH150: 25.00044458 | CI150: 36 | CJ150: 36 | CK150: 0 | CL150: 0 | CM150: 32 | DE150: 32 | DW150: 32 | EO150: 32
A151: 33 | B151: 0.05000000075 | C151: 25.51000023 | D151: 8.625653267 | E151: 8.17367248 | F151: 2.595999956 | G151: 0.7790209651 | H151: 11.07242775 | I151: 0.2856647372 | J151: 0.05905389786 | K151: E | L151: 35.13513514 | M151: 0 | N151: 64.86486486 | O151: 36 | P151: 36 | Q151: 13 | R151: 35.13513514 | S151: 33 | T151: 46.27000046 | U151: 71.70999908 | V151: 60.08486938 | W151: 6.604379773 | X151: 61.11000061 | Y151: 82.06314087 | Z151: 0.7321785092 | AA151: 0.2252266109 | AB151: 0.03736943007 | AC151: N | AD151: 0 | AE151: 55.63028412 | AF151: 24.999989 | AG151: 37 | AH151: 37 | AI151: 0 | AJ151: 0 | AK151: 33 | AL151: 45.24000168 | AM151: 149.3999939 | AN151: 114.2569427 | AO151: 26.41118089 | AP151: 123.359993 | AQ151: 14.7086668 | AR151: 7.76800108 | AS151: 0.2283333391 | AT151: 0.1536481977 | AU151: N | AV151: 0 | AW151: 96.4429076 | AX151: 74.9999571 | AY151: 36 | AZ151: 36 | BA151: 0 | BB151: 0 | BC151: 33 | BD151: 1 | BE151: 18.5 | BF151: 4.975000381 | BG151: 4.29340858 | BH151: 2.458333492 | BI151: 1.411380172 | BJ151: 3.524918795 | BK151: 0.2283333391 | BL151: 0.03383743763 | BM151: G | BN151: 0 | BO151: 6.832740042 | BP151: 25.00000138 | BQ151: 36 | BR151: 36 | BS151: 0 | BT151: 0 | BU151: 33 | BV151: 12.39999962 | BW151: 41.79999924 | BX151: 27.88611412 | BY151: 6.44551432 | BZ151: 29.54999924 | CA151: 16.27606964 | CB151: 1.713319898 | CC151: 0.2283333391 | CD151: 0.09523814917 | CE151: T | CF151: 0 | CG151: 51.28880879 | CH151: 25.00000218 | CI151: 36 | CJ151: 36 | CK151: 0 | CL151: 0 | CM151: 33 | DE151: 33 | DW151: 33 | EO151: 33
A152: 34 | B152: 0.02999999933 | C152: 25.32999992 | D152: 4.658667564 | E152: 6.039792351 | F152: 2.559999943 | G152: 0.5893746614 | H152: 7.904424667 | I152: 0.2501266301 | J152: 0.06303417683 | K152: E | L152: 16.21621622 | M152: 0.5159536071 | N152: 75.00000292 | O152: 36 | P152: 36 | Q152: 6 | R152: 16.21621622 | S152: 34 | T152: 44.88000107 | U152: 69.23000336 | V152: 58.61702347 | W152: 5.004750475 | X152: 59.0841713 | Y152: 134.000885 | Z152: 0.4374375939 | AA152: 0.2252266109 | AB152: 0.09152451158 | AC152: G | AD152: 0 | AE152: 55.12680324 | AF152: 24.99970371 | AG152: 37 | AH152: 37 | AI152: 0 | AJ152: 0 | AK152: 34 | AL152: 43.86000061 | AM152: 150.6999969 | AN152: 113.5572205 | AO152: 26.15623833 | AP152: 123.9899979 | AQ152: 14.67771149 | AR152: 7.736711502 | AS152: 0.2283333391 | AT152: 0.1463612318 | AU152: N | AV152: 0 | AW152: 95.91513939 | AX152: 74.99995918 | AY152: 36 | AZ152: 36 | BA152: 0 | BB152: 0 | BC152: 34 | BD152: 0.8999999762 | BE152: 15.10000038 | BF152: 4.819444656 | BG152: 3.93219824 | BH152: 2.083333492 | BI152: 1.495123386 | BJ152: 3.223442793 | BK152: 0.2283333391 | BL152: 0.05700606108 | BM152: E | BN152: 0 | BO152: 6.681262961 | BP152: 24.99951234 | BQ152: 36 | BR152: 36 | BS152: 0 | BT152: 0 | BU152: 34 | BV152: 13.30000019 | BW152: 39.70000076 | BX152: 26.93054962 | BY152: 6.680368775 | BZ152: 33.10000229 | CA152: 15.21873569 | CB152: 1.769565463 | CC152: 0.2283333391 | CD152: 0.09316033125 | CE152: N | CF152: 0 | CG152: 31.43638967 | CH152: 25.00000102 | CI152: 36 | CJ152: 36 | CK152: 0 | CL152: 0 | CM152: 34 | DE152: 34 | DW152: 34 | EO152: 34
A153: 35 | B153: 0.02999999933 | C153: 50.74000168 | D153: 9.012812614 | E153: 12.4455479 | F153: 4.255833626 | G153: 0.5671932697 | H153: 15.8901968 | I153: 0.2421840727 | J153: 0.04949134588 | K153: G | L153: 10.81081081 | M153: 0.5170533161 | N153: 75.00003297 | O153: 36 | P153: 36 | Q153: 4 | R153: 10.81081081 | S153: 35 | T153: 40.20000076 | U153: 67.44000244 | V153: 56.83108139 | W153: 6.598091902 | X153: 60.63000107 | Y153: 70.26647186 | Z153: 0.8087937236 | AA153: 0.2252266109 | AB153: 0.0647970438 | AC153: N | AD153: 0 | AE153: 52.38079196 | AF153: 24.99917649 | AG153: 37 | AH153: 37 | AI153: 0 | AJ153: 0 | AK153: 35 | AL153: 47.66999817 | AM153: 189.8899994 | AN153: 115.1502838 | AO153: 28.019177 | AP153: 130.6316681 | AQ153: 14.22179699 | AR153: 8.096746445 | AS153: 0.2283333391 | AT153: 0.1790207028 | AU153: N | AV153: 0 | AW153: 96.25164123 | AX153: 74.9999942 | AY153: 36 | AZ153: 36 | BA153: 0 | BB153: 0 | BC153: 35 | BD153: 1 | BE153: 22.20000076 | BF153: 6.761110306 | BG153: 5.287358109 | BH153: 2.766666889 | BI153: 1.660299659 | BJ153: 4.07222271 | BK153: 0.2283333391 | BL153: 0.0380384922 | BM153: E | BN153: 0 | BO153: 9.372921703 | BP153: 24.99987942 | BQ153: 36 | BR153: 36 | BS153: 0 | BT153: 0 | BU153: 35 | BV153: 2.200000048 | BW153: 38.40000153 | BX153: 23.97500229 | BY153: 8.894022582 | BZ153: 29.35000229 | CA153: 3.952943087 | CB153: 6.065101624 | CC153: 0.2283333391 | CD153: 0.08333334327 | CE153: T | CF153: 0 | CG153: 47.45000173 | CH153: 25.00000222 | CI153: 36 | CJ153: 36 | CK153: 0 | CL153: 0 | CM153: 35 | DE153: 35 | DW153: 35 | EO153: 35
A154: 36 | B154: 0.03999999911 | C154: 98.02999878 | D154: 19.87332916 | E154: 23.25529174 | F154: 8.205833435 | G154: 0.7777026296 | H154: 25.55389214 | I154: 0.2384863943 | J154: 0.05312228203 | K154: G | L154: 8.108108108 | M154: 2.784725549 | N154: 75.00004655 | O154: 36 | P154: 36 | Q154: 3 | R154: 8.108108108 | S154: 36 | T154: 32.13999939 | U154: 62.88000107 | V154: 52.39783859 | W154: 7.747851412 | X154: 55.19499969 | Y154: 42.22528458 | Z154: 1.240911484 | AA154: 0.2252266109 | AB154: 0.1663865149 | AC154: N | AD154: 0 | AE154: 47.17200262 | AF154: 25.00087146 | AG154: 37 | AH154: 37 | AI154: 0 | AJ154: 0 | AK154: 36 | AL154: 47.41999817 | AM154: 186.4199982 | AN154: 113.1922379 | AO154: 28.73887777 | AP154: 128.5033264 | AQ154: 13.76300716 | AR154: 8.224382401 | AS154: 0.2283333391 | AT154: 0.09568747878 | AU154: N | AV154: 0 | AW154: 93.80800913 | AX154: 75.00016612 | AY154: 36 | AZ154: 36 | BA154: 0 | BB154: 0 | BC154: 36 | BD154: 1 | BE154: 29.5 | BF154: 13.35555649 | BG154: 7.292949658 | BH154: 17.625 | BI154: 2.331812382 | BJ154: 5.727543354 | BK154: 0.2283333391 | BL154: 0.07673342526 | BM154: N | BN154: 0 | BO154: 18.27440631 | BP154: 25.00074062 | BQ154: 36 | BR154: 36 | BS154: 0 | BT154: 0 | BU154: 36 | BV154: 0.400000006 | BW154: 33 | BX154: 17.39999771 | BY154: 9.059282666 | BZ154: 24.85000038 | CA154: 1.954795003 | CB154: 8.901187897 | CC154: 0.2315722704 | CD154: 0.09523808956 | CE154: U | CF154: 2.702702703 | CG154: 24.62361111 | CH154: 25 | CI154: 36 | CJ154: 36 | CK154: 1 | CL154: 2.702702703 | CM154: 36 | DE154: 36 | DW154: 36 | EO154: 36
A155: 37 | B155: 0.2599999905 | C155: 72.80000305 | D155: 13.17787838 | E155: 16.16208282 | F155: 6.305000305 | G155: 0.6887218356 | H155: 19.13381767 | I155: 0.2384863943 | J155: 0.07354784012 | K155: G | L155: 8.108108108 | M155: 1.484758643 | N155: 75.00006565 | O155: 36 | P155: 36 | Q155: 3 | R155: 8.108108108 | S155: 37 | T155: 13.75 | U155: 37.02000046 | V155: 26.32486343 | W155: 5.351363798 | X155: 27.32416725 | Y155: 22.95516014 | Z155: 1.146795034 | AA155: 0.2252266109 | AB155: 0.05019304156 | AC155: T | AD155: 0 | AE155: 22.63637899 | AF155: 25.00002089 | AG155: 37 | AH155: 37 | AI155: 0 | AJ155: 0 | AK155: 37 | AL155: 23.64999962 | AM155: 73.01000214 | AN155: 37.41694641 | AO155: 12.83480516 | AP155: 27.76333237 | AQ155: 10.49454308 | AR155: 3.565371752 | AS155: 0.2283333391 | AT155: 0.1431711912 | AU155: E | AV155: 0 | AW155: 10.76419891 | AX155: 74.99997149 | AY155: 36 | AZ155: 36 | BA155: 0 | BB155: 0 | BC155: 37 | BD155: 1.200000048 | BE155: 26.89999962 | BF155: 17.95833588 | BG155: 6.16962015 | BH155: 24.75833321 | BI155: 5.045771599 | BJ155: 3.559086084 | BK155: 0.2283333391 | BL155: 0.03787878156 | BM155: T | BN155: 0 | BO155: 22.50936029 | BP155: 24.99967463 | BQ155: 36 | BR155: 36 | BS155: 0 | BT155: 0 | BU155: 37 | BV155: 0.5 | BW155: 31.39999962 | BX155: 7.781817913 | BY155: 6.720140038 | BZ155: 3.075000048 | CA155: 1.525608063 | CB155: 5.100797653 | CC155: 0.2384863943 | CD155: 0.08289170265 | CE155: E | CF155: 8.108108108 | CG155: 10.1295922 | CH155: 25.00092491 | CI155: 36 | CJ155: 36 | CK155: 3 | CL155: 8.108108108 | CM155: 37 | DE155: 37 | DW155: 37 | EO155: 37
B156: =B118+1 -> 5 | C156: Componente hídrica: | G156: Precipitação (P) | L156: Ponto 5 lat-3.375_lon-42.125 | S156: Ponto: | T156: =B156 -> 5 | U156: Componente hídrica: | Y156: Evapotranspiração de referência (ETo) | AD156: =L156 -> Ponto 5 lat-3.375_lon-42.125 | AK156: Ponto: | AL156: =B156 -> 5 | AM156: Componente hídrica: | AQ156: Armazenamento da água no solo (S) | AV156: =L156 -> Ponto 5 lat-3.375_lon-42.125 | BC156: Ponto: | BD156: =B156 -> 5 | BE156: Componente hídrica: | BI156: Evapotranspiração Real (ETr) | BN156: =L156 -> Ponto 5 lat-3.375_lon-42.125 | BU156: Ponto: | BV156: =B156 -> 5 | BW156: Componente hídrica: | CA156: Deficiência hídrica (Def) | CF156: =L156 -> Ponto 5 lat-3.375_lon-42.125 | CM156: Ponto: | CN156: =B156 -> 5 | CO156: Componente hídrica: | CS156: Excedente hídrico (Exc) | CX156: =L156 -> Ponto 5 lat-3.375_lon-42.125 | DE156: Ponto: | DF156: =B156 -> 5 | DG156: Componente hídrica: | DK156: Temperatura mínima (Tmin) | DP156: =L156 -> Ponto 5 lat-3.375_lon-42.125 | DW156: Ponto: | DX156: =B156 -> 5 | DY156: Componente hídrica: | EC156: Temperatura máxima (Tmax) | EH156: =L156 -> Ponto 5 lat-3.375_lon-42.125 | EO156: Ponto: | EP156: =B156 -> 5 | EQ156: Componente hídrica: | EU156: Temperatura média (Tmed) | EZ156: =L156 -> Ponto 5 lat-3.375_lon-42.125
A157: 1 | B157: 0.8500000238 | C157: 133.2700043 | D157: 43.62499619 | E157: 36.00200224 | F157: 11.88500118 | G157: 1.271588206 | H157: 34.30748749 | I157: 0.2283333391 | J157: 0.03492844105 | K157: G | L157: 0 | M157: 15.59829481 | N157: 75.00013494 | O157: 36 | P157: 36 | Q157: 0 | R157: 0 | S157: 1 | T157: 34.00999832 | U157: 66.65000153 | V157: 47.30730438 | W157: 7.737947752 | X157: 47.61000061 | Y157: 40.47370148 | Z157: 1.168840528 | AA157: 0.2252266109 | AB157: 0.04220497608 | AC157: G | AD157: 0 | AE157: 42.10240968 | AF157: 25.00000513 | AG157: 37 | AH157: 37 | AI157: 0 | AJ157: 0 | AK157: 1 | AL157: 21.52000046 | AM157: 64.94000244 | AN157: 41.61833191 | AO157: 11.99365957 | AP157: 46.84833527 | AQ157: 11.46811008 | AR157: 3.629048824 | AS157: 0.2283333391 | AT157: 0.05729424953 | AU157: N | AV157: 0 | AW157: 33.52873603 | AX157: 74.9999879 | AY157: 36 | AZ157: 36 | BA157: 0 | BB157: 0 | BC157: 1 | BD157: 11.30000019 | BE157: 45.59999847 | BF157: 32.70555115 | BG157: 9.690641423 | BH157: 37.02499771 | BI157: 9.072072983 | BJ157: 3.605080366 | BK157: 0.2283333391 | BL157: 0.1437177956 | BM157: N | BN157: 0 | BO157: 39.24178899 | BP157: 25.00000153 | BQ157: 36 | BR157: 36 | BS157: 0 | BT157: 0 | BU157: 1 | BV157: 0.200000003 | BW157: 55.5 | BX157: 18.30285454 | BY157: 15.52262605 | BZ157: 14.02499962 | CA157: 1.046955347 | CB157: 17.48198128 | CC157: 0.2315722704 | CD157: 0.07951647043 | CE157: G | CF157: 0 | CG157: 25.36273714 | CH157: 25.00001441 | CI157: 36 | CJ157: 36 | CK157: 0 | CL157: 0 | CM157: 1 | CN157: exc | DE157: 1 | DW157: 1 | EO157: 1 | EP157: tmed
A158: 2 | B158: 0.400000006 | C158: 126.9000015 | D158: 51.53611374 | E158: 34.45451563 | F158: 53.10833359 | G158: 1.369970322 | H158: 37.61841583 | I158: 0.2283333391 | J158: 0.0787628293 | K158: N | L158: 0 | M158: 28.29688861 | N158: 75.00000691 | O158: 36 | P158: 36 | Q158: 0 | R158: 0 | S158: 2 | T158: 33.61999893 | U158: 64.77999878 | V158: 44.44134903 | W158: 6.843019211 | X158: 41.40999985 | Y158: 44.4461441 | Z158: 0.9998921156 | AA158: 0.2252266109 | AB158: 0.04403781891 | AC158: N | AD158: 0 | AE158: 39.82582626 | AF158: 25 | AG158: 37 | AH158: 37 | AI158: 0 | AJ158: 0 | AK158: 2 | AL158: 18.79000092 | AM158: 84.91999817 | AN158: 58.33721924 | AO158: 17.48985912 | AP158: 68.38749695 | AQ158: 8.609680176 | AR158: 6.775770664 | AS158: 0.2283333391 | AT158: 0.06661707163 | AU158: N | AV158: 0 | AW158: 46.54068839 | AX158: 74.99963687 | AY158: 36 | AZ158: 36 | BA158: 0 | BB158: 0 | BC158: 2 | BD158: 8.199999809 | BE158: 46.90000153 | BF158: 33.28333664 | BG158: 11.25023261 | BH158: 43.67500305 | BI158: 6.100224495 | BJ158: 5.456083775 | BK158: 0.2283333391 | BL158: 0.1085858718 | BM158: T | BN158: 0 | BO158: 40.28834732 | BP158: 24.99999774 | BQ158: 36 | BR158: 36 | BS158: 0 | BT158: 0 | BU158: 2 | BV158: 0.1000000015 | BW158: 62.5 | BX158: 15.53428459 | BY158: 17.04764209 | BZ158: 5.299999714 | CA158: 0.7151785493 | CB158: 21.72084808 | CC158: 0.2315722704 | CD158: 0.03468590975 | CE158: E | CF158: 0 | CG158: 21.53507725 | CH158: 25.00002234 | CI158: 36 | CJ158: 36 | CK158: 0 | CL158: 0 | CM158: 2 | DE158: 2 | DW158: 2 | EO158: 2
A159: 3 | B159: 0.3000000119 | C159: 194.6699982 | D159: 61.10778046 | E159: 47.56077526 | F159: 16.49749947 | G159: 1.236238003 | H159: 49.43043518 | I159: 0.2283333391 | J159: 0.06202852726 | K159: G | L159: 0 | M159: 21.35417712 | N159: 75.00000309 | O159: 36 | P159: 36 | Q159: 0 | R159: 0 | S159: 3 | T159: 28.98999977 | U159: 61 | V159: 44.36891937 | W159: 6.995543015 | X159: 47.66249847 | Y159: 40.23069763 | Z159: 1.102862239 | AA159: 0.2252266109 | AB159: 0.01024156809 | AC159: N | AD159: 0 | AE159: 39.6505192 | AF159: 24.99999734 | AG159: 37 | AH159: 37 | AI159: 0 | AJ159: 0 | AK159: 3 | AL159: 17.90999985 | AM159: 99.55000305 | AN159: 70.85055542 | AO159: 18.82482871 | AP159: 65.53333282 | AQ159: 10.19122124 | AR159: 6.952116489 | AS159: 0.2283333391 | AT159: 0.07387283444 | AU159: N | AV159: 0 | AW159: 58.15342601 | AX159: 74.99995847 | AY159: 36 | AZ159: 36 | BA159: 0 | BB159: 0 | BC159: 3 | BD159: 13.60000038 | BE159: 50.5 | BF159: 34.55833435 | BG159: 9.519526041 | BH159: 41.27500153 | BI159: 11.69287872 | BJ159: 2.955502748 | BK159: 0.2283333391 | BL159: 0.07752896845 | BM159: N | BN159: 0 | BO159: 40.97907932 | BP159: 25.0002596 | BQ159: 36 | BR159: 36 | BS159: 0 | BT159: 0 | BU159: 3 | BV159: 0.1000000015 | BW159: 47.70000076 | BX159: 16.28181839 | BY159: 13.5916216 | BZ159: 4.066666603 | CA159: 0.9170636535 | CB159: 17.75429535 | CC159: 0.2384863943 | CD159: 0.1324071288 | CE159: G | CF159: 8.108108108 | CG159: 21.13039187 | CH159: 25.00000481 | CI159: 36 | CJ159: 36 | CK159: 3 | CL159: 8.108108108 | CM159: 3 | DE159: 3 | DW159: 3 | EO159: 3
A160: 4 | B160: 4.349999905 | C160: 131.8800049 | D160: 58.2622261 | E160: 32.26847748 | F160: 57.48750305 | G160: 2.296007633 | H160: 25.37545013 | I160: 0.2283333391 | J160: 0.04490399361 | K160: N | L160: 0 | M160: 36.49656672 | N160: 75.00088834 | O160: 36 | P160: 36 | Q160: 0 | R160: 0 | S160: 4 | T160: 31.64999962 | U160: 56.31999969 | V160: 44.46757507 | W160: 6.482732873 | X160: 46.04083252 | Y160: 47.19149399 | Z160: 0.942279458 | AA160: 0.2252266109 | AB160: 0.04328536987 | AC160: G | AD160: 0 | AE160: 39.94748137 | AF160: 24.99999492 | AG160: 37 | AH160: 37 | AI160: 0 | AJ160: 0 | AK160: 4 | AL160: 33.00999832 | AM160: 112.5100021 | AN160: 85.24417114 | AO160: 19.23069687 | AP160: 92.63500214 | AQ160: 15.62902164 | AR160: 5.454223156 | AS160: 0.2283333391 | AT160: 0.07961431146 | AU160: N | AV160: 0 | AW160: 72.27337674 | AX160: 74.99981241 | AY160: 36 | AZ160: 36 | BA160: 0 | BB160: 0 | BC160: 4 | BD160: 21.10000038 | BE160: 53.20000076 | BF160: 37.7444458 | BG160: 8.06638355 | BH160: 39.82500076 | BI160: 20.70475769 | BJ160: 1.822984219 | BK160: 0.2283333391 | BL160: 0.06349205971 | BM160: T | BN160: 0 | BO160: 0 | BP160: 25.93073186 | BQ160: 36 | BR160: 36 | BS160: 0 | BT160: 0 | BU160: 4 | BV160: 0.5 | BW160: 36.20000076 | BX160: 10.20909119 | BY160: 9.629264382 | BZ160: 3.475000143 | CA160: 1.034565091 | CB160: 9.868002892 | CC160: 0.2384863943 | CD160: 0.02741080523 | CE160: G | CF160: 8.108108108 | CG160: 13.30042314 | CH160: 25.00061328 | CI160: 36 | CJ160: 36 | CK160: 3 | CL160: 8.108108108 | CM160: 4 | DE160: 4 | DW160: 4 | EO160: 4
A161: 5 | B161: 19.46999931 | C161: 160.2599945 | D161: 80.53833771 | E161: 30.55000583 | F161: 78.13249969 | G161: 6.404294491 | H161: 12.57567692 | I161: 0.2283333391 | J161: 0.03694808483 | K161: G | L161: 0 | M161: 57.43228675 | N161: 75.00004194 | O161: 36 | P161: 36 | Q161: 0 | R161: 0 | S161: 5 | T161: 31.79000092 | U161: 51.90999985 | V161: 40.83027267 | W161: 5.043880555 | X161: 36.81999969 | Y161: 67.62579346 | Z161: 0.6037677526 | AA161: 0.2252266109 | AB161: 0.07411035895 | AC161: N | AD161: 0 | AE161: 37.42826285 | AF161: 24.99997748 | AG161: 37 | AH161: 37 | AI161: 0 | AJ161: 0 | AK161: 5 | AL161: 61.63000107 | AM161: 125.9800034 | AN161: 104.4294205 | AO161: 15.33370512 | AP161: 109.8925018 | AQ161: 40.44701004 | AR161: 2.581882238 | AS161: 0.2283333391 | AT161: 0.09602364898 | AU161: N | AV161: 0 | AW161: 94.08699114 | AX161: 75.00000496 | AY161: 36 | AZ161: 36 | BA161: 0 | BB161: 0 | BC161: 5 | BD161: 30.10000038 | BE161: 51.59999847 | BF161: 41.29722595 | BG161: 4.48562679 | BH161: 39.05833435 | BI161: 87.26678467 | BJ161: 0.4732296169 | BK161: 0.2283333391 | BL161: 0.1373460293 | BM161: G | BN161: 0 | BO161: 44.18686444 | BP161: 25.00002031 | BQ161: 36 | BR161: 36 | BS161: 0 | BT161: 0 | BU161: 5 | BV161: 0.200000003 | BW161: 31.70000076 | BX161: 5.437931538 | BY161: 7.542044727 | BZ161: 3.350000143 | CA161: 0.7797167301 | CB161: 6.974239826 | CC161: 0.2544026077 | CD161: 0.05330705643 | CE161: G | CF161: 18.91891892 | CG161: 6.224184681 | CH161: 25.0000071 | CI161: 36 | CJ161: 36 | CK161: 7 | CL161: 18.91891892 | CM161: 5 | DE161: 5 | DW161: 5 | EO161: 5
A162: 6 | B162: 5.75 | C162: 191.3099976 | D162: 76.22694397 | E162: 45.58979806 | F162: 83.06666565 | G162: 1.806367159 | H162: 42.19903183 | I162: 0.2283333391 | J162: 0.08774320781 | K162: N | L162: 0 | M162: 45.47643236 | N162: 75.00046011 | O162: 36 | P162: 36 | Q162: 0 | R162: 0 | S162: 6 | T162: 31.62999916 | U162: 62.13000107 | V162: 43.03973007 | W162: 7.546513835 | X162: 39.25500107 | Y162: 35.742733 | Z162: 1.204153299 | AA162: 0.2252266109 | AB162: 0.06685471535 | AC162: G | AD162: 0 | AE162: 37.99048847 | AF162: 24.99999011 | AG162: 37 | AH162: 37 | AI162: 0 | AJ162: 0 | AK162: 6 | AL162: 58.38999939 | AM162: 138.8899994 | AN162: 112.4761124 | AO162: 18.73431554 | AP162: 132.1816711 | AQ162: 31.88817024 | AR162: 3.52720499 | AS162: 0.2283333391 | AT162: 0.0782828033 | AU162: T | AV162: 0 | AW162: 159.0149793 | AX162: 74.99990748 | AY162: 36 | AZ162: 36 | BA162: 0 | BB162: 0 | BC162: 6 | BD162: 25.79999924 | BE162: 50.20000076 | BF162: 39.54444504 | BG162: 6.020652196 | BH162: 44.10000229 | BI162: 40.82158661 | BJ162: 0.9687140584 | BK162: 0.2283333391 | BL162: 0.04629629105 | BM162: T | BN162: 0 | BO162: 7.500004326 | BP162: 25.00005891 | BQ162: 36 | BR162: 36 | BS162: 0 | BT162: 0 | BU162: 6 | BV162: 0.1000000015 | BW162: 39.59999847 | BX162: 8.027273178 | BY162: 11.86792681 | BZ162: 3.391666412 | CA162: 0.5428118706 | CB162: 14.78831577 | CC162: 0.2384863943 | CD162: 0.06746864319 | CE162: G | CF162: 8.108108108 | CG162: 9.847536166 | CH162: 25.00011953 | CI162: 36 | CJ162: 36 | CK162: 3 | CL162: 8.108108108 | CM162: 6 | DE162: 6 | DW162: 6 | EO162: 6
A163: 7 | B163: 7.610000134 | C163: 151.8000031 | D163: 71.68527222 | E163: 36.59825976 | F163: 91.72084045 | G163: 2.97148037 | H163: 24.12443161 | I163: 0.2283333391 | J163: 0.04600605369 | K163: N | L163: 0 | M163: 47.00011599 | N163: 75.00000446 | O163: 36 | P163: 36 | Q163: 0 | R163: 0 | S163: 7 | T163: 30.86000061 | U163: 57.86999893 | V163: 42.60161591 | W163: 6.449479891 | X163: 42.11416626 | Y163: 45.48455048 | Z163: 0.9366172552 | AA163: 0.2252266109 | AB163: 0.03137621284 | AC163: G | AD163: 0 | AE163: 38.18821001 | AF163: 24.99994585 | AG163: 37 | AH163: 37 | AI163: 0 | AJ163: 0 | AK163: 7 | AL163: 64.20999908 | AM163: 145.7899933 | AN163: 118.5427933 | AO163: 22.99997346 | AP163: 138.9916534 | AQ163: 22.52466774 | AR163: 5.262798786 | AS163: 0.2283333391 | AT163: 0.1472714543 | AU163: N | AV163: 0 | AW163: 103.029542 | AX163: 75.00000677 | AY163: 36 | AZ163: 36 | BA163: 0 | BB163: 0 | BC163: 7 | BD163: 24.70000076 | BE163: 52.20000076 | BF163: 42.1361084 | BG163: 5.032702503 | BH163: 45.32500076 | BI163: 63.66213989 | BJ163: 0.6618707776 | BK163: 0.2283333391 | BL163: 0.04927837849 | BM163: N | BN163: 0 | BO163: 45.53061617 | BP163: 24.9999904 | BQ163: 36 | BR163: 36 | BS163: 0 | BT163: 0 | BU163: 7 | BV163: 0.1000000015 | BW163: 35.29999924 | BX163: 4.665624619 | BY163: 7.868213454 | BZ163: 3.033333063 | CA163: 0.4858081341 | CB163: 9.603841782 | CC163: 0.2421840727 | CD163: 0.01857364178 | CE163: G | CF163: 10.81081081 | CG163: 5.399569497 | CH163: 25.00004982 | CI163: 36 | CJ163: 36 | CK163: 4 | CL163: 10.81081081 | CM163: 7 | DE163: 7 | DW163: 7 | EO163: 7
A164: 8 | B164: 13.63000011 | C164: 188.6699982 | D164: 88.14944458 | E164: 43.89356606 | F164: 57.38999939 | G164: 3.427938223 | H164: 25.71500397 | I164: 0.2283333391 | J164: 0.05424779654 | K164: N | L164: 0 | M164: 58.54366169 | N164: 75.00001628 | O164: 36 | P164: 36 | Q164: 0 | R164: 0 | S164: 8 | T164: 33.16999817 | U164: 49.99000168 | V164: 40.91621017 | W164: 4.821641043 | X164: 40.17833328 | Y164: 73.04187012 | Z164: 0.5601747632 | AA164: 0.2252266109 | AB164: 0.07657662034 | AC164: U | AD164: 0 | AE164: 37.37499905 | AF164: 25.00000123 | AG164: 37 | AH164: 37 | AI164: 0 | AJ164: 0 | AK164: 8 | AL164: 61.13999939 | AM164: 145.1499939 | AN164: 122.2674942 | AO164: 21.97186561 | AP164: 138.1491699 | AQ164: 25.16875648 | AR164: 4.857907772 | AS164: 0.2283333391 | AT164: 0.1747280508 | AU164: N | AV164: 0 | AW164: 107.4482073 | AX164: 74.9992606 | AY164: 36 | AZ164: 36 | BA164: 0 | BB164: 0 | BC164: 8 | BD164: 33.90000153 | BE164: 48.20000076 | BF164: 41.59444427 | BG164: 4.172559589 | BH164: 37.47500229 | BI164: 101.3394547 | BJ164: 0.4104467034 | BK164: 0.2283333391 | BL164: 0.08333337307 | BM164: U | BN164: 0 | BO164: 44.62500095 | BP164: 25 | BQ164: 36 | BR164: 36 | BS164: 0 | BT164: 0 | BU164: 8 | BV164: 0.1000000015 | BW164: 13.69999981 | BX164: 1.962962985 | BY164: 2.898825401 | BZ164: 1.460000038 | CA164: 0.6935991049 | CB164: 2.830111742 | CC164: 0.2636566162 | CD164: 0.0272552371 | CE164: G | CF164: 24.32432432 | CG164: 2.046694045 | CH164: 25.00010547 | CI164: 36 | CJ164: 36 | CK164: 9 | CL164: 24.32432432 | CM164: 8 | DE164: 8 | DW164: 8 | EO164: 8
A165: 9 | B165: 9.020000458 | C165: 173.9400024 | D165: 97.73500061 | E165: 38.29804 | F165: 77.73667145 | G165: 4.927948952 | H165: 19.83279419 | I165: 0.2283333391 | J165: 0.05548846722 | K165: N | L165: 0 | M165: 71.90329074 | N165: 75.00006176 | O165: 36 | P165: 36 | Q165: 0 | R165: 0 | S165: 9 | T165: 30.34000015 | U165: 45.56999969 | V165: 37.90081787 | W165: 4.005637012 | X165: 41.76250076 | Y165: 91.45517731 | Z165: 0.4144195914 | AA165: 0.2252266109 | AB165: 0.07004272938 | AC165: N | AD165: 0 | AE165: 35.199031 | AF165: 25.0005848 | AG165: 37 | AH165: 37 | AI165: 0 | AJ165: 0 | AK165: 9 | AL165: 69.83999634 | AM165: 147.5599976 | AN165: 125.4280701 | AO165: 18.39052461 | AP165: 141.0833282 | AQ165: 40.0633812 | AR165: 3.130740881 | AS165: 0.2283333391 | AT165: 0.1141779423 | AU165: N | AV165: 0 | AW165: 113.0236027 | AX165: 75.00042684 | AY165: 36 | AZ165: 36 | BA165: 0 | BB165: 0 | BC165: 9 | BD165: 34.90000153 | BE165: 50.40000153 | BF165: 42.02222443 | BG165: 4.264746719 | BH165: 43.94166946 | BI165: 100.4418259 | BJ165: 0.4183737636 | BK165: 0.2283333391 | BL165: 0.05009259284 | BM165: N | BN165: 0 | BO165: 44.89874999 | BP165: 25.00001774 | BQ165: 36 | BR165: 36 | BS165: 0 | BT165: 0 | BU165: 9 | BV165: 0.1000000015 | BW165: 10.69999981 | BX165: 1.01333344 | BY165: 2.711580052 | BZ165: 1.159999967 | CA165: 0.4862154424 | CB165: 2.084124327 | CC165: 0.3243176043 | CD165: 0.07273977995 | CE165: G | CF165: 56.75675676 | CG165: 0.3029780272 | CH165: 25.00054012 | CI165: 36 | CJ165: 36 | CK165: 21 | CL165: 56.75675676 | CM165: 9 | DE165: 9 | DW165: 9 | EO165: 9
A166: 10 | B166: 22.52000046 | C166: 206.1499939 | D166: 87.62582397 | E166: 40.73109793 | F166: 68.42749786 | G166: 5.128427982 | H166: 17.08629227 | I166: 0.2283333391 | J166: 0.07483810931 | K166: G | L166: 0 | M166: 59.40886651 | N166: 75.00000251 | O166: 36 | P166: 36 | Q166: 0 | R166: 0 | S166: 10 | T166: 31.52000046 | U166: 46.45999908 | V166: 39.40405273 | W166: 3.49276203 | X166: 42.72499847 | Y166: 127.4633026 | Z166: 0.3091403842 | AA166: 0.2252266109 | AB166: 0.08176440001 | AC166: G | AD166: 0 | AE166: 36.99714357 | AF166: 24.99998189 | AG166: 37 | AH166: 37 | AI166: 0 | AJ166: 0 | AK166: 10 | AL166: 75.37999725 | AM166: 151.4799957 | AN166: 122.7058411 | AO166: 18.98979395 | AP166: 132.4550018 | AQ166: 38.10015869 | AR166: 3.220612288 | AS166: 0.2283333391 | AT166: 0.07370269299 | AU166: N | AV166: 0 | AW166: 109.8974172 | AX166: 75.00000411 | AY166: 36 | AZ166: 36 | BA166: 0 | BB166: 0 | BC166: 10 | BD166: 34.40000153 | BE166: 51.40000153 | BF166: 42.24721527 | BG166: 4.219376129 | BH166: 44.31666946 | BI166: 101.6915436 | BJ166: 0.4154447317 | BK166: 0.2283333391 | BL166: 0.07457816601 | BM166: G | BN166: 0 | BO166: 44.99247227 | BP166: 25.00001793 | BQ166: 36 | BR166: 36 | BS166: 0 | BT166: 0 | BU166: 10 | BV166: 0.1000000015 | BW166: 6.599999905 | BX166: 1.02352941 | BY166: 1.574614671 | BZ166: 0.75 | CA166: 0.7830590606 | CB166: 1.307090998 | CC166: 0.3322738111 | CD166: 0.04847371578 | CE166: G | CF166: 51.35135135 | CG166: 0.6049880977 | CH166: 25.00015086 | CI166: 36 | CJ166: 36 | CK166: 19 | CL166: 51.35135135 | CM166: 10 | DE166: 10 | DW166: 10 | EO166: 10
A167: 11 | B167: 24 | C167: 189.2799988 | D167: 87.89918518 | E167: 47.01929354 | F167: 37.7733345 | G167: 3.183171511 | H167: 27.61371231 | I167: 0.2283333391 | J167: 0.06696426868 | K167: G | L167: 0 | M167: 51.71600317 | N167: 75.00043198 | O167: 36 | P167: 36 | Q167: 0 | R167: 0 | S167: 11 | T167: 30.68000031 | U167: 45.54999924 | V167: 38.73135376 | W167: 4.580823916 | X167: 44.31083298 | Y167: 71.15667725 | Z167: 0.5443108678 | AA167: 0.2252266109 | AB167: 0.0924872756 | AC167: N | AD167: 0 | AE167: 35.64161669 | AF167: 24.99999783 | AG167: 37 | AH167: 37 | AI167: 0 | AJ167: 0 | AK167: 11 | AL167: 64.11000061 | AM167: 148.8999939 | AN167: 121.6022263 | AO167: 22.86154162 | AP167: 141.8341522 | AQ167: 24.46677208 | AR167: 4.970096588 | AS167: 0.2283333391 | AT167: 0.1329676509 | AU167: N | AV167: 0 | AW167: 106.1823519 | AX167: 74.99999844 | AY167: 36 | AZ167: 36 | BA167: 0 | BB167: 0 | BC167: 11 | BD167: 34.40000153 | BE167: 51.70000076 | BF167: 41.9861145 | BG167: 4.815994579 | BH167: 41.60833359 | BI167: 78.1088028 | BJ167: 0.5375337005 | BK167: 0.2283333391 | BL167: 0.05055892467 | BM167: G | BN167: 0 | BO167: 45.0853877 | BP167: 24.99992685 | BQ167: 36 | BR167: 36 | BS167: 0 | BT167: 0 | BU167: 11 | BV167: 0.1000000015 | BW167: 8.300000191 | BX167: 1.478571534 | BY167: 2.114848066 | BZ167: 0.9200000167 | CA167: 0.9526405334 | CB167: 1.552077055 | CC167: 0.340793103 | CD167: 0.09248369932 | CE167: G | CF167: 59.45945946 | CG167: 0.6924635009 | CH167: 25.00001769 | CI167: 36 | CJ167: 36 | CK167: 22 | CL167: 59.45945946 | CM167: 11 | DE167: 11 | DW167: 11 | EO167: 11
A168: 12 | B168: 9.029999733 | C168: 257.8999939 | D168: 94.902771 | E168: 55.18444525 | F168: 71.24749756 | G168: 2.564695358 | H168: 37.00352478 | I168: 0.2283333391 | J168: 0.02247089148 | K168: G | L168: 0 | M168: 51.3266438 | N168: 75.00013666 | O168: 36 | P168: 36 | Q168: 0 | R168: 0 | S168: 12 | T168: 28.62000084 | U168: 50.66999817 | V168: 38.35945892 | W168: 5.539215904 | X168: 37.80749893 | Y168: 50.50082397 | Z168: 0.7595808506 | AA168: 0.2252266109 | AB168: 0.09154182673 | AC168: G | AD168: 0 | AE168: 34.59400107 | AF168: 24.99910529 | AG168: 37 | AH168: 37 | AI168: 0 | AJ168: 0 | AK168: 12 | AL168: 59.41999817 | AM168: 146.8600006 | AN168: 122.3516693 | AO168: 24.2338801 | AP168: 139.5733337 | AQ168: 20.58201981 | AR168: 5.944590092 | AS168: 0.2283333391 | AT168: 0.1678317189 | AU168: N | AV168: 0 | AW168: 106.0063241 | AX168: 74.99979212 | AY168: 36 | AZ168: 36 | BA168: 0 | BB168: 0 | BC168: 12 | BD168: 31.29999924 | BE168: 51 | BF168: 40.51945114 | BG168: 4.646277893 | BH168: 42.79166794 | BI168: 77.6128006 | BJ168: 0.5220717788 | BK168: 0.2283333391 | BL168: 0.03189021349 | BM168: N | BN168: 0 | BO168: 43.65333529 | BP168: 24.99988148 | BQ168: 36 | BR168: 36 | BS168: 0 | BT168: 0 | BU168: 12 | BV168: 0.3000000119 | BW168: 7.699999809 | BX168: 3.612499952 | BY168: 2.860787798 | BZ168: 1.039999962 | CA168: 1.308748484 | CB168: 2.760270596 | CC168: 0.474429369 | CD168: 0.1028124094 | CE168: G | CF168: 75.67567568 | CG168: 0 | CH168: 24.32432432 | CI168: 36 | CJ168: 36 | CK168: 28 | CL168: 75.67567568 | CM168: 12 | DE168: 12 | DW168: 12 | EO168: 12
A169: 13 | B169: 15.32999992 | C169: 149.1399994 | D169: 68.89498901 | E169: 37.66752457 | F169: 48.78250122 | G169: 3.210466623 | H169: 21.45949364 | I169: 0.2283333391 | J169: 0.08726871014 | K169: G | L169: 0 | M169: 40.65802173 | N169: 75.00028352 | O169: 36 | P169: 36 | Q169: 0 | R169: 0 | S169: 13 | T169: 30.11000061 | U169: 49.06999969 | V169: 38.68216705 | W169: 4.046674451 | X169: 41.16999817 | Y169: 93.46337891 | Z169: 0.4138751328 | AA169: 0.2252266109 | AB169: 0.04620420933 | AC169: N | AD169: 0 | AE169: 35.95270936 | AF169: 25.00045405 | AG169: 37 | AH169: 37 | AI169: 0 | AJ169: 0 | AK169: 13 | AL169: 54.20000076 | AM169: 144.25 | AN169: 115.3699951 | AO169: 23.40923947 | AP169: 121.7375031 | AQ169: 20.035429 | AR169: 5.758299351 | AS169: 0.2283333391 | AT169: 0.1930299997 | AU169: N | AV169: 0 | AW169: 99.58077518 | AX169: 74.99990206 | AY169: 36 | AZ169: 36 | BA169: 0 | BB169: 0 | BC169: 13 | BD169: 29.70000076 | BE169: 50.5 | BF169: 42.43055344 | BG169: 4.858266428 | BH169: 45.29999924 | BI169: 74.04371643 | BJ169: 0.5730473399 | BK169: 0.2283333391 | BL169: 0.08123880625 | BM169: N | BN169: 0 | BO169: 45.7073547 | BP169: 25.00032476 | BQ169: 36 | BR169: 36 | BS169: 0 | BT169: 0 | BU169: 13 | BV169: 0.1000000015 | BW169: 22.70000076 | BX169: 2.326315403 | BY169: 5.202226258 | BZ169: 2.359999895 | CA169: 0.5819000602 | CB169: 3.997792006 | CC169: 0.3142995536 | CD169: 0.05104863644 | CE169: G | CF169: 45.94594595 | CG169: 1.39511413 | CH169: 25.0008645 | CI169: 36 | CJ169: 36 | CK169: 17 | CL169: 45.94594595 | CM169: 13 | DE169: 13 | DW169: 13 | EO169: 13
A170: 14 | B170: 2.019999981 | C170: 177.2200012 | D170: 48.39332581 | E170: 40.84966573 | F170: 16.62000084 | G170: 1.339811802 | H170: 36.11949539 | I170: 0.2283333391 | J170: 0.02453517914 | K170: G | L170: 0 | M170: 18.02535771 | N170: 75.00006096 | O170: 36 | P170: 36 | Q170: 0 | R170: 0 | S170: 14 | T170: 32.29999924 | U170: 49.04000092 | V170: 40.11431885 | W170: 4.706248922 | X170: 44.85499954 | Y170: 74.22885132 | Z170: 0.5404140949 | AA170: 0.2252266109 | AB170: 0.0692717433 | AC170: N | AD170: 0 | AE170: 36.93997458 | AF170: 24.99998735 | AG170: 37 | AH170: 37 | AI170: 0 | AJ170: 0 | AK170: 14 | AL170: 61.56000137 | AM170: 147.5500031 | AN170: 107.7805481 | AO170: 21.94720366 | AP170: 126.0525055 | AQ170: 21.83234596 | AR170: 4.936737061 | AS170: 0.2283333391 | AT170: 0.09222924709 | AU170: N | AV170: 0 | AW170: 92.97737309 | AX170: 75.00001606 | AY170: 36 | AZ170: 36 | BA170: 0 | BB170: 0 | BC170: 14 | BD170: 15 | BE170: 50.20000076 | BF170: 41.125 | BG170: 6.174157138 | BH170: 41.40000153 | BI170: 31.94189644 | BJ170: 1.287493944 | BK170: 0.2283333391 | BL170: 0.1007305235 | BM170: N | BN170: 0 | BO170: 45.28954873 | BP170: 24.99926388 | BQ170: 36 | BR170: 36 | BS170: 0 | BT170: 0 | BU170: 14 | BV170: 0.1000000015 | BW170: 38.29999924 | BX170: 4.713043213 | BY170: 9.06197382 | BZ170: 3.919999838 | CA170: 0.4520755708 | CB170: 10.42534351 | CC170: 0.2856647372 | CD170: 0.05563491583 | CE170: G | CF170: 35.13513514 | CG170: 3.355703081 | CH170: 25.00000653 | CI170: 36 | CJ170: 36 | CK170: 13 | CL170: 35.13513514 | CM170: 14 | DE170: 14 | DW170: 14 | EO170: 14
A171: 15 | B171: 1.580000043 | C171: 154.7299957 | D171: 38.42722702 | E171: 30.20032199 | F171: 39.86750031 | G171: 1.936563015 | H171: 19.84300423 | I171: 0.2283333391 | J171: 0.07611685991 | K171: G | L171: 0 | M171: 18.15376278 | N171: 75.00000552 | O171: 36 | P171: 36 | Q171: 0 | R171: 0 | S171: 15 | T171: 29.98999977 | U171: 48.74000168 | V171: 40.52540207 | W171: 4.289580545 | X171: 40.92750168 | Y171: 88.39420319 | Z171: 0.4584622085 | AA171: 0.2252266109 | AB171: 0.05891281366 | AC171: N | AD171: 0 | AE171: 37.63209407 | AF171: 24.99998604 | AG171: 37 | AH171: 37 | AI171: 0 | AJ171: 0 | AK171: 15 | AL171: 58.02000046 | AM171: 142.8899994 | AN171: 103.4341736 | AO171: 20.85814384 | AP171: 121.6725006 | AQ171: 22.27205086 | AR171: 4.644124508 | AS171: 0.2283333391 | AT171: 0.07407407463 | AU171: T | AV171: 0 | AW171: 94.76987401 | AX171: 74.99988336 | AY171: 36 | AZ171: 36 | BA171: 0 | BB171: 0 | BC171: 15 | BD171: 22.29999924 | BE171: 48.5 | BF171: 39.78333664 | BG171: 6.487812942 | BH171: 41.95000076 | BI171: 31.0510788 | BJ171: 1.281222343 | BK171: 0.2283333391 | BL171: 0.1228606999 | BM171: N | BN171: 0 | BO171: 44.15931288 | BP171: 24.99993678 | BQ171: 36 | BR171: 36 | BS171: 0 | BT171: 0 | BU171: 15 | BV171: 0.1000000015 | BW171: 31.39999962 | BX171: 6.873912811 | BY171: 10.57381975 | BZ171: 3.229999781 | CA171: 0.5037798285 | CB171: 13.64467621 | CC171: 0.2856647372 | CD171: 0.1194164157 | CE171: G | CF171: 35.13513514 | CG171: 5.198758347 | CH171: 25.00028496 | CI171: 36 | CJ171: 36 | CK171: 13 | CL171: 35.13513514 | CM171: 15 | DE171: 15 | DW171: 15 | EO171: 15
A172: 16 | B172: 0.5699999928 | C172: 73.48000336 | D172: 28.17027664 | E172: 20.4207811 | F172: 6.645833969 | G172: 1.217735529 | H172: 23.13332939 | I172: 0.2283333391 | J172: 0.0631313175 | K172: T | L172: 0 | M172: 13.02622222 | N172: 75.00000037 | O172: 36 | P172: 36 | Q172: 0 | R172: 0 | S172: 16 | T172: 34.90999985 | U172: 49.54999924 | V172: 40.49837112 | W172: 3.826760434 | X172: 38.56999969 | Y172: 119.3586197 | Z172: 0.3392999172 | AA172: 0.2252266109 | AB172: 0.06584179401 | AC172: G | AD172: 0 | AE172: 37.94025613 | AF172: 24.99985205 | AG172: 37 | AH172: 37 | AI172: 0 | AJ172: 0 | AK172: 16 | AL172: 54.31999969 | AM172: 133.8300018 | AN172: 97.66139221 | AO172: 20.19434763 | AP172: 100.7008362 | AQ172: 21.72190475 | AR172: 4.495986462 | AS172: 0.2283333391 | AT172: 0.06324985623 | AU172: N | AV172: 0 | AW172: 84.0406061 | AX172: 74.9998515 | AY172: 36 | AZ172: 36 | BA172: 0 | BB172: 0 | BC172: 16 | BD172: 12.80000019 | BE172: 49.59999847 | BF172: 38.23888779 | BG172: 8.704950384 | BH172: 40.40000153 | BI172: 12.792449 | BJ172: 2.989176512 | BK172: 0.2283333391 | BL172: 0.2653669715 | BM172: N | BN172: 0 | BO172: 44.11044132 | BP172: 24.99943882 | BQ172: 36 | BR172: 36 | BS172: 0 | BT172: 0 | BU172: 16 | BV172: 0.3000000119 | BW172: 41.09999847 | BX172: 9.211538315 | BY172: 12.44100703 | BZ172: 4.380000114 | CA172: 0.5957680941 | CB172: 15.46161747 | CC172: 0.2686791122 | CD172: 0.06429833174 | CE172: G | CF172: 27.02702703 | CG172: 8.832339943 | CH172: 25.00088804 | CI172: 36 | CJ172: 36 | CK172: 10 | CL172: 27.02702703 | CM172: 16 | DE172: 16 | DW172: 16 | EO172: 16
A173: 17 | B173: 0.9200000167 | C173: 90.23000336 | D173: 27.25942993 | E173: 20.022427 | F173: 23.24749947 | G173: 1.655376911 | H173: 16.46720505 | I173: 0.2315722704 | J173: 0.04074716568 | K173: G | L173: 2.702702703 | M173: 10.96628005 | N173: 75.00007182 | O173: 36 | P173: 36 | Q173: 1 | R173: 2.702702703 | S173: 17 | T173: 34.81000137 | U173: 48.59999847 | V173: 40.93107605 | W173: 3.497562786 | X173: 38.25749969 | Y173: 143.1799469 | Z173: 0.2858715653 | AA173: 0.2252266109 | AB173: 0.06938624382 | AC173: G | AD173: 0 | AE173: 38.57484301 | AF173: 24.99998326 | AG173: 37 | AH173: 37 | AI173: 0 | AJ173: 0 | AK173: 17 | AL173: 51.70999908 | AM173: 131.8099976 | AN173: 93.6002655 | AO173: 21.0905242 | AP173: 98.43499756 | AQ173: 18.2388134 | AR173: 5.13192749 | AS173: 0.2283333391 | AT173: 0.03888601065 | AU173: N | AV173: 0 | AW173: 79.37510967 | AX173: 74.99971888 | AY173: 36 | AZ173: 36 | BA173: 0 | BB173: 0 | BC173: 17 | BD173: 3.799999952 | BE173: 46.20000076 | BF173: 34.04444122 | BG173: 11.78974006 | BH173: 42.66666794 | BI173: 4.979697227 | BJ173: 6.836648941 | BK173: 0.2283333391 | BL173: 0.1869833469 | BM173: N | BN173: 0 | BO173: 41.99647294 | BP173: 25.00007308 | BQ173: 36 | BR173: 36 | BS173: 0 | BT173: 0 | BU173: 17 | BV173: 0.200000003 | BW173: 45.59999847 | BX173: 14.65185165 | BY173: 14.50923704 | BZ173: 4.739999771 | CA173: 0.6918084025 | CB173: 21.17905998 | CC173: 0.2636566162 | CD173: 0.05277836323 | CE173: E | CF173: 24.32432432 | CG173: 16.22810288 | CH173: 25.0000154 | CI173: 36 | CJ173: 36 | CK173: 9 | CL173: 24.32432432 | CM173: 17 | DE173: 17 | DW173: 17 | EO173: 17
A174: 18 | B174: 0.01999999955 | C174: 57.11999893 | D174: 18.41788101 | E174: 15.91483242 | F174: 4.778333187 | G174: 0.8430863619 | H174: 21.84578133 | I174: 0.2384863943 | J174: 0.08389246464 | K174: E | L174: 8.108108108 | M174: 3.741124689 | N174: 75.00000643 | O174: 36 | P174: 36 | Q174: 3 | R174: 8.108108108 | S174: 18 | T174: 36.13000107 | U174: 54.31000137 | V174: 41.98540497 | W174: 3.661319967 | X174: 40.67499924 | Y174: 141.5706329 | Z174: 0.2965686023 | AA174: 0.2252266109 | AB174: 0.06036913395 | AC174: G | AD174: 0 | AE174: 39.55457474 | AF174: 25.00005325 | AG174: 37 | AH174: 37 | AI174: 0 | AJ174: 0 | AK174: 18 | AL174: 49.34999847 | AM174: 122.0500031 | AN174: 87.19332886 | AO174: 18.99994218 | AP174: 91.75833893 | AQ174: 19.82833672 | AR174: 4.397409916 | AS174: 0.2283333391 | AT174: 0.05453312397 | AU174: N | AV174: 0 | AW174: 74.37805413 | AX174: 75.00001418 | AY174: 36 | AZ174: 36 | BA174: 0 | BB174: 0 | BC174: 18 | BD174: 2.400000095 | BE174: 45 | BF174: 29.34444809 | BG174: 13.75500896 | BH174: 41.45000076 | BI174: 2.686246395 | BJ174: 10.92395973 | BK174: 0.2283333391 | BL174: 0.1593096852 | BM174: N | BN174: 0 | BO174: 38.62205912 | BP174: 25.00000353 | BQ174: 36 | BR174: 36 | BS174: 0 | BT174: 0 | BU174: 18 | BV174: 0.1000000015 | BW174: 47.59999847 | BX174: 18.58666801 | BY174: 15.20518839 | BZ174: 14.35000038 | CA174: 0.7866800427 | CB174: 23.62671852 | CC174: 0.2501266301 | CD174: 0.08962130547 | CE174: E | CF174: 16.21621622 | CG174: 22.47774336 | CH174: 25.00039998 | CI174: 36 | CJ174: 36 | CK174: 6 | CL174: 16.21621622 | CM174: 18 | DE174: 18 | DW174: 18 | EO174: 18
A175: 19 | B175: 0.3700000048 | C175: 80.06999969 | D175: 18.25371552 | E175: 21.77164969 | F175: 7.011666298 | G175: 0.8016967177 | H175: 22.76885414 | I175: 0.2315722704 | J175: 0.07457906008 | K175: G | L175: 2.702702703 | M175: 3.619926589 | N175: 75.00000399 | O175: 36 | P175: 36 | Q175: 1 | R175: 2.702702703 | S175: 19 | T175: 35.68999863 | U175: 53.81999969 | V175: 42.65972519 | W175: 4.11066605 | X175: 40.22249985 | Y175: 114.2816925 | Z175: 0.3732857406 | AA175: 0.2252266109 | AB175: 0.09379199147 | AC175: G | AD175: 0 | AE175: 39.90469873 | AF175: 25.0000084 | AG175: 37 | AH175: 37 | AI175: 0 | AJ175: 0 | AK175: 19 | AL175: 47.31000137 | AM175: 123.4199982 | AN175: 83.28000641 | AO175: 16.35559423 | AP175: 79.02249908 | AQ175: 25.27203941 | AR175: 3.29534173 | AS175: 0.2283333391 | AT175: 0.03278745711 | AU175: N | AV175: 0 | AW175: 72.24832378 | AX175: 75.00000381 | AY175: 36 | AZ175: 36 | BA175: 0 | BB175: 0 | BC175: 19 | BD175: 2.299999952 | BE175: 46 | BF175: 24.29166412 | BG175: 14.83095923 | BH175: 42.35833359 | BI175: 1.947790742 | BJ175: 12.47139359 | BK175: 0.2283333391 | BL175: 0.1311222911 | BM175: G | BN175: 0 | BO175: 32.76240555 | BP175: 24.99900635 | BQ175: 36 | BR175: 36 | BS175: 0 | BT175: 0 | BU175: 19 | BV175: 0.1000000015 | BW175: 44.29999924 | BX175: 22.33529282 | BY175: 15.49908937 | BZ175: 3.783333063 | CA175: 0.7662622929 | CB175: 29.14836502 | CC175: 0.2349530607 | CD175: 0.1274510026 | CE175: U | CF175: 5.405405405 | CG175: 32.61857087 | CH175: 25 | CI175: 36 | CJ175: 36 | CK175: 2 | CL175: 5.405405405 | CM175: 19 | DE175: 19 | DW175: 19 | EO175: 19
A176: 20 | B176: 0.0700000003 | C176: 40.5 | D176: 10.46694565 | E176: 10.1318645 | F176: 3.439166546 | G176: 0.8705214858 | H176: 12.02376461 | I176: 0.2283333391 | J176: 0.06365761161 | K176: E | L176: 0 | M176: 3.011152414 | N176: 75.00000145 | O176: 36 | P176: 36 | Q176: 0 | R176: 0 | S176: 20 | T176: 37.72999954 | U176: 53.5 | V176: 45.12108231 | W176: 3.942552262 | X176: 44.30083466 | Y176: 134.0345612 | Z176: 0.3366376758 | AA176: 0.2252266109 | AB176: 0.02860930562 | AC176: G | AD176: 0 | AE176: 42.43476883 | AF176: 25.00001023 | AG176: 37 | AH176: 37 | AI176: 0 | AJ176: 0 | AK176: 20 | AL176: 45.52999878 | AM176: 109.5999985 | AN176: 78.56222534 | AO176: 13.96838023 | AP176: 82.90416718 | AQ176: 29.68973923 | AR176: 2.646106958 | AS176: 0.2283333391 | AT176: 0.1034311354 | AU176: N | AV176: 0 | AW176: 69.14071558 | AX176: 74.99995557 | AY176: 36 | AZ176: 36 | BA176: 0 | BB176: 0 | BC176: 20 | BD176: 2.099999905 | BE176: 46.29999924 | BF176: 18.94166565 | BG176: 13.50860773 | BH176: 5.783333302 | BI176: 1.718469024 | BJ176: 11.02240753 | BK176: 0.2283333391 | BL176: 0.06890052557 | BM176: G | BN176: 0 | BO176: 25.74729657 | BP176: 25.00008391 | BQ176: 36 | BR176: 36 | BS176: 0 | BT176: 0 | BU176: 20 | BV176: 0.200000003 | BW176: 46.20000076 | BX176: 27.25428963 | BY176: 13.09895109 | BZ176: 34.70000076 | CA176: 1.877063274 | CB176: 14.51964378 | CC176: 0.2315722704 | CD176: 0.09564840794 | CE176: N | CF176: 2.702702703 | CG176: 35.80520971 | CH176: 25.00000173 | CI176: 36 | CJ176: 36 | CK176: 1 | CL176: 2.702702703 | CM176: 20 | DE176: 20 | DW176: 20 | EO176: 20
